Workbook

Sheet Home (hidden)
B20: Zoom | J20: Full screen
B21: Select a zoom level appropriate for your display.
J22: To maximise the viewing area, click for Full-Screen mode.
J23: Press Escape to return to normal display mode.
B24: Selected zoom will be applied to all worksheets except this one.

Sheet uxb_works (hidden)
A1: TERRITORY_COUNT | B1: 17
A2: MODE | B2: PRODUCTION
A3: MAIN_DP | B3: 0
A4: WEIGHT_PROFILE_ID | B4: 1
C5: plus none | D5: ignore none | E5: Country Code | F5: Country Number
A6: CITY_HIGHLIGHT_DD | B6: 1 | C6: =INDEX(luCityPlusNone,B6) -> <none> | D6: =INDEX(luCities,B7) -> Hong Kong | E6: HKG | F6: =MATCH(E6,tblTerritories!B2:B19,0) -> 5
A7: CITY_HIGHLIGHT_ID | B7: =B6-1 -> 0
A8: GROUP_HIGHLIGHT_DD | B8: 1 | C8: =INDEX(luRegions,B8) -> <none>
B9: =B8+1 -> 2 | E9: Check if Autoheight on Summary page should run
A10: GROUP_FILTER_ID | B10: 1 | C10: =INDEX(tblTerritories!O4:O8,B10) -> All Incomes | E10: =COUNTIF(iSummary!M8:M24,1) -> 17 | F10: 17 | G10: =IF(E10=F10,1,0) -> 1
B11: =B10-1 -> 0 | AC11: Not Applicable
A12: NUMBER_OF_INDICATORS | B12: 1
A13: Indicator Ranking | B13: 19 | C13: =tblIndicators!B1 -> IS_BG | D13: =tblIndicators!C1 -> Spare1 | E13: =tblIndicators!D1 -> INDI_CODE | F13: =tblIndicators!E1 -> PARENT_CODE | G13: =tblIndicators!F1 -> DEPTH | H13: =tblIndicators!G1 -> REF | I13: =tblIndicators!H1 -> NDICATOR_SHORT | J13: =tblIndicators!L1 -> DESCRITION | K13: =tblIndicators!M1 -> INDICATOR_MULTI | L13: =tblIndicators!N1 -> INDICATOR_UNIT | M13: =tblIndicators!O1 -> Scoring Criteria (0-100 or 0-4 etc) | N13: =tblIndicators!P1 -> Year | O13: =tblIndicators!Q1 -> Geography | P13: =tblIndicators!R1 -> HIGH=Good | Q13: =tblIndicators!S1 -> Format | R13: =tblIndicators!T1 -> MAIN_SOURCE | S13: =tblIndicators!U1 -> SOURCE_WS_ID | T13: =tblIndicators!V1 -> HIGH_IS | U13: =tblIndicators!W1 -> NORM_ID (1=sumproduct, 2=min max set by data values, 3=min max set by user here) | V13: =tblIndicators!X1 -> Set Min | W13: =tblIndicators!Y1 -> Set Max | X13: =tblIndicators!Z1 -> WEIGHT_NOM | Y13: =tblIndicators!AA1 -> WEIGHT_PERC | Z13: =tblIndicators!AB1 -> REF_INDI | AA13: =tblIndicators!AC1 -> PARENT | AB13: =tblIndicators!AD1 -> Weight_row | AC13: =tblIndicators!AE1 -> Weight_nom | AD13: =tblIndicators!AF1 -> Weight-% | AE13: =tblIndicators!AG1 -> 0 | AF13: =tblIndicators!AH1 -> Weight_nom_2 | AG13: =tblIndicators!AI1 -> Weight-%_2 | AH13: =tblIndicators!AJ1 -> 0 | AI13: =tblIndicators!AK1 -> 0 | AJ13: =tblIndicators!AL1 -> 0 | AK13: =tblIndicators!AL1 -> 0
A14: INDI_ID | B14: 1 | C14: =IF(INDEX(tblIndicators!B$2:B$20,$B14)="","",INDEX(tblIndicators!B$2:B$20,$B14)) -> 0 | D14: =IF(INDEX(tblIndicators!C$2:C$20,$B14)="","",INDEX(tblIndicators!C$2:C$20,$B14)) ->  | E14: =IF(INDEX(tblIndicators!D$2:D$20,$B14)="","",INDEX(tblIndicators!D$2:D$20,$B14)) -> TOTAL | F14: =IF(INDEX(tblIndicators!E$2:E$20,$B14)="","",INDEX(tblIndicators!E$2:E$20,$B14)) -> OVERALL SCORE | G14: =IF(INDEX(tblIndicators!F$2:F$20,$B14)="","",INDEX(tblIndicators!F$2:F$20,$B14)) -> 0 | H14: =IF(INDEX(tblIndicators!G$2:G$20,$B14)="","",INDEX(tblIndicators!G$2:G$20,$B14)) ->  | I14: =IF(INDEX(tblIndicators!H$2:H$20,$B14)="","",INDEX(tblIndicators!H$2:H$20,$B14)) -> OVERALL SCORE | J14: =IF(INDEX(tblIndicators!L$2:L$20,$B14)="","",INDEX(tblIndicators!L$2:L$20,$B14)) -> The overall score is the weighted sum of the following categories scores: 1) Intellectual property 2) Transparency and trade 3) Customs environment 4) Supply and demand | K14: =IF(INDEX(tblIndicators!M$2:M$20,$B14)="","",INDEX(tblIndicators!M$2:M$20,$B14)) -> Index score/number | L14: =IF(INDEX(tblIndicators!N$2:N$20,$B14)="","",INDEX(tblIndicators!N$2:N$20,$B14)) ->  | M14: =IF(INDEX(tblIndicators!O$2:O$20,$B14)="","",INDEX(tblIndicators!O$2:O$20,$B14)) -> Index score/number | N14: =IF(INDEX(tblIndicators!P$2:P$20,$B14)="","",INDEX(tblIndicators!P$2:P$20,$B14)) -> Index score/number | O14: =IF(INDEX(tblIndicators!Q$2:Q$20,$B14)="","",INDEX(tblIndicators!Q$2:Q$20,$B14)) ->  | P14: =IF(INDEX(tblIndicators!R$2:R$20,$B14)="","",INDEX(tblIndicators!R$2:R$20,$B14)) ->  | Q14: =IF(INDEX(tblIndicators!S$2:S$20,$B14)="","",INDEX(tblIndicators!S$2:S$20,$B14)) -> 0.0 | R14: =IF(INDEX(tblIndicators!T$2:T$20,$B14)="","",INDEX(tblIndicators!T$2:T$20,$B14)) -> EIU Calculation | S14: =IF(INDEX(tblIndicators!U$2:U$20,$B14)="","",INDEX(tblIndicators!U$2:U$20,$B14)) ->  | T14: =IF(INDEX(tblIndicators!V$2:V$20,$B14)="","",INDEX(tblIndicators!V$2:V$20,$B14)) ->  | U14: =IF(INDEX(tblIndicators!W$2:W$20,$B14)="","",INDEX(tblIndicators!W$2:W$20,$B14)) -> 1 | V14: =IF(INDEX(tblIndicators!X$2:X$20,$B14)="","",INDEX(tblIndicators!X$2:X$20,$B14)) ->  | W14: =IF(INDEX(tblIndicators!Y$2:Y$20,$B14)="","",INDEX(tblIndicators!Y$2:Y$20,$B14)) ->  | X14: =IF(INDEX(tblIndicators!Z$2:Z$20,$B14)="","",INDEX(tblIndicators!Z$2:Z$20,$B14)) -> 0 | Y14: =IF(INDEX(tblIndicators!AA$2:AA$20,$B14)="","",INDEX(tblIndicators!AA$2:AA$20,$B14)) ->  | Z14: =IF(INDEX(tblIndicators!AB$2:AB$20,$B14)="","",INDEX(tblIndicators!AB$2:AB$20,$B14)) -> OVERALL SCORE | AA14: =IF(INDEX(tblIndicators!AC$2:AC$20,$B14)="","",INDEX(tblIndicators!AC$2:AC$20,$B14)) ->  | AB14: =IF(INDEX(tblIndicators!AD$2:AD$20,$B14)="","",INDEX(tblIndicators!AD$2:AD$20,$B14)) ->  | AC14: =IF(INDEX(tblIndicators!AE$2:AE$20,$B14)="","",INDEX(tblIndicators!AE$2:AE$20,$B14)) ->  | AD14: =IF(INDEX(tblIndicators!AF$2:AF$20,$B14)="","",INDEX(tblIndicators!AF$2:AF$20,$B14)) ->  | AE14: =IF(INDEX(tblIndicators!AG$2:AG$20,$B14)="","",INDEX(tblIndicators!AG$2:AG$20,$B14)) ->  | AF14: =IF(INDEX(tblIndicators!AH$2:AH$20,$B14)="","",INDEX(tblIndicators!AH$2:AH$20,$B14)) ->  | AG14: =IF(INDEX(tblIndicators!AI$2:AI$20,$B14)="","",INDEX(tblIndicators!AI$2:AI$20,$B14)) ->  | AH14: =IF(INDEX(tblIndicators!AJ$2:AJ$20,$B14)="","",INDEX(tblIndicators!AJ$2:AJ$20,$B14)) ->  | AI14: =IF(INDEX(tblIndicators!AK$2:AK$20,$B14)="","",INDEX(tblIndicators!AK$2:AK$20,$B14)) ->  | AJ14: =IF(INDEX(tblIndicators!AL$2:AL$20,$B14)="","",INDEX(tblIndicators!AL$2:AL$20,$B14)) ->  | AK14: =IF(INDEX(tblIndicators!AL$2:AL$20,$B14)="","",INDEX(tblIndicators!AL$2:AL$20,$B14)) -> 
A16: INDI_OR_SUB_INDI | B16: FALSE
A18: City PROFILE | C18: City | D18: Code | E18: CoreRegionID
A19: CITY1_ID | B19: 1 | C19: =INDEX(luCities,B19) -> Australia | D19: =INDEX(OFFSET(luCities,0,-3),B19) -> AUS | E19: =INDEX(OFFSET(luCities,0,3),B19) -> 0
A20: CITY2_ID | B20: 4 | C20: =INDEX(luCities,B20) -> Hong Kong | D20: =INDEX(OFFSET(luCities,0,-3),B20) -> HKG | E20: =INDEX(OFFSET(luCities,0,3),B20) -> 0
A21: Show_data_Buckets | B21: TRUE | C21: =IF(B21,1,0) -> 1
C22: 1 | D22: 2 | E22: 3 | F22: 4 | G22: 5 | H22: 6 | I22: 12 | J22: 8 | K22: 9 | L22: 10 | M22: 11 | N22: 12 | O22: 13 | P22: 14 | Q22: 15 | R22: 16 | S22: 17 | T22: 18 | U22: 19
A23: SCATTER | C23: =INDEX(tblIndicators!$D$1:$AI$1,C22) -> INDI_CODE | D23: =INDEX(tblIndicators!$D$1:$AI$1,D22) -> PARENT_CODE | E23: =INDEX(tblIndicators!$D$1:$AI$1,E22) -> DEPTH | F23: =INDEX(tblIndicators!$D$1:$AI$1,F22) -> REF | G23: =INDEX(tblIndicators!$D$1:$AI$1,G22) -> NDICATOR_SHORT | H23: =INDEX(tblIndicators!$D$1:$AI$1,H22) -> DESCRITION OF CATEGORIES | I23: =INDEX(tblIndicators!$D$1:$AI$1,I22) -> Scoring Criteria (0-100 or 0-4 etc) | J23: =INDEX(tblIndicators!$D$1:$AI$1,J22) -> DESCRITION OF INDICATORS | K23: =INDEX(tblIndicators!$D$1:$AI$1,K22) -> DESCRITION | L23: =INDEX(tblIndicators!$D$1:$AI$1,L22) -> INDICATOR_MULTI | M23: =INDEX(tblIndicators!$D$1:$AI$1,M22) -> INDICATOR_UNIT | N23: =INDEX(tblIndicators!$D$1:$AI$1,N22) -> Scoring Criteria (0-100 or 0-4 etc) | O23: =INDEX(tblIndicators!$D$1:$AI$1,O22) -> Year | P23: =INDEX(tblIndicators!$D$1:$AI$1,P22) -> Geography | Q23: =INDEX(tblIndicators!$D$1:$AI$1,Q22) -> HIGH=Good | R23: =INDEX(tblIndicators!$D$1:$AI$1,R22) -> Format | S23: =INDEX(tblIndicators!$D$1:$AI$1,S22) -> MAIN_SOURCE | T23: =INDEX(tblIndicators!$D$1:$AI$1,T22) -> SOURCE_WS_ID | U23: =INDEX(tblIndicators!$D$1:$AI$1,U22) -> HIGH_IS
A24: INDI_1 | B24: =B14 -> 1 | C24: =INDEX(tblIndicators!$D$2:$AB$20,uxb_works!$B24,C$22) -> TOTAL | D24: =INDEX(tblIndicators!$D$2:$AB$20,uxb_works!$B24,D$22) -> OVERALL SCORE | E24: =INDEX(tblIndicators!$D$2:$AB$20,uxb_works!$B24,E$22) -> 0 | F24: =INDEX(tblIndicators!$D$2:$AB$20,uxb_works!$B24,F$22) -> 0 | G24: =INDEX(tblIndicators!$D$2:$AB$20,uxb_works!$B24,G$22) -> OVERALL SCORE | H24: =INDEX(tblIndicators!$D$2:$AB$20,uxb_works!$B24,H$22) -> The overall score is the weighted sum of the following categories scores: 1) Intellectual property 2) Transparency and trade 3) Customs environment 4) Supply and demand | I24: =INDEX(tblIndicators!$D$2:$AB$20,uxb_works!$B24,I$22) -> Index score/number | J24: =INDEX(tblIndicators!$D$2:$AB$20,uxb_works!$B24,J$22) -> The overall score is the weighted sum of the following category scores: 1) 1 2) 2 3) 3 4) 4 | K24: =INDEX(tblIndicators!$D$2:$AB$20,uxb_works!$B24,K$22) -> The overall score is the weighted sum of the following categories scores: 1) Intellectual property 2) Transparency and trade 3) Customs environment 4) Supply and demand | L24: =INDEX(tblIndicators!$D$2:$AB$20,uxb_works!$B24,L$22) -> Index score/number | M24: =INDEX(tblIndicators!$D$2:$AB$20,uxb_works!$B24,M$22) -> 0 | N24: =INDEX(tblIndicators!$D$2:$AB$20,uxb_works!$B24,N$22) -> Index score/number | O24: =INDEX(tblIndicators!$D$2:$AB$20,uxb_works!$B24,O$22) -> Index score/number | P24: =INDEX(tblIndicators!$D$2:$AB$20,uxb_works!$B24,P$22) -> 0 | Q24: =INDEX(tblIndicators!$D$2:$AB$20,uxb_works!$B24,Q$22) -> 0 | R24: =INDEX(tblIndicators!$D$2:$AB$20,uxb_works!$B24,R$22) -> 0.0 | S24: =INDEX(tblIndicators!$D$2:$AB$20,uxb_works!$B24,S$22) -> EIU Calculation | T24: =INDEX(tblIndicators!$D$2:$AB$20,uxb_works!$B24,T$22) -> 0 | U24: =INDEX(tblIndicators!$D$2:$AB$20,uxb_works!$B24,U$22) -> 
A25: INDI_2 | B25: 1 | C25: =INDEX(tblIndicators!$D$2:$AB$20,uxb_works!$B25,C$22) -> TOTAL | D25: =INDEX(tblIndicators!$D$2:$AB$20,uxb_works!$B25,D$22) -> OVERALL SCORE | E25: =INDEX(tblIndicators!$D$2:$AB$20,uxb_works!$B25,E$22) -> 0 | F25: =INDEX(tblIndicators!$D$2:$AB$20,uxb_works!$B25,F$22) -> 0 | G25: =INDEX(tblIndicators!$D$2:$AB$20,uxb_works!$B25,G$22) -> OVERALL SCORE | H25: =INDEX(tblIndicators!$D$2:$AB$20,uxb_works!$B25,H$22) -> The overall score is the weighted sum of the following categories scores: 1) Intellectual property 2) Transparency and trade 3) Customs environment 4) Supply and demand | I25: =INDEX(tblIndicators!$D$2:$AB$20,uxb_works!$B25,I$22) -> Index score/number | J25: =INDEX(tblIndicators!$D$2:$AB$20,uxb_works!$B25,J$22) -> The overall score is the weighted sum of the following category scores: 1) 1 2) 2 3) 3 4) 4 | K25: =INDEX(tblIndicators!$D$2:$AB$20,uxb_works!$B25,K$22) -> The overall score is the weighted sum of the following categories scores: 1) Intellectual property 2) Transparency and trade 3) Customs environment 4) Supply and demand | L25: =INDEX(tblIndicators!$D$2:$AB$20,uxb_works!$B25,L$22) -> Index score/number | M25: =INDEX(tblIndicators!$D$2:$AB$20,uxb_works!$B25,M$22) -> 0 | N25: =INDEX(tblIndicators!$D$2:$AB$20,uxb_works!$B25,N$22) -> Index score/number | O25: =INDEX(tblIndicators!$D$2:$AB$20,uxb_works!$B25,O$22) -> Index score/number | P25: =INDEX(tblIndicators!$D$2:$AB$20,uxb_works!$B25,P$22) -> 0 | Q25: =INDEX(tblIndicators!$D$2:$AB$20,uxb_works!$B25,Q$22) -> 0 | R25: =INDEX(tblIndicators!$D$2:$AB$20,uxb_works!$B25,R$22) -> 0.0 | S25: =INDEX(tblIndicators!$D$2:$AB$20,uxb_works!$B25,S$22) -> EIU Calculation | T25: =INDEX(tblIndicators!$D$2:$AB$20,uxb_works!$B25,T$22) -> 0 | U25: =INDEX(tblIndicators!$D$2:$AB$20,uxb_works!$B25,U$22) -> 
A27: SHOW_LABELS | B27: FALSE
A28: SHOW_OUTLIERS | B28: FALSE
A30: CHANGE_IN_WEIGHT | B30: =iWeights!U3 -> 0 | C30: =IF(B30=0,"","Weight profile has been changed from it's neutralsetting") -> 
A32: COUNTRY_COMPARE | B32: 1
A34: WEIGHT_PROFILE_2 | B34: 1 | E34: Max count
A35: INDICATOR_SELECT_WEIGHT_COMPARE | B35: 1 | C35: =INDEX(tblIndiSets!B5:B9,B35) -> 1 | D35: =INDEX(tblIndiSets!C5:C9,B35) -> OVERALL SCORE | E35: 6
B45: 70% (recommended for 1024 width displays) | C45: 70
B46: 0.8 | C46: 80
B47: 0.9 | C47: 90
B48: 100% (recommended for wide screen displays) | C48: 100
B49: 1.25 | C49: 125
A51: ZOOM | B51: 3 | C51: =INDEX(C45:C49,B51) -> 90
A57: Text
B58: Scores are normalized (0-100, where 100=most favorable)
A61: Weight_Compare
A63: Indicator | B63: 1
A64: WEIGHT_COMP | B64: 2
A65: Order | B65: FALSE

Sheet SheetNames (hidden)
A1: Home
A2: SheetNames
A3: 1. Map
A4: iMap_Rank
A5: iMap_Graph
A6: uxb_mapdata
A7: uxb_regions
A8: tblIndicators
A9: tblIndiSets
A10: tblCategories
A11: tblTerritories
A12: iData
A13: iSummary
A14: Summary
A15: iIndiRank
A16: uxb_works
A17: Indicator_Ranking
A18: iScatter
A19: Scatter
A20: iCountryP
A21: CountryProfile
A22: iCityCompare
A23: Country_Compare
A24: Scores
A25: iCC_Overview
A26: iCountryCompSpider
A27: Data
A28: rScores
A29: iWeights
A30: Weights
A31: iScoresWS2
A32: rScoresWS2
A33: iWeightsComp
A34: Weight_Compare

Sheet 1. Map
B6: =IF(uxb_works!$B$14=1,uxb_works!Z14,uxb_works!AA14) -> OVERALL SCORE
B7: =IF(uxb_works!$B$14=1,"",uxb_works!Z14) ->  | L7: =IF(uxb_works!$B$6=1,"No Country Highlighted","SELECTED COUNTRY") -> No Country Highlighted
J8: =iMap_Rank!C9 -> Click on map or select from the country highlight drop down box
B39: BEST ENVIRONMENT | E39: GOOD ENVIRONMENT | H39: MODERATE ENVIRONMENT | K39: NEEDS IMPROVEMENT
B40: =iMap_Rank!AN15 -> Score 71.9 to 85.2 | E40: =iMap_Rank!AQ15 -> Score 61.7 to 71.8 | H40: =iMap_Rank!AT15 -> Score 49.5 to 61.6 | K40: =iMap_Rank!AW15 -> Score 10.8 to 49.4
A41: =iMap_Rank!AM19 -> 1 | B41: =iMap_Rank!AN19 -> Australia | C41: =iMap_Rank!AO19 -> 85.2 | D41: =iMap_Rank!AP19 -> 1 | E41: =iMap_Rank!AQ19 -> South Korea | F41: =iMap_Rank!AR19 -> 71.8 | G41: =iMap_Rank!AS19 -> 1 | H41: =iMap_Rank!AT19 -> China | I41: =iMap_Rank!AU19 -> 61.6 | J41: =iMap_Rank!AV19 -> 1 | K41: =iMap_Rank!AW19 -> Vietnam | L41: =iMap_Rank!AX19 -> 49.4
A42: =iMap_Rank!AM20 -> 1 | B42: =iMap_Rank!AN20 -> New Zealand | C42: =iMap_Rank!AO20 -> 81.8 | D42: =iMap_Rank!AP20 -> 1 | E42: =iMap_Rank!AQ20 -> Malaysia | F42: =iMap_Rank!AR20 -> 71.8 | G42: =iMap_Rank!AS20 -> 1 | H42: =iMap_Rank!AT20 -> India | I42: =iMap_Rank!AU20 -> 54.1 | J42: =iMap_Rank!AV20 -> 1 | K42: =iMap_Rank!AW20 -> Indonesia | L42: =iMap_Rank!AX20 -> 46.1
A43: =iMap_Rank!AM21 -> 1 | B43: =iMap_Rank!AN21 -> Hong Kong | C43: =iMap_Rank!AO21 -> 81.4 | D43: =iMap_Rank!AP21 -> 1 | E43: =iMap_Rank!AQ21 -> Taiwan | F43: =iMap_Rank!AR21 -> 69.8 | G43: =iMap_Rank!AS21 -> 1 | H43: =iMap_Rank!AT21 -> Thailand | I43: =iMap_Rank!AU21 -> 53.1 | J43: =iMap_Rank!AV21 -> 1 | K43: =iMap_Rank!AW21 -> Cambodia | L43: =iMap_Rank!AX21 -> 23.9
A44: =iMap_Rank!AM22 -> 1 | B44: =iMap_Rank!AN22 -> Japan | C44: =iMap_Rank!AO22 -> 75.9 | D44: =iMap_Rank!AP22 -> 1 | E44: =iMap_Rank!AQ22 -> Singapore | F44: =iMap_Rank!AR22 -> 69.8 | G44: =iMap_Rank!AS22 -> 1 | H44: =iMap_Rank!AT22 -> Philippines | I44: =iMap_Rank!AU22 -> 50.4 | J44: =iMap_Rank!AV22 -> 1 | K44: =iMap_Rank!AW22 -> Laos | L44: =iMap_Rank!AX22 -> 12.9
A45: =iMap_Rank!AM23 -> 0 | B45: =iMap_Rank!AN23 ->  | C45: =iMap_Rank!AO23 ->  | D45: =iMap_Rank!AP23 -> 0 | E45: =iMap_Rank!AQ23 ->  | F45: =iMap_Rank!AR23 ->  | G45: =iMap_Rank!AS23 -> 0 | H45: =iMap_Rank!AT23 ->  | I45: =iMap_Rank!AU23 ->  | J45: =iMap_Rank!AV23 -> 1 | K45: =iMap_Rank!AW23 -> Myanmar | L45: =iMap_Rank!AX23 -> 10.8
A46: =iMap_Rank!AM24 -> 0 | B46: =iMap_Rank!AN24 ->  | C46: =iMap_Rank!AO24 ->  | D46: =iMap_Rank!AP24 -> 0 | E46: =iMap_Rank!AQ24 ->  | F46: =iMap_Rank!AR24 ->  | G46: =iMap_Rank!AS24 -> 0 | H46: =iMap_Rank!AT24 ->  | I46: =iMap_Rank!AU24 ->  | J46: =iMap_Rank!AV24 -> 0 | K46: =iMap_Rank!AW24 ->  | L46: =iMap_Rank!AX24 -> 
A47: =iMap_Rank!AM25 -> 0 | B47: =iMap_Rank!AN25 ->  | C47: =iMap_Rank!AO25 ->  | D47: =iMap_Rank!AP25 -> 0 | E47: =iMap_Rank!AQ25 ->  | F47: =iMap_Rank!AR25 ->  | G47: =iMap_Rank!AS25 -> 0 | H47: =iMap_Rank!AT25 ->  | I47: =iMap_Rank!AU25 ->  | J47: =iMap_Rank!AV25 -> 0 | K47: =iMap_Rank!AW25 ->  | L47: =iMap_Rank!AX25 -> 
A48: =iMap_Rank!AM26 -> 0 | B48: =iMap_Rank!AN26 ->  | C48: =iMap_Rank!AO26 ->  | D48: =iMap_Rank!AP26 -> 0 | E48: =iMap_Rank!AQ26 ->  | F48: =iMap_Rank!AR26 ->  | G48: =iMap_Rank!AS26 -> 0 | H48: =iMap_Rank!AT26 ->  | I48: =iMap_Rank!AU26 ->  | J48: =iMap_Rank!AV26 -> 0 | K48: =iMap_Rank!AW26 ->  | L48: =iMap_Rank!AX26 -> 
A49: =iMap_Rank!AM27 -> 0 | B49: =iMap_Rank!AN27 ->  | C49: =iMap_Rank!AO27 ->  | D49: =iMap_Rank!AP27 -> 0 | E49: =iMap_Rank!AQ27 ->  | F49: =iMap_Rank!AR27 ->  | G49: =iMap_Rank!AS27 -> 0 | H49: =iMap_Rank!AT27 ->  | I49: =iMap_Rank!AU27 ->  | J49: =iMap_Rank!AV27 -> 0 | K49: =iMap_Rank!AW27 ->  | L49: =iMap_Rank!AX27 -> 
A50: =iMap_Rank!AM28 -> 0 | B50: =iMap_Rank!AN28 ->  | C50: =iMap_Rank!AO28 ->  | D50: =iMap_Rank!AP28 -> 0 | E50: =iMap_Rank!AQ28 ->  | F50: =iMap_Rank!AR28 ->  | G50: =iMap_Rank!AS28 -> 0 | H50: =iMap_Rank!AT28 ->  | I50: =iMap_Rank!AU28 ->  | J50: =iMap_Rank!AV28 -> 0 | K50: =iMap_Rank!AW28 ->  | L50: =iMap_Rank!AX28 -> 
A51: =iMap_Rank!AM29 -> 0 | B51: =iMap_Rank!AN29 ->  | C51: =iMap_Rank!AO29 ->  | D51: =iMap_Rank!AP29 -> 0 | E51: =iMap_Rank!AQ29 ->  | F51: =iMap_Rank!AR29 ->  | G51: =iMap_Rank!AS29 -> 0 | H51: =iMap_Rank!AT29 ->  | I51: =iMap_Rank!AU29 ->  | J51: =iMap_Rank!AV29 -> 0 | K51: =iMap_Rank!AW29 ->  | L51: =iMap_Rank!AX29 -> 
A52: =iMap_Rank!AM30 -> 0 | B52: =iMap_Rank!AN30 ->  | C52: =iMap_Rank!AO30 ->  | D52: =iMap_Rank!AP30 -> 0 | E52: =iMap_Rank!AQ30 ->  | F52: =iMap_Rank!AR30 ->  | G52: =iMap_Rank!AS30 -> 0 | H52: =iMap_Rank!AT30 ->  | I52: =iMap_Rank!AU30 ->  | J52: =iMap_Rank!AV30 -> 0 | K52: =iMap_Rank!AW30 ->  | L52: =iMap_Rank!AX30 -> 
A53: =iMap_Rank!AM31 -> 0 | B53: =iMap_Rank!AN31 ->  | C53: =iMap_Rank!AO31 ->  | D53: =iMap_Rank!AP31 -> 0 | E53: =iMap_Rank!AQ31 ->  | F53: =iMap_Rank!AR31 ->  | G53: =iMap_Rank!AS31 -> 0 | H53: =iMap_Rank!AT31 ->  | I53: =iMap_Rank!AU31 ->  | J53: =iMap_Rank!AV31 -> 0 | K53: =iMap_Rank!AW31 ->  | L53: =iMap_Rank!AX31 -> 
A54: =iMap_Rank!AM32 -> 0 | B54: =iMap_Rank!AN32 ->  | C54: =iMap_Rank!AO32 ->  | D54: =iMap_Rank!AP32 -> 0 | E54: =iMap_Rank!AQ32 ->  | F54: =iMap_Rank!AR32 ->  | G54: =iMap_Rank!AS32 -> 0 | H54: =iMap_Rank!AT32 ->  | I54: =iMap_Rank!AU32 ->  | J54: =iMap_Rank!AV32 -> 0 | K54: =iMap_Rank!AW32 ->  | L54: =iMap_Rank!AX32 -> 
A55: =iMap_Rank!AM33 -> 0 | B55: =iMap_Rank!AN33 ->  | C55: =iMap_Rank!AO33 ->  | D55: =iMap_Rank!AP33 -> 0 | E55: =iMap_Rank!AQ33 ->  | F55: =iMap_Rank!AR33 ->  | G55: =iMap_Rank!AS33 -> 0 | H55: =iMap_Rank!AT33 ->  | I55: =iMap_Rank!AU33 ->  | J55: =iMap_Rank!AV33 -> 0 | K55: =iMap_Rank!AW33 ->  | L55: =iMap_Rank!AX33 -> 
A56: =iMap_Rank!AM34 -> 0 | B56: =iMap_Rank!AN34 ->  | C56: =iMap_Rank!AO34 ->  | D56: =iMap_Rank!AP34 -> 0 | E56: =iMap_Rank!AQ34 ->  | F56: =iMap_Rank!AR34 ->  | G56: =iMap_Rank!AS34 -> 0 | H56: =iMap_Rank!AT34 ->  | I56: =iMap_Rank!AU34 ->  | J56: =iMap_Rank!AV34 -> 0 | K56: =iMap_Rank!AW34 ->  | L56: =iMap_Rank!AX34 -> 
A57: =iMap_Rank!AM35 -> 0 | B57: =iMap_Rank!AN35 ->  | C57: =iMap_Rank!AO35 ->  | D57: =iMap_Rank!AP35 -> 0 | E57: =iMap_Rank!AQ35 ->  | F57: =iMap_Rank!AR35 ->  | G57: =iMap_Rank!AS35 -> 0 | H57: =iMap_Rank!AT35 ->  | I57: =iMap_Rank!AU35 ->  | J57: =iMap_Rank!AV35 -> 0 | K57: =iMap_Rank!AW35 ->  | L57: =iMap_Rank!AX35 -> 
A58: =iMap_Rank!AM36 -> 0 | B58: =iMap_Rank!AN36 -> 0 | C58: =iMap_Rank!AO36 -> 0 | D58: =iMap_Rank!AP36 -> 0 | E58: =iMap_Rank!AQ36 -> 0 | F58: =iMap_Rank!AR36 -> 0 | G58: =iMap_Rank!AS36 -> 0 | H58: =iMap_Rank!AT36 -> 0 | I58: =iMap_Rank!AU36 -> 0 | J58: =iMap_Rank!AV36 -> 0 | K58: =iMap_Rank!AW36 -> 0 | L58: =iMap_Rank!AX36 -> 0
A59: =iMap_Rank!AM37 -> 0 | B59: =iMap_Rank!AN37 -> 0 | C59: =iMap_Rank!AO37 -> 0 | D59: =iMap_Rank!AP37 -> 0 | E59: =iMap_Rank!AQ37 -> 0 | F59: =iMap_Rank!AR37 -> 0 | G59: =iMap_Rank!AS37 -> 0 | H59: =iMap_Rank!AT37 -> 0 | I59: =iMap_Rank!AU37 -> 0 | J59: =iMap_Rank!AV37 -> 0 | K59: =iMap_Rank!AW37 -> 0 | L59: =iMap_Rank!AX37 -> 0
A60: =iMap_Rank!AM38 -> 0 | B60: =iMap_Rank!AN38 -> 0 | C60: =iMap_Rank!AO38 -> 0 | D60: =iMap_Rank!AP38 -> 0 | E60: =iMap_Rank!AQ38 -> 0 | F60: =iMap_Rank!AR38 -> 0 | G60: =iMap_Rank!AS38 -> 0 | H60: =iMap_Rank!AT38 -> 0 | I60: =iMap_Rank!AU38 -> 0 | J60: =iMap_Rank!AV38 -> 0 | K60: =iMap_Rank!AW38 -> 0 | L60: =iMap_Rank!AX38 -> 0
A61: =iMap_Rank!AM39 -> 0 | B61: =iMap_Rank!AN39 -> 0 | C61: =iMap_Rank!AO39 -> 0 | D61: =iMap_Rank!AP39 -> 0 | E61: =iMap_Rank!AQ39 -> 0 | F61: =iMap_Rank!AR39 -> 0 | G61: =iMap_Rank!AS39 -> 0 | H61: =iMap_Rank!AT39 -> 0 | I61: =iMap_Rank!AU39 -> 0 | J61: =iMap_Rank!AV39 -> 0 | K61: =iMap_Rank!AW39 -> 0 | L61: =iMap_Rank!AX39 -> 0
A62: =iMap_Rank!AM40 -> 0 | B62: =iMap_Rank!AN40 -> 0 | C62: =iMap_Rank!AO40 -> 0 | D62: =iMap_Rank!AP40 -> 0 | E62: =iMap_Rank!AQ40 -> 0 | F62: =iMap_Rank!AR40 -> 0 | G62: =iMap_Rank!AS40 -> 0 | H62: =iMap_Rank!AT40 -> 0 | I62: =iMap_Rank!AU40 -> 0 | J62: =iMap_Rank!AV40 -> 0 | K62: =iMap_Rank!AW40 -> 0 | L62: =iMap_Rank!AX40 -> 0
A63: =iMap_Rank!AM41 -> 0 | B63: =iMap_Rank!AN41 -> 0 | C63: =iMap_Rank!AO41 -> 0 | D63: =iMap_Rank!AP41 -> 0 | E63: =iMap_Rank!AQ41 -> 0 | F63: =iMap_Rank!AR41 -> 0 | G63: =iMap_Rank!AS41 -> 0 | H63: =iMap_Rank!AT41 -> 0 | I63: =iMap_Rank!AU41 -> 0 | J63: =iMap_Rank!AV41 -> 0 | K63: =iMap_Rank!AW41 -> 0 | L63: =iMap_Rank!AX41 -> 0
A64: =iMap_Rank!AM42 -> 0 | B64: =iMap_Rank!AN42 -> 0 | C64: =iMap_Rank!AO42 -> 0 | D64: =iMap_Rank!AP42 -> 0 | E64: =iMap_Rank!AQ42 -> 0 | F64: =iMap_Rank!AR42 -> 0 | G64: =iMap_Rank!AS42 -> 0 | H64: =iMap_Rank!AT42 -> 0 | I64: =iMap_Rank!AU42 -> 0 | J64: =iMap_Rank!AV42 -> 0 | K64: =iMap_Rank!AW42 -> 0 | L64: =iMap_Rank!AX42 -> 0
A65: =iMap_Rank!AM43 -> 0 | B65: =iMap_Rank!AN43 -> 0 | C65: =iMap_Rank!AO43 -> 0 | D65: =iMap_Rank!AP43 -> 0 | E65: =iMap_Rank!AQ43 -> 0 | F65: =iMap_Rank!AR43 -> 0 | G65: =iMap_Rank!AS43 -> 0 | H65: =iMap_Rank!AT43 -> 0 | I65: =iMap_Rank!AU43 -> 0 | J65: =iMap_Rank!AV43 -> 0 | K65: =iMap_Rank!AW43 -> 0 | L65: =iMap_Rank!AX43 -> 0
A66: =iMap_Rank!AM44 -> 0 | B66: =iMap_Rank!AN44 -> 0 | C66: =iMap_Rank!AO44 -> 0 | D66: =iMap_Rank!AP44 -> 0 | E66: =iMap_Rank!AQ44 -> 0 | F66: =iMap_Rank!AR44 -> 0 | G66: =iMap_Rank!AS44 -> 0 | H66: =iMap_Rank!AT44 -> 0 | I66: =iMap_Rank!AU44 -> 0 | J66: =iMap_Rank!AV44 -> 0 | K66: =iMap_Rank!AW44 -> 0 | L66: =iMap_Rank!AX44 -> 0
A67: =iMap_Rank!AM45 -> 0 | B67: =iMap_Rank!AN45 -> 0 | C67: =iMap_Rank!AO45 -> 0 | D67: =iMap_Rank!AP45 -> 0 | E67: =iMap_Rank!AQ45 -> 0 | F67: =iMap_Rank!AR45 -> 0 | G67: =iMap_Rank!AS45 -> 0 | H67: =iMap_Rank!AT45 -> 0 | I67: =iMap_Rank!AU45 -> 0 | J67: =iMap_Rank!AV45 -> 0 | K67: =iMap_Rank!AW45 -> 0 | L67: =iMap_Rank!AX45 -> 0
A68: =iMap_Rank!AM46 -> 0 | B68: =iMap_Rank!AN46 -> 0 | C68: =iMap_Rank!AO46 -> 0 | D68: =iMap_Rank!AP46 -> 0 | E68: =iMap_Rank!AQ46 -> 0 | F68: =iMap_Rank!AR46 -> 0 | G68: =iMap_Rank!AS46 -> 0 | H68: =iMap_Rank!AT46 -> 0 | I68: =iMap_Rank!AU46 -> 0 | J68: =iMap_Rank!AV46 -> 0 | K68: =iMap_Rank!AW46 -> 0 | L68: =iMap_Rank!AX46 -> 0
A69: =iMap_Rank!AM47 -> 0 | B69: =iMap_Rank!AN47 -> 0 | C69: =iMap_Rank!AO47 -> 0 | D69: =iMap_Rank!AP47 -> 0 | E69: =iMap_Rank!AQ47 -> 0 | F69: =iMap_Rank!AR47 -> 0 | G69: =iMap_Rank!AS47 -> 0 | H69: =iMap_Rank!AT47 -> 0 | I69: =iMap_Rank!AU47 -> 0 | J69: =iMap_Rank!AV47 -> 0 | K69: =iMap_Rank!AW47 -> 0 | L69: =iMap_Rank!AX47 -> 0
A70: =iMap_Rank!AM48 -> 0 | B70: =iMap_Rank!AN48 -> 0 | C70: =iMap_Rank!AO48 -> 0 | D70: =iMap_Rank!AP48 -> 0 | E70: =iMap_Rank!AQ48 -> 0 | F70: =iMap_Rank!AR48 -> 0 | G70: =iMap_Rank!AS48 -> 0 | H70: =iMap_Rank!AT48 -> 0 | I70: =iMap_Rank!AU48 -> 0 | J70: =iMap_Rank!AV48 -> 0 | K70: =iMap_Rank!AW48 -> 0 | L70: =iMap_Rank!AX48 -> 0
A71: =iMap_Rank!AM49 -> 0 | B71: =iMap_Rank!AN49 -> 0 | C71: =iMap_Rank!AO49 -> 0 | D71: =iMap_Rank!AP49 -> 0 | E71: =iMap_Rank!AQ49 -> 0 | F71: =iMap_Rank!AR49 -> 0 | G71: =iMap_Rank!AS49 -> 0 | H71: =iMap_Rank!AT49 -> 0 | I71: =iMap_Rank!AU49 -> 0 | J71: =iMap_Rank!AV49 -> 0 | K71: =iMap_Rank!AW49 -> 0 | L71: =iMap_Rank!AX49 -> 0
A72: =iMap_Rank!AM50 -> 0 | B72: =iMap_Rank!AN50 -> 0 | C72: =iMap_Rank!AO50 -> 0 | D72: =iMap_Rank!AP50 -> 0 | E72: =iMap_Rank!AQ50 -> 0 | F72: =iMap_Rank!AR50 -> 0 | G72: =iMap_Rank!AS50 -> 0 | H72: =iMap_Rank!AT50 -> 0 | I72: =iMap_Rank!AU50 -> 0 | J72: =iMap_Rank!AV50 -> 0 | K72: =iMap_Rank!AW50 -> 0 | L72: =iMap_Rank!AX50 -> 0
A73: =iMap_Rank!AM51 -> 0 | B73: =iMap_Rank!AN51 -> 0 | C73: =iMap_Rank!AO51 -> 0 | D73: =iMap_Rank!AP51 -> 0 | E73: =iMap_Rank!AQ51 -> 0 | F73: =iMap_Rank!AR51 -> 0 | G73: =iMap_Rank!AS51 -> 0 | H73: =iMap_Rank!AT51 -> 0 | I73: =iMap_Rank!AU51 -> 0 | J73: =iMap_Rank!AV51 -> 0 | K73: =iMap_Rank!AW51 -> 0 | L73: =iMap_Rank!AX51 -> 0
A74: =iMap_Rank!AM52 -> 0 | B74: =iMap_Rank!AN52 -> 0 | C74: =iMap_Rank!AO52 -> 0 | D74: =iMap_Rank!AP52 -> 0 | E74: =iMap_Rank!AQ52 -> 0 | F74: =iMap_Rank!AR52 -> 0 | G74: =iMap_Rank!AS52 -> 0 | H74: =iMap_Rank!AT52 -> 0 | I74: =iMap_Rank!AU52 -> 0 | J74: =iMap_Rank!AV52 -> 0 | K74: =iMap_Rank!AW52 -> 0 | L74: =iMap_Rank!AX52 -> 0
A75: =iMap_Rank!AM53 -> 0 | B75: =iMap_Rank!AN53 -> 0 | C75: =iMap_Rank!AO53 -> 0 | D75: =iMap_Rank!AP53 -> 0 | E75: =iMap_Rank!AQ53 -> 0 | F75: =iMap_Rank!AR53 -> 0 | G75: =iMap_Rank!AS53 -> 0 | H75: =iMap_Rank!AT53 -> 0 | I75: =iMap_Rank!AU53 -> 0 | J75: =iMap_Rank!AV53 -> 0 | K75: =iMap_Rank!AW53 -> 0 | L75: =iMap_Rank!AX53 -> 0
A76: =iMap_Rank!AM54 -> 0 | B76: =iMap_Rank!AN54 -> 0 | C76: =iMap_Rank!AO54 -> 0 | D76: =iMap_Rank!AP54 -> 0 | E76: =iMap_Rank!AQ54 -> 0 | F76: =iMap_Rank!AR54 -> 0 | G76: =iMap_Rank!AS54 -> 0 | H76: =iMap_Rank!AT54 -> 0 | I76: =iMap_Rank!AU54 -> 0 | J76: =iMap_Rank!AV54 -> 0 | K76: =iMap_Rank!AW54 -> 0 | L76: =iMap_Rank!AX54 -> 0
A77: =iMap_Rank!AM55 -> 0 | B77: =iMap_Rank!AN55 -> 0 | C77: =iMap_Rank!AO55 -> 0 | D77: =iMap_Rank!AP55 -> 0 | E77: =iMap_Rank!AQ55 -> 0 | F77: =iMap_Rank!AR55 -> 0 | G77: =iMap_Rank!AS55 -> 0 | H77: =iMap_Rank!AT55 -> 0 | I77: =iMap_Rank!AU55 -> 0 | J77: =iMap_Rank!AV55 -> 0 | K77: =iMap_Rank!AW55 -> 0 | L77: =iMap_Rank!AX55 -> 0
A78: =iMap_Rank!AM56 -> 0 | B78: =iMap_Rank!AN56 -> 0 | C78: =iMap_Rank!AO56 -> 0 | D78: =iMap_Rank!AP56 -> 0 | E78: =iMap_Rank!AQ56 -> 0 | F78: =iMap_Rank!AR56 -> 0 | G78: =iMap_Rank!AS56 -> 0 | H78: =iMap_Rank!AT56 -> 0 | I78: =iMap_Rank!AU56 -> 0 | J78: =iMap_Rank!AV56 -> 0 | K78: =iMap_Rank!AW56 -> 0 | L78: =iMap_Rank!AX56 -> 0
A79: =iMap_Rank!AM57 -> 0 | B79: =iMap_Rank!AN57 -> 0 | C79: =iMap_Rank!AO57 -> 0 | D79: =iMap_Rank!AP57 -> 0 | E79: =iMap_Rank!AQ57 -> 0 | F79: =iMap_Rank!AR57 -> 0 | G79: =iMap_Rank!AS57 -> 0 | H79: =iMap_Rank!AT57 -> 0 | I79: =iMap_Rank!AU57 -> 0 | J79: =iMap_Rank!AV57 -> 0 | K79: =iMap_Rank!AW57 -> 0 | L79: =iMap_Rank!AX57 -> 0
A80: =iMap_Rank!AM58 -> 0 | B80: =iMap_Rank!AN58 -> 0 | C80: =iMap_Rank!AO58 -> 0 | D80: =iMap_Rank!AP58 -> 0 | E80: =iMap_Rank!AQ58 -> 0 | F80: =iMap_Rank!AR58 -> 0 | G80: =iMap_Rank!AS58 -> 0 | H80: =iMap_Rank!AT58 -> 0 | I80: =iMap_Rank!AU58 -> 0 | J80: =iMap_Rank!AV58 -> 0 | K80: =iMap_Rank!AW58 -> 0 | L80: =iMap_Rank!AX58 -> 0
A81: =iMap_Rank!AM59 -> 0 | B81: =iMap_Rank!AN59 -> 0 | C81: =iMap_Rank!AO59 -> 0 | D81: =iMap_Rank!AP59 -> 0 | E81: =iMap_Rank!AQ59 -> 0 | F81: =iMap_Rank!AR59 -> 0 | G81: =iMap_Rank!AS59 -> 0 | H81: =iMap_Rank!AT59 -> 0 | I81: =iMap_Rank!AU59 -> 0 | J81: =iMap_Rank!AV59 -> 0 | K81: =iMap_Rank!AW59 -> 0 | L81: =iMap_Rank!AX59 -> 0
A82: =iMap_Rank!AM60 -> 0 | B82: =iMap_Rank!AN60 -> 0 | C82: =iMap_Rank!AO60 -> 0 | D82: =iMap_Rank!AP60 -> 0 | E82: =iMap_Rank!AQ60 -> 0 | F82: =iMap_Rank!AR60 -> 0 | G82: =iMap_Rank!AS60 -> 0 | H82: =iMap_Rank!AT60 -> 0 | I82: =iMap_Rank!AU60 -> 0 | J82: =iMap_Rank!AV60 -> 0 | K82: =iMap_Rank!AW60 -> 0 | L82: =iMap_Rank!AX60 -> 0
A83: =iMap_Rank!AM61 -> 0 | B83: =iMap_Rank!AN61 -> 0 | C83: =iMap_Rank!AO61 -> 0 | D83: =iMap_Rank!AP61 -> 0 | E83: =iMap_Rank!AQ61 -> 0 | F83: =iMap_Rank!AR61 -> 0 | G83: =iMap_Rank!AS61 -> 0 | H83: =iMap_Rank!AT61 -> 0 | I83: =iMap_Rank!AU61 -> 0 | J83: =iMap_Rank!AV61 -> 0 | K83: =iMap_Rank!AW61 -> 0 | L83: =iMap_Rank!AX61 -> 0
A84: =iMap_Rank!AM62 -> 0 | B84: =iMap_Rank!AN62 -> 0 | C84: =iMap_Rank!AO62 -> 0 | D84: =iMap_Rank!AP62 -> 0 | E84: =iMap_Rank!AQ62 -> 0 | F84: =iMap_Rank!AR62 -> 0 | G84: =iMap_Rank!AS62 -> 0 | H84: =iMap_Rank!AT62 -> 0 | I84: =iMap_Rank!AU62 -> 0 | J84: =iMap_Rank!AV62 -> 0 | K84: =iMap_Rank!AW62 -> 0 | L84: =iMap_Rank!AX62 -> 0
A85: =iMap_Rank!AM63 -> 0 | B85: =iMap_Rank!AN63 -> 0 | C85: =iMap_Rank!AO63 -> 0 | D85: =iMap_Rank!AP63 -> 0 | E85: =iMap_Rank!AQ63 -> 0 | F85: =iMap_Rank!AR63 -> 0 | G85: =iMap_Rank!AS63 -> 0 | H85: =iMap_Rank!AT63 -> 0 | I85: =iMap_Rank!AU63 -> 0 | J85: =iMap_Rank!AV63 -> 0 | K85: =iMap_Rank!AW63 -> 0 | L85: =iMap_Rank!AX63 -> 0
A86: =iMap_Rank!AM64 -> 0 | B86: =iMap_Rank!AN64 -> 0 | C86: =iMap_Rank!AO64 -> 0 | D86: =iMap_Rank!AP64 -> 0 | E86: =iMap_Rank!AQ64 -> 0 | F86: =iMap_Rank!AR64 -> 0 | G86: =iMap_Rank!AS64 -> 0 | H86: =iMap_Rank!AT64 -> 0 | I86: =iMap_Rank!AU64 -> 0 | J86: =iMap_Rank!AV64 -> 0 | K86: =iMap_Rank!AW64 -> 0 | L86: =iMap_Rank!AX64 -> 0
A87: =iMap_Rank!AM65 -> 0 | B87: =iMap_Rank!AN65 -> 0 | C87: =iMap_Rank!AO65 -> 0 | D87: =iMap_Rank!AP65 -> 0 | E87: =iMap_Rank!AQ65 -> 0 | F87: =iMap_Rank!AR65 -> 0 | G87: =iMap_Rank!AS65 -> 0 | H87: =iMap_Rank!AT65 -> 0 | I87: =iMap_Rank!AU65 -> 0 | J87: =iMap_Rank!AV65 -> 0 | K87: =iMap_Rank!AW65 -> 0 | L87: =iMap_Rank!AX65 -> 0
A88: =iMap_Rank!AM66 -> 0 | B88: =iMap_Rank!AN66 -> 0 | C88: =iMap_Rank!AO66 -> 0 | D88: =iMap_Rank!AP66 -> 0 | E88: =iMap_Rank!AQ66 -> 0 | F88: =iMap_Rank!AR66 -> 0 | G88: =iMap_Rank!AS66 -> 0 | H88: =iMap_Rank!AT66 -> 0 | I88: =iMap_Rank!AU66 -> 0 | J88: =iMap_Rank!AV66 -> 0 | K88: =iMap_Rank!AW66 -> 0 | L88: =iMap_Rank!AX66 -> 0
A89: =iMap_Rank!AM67 -> 0 | B89: =iMap_Rank!AN67 -> 0 | C89: =iMap_Rank!AO67 -> 0 | D89: =iMap_Rank!AP67 -> 0 | E89: =iMap_Rank!AQ67 -> 0 | F89: =iMap_Rank!AR67 -> 0 | G89: =iMap_Rank!AS67 -> 0 | H89: =iMap_Rank!AT67 -> 0 | I89: =iMap_Rank!AU67 -> 0 | J89: =iMap_Rank!AV67 -> 0 | K89: =iMap_Rank!AW67 -> 0 | L89: =iMap_Rank!AX67 -> 0
A90: =iMap_Rank!AM68 -> 0 | B90: =iMap_Rank!AN68 -> 0 | C90: =iMap_Rank!AO68 -> 0 | D90: =iMap_Rank!AP68 -> 0 | E90: =iMap_Rank!AQ68 -> 0 | F90: =iMap_Rank!AR68 -> 0 | G90: =iMap_Rank!AS68 -> 0 | H90: =iMap_Rank!AT68 -> 0 | I90: =iMap_Rank!AU68 -> 0 | J90: =iMap_Rank!AV68 -> 0 | K90: =iMap_Rank!AW68 -> 0 | L90: =iMap_Rank!AX68 -> 0
A91: =iMap_Rank!AM69 -> 0 | B91: =iMap_Rank!AN69 -> 0 | C91: =iMap_Rank!AO69 -> 0 | D91: =iMap_Rank!AP69 -> 0 | E91: =iMap_Rank!AQ69 -> 0 | F91: =iMap_Rank!AR69 -> 0 | G91: =iMap_Rank!AS69 -> 0 | H91: =iMap_Rank!AT69 -> 0 | I91: =iMap_Rank!AU69 -> 0 | J91: =iMap_Rank!AV69 -> 0 | K91: =iMap_Rank!AW69 -> 0 | L91: =iMap_Rank!AX69 -> 0
A92: =iMap_Rank!AM70 -> 0 | B92: =iMap_Rank!AN70 -> 0 | C92: =iMap_Rank!AO70 -> 0 | D92: =iMap_Rank!AP70 -> 0 | E92: =iMap_Rank!AQ70 -> 0 | F92: =iMap_Rank!AR70 -> 0 | G92: =iMap_Rank!AS70 -> 0 | H92: =iMap_Rank!AT70 -> 0 | I92: =iMap_Rank!AU70 -> 0 | J92: =iMap_Rank!AV70 -> 0 | K92: =iMap_Rank!AW70 -> 0 | L92: =iMap_Rank!AX70 -> 0
A93: =iMap_Rank!AM71 -> 0 | B93: =iMap_Rank!AN71 -> 0 | C93: =iMap_Rank!AO71 -> 0 | D93: =iMap_Rank!AP71 -> 0 | E93: =iMap_Rank!AQ71 -> 0 | F93: =iMap_Rank!AR71 -> 0 | G93: =iMap_Rank!AS71 -> 0 | H93: =iMap_Rank!AT71 -> 0 | I93: =iMap_Rank!AU71 -> 0 | J93: =iMap_Rank!AV71 -> 0 | K93: =iMap_Rank!AW71 -> 0 | L93: =iMap_Rank!AX71 -> 0
A94: =iMap_Rank!AM72 -> 0 | B94: =iMap_Rank!AN72 -> 0 | C94: =iMap_Rank!AO72 -> 0 | D94: =iMap_Rank!AP72 -> 0 | E94: =iMap_Rank!AQ72 -> 0 | F94: =iMap_Rank!AR72 -> 0 | G94: =iMap_Rank!AS72 -> 0 | H94: =iMap_Rank!AT72 -> 0 | I94: =iMap_Rank!AU72 -> 0 | J94: =iMap_Rank!AV72 -> 0 | K94: =iMap_Rank!AW72 -> 0 | L94: =iMap_Rank!AX72 -> 0
A95: =iMap_Rank!AM73 -> 0 | B95: =iMap_Rank!AN73 -> 0 | C95: =iMap_Rank!AO73 -> 0 | D95: =iMap_Rank!AP73 -> 0 | E95: =iMap_Rank!AQ73 -> 0 | F95: =iMap_Rank!AR73 -> 0 | G95: =iMap_Rank!AS73 -> 0 | H95: =iMap_Rank!AT73 -> 0 | I95: =iMap_Rank!AU73 -> 0 | J95: =iMap_Rank!AV73 -> 0 | K95: =iMap_Rank!AW73 -> 0 | L95: =iMap_Rank!AX73 -> 0
A96: =iMap_Rank!AM74 -> 0 | B96: =iMap_Rank!AN74 -> 0 | C96: =iMap_Rank!AO74 -> 0 | D96: =iMap_Rank!AP74 -> 0 | E96: =iMap_Rank!AQ74 -> 0 | F96: =iMap_Rank!AR74 -> 0 | G96: =iMap_Rank!AS74 -> 0 | H96: =iMap_Rank!AT74 -> 0 | I96: =iMap_Rank!AU74 -> 0 | J96: =iMap_Rank!AV74 -> 0 | K96: =iMap_Rank!AW74 -> 0 | L96: =iMap_Rank!AX74 -> 0

Sheet iMap_Rank (hidden)
C1: =uxb_works!C13 -> IS_BG | D1: =uxb_works!D13 -> Spare1 | E1: =uxb_works!E13 -> INDI_CODE | F1: =uxb_works!F13 -> PARENT_CODE | G1: =uxb_works!G13 -> DEPTH | H1: =uxb_works!H13 -> REF | I1: =uxb_works!I13 -> NDICATOR_SHORT | J1: =uxb_works!J13 -> DESCRITION | K1: =uxb_works!K13 -> INDICATOR_MULTI | L1: =uxb_works!L13 -> INDICATOR_UNIT | M1: =uxb_works!M13 -> Scoring Criteria (0-100 or 0-4 etc) | N1: =uxb_works!N13 -> Year | O1: =uxb_works!O13 -> Geography | P1: =uxb_works!P13 -> HIGH=Good | Q1: =uxb_works!Q13 -> Format | R1: =uxb_works!R13 -> MAIN_SOURCE | S1: =uxb_works!S13 -> SOURCE_WS_ID | T1: =uxb_works!T13 -> HIGH_IS | U1: =uxb_works!U13 -> NORM_ID (1=sumproduct, 2=min max set by data values, 3=min max set by user here)
A2: =uxb_works!A19 -> CITY1_ID | B2: =uxb_works!B14 -> 1 | C2: =uxb_works!C14 -> 0 | D2: =uxb_works!D14 ->  | E2: =uxb_works!E14 -> TOTAL | F2: =uxb_works!F14 -> OVERALL SCORE | G2: =uxb_works!G14 -> 0 | H2: =uxb_works!H14 ->  | I2: =uxb_works!I14 -> OVERALL SCORE | J2: =uxb_works!J14 -> The overall score is the weighted sum of the following categories scores: 1) Intellectual property 2) Transparency and trade 3) Customs environment 4) Supply and demand | K2: =uxb_works!K14 -> Index score/number | L2: =uxb_works!L14 ->  | M2: =uxb_works!M14 -> Index score/number | N2: =uxb_works!N14 -> Index score/number | O2: =uxb_works!O14 ->  | P2: =uxb_works!P14 ->  | Q2: =uxb_works!Q14 -> 0.0 | R2: =uxb_works!R14 -> EIU Calculation | S2: =uxb_works!S14 ->  | T2: =uxb_works!T14 ->  | U2: =uxb_works!U14 -> 1
A3: INDI_IS_NATIONAL | B3: =D2 ->  | U3: 1
R5: percentiles | S5: equal buckets
A6: SERIES_LEVEL | B6: 1 | O6: Fifths | Q6: 0 | R6: =IF($U$2=1,PERCENTILE(R$19:R$35,Q6),Q6*100) -> 10.8
A7: Rank_Order | B7: 0 | Q7: 0.25 | R7: =IF($U$2=1,PERCENTILE(R$19:R$35,Q7),Q7*100) -> 49.4 | T7: 1 | Z7: =56/6 -> 9.333333333
Q8: 0.5 | R8: =IF($U$2=1,PERCENTILE(R$19:R$35,Q8),Q8*100) -> 61.6 | S8: =AB32 -> 46.1 | T8: 2
A9: =uxb_works!A6 -> CITY_HIGHLIGHT_DD | B9: =uxb_works!B6 -> 1 | C9: =IF(uxb_works!C6="<none>","Click on map or select from the country highlight drop down box",uxb_works!C6) -> Click on map or select from the country highlight drop down box | D9: =IF(ISNA(INDEX(P19:P35,MATCH(C9,N19:N35,0))),"",INDEX(P19:P35,MATCH(C9,N19:N35,0))) ->  | Q9: 0.75 | R9: =IF($U$2=1,PERCENTILE(R$19:R$35,Q9),Q9*100) -> 71.8 | S9: =AB27 -> 61.6 | T9: 3
Q10: 1 | R10: =IF($U$2=1,PERCENTILE(R$19:R$35,Q10),Q10*100) -> 85.2 | S10: =AB22 -> 75.9 | T10: 4
S11: =AB19 -> 85.2 | T11: 5 | U11: =80/5 -> 16
S13: =PERCENTILE(R$19:R$35,Q11) -> 10.8
AI14: Buckets
AN15: ="Score "&ROUND($R$9+0.1,1)&" to "&$R$10 -> Score 71.9 to 85.2 | AQ15: ="Score "&ROUND($R$8+0.1,1)&" to "&ROUND($R$9,1) -> Score 61.7 to 71.8 | AT15: ="Score "&ROUND($R$7+0.1,1)&" to "&ROUND($R$8,1) -> Score 49.5 to 61.6 | AW15: ="Score "&ROUND($R$6,1)&" to "&ROUND($R$7,1) -> Score 10.8 to 49.4
A17: SHOW_DATA | B17: =IF(OR(P2=1,AC2=0),FALSE,TRUE) -> FALSE | T17: ALL UNFILTERED DATA POINTS | V17: Country Highlight | W17: Country Filter | AI17: 4 | AJ17: 3 | AK17: 2 | AL17: 1 | AN17: 1 | AO17: 3 | AQ17: 1 | AR17: 3 | AT17: 1 | AU17: 3 | AW17: 1 | AX17: 3
D18: IsRegion | F18: ActiveStatus | G18: Score (unrounded) | H18: Rank unrounded | I18: LU | J18: yScatter | K18: RankRounded | O18: Score | P18: Score Display | Q18: =IF($B$17,"Data","") ->  | R18: Map Display | T18: X | U18: Y | AF18: Main Set | AG18: Highlighted | AI18: 0 | AJ18: 0 | AK18: 0 | AL18: 0 | AM18: =$F$18 -> ActiveStatus | AN18: B1 | AO18: B1a | AP18: =$F$18 -> ActiveStatus | AQ18: B2 | AR18: B2a | AS18: =$F$18 -> ActiveStatus | AT18: B3 | AU18: B3a | AV18: =$F$18 -> ActiveStatus | AW18: B4 | AX18: B4a
A19: =tblTerritories!A3 -> 1 | B19: =tblTerritories!B3 -> AUS | C19: =tblTerritories!C3 -> Australia | D19: =INDEX(tblTerritories!$R$3:$V$19,A19,uxb_works!$B$10) -> 1 | F19: =IF(D19=0,0,tblTerritories!G3) -> 1 | G19: =IF(F19=0,"",INDEX(aScores,$B$2,$A19)) -> 85.20353745 | H19: =IF(F19=0,"",RANK(G19,G$19:G$35,$B$7)+COUNTIF(G$19:G19,G19)-1) -> 1 | I19: =IF(ISERROR(MATCH($A19,H$19:H$35,0)),"",MATCH($A19,H$19:H$35,0)) -> 1 | J19: =IF(I19="","",1) -> 1 | K19: =IF(I19="","",RANK(O19,O$19:O$35,$B$7)) -> 1 | L19: =IF(I19="",0,INDEX($F$19:$F$35,I19)) -> 1 | M19: =IF(I19="","",IF(OR(K19=K18,K19=K20),CONCATENATE("=",K19),K19)) -> 1 | N19: =IF(I19="","",INDEX($C$19:$C$35,I19)) -> Australia | O19: =IF(I19="","",INDEX(aRoundedScores,$B$2,I19)) -> 85.2 | P19: =IF(L19=0,"",IF($C$2=1,"-",O19)) -> 85.2 | Q19: =IF(ISNA(VLOOKUP(N19,uxb_regions!$C$3:$I$79,7,FALSE)),"",VLOOKUP(N19,uxb_regions!$C$3:$I$79,7,FALSE)) -> AUS | R19: =IF(L19=0,"",O19) -> 85.2 | S19: =IF(Q19="","",CHOOSE($U$3,IF(R19<=R$7,1,IF(R19<=R$8,2,IF(R19<=R$9,3,IF(R19<=R$10,4)))))) -> 4 | T19: =IF(ISNUMBER(O19),O19,NA()) -> 85.2 | U19: =1 -> 1 | V19: =IF(ISNA(INDEX($F$19:$F$35,MATCH(N19,$C$19:$C$35,0))),0,INDEX($F$19:$F$35,MATCH(N19,$C$19:$C$35,0))) -> 1 | W19: =IF(OR(V19=3,V19=2),Q19,0) -> 0 | X19: =IF(ISNA(V19),"",Q19) -> AUS | Y19: =IF(L19=2,T19,NA()) ->  | Z19: =IF(L19=2,1,NA()) ->  | AB19: =LARGE($R$19:$R$35,ROW(R1)-ROW($R$1)+1) -> 85.2 | AE19: =IF(ISNUMBER(O19),N19,CONCATENATE(N19)) -> Australia | AF19: =IF(ISNUMBER(P19),P19,"-") -> 85.2 | AG19: =IF(W19=0,NA(),AF19) ->  | AH19: =TEXT(AF19,$Q$2) -> 85.2 | AI19: =AI18+MATCH(AI$17,OFFSET($S$19:$S$35,AI18,0),0) -> 1 | AJ19: =AJ18+MATCH(AJ$17,OFFSET($S$19:$S$35,AJ18,0),0) -> 5 | AK19: =AK18+MATCH(AK$17,OFFSET($S$19:$S$35,AK18,0),0) -> 9 | AL19: =AL18+MATCH(AL$17,OFFSET($S$19:$S$35,AL18,0),0) -> 13 | AM19: =IF(AN19="",0,INDEX($F$19:$F$35,MATCH(AN19,$C$19:$C$35,0))) -> 1 | AN19: =IF(ISNA(AI19),"",INDEX($N$19:$P$35,$AI19,AN$17)) -> Australia | AO19: =IF(ISNA(AI19),"",INDEX($N$19:$P$35,$AI19,AO$17)) -> 85.2 | AP19: =IF(AQ19="",0,INDEX($F$19:$F$35,MATCH(AQ19,$C$19:$C$35,0))) -> 1 | AQ19: =IF(ISNA(AJ19),"",INDEX($N$19:$P$35,$AJ19,AQ$17)) -> South Korea | AR19: =IF(ISNA(AJ19),"",INDEX($N$19:$P$35,$AJ19,AR$17)) -> 71.8 | AS19: =IF(AT19="",0,INDEX($F$19:$F$35,MATCH(AT19,$C$19:$C$35,0))) -> 1 | AT19: =IF(ISNA(AK19),"",INDEX($N$19:$P$35,$AK19,AT$17)) -> China | AU19: =IF(ISNA(AK19),"",INDEX($N$19:$P$35,$AK19,AU$17)) -> 61.6 | AV19: =IF(AW19="",0,INDEX($F$19:$F$35,MATCH(AW19,$C$19:$C$35,0))) -> 1 | AW19: =IF(ISNA(AL19),"",INDEX($N$19:$P$35,$AL19,AW$17)) -> Vietnam | AX19: =IF(ISNA(AL19),"",INDEX($N$19:$P$35,$AL19,AX$17)) -> 49.4
A20: =tblTerritories!A4 -> 2 | B20: =tblTerritories!B4 -> KHM | C20: =tblTerritories!C4 -> Cambodia | D20: =INDEX(tblTerritories!$R$3:$V$19,A20,uxb_works!$B$10) -> 1 | F20: =IF(D20=0,0,tblTerritories!G4) -> 1 | G20: =IF(F20=0,"",INDEX(aScores,$B$2,$A20)) -> 23.92174432 | H20: =IF(F20=0,"",RANK(G20,G$19:G$35,$B$7)+COUNTIF(G$19:G20,G20)-1) -> 15 | I20: =IF(ISERROR(MATCH($A20,H$19:H$35,0)),"",MATCH($A20,H$19:H$35,0)) -> 11 | J20: =IF(I20="","",1) -> 1 | K20: =IF(I20="","",RANK(O20,O$19:O$35,$B$7)) -> 2 | L20: =IF(I20="",0,INDEX($F$19:$F$35,I20)) -> 1 | M20: =IF(I20="","",IF(OR(K20=K19,K20=K21),CONCATENATE("=",K20),K20)) -> 2 | N20: =IF(I20="","",INDEX($C$19:$C$35,I20)) -> New Zealand | O20: =IF(I20="","",INDEX(aRoundedScores,$B$2,I20)) -> 81.8 | P20: =IF(L20=0,"",IF($C$2=1,"-",O20)) -> 81.8 | Q20: =IF(ISNA(VLOOKUP(N20,uxb_regions!$C$3:$I$79,7,FALSE)),"",VLOOKUP(N20,uxb_regions!$C$3:$I$79,7,FALSE)) -> NZL | R20: =IF(L20=0,"",O20) -> 81.8 | S20: =IF(Q20="","",CHOOSE($U$3,IF(R20<=R$7,1,IF(R20<=R$8,2,IF(R20<=R$9,3,IF(R20<=R$10,4)))))) -> 4 | T20: =IF(ISNUMBER(O20),O20,NA()) -> 81.8 | U20: =1 -> 1 | V20: =IF(ISNA(INDEX($F$19:$F$35,MATCH(N20,$C$19:$C$35,0))),0,INDEX($F$19:$F$35,MATCH(N20,$C$19:$C$35,0))) -> 1 | W20: =IF(OR(V20=3,V20=2),Q20,0) -> 0 | X20: =IF(ISNA(V20),"",Q20) -> NZL | Y20: =IF(L20=2,T20,NA()) ->  | Z20: =IF(L20=2,1,NA()) ->  | AB20: =LARGE($R$19:$R$35,ROW(R2)-ROW($R$1)+1) -> 81.8 | AE20: =IF(ISNUMBER(O20),N20,CONCATENATE(N20)) -> New Zealand | AF20: =IF(ISNUMBER(P20),P20,"-") -> 81.8 | AG20: =IF(W20=0,NA(),AF20) ->  | AH20: =TEXT(AF20,$Q$2) -> 81.8 | AI20: =AI19+MATCH(AI$17,OFFSET($S$19:$S$35,AI19,0),0) -> 2 | AJ20: =AJ19+MATCH(AJ$17,OFFSET($S$19:$S$35,AJ19,0),0) -> 6 | AK20: =AK19+MATCH(AK$17,OFFSET($S$19:$S$35,AK19,0),0) -> 10 | AL20: =AL19+MATCH(AL$17,OFFSET($S$19:$S$35,AL19,0),0) -> 14 | AM20: =IF(AN20="",0,INDEX($F$19:$F$35,MATCH(AN20,$C$19:$C$35,0))) -> 1 | AN20: =IF(ISNA(AI20),"",INDEX($N$19:$P$35,$AI20,AN$17)) -> New Zealand | AO20: =IF(ISNA(AI20),"",INDEX($N$19:$P$35,$AI20,AO$17)) -> 81.8 | AP20: =IF(AQ20="",0,INDEX($F$19:$F$35,MATCH(AQ20,$C$19:$C$35,0))) -> 1 | AQ20: =IF(ISNA(AJ20),"",INDEX($N$19:$P$35,$AJ20,AQ$17)) -> Malaysia | AR20: =IF(ISNA(AJ20),"",INDEX($N$19:$P$35,$AJ20,AR$17)) -> 71.8 | AS20: =IF(AT20="",0,INDEX($F$19:$F$35,MATCH(AT20,$C$19:$C$35,0))) -> 1 | AT20: =IF(ISNA(AK20),"",INDEX($N$19:$P$35,$AK20,AT$17)) -> India | AU20: =IF(ISNA(AK20),"",INDEX($N$19:$P$35,$AK20,AU$17)) -> 54.1 | AV20: =IF(AW20="",0,INDEX($F$19:$F$35,MATCH(AW20,$C$19:$C$35,0))) -> 1 | AW20: =IF(ISNA(AL20),"",INDEX($N$19:$P$35,$AL20,AW$17)) -> Indonesia | AX20: =IF(ISNA(AL20),"",INDEX($N$19:$P$35,$AL20,AX$17)) -> 46.1
A21: =tblTerritories!A5 -> 3 | B21: =tblTerritories!B5 -> CHN | C21: =tblTerritories!C5 -> China | D21: =INDEX(tblTerritories!$R$3:$V$19,A21,uxb_works!$B$10) -> 1 | F21: =IF(D21=0,0,tblTerritories!G5) -> 1 | G21: 61.57655373 | H21: =IF(F21=0,"",RANK(G21,G$19:G$35,$B$7)+COUNTIF(G$19:G21,G21)-1) -> 9 | I21: 4 | J21: 1 | K21: 3 | L21: 1 | M21: 3 | N21: Hong Kong | O21: 81.4 | P21: 81.4 | Q21: =IF(ISNA(VLOOKUP(N21,uxb_regions!$C$3:$I$79,7,FALSE)),"",VLOOKUP(N21,uxb_regions!$C$3:$I$79,7,FALSE)) -> HKG | R21: 81.4 | S21: 4 | T21: 81.4 | U21: =1 -> 1 | V21: 1 | W21: 0 | X21: HKG | AB21: 81.4 | AE21: Hong Kong | AF21: 81.4 | AH21: 81.4 | AI21: 3 | AJ21: 7 | AK21: 11 | AL21: 15 | AM21: 1 | AN21: Hong Kong | AO21: 81.4 | AP21: 1 | AQ21: Taiwan | AR21: 69.8 | AS21: 1 | AT21: Thailand | AU21: 53.1 | AV21: 1 | AW21: Cambodia | AX21: 23.9
A22: =tblTerritories!A6 -> 4 | B22: =tblTerritories!B6 -> HKG | C22: =tblTerritories!C6 -> Hong Kong | D22: =INDEX(tblTerritories!$R$3:$V$19,A22,uxb_works!$B$10) -> 1 | F22: =IF(D22=0,0,tblTerritories!G6) -> 1 | G22: 81.40889238 | H22: =IF(F22=0,"",RANK(G22,G$19:G$35,$B$7)+COUNTIF(G$19:G22,G22)-1) -> 3 | I22: 7 | J22: 1 | K22: 4 | L22: 1 | M22: 4 | N22: Japan | O22: 75.9 | P22: 75.9 | Q22: =IF(ISNA(VLOOKUP(N22,uxb_regions!$C$3:$I$79,7,FALSE)),"",VLOOKUP(N22,uxb_regions!$C$3:$I$79,7,FALSE)) -> JPN | R22: 75.9 | S22: 4 | T22: 75.9 | U22: =1 -> 1 | V22: 1 | W22: 0 | X22: JPN | AB22: 75.9 | AE22: Japan | AF22: 75.9 | AH22: 75.9 | AI22: 4 | AJ22: 8 | AK22: 12 | AL22: 16 | AM22: 1 | AN22: Japan | AO22: 75.9 | AP22: 1 | AQ22: Singapore | AR22: 69.8 | AS22: 1 | AT22: Philippines | AU22: 50.4 | AV22: 1 | AW22: Laos | AX22: 12.9
A23: =tblTerritories!A7 -> 5 | B23: =tblTerritories!B7 -> IND | C23: =tblTerritories!C7 -> India | D23: =INDEX(tblTerritories!$R$3:$V$19,A23,uxb_works!$B$10) -> 1 | F23: =IF(D23=0,0,tblTerritories!G7) -> 1 | G23: 54.14280984 | H23: =IF(F23=0,"",RANK(G23,G$19:G$35,$B$7)+COUNTIF(G$19:G23,G23)-1) -> 10 | I23: 14 | J23: 1 | K23: 5 | L23: 1 | M23: =5 | N23: South Korea | O23: 71.8 | P23: 71.8 | Q23: =IF(ISNA(VLOOKUP(N23,uxb_regions!$C$3:$I$79,7,FALSE)),"",VLOOKUP(N23,uxb_regions!$C$3:$I$79,7,FALSE)) -> KOR | R23: 71.8 | S23: 3 | T23: 71.8 | U23: =1 -> 1 | V23: 1 | W23: 0 | X23: KOR | AB23: 71.8 | AE23: South Korea | AF23: 71.8 | AH23: 71.8 | AL23: 17 | AM23: 0 | AP23: 0 | AS23: 0 | AV23: 1 | AW23: Myanmar | AX23: 10.8
A24: =tblTerritories!A8 -> 6 | B24: =tblTerritories!B8 -> IDN | C24: =tblTerritories!C8 -> Indonesia | D24: =INDEX(tblTerritories!$R$3:$V$19,A24,uxb_works!$B$10) -> 1 | F24: =IF(D24=0,0,tblTerritories!G8) -> 1 | G24: 46.06624062 | H24: =IF(F24=0,"",RANK(G24,G$19:G$35,$B$7)+COUNTIF(G$19:G24,G24)-1) -> 14 | I24: 9 | J24: 1 | K24: 5 | L24: 1 | M24: =5 | N24: Malaysia | O24: 71.8 | P24: 71.8 | Q24: =IF(ISNA(VLOOKUP(N24,uxb_regions!$C$3:$I$79,7,FALSE)),"",VLOOKUP(N24,uxb_regions!$C$3:$I$79,7,FALSE)) -> MYS | R24: 71.8 | S24: 3 | T24: 71.8 | U24: =1 -> 1 | V24: 1 | W24: 0 | X24: MYS | AB24: 71.8 | AE24: Malaysia | AF24: 71.8 | AH24: 71.8 | AM24: 0 | AP24: 0 | AS24: 0 | AV24: 0
A25: =tblTerritories!A9 -> 7 | B25: =tblTerritories!B9 -> JPN | C25: =tblTerritories!C9 -> Japan | D25: =INDEX(tblTerritories!$R$3:$V$19,A25,uxb_works!$B$10) -> 1 | F25: =IF(D25=0,0,tblTerritories!G9) -> 1 | G25: 75.85877094 | H25: =IF(F25=0,"",RANK(G25,G$19:G$35,$B$7)+COUNTIF(G$19:G25,G25)-1) -> 4 | I25: 15 | J25: 1 | K25: 7 | L25: 1 | M25: =7 | N25: Taiwan | O25: 69.8 | P25: 69.8 | Q25: =IF(ISNA(VLOOKUP(N25,uxb_regions!$C$3:$I$79,7,FALSE)),"",VLOOKUP(N25,uxb_regions!$C$3:$I$79,7,FALSE)) -> TWN | R25: 69.8 | S25: 3 | T25: 69.8 | U25: =1 -> 1 | V25: 1 | W25: 0 | X25: TWN | AB25: 69.8 | AE25: Taiwan | AF25: 69.8 | AH25: 69.8 | AM25: 0 | AP25: 0 | AS25: 0 | AV25: 0
A26: =tblTerritories!A10 -> 8 | B26: =tblTerritories!B10 -> LAO | C26: =tblTerritories!C10 -> Laos | D26: =INDEX(tblTerritories!$R$3:$V$19,A26,uxb_works!$B$10) -> 1 | F26: =IF(D26=0,0,tblTerritories!G10) -> 1 | G26: 12.93518519 | H26: =IF(F26=0,"",RANK(G26,G$19:G$35,$B$7)+COUNTIF(G$19:G26,G26)-1) -> 16 | I26: 13 | J26: 1 | K26: 7 | L26: 1 | M26: =7 | N26: Singapore | O26: 69.8 | P26: 69.8 | Q26: =IF(ISNA(VLOOKUP(N26,uxb_regions!$C$3:$I$79,7,FALSE)),"",VLOOKUP(N26,uxb_regions!$C$3:$I$79,7,FALSE)) -> SGP | R26: 69.8 | S26: 3 | T26: 69.8 | U26: =1 -> 1 | V26: 1 | W26: 0 | X26: SGP | AB26: 69.8 | AE26: Singapore | AF26: 69.8 | AH26: 69.8 | AM26: 0 | AP26: 0 | AS26: 0 | AV26: 0
A27: =tblTerritories!A11 -> 9 | B27: =tblTerritories!B11 -> MYS | C27: =tblTerritories!C11 -> Malaysia | D27: =INDEX(tblTerritories!$R$3:$V$19,A27,uxb_works!$B$10) -> 1 | F27: =IF(D27=0,0,tblTerritories!G11) -> 1 | G27: 71.8001623 | H27: =IF(F27=0,"",RANK(G27,G$19:G$35,$B$7)+COUNTIF(G$19:G27,G27)-1) -> 6 | I27: 3 | J27: 1 | K27: 9 | L27: 1 | M27: 9 | N27: China | O27: 61.6 | P27: 61.6 | Q27: =IF(ISNA(VLOOKUP(N27,uxb_regions!$C$3:$I$79,7,FALSE)),"",VLOOKUP(N27,uxb_regions!$C$3:$I$79,7,FALSE)) -> CHN | R27: 61.6 | S27: 2 | T27: 61.6 | U27: =1 -> 1 | V27: 1 | W27: 0 | X27: CHN | AB27: 61.6 | AE27: China | AF27: 61.6 | AH27: 61.6 | AM27: 0 | AP27: 0 | AS27: 0 | AV27: 0
A28: =tblTerritories!A12 -> 10 | B28: =tblTerritories!B12 -> MMR | C28: =tblTerritories!C12 -> Myanmar | D28: =INDEX(tblTerritories!$R$3:$V$19,A28,uxb_works!$B$10) -> 1 | F28: =IF(D28=0,0,tblTerritories!G12) -> 1 | G28: 10.82037037 | H28: =IF(F28=0,"",RANK(G28,G$19:G$35,$B$7)+COUNTIF(G$19:G28,G28)-1) -> 17 | I28: 5 | J28: 1 | K28: 10 | L28: 1 | M28: 10 | N28: India | O28: 54.1 | P28: 54.1 | Q28: =IF(ISNA(VLOOKUP(N28,uxb_regions!$C$3:$I$79,7,FALSE)),"",VLOOKUP(N28,uxb_regions!$C$3:$I$79,7,FALSE)) -> IND | R28: 54.1 | S28: 2 | T28: 54.1 | U28: =1 -> 1 | V28: 1 | W28: 0 | X28: IND | AB28: 54.1 | AE28: India | AF28: 54.1 | AH28: 54.1 | AM28: 0 | AP28: 0 | AS28: 0 | AV28: 0
A29: =tblTerritories!A13 -> 11 | B29: =tblTerritories!B13 -> NZL | C29: =tblTerritories!C13 -> New Zealand | D29: =INDEX(tblTerritories!$R$3:$V$19,A29,uxb_works!$B$10) -> 1 | F29: =IF(D29=0,0,tblTerritories!G13) -> 1 | G29: 81.80621915 | H29: =IF(F29=0,"",RANK(G29,G$19:G$35,$B$7)+COUNTIF(G$19:G29,G29)-1) -> 2 | I29: 16 | J29: 1 | K29: 11 | L29: 1 | M29: 11 | N29: Thailand | O29: 53.1 | P29: 53.1 | Q29: =IF(ISNA(VLOOKUP(N29,uxb_regions!$C$3:$I$79,7,FALSE)),"",VLOOKUP(N29,uxb_regions!$C$3:$I$79,7,FALSE)) -> THA | R29: 53.1 | S29: 2 | T29: 53.1 | U29: =1 -> 1 | V29: 1 | W29: 0 | X29: THA | AB29: 53.1 | AE29: Thailand | AF29: 53.1 | AH29: 53.1 | AM29: 0 | AP29: 0 | AS29: 0 | AV29: 0
A30: =tblTerritories!A14 -> 12 | B30: =tblTerritories!B14 -> PHL | C30: =tblTerritories!C14 -> Philippines | D30: =INDEX(tblTerritories!$R$3:$V$19,A30,uxb_works!$B$10) -> 1 | F30: =IF(D30=0,0,tblTerritories!G14) -> 1 | G30: 50.41135513 | H30: =IF(F30=0,"",RANK(G30,G$19:G$35,$B$7)+COUNTIF(G$19:G30,G30)-1) -> 12 | I30: 12 | J30: 1 | K30: 12 | L30: 1 | M30: 12 | N30: Philippines | O30: 50.4 | P30: 50.4 | Q30: =IF(ISNA(VLOOKUP(N30,uxb_regions!$C$3:$I$79,7,FALSE)),"",VLOOKUP(N30,uxb_regions!$C$3:$I$79,7,FALSE)) -> PHL | R30: 50.4 | S30: 2 | T30: 50.4 | U30: =1 -> 1 | V30: 1 | W30: 0 | X30: PHL | AB30: 50.4 | AE30: Philippines | AF30: 50.4 | AH30: 50.4 | AM30: 0 | AP30: 0 | AS30: 0 | AV30: 0
A31: =tblTerritories!A15 -> 13 | B31: =tblTerritories!B15 -> SGP | C31: =tblTerritories!C15 -> Singapore | D31: =INDEX(tblTerritories!$R$3:$V$19,A31,uxb_works!$B$10) -> 1 | F31: =IF(D31=0,0,tblTerritories!G15) -> 1 | G31: 69.75511006 | H31: =IF(F31=0,"",RANK(G31,G$19:G$35,$B$7)+COUNTIF(G$19:G31,G31)-1) -> 8 | I31: 17 | J31: 1 | K31: 13 | L31: 1 | M31: 13 | N31: Vietnam | O31: 49.4 | P31: 49.4 | Q31: =IF(ISNA(VLOOKUP(N31,uxb_regions!$C$3:$I$79,7,FALSE)),"",VLOOKUP(N31,uxb_regions!$C$3:$I$79,7,FALSE)) -> VNM | R31: 49.4 | S31: 1 | T31: 49.4 | U31: =1 -> 1 | V31: 1 | W31: 0 | X31: VNM | AB31: 49.4 | AE31: Vietnam | AF31: 49.4 | AH31: 49.4 | AM31: 0 | AP31: 0 | AS31: 0 | AV31: 0
A32: =tblTerritories!A16 -> 14 | B32: =tblTerritories!B16 -> KOR | C32: =tblTerritories!C16 -> South Korea | D32: =INDEX(tblTerritories!$R$3:$V$19,A32,uxb_works!$B$10) -> 1 | F32: =IF(D32=0,0,tblTerritories!G16) -> 1 | G32: 71.8273568 | H32: =IF(F32=0,"",RANK(G32,G$19:G$35,$B$7)+COUNTIF(G$19:G32,G32)-1) -> 5 | I32: 6 | J32: 1 | K32: 14 | L32: 1 | M32: 14 | N32: Indonesia | O32: 46.1 | P32: 46.1 | Q32: =IF(ISNA(VLOOKUP(N32,uxb_regions!$C$3:$I$79,7,FALSE)),"",VLOOKUP(N32,uxb_regions!$C$3:$I$79,7,FALSE)) -> IDN | R32: 46.1 | S32: 1 | T32: 46.1 | U32: =1 -> 1 | V32: 1 | W32: 0 | X32: IDN | AB32: 46.1 | AE32: Indonesia | AF32: 46.1 | AH32: 46.1 | AM32: 0 | AP32: 0 | AS32: 0 | AV32: 0
A33: =tblTerritories!A17 -> 15 | B33: =tblTerritories!B17 -> TWN | C33: =tblTerritories!C17 -> Taiwan | D33: =INDEX(tblTerritories!$R$3:$V$19,A33,uxb_works!$B$10) -> 1 | F33: =IF(D33=0,0,tblTerritories!G17) -> 1 | G33: 69.81449922 | H33: =IF(F33=0,"",RANK(G33,G$19:G$35,$B$7)+COUNTIF(G$19:G33,G33)-1) -> 7 | I33: 2 | J33: 1 | K33: 15 | L33: 1 | M33: 15 | N33: Cambodia | O33: 23.9 | P33: 23.9 | Q33: =IF(ISNA(VLOOKUP(N33,uxb_regions!$C$3:$I$79,7,FALSE)),"",VLOOKUP(N33,uxb_regions!$C$3:$I$79,7,FALSE)) -> KHM | R33: 23.9 | S33: 1 | T33: 23.9 | U33: =1 -> 1 | V33: 1 | W33: 0 | X33: KHM | AB33: 23.9 | AE33: Cambodia | AF33: 23.9 | AH33: 23.9 | AM33: 0 | AP33: 0 | AS33: 0 | AV33: 0
A34: =tblTerritories!A18 -> 16 | B34: =tblTerritories!B18 -> THA | C34: =tblTerritories!C18 -> Thailand | D34: =INDEX(tblTerritories!$R$3:$V$19,A34,uxb_works!$B$10) -> 1 | F34: =IF(D34=0,0,tblTerritories!G18) -> 1 | G34: 53.10302123 | H34: =IF(F34=0,"",RANK(G34,G$19:G$35,$B$7)+COUNTIF(G$19:G34,G34)-1) -> 11 | I34: 8 | J34: 1 | K34: 16 | L34: 1 | M34: 16 | N34: Laos | O34: 12.9 | P34: 12.9 | Q34: =IF(ISNA(VLOOKUP(N34,uxb_regions!$C$3:$I$79,7,FALSE)),"",VLOOKUP(N34,uxb_regions!$C$3:$I$79,7,FALSE)) -> LAO | R34: 12.9 | S34: 1 | T34: 12.9 | U34: =1 -> 1 | V34: 1 | W34: 0 | X34: LAO | AB34: 12.9 | AE34: Laos | AF34: 12.9 | AH34: 12.9 | AM34: 0 | AP34: 0 | AS34: 0 | AV34: 0
A35: =tblTerritories!A19 -> 17 | B35: =tblTerritories!B19 -> VNM | C35: =tblTerritories!C19 -> Vietnam | D35: =INDEX(tblTerritories!$R$3:$V$19,A35,uxb_works!$B$10) -> 1 | F35: =IF(D35=0,0,tblTerritories!G19) -> 1 | G35: 49.35506272 | H35: =IF(F35=0,"",RANK(G35,G$19:G$35,$B$7)+COUNTIF(G$19:G35,G35)-1) -> 13 | I35: 10 | J35: 1 | K35: 17 | L35: 1 | M35: 17 | N35: Myanmar | O35: 10.8 | P35: 10.8 | Q35: =IF(ISNA(VLOOKUP(N35,uxb_regions!$C$3:$I$79,7,FALSE)),"",VLOOKUP(N35,uxb_regions!$C$3:$I$79,7,FALSE)) -> MMR | R35: 10.8 | S35: 1 | T35: 10.8 | U35: =1 -> 1 | V35: 1 | W35: 0 | X35: MMR | AB35: 10.8 | AE35: Myanmar | AF35: 10.8 | AH35: 10.8 | AM35: 0 | AP35: 0 | AS35: 0 | AV35: 0
J39: 1 | O39: =IF(uxb_works!B7>1,INDEX(G18:G35,uxb_works!B7),NA()) -> 

Sheet iMap_Graph (hidden)
B1: =uxb_works!B13 -> 19 | C1: =uxb_works!C13 -> IS_BG | D1: =uxb_works!D13 -> Spare1 | E1: =uxb_works!E13 -> INDI_CODE | F1: =uxb_works!F13 -> PARENT_CODE | G1: =uxb_works!G13 -> DEPTH | H1: =uxb_works!H13 -> REF | I1: =uxb_works!I13 -> NDICATOR_SHORT | J1: =uxb_works!J13 -> DESCRITION | K1: =uxb_works!K13 -> INDICATOR_MULTI | L1: =uxb_works!L13 -> INDICATOR_UNIT | M1: =uxb_works!M13 -> Scoring Criteria (0-100 or 0-4 etc) | N1: =uxb_works!N13 -> Year | O1: =uxb_works!O13 -> Geography | P1: =uxb_works!P13 -> HIGH=Good | Q1: =uxb_works!Q13 -> Format | R1: =uxb_works!R13 -> MAIN_SOURCE | S1: =uxb_works!S13 -> SOURCE_WS_ID | T1: =uxb_works!T13 -> HIGH_IS | U1: =uxb_works!U13 -> NORM_ID (1=sumproduct, 2=min max set by data values, 3=min max set by user here)
A2: =uxb_works!A19 -> CITY1_ID | B2: =uxb_works!B14 -> 1 | C2: =uxb_works!C14 -> 0 | D2: =uxb_works!D14 ->  | E2: =uxb_works!E14 -> TOTAL | F2: =uxb_works!F14 -> OVERALL SCORE | G2: =uxb_works!G14 -> 0 | H2: =uxb_works!H14 ->  | I2: =uxb_works!I14 -> OVERALL SCORE | J2: =uxb_works!J14 -> The overall score is the weighted sum of the following categories scores: 1) Intellectual property 2) Transparency and trade 3) Customs environment 4) Supply and demand | K2: =uxb_works!K14 -> Index score/number | L2: =uxb_works!L14 ->  | M2: =uxb_works!M14 -> Index score/number | N2: =uxb_works!N14 -> Index score/number | O2: =uxb_works!O14 ->  | P2: =uxb_works!P14 ->  | Q2: =uxb_works!Q14 -> 0.0 | R2: =uxb_works!R14 -> EIU Calculation | S2: =uxb_works!S14 ->  | T2: =uxb_works!T14 ->  | U2: =uxb_works!U14 -> 1
A3: INDI_IS_NATIONAL | B3: =D2 ->  | U3: 1
R5: percentiles | S5: equal buckets
A6: SERIES_LEVEL | B6: 1 | O6: Fifths | Q6: 0 | R6: =IF($U$2=1,PERCENTILE(R$19:R$35,Q6),Q6*100) -> 10.8
A7: Rank_Order | B7: 0 | Q7: 0.25 | R7: =IF($U$2=1,PERCENTILE(R$19:R$35,Q7),Q7*100) -> 49.4 | T7: 1 | Z7: =56/6 -> 9.333333333
Q8: 0.5 | R8: =IF($U$2=1,PERCENTILE(R$19:R$35,Q8),Q8*100) -> 61.6 | T8: 2
A9: =uxb_works!A6 -> CITY_HIGHLIGHT_DD | B9: =uxb_works!B6 -> 1 | C9: =uxb_works!C6 -> <none> | D9: =INDEX(P19:P35,MATCH(C9,N19:N35,0)) ->  | Q9: 0.75 | R9: =IF($U$2=1,PERCENTILE(R$19:R$35,Q9),Q9*100) -> 71.8 | T9: 3
Q10: 1 | R10: =IF($U$2=1,PERCENTILE(R$19:R$35,Q10),Q10*100) -> 85.2 | T10: 4
T11: 5 | U11: =80/5 -> 16
S13: =PERCENTILE(R$19:R$35,Q11) -> 10.8
AT14: Buckets
AB15: =uxb_works!B10 -> 1 | AE15: =uxb_works!B10 -> 1 | AY15: ="Score "&ROUND($R$9+0.1,1)&" to "&$R$10 -> Score 71.9 to 85.2 | BB15: ="Score "&ROUND($R$8+0.1,1)&" to "&ROUND($R$9,1) -> Score 61.7 to 71.8 | BE15: ="Score "&ROUND($R$7+0.1,1)&" to "&ROUND($R$8,1) -> Score 49.5 to 61.6 | BH15: ="Score "&ROUND($R$6,1)&" to "&ROUND($R$7,1) -> Score 10.8 to 49.4
A17: SHOW_DATA | B17: =IF(OR(P2=1,AK2=0),FALSE,TRUE) -> FALSE | E17: Highlight | T17: ALL UNFILTERED DATA POINTS | V17: Country Highlight | W17: Country Filter | AB17: Region Filter | AE17: Group Filter | AT17: 4 | AU17: 3 | AV17: 2 | AW17: 1 | AY17: 1 | AZ17: 3 | BB17: 1 | BC17: 3 | BE17: 1 | BF17: 3 | BH17: 1 | BI17: 3
D18: IsRegion | E18: Status | F18: ActiveStatus | G18: Score (unrounded) | H18: Rank unrounded | I18: LU | J18: yScatter | K18: RankRounded | O18: Score | P18: Score Display | Q18: =IF($B$17,"Data","") ->  | R18: Map Display | T18: X | U18: Y | AB18: Unsorted | AC18: Sorted | AE18: Unsorted | AF18: Sorted | AN18: Main Set | AO18: Region Filter | AP18: Group Filter | AQ18: Intersect | AR18: Highlighted | AT18: 0 | AU18: 0 | AV18: 0 | AW18: 0 | AY18: B1 | AZ18: B1a | BB18: B2 | BC18: B2a | BE18: B3 | BF18: B3a | BH18: B4 | BI18: B4a
A19: =tblTerritories!A3 -> 1 | B19: =tblTerritories!B3 -> AUS | C19: =tblTerritories!C3 -> Australia | E19: =tblTerritories!E3 -> Australia | F19: =IF(tblTerritories!G3=3,3,IF(tblTerritories!G3=2,2,1)) -> 1 | G19: =IF(F19=0,"",ROUND(INDEX(aScores,$B$2,$A19),2)) -> 85.2 | H19: =IF(F19=0,"",RANK(G19,G$19:G$35,$B$7)+COUNTIF(G$19:G19,G19)-1) -> 1 | I19: =IF(ISERROR(MATCH($A19,H$19:H$35,0)),"",MATCH($A19,H$19:H$35,0)) -> 1 | J19: =IF(I19="","",1) -> 1 | K19: =IF(I19="","",RANK(O19,O$19:O$35,$B$7)) -> 1 | L19: =IF(I19="",0,INDEX($F$19:$F$35,I19)) -> 1 | M19: =IF(I19="","",IF(OR(K19=K18,K19=K20),CONCATENATE("=",K19),K19)) -> 1 | N19: =IF(I19="","",INDEX($C$19:$C$35,I19)) -> Australia | O19: =IF(I19="","",INDEX(aRoundedScores,$B$2,I19)) -> 85.2 | P19: =IF(L19=0,"",IF($C$2=1,"-",O19)) -> 85.2 | Q19: =IF(ISNA(VLOOKUP(N19,uxb_regions!$C$3:$I$79,7,FALSE)),"",VLOOKUP(N19,uxb_regions!$C$3:$I$79,7,FALSE)) -> AUS | R19: =IF(L19=0,"",O19) -> 85.2 | S19: =IF(Q19="","",CHOOSE($U$3,IF(R19<R$7,1,IF(R19<R$8,2,IF(R19<R$9,3,IF(R19<=R$10,4)))))) -> 4 | T19: =IF(ISNUMBER(O19),O19,NA()) -> 85.2 | U19: =1 -> 1 | V19: =IF(ISNA(INDEX($F$19:$F$35,MATCH(N19,$C$19:$C$35,0))),0,INDEX($F$19:$F$35,MATCH(N19,$C$19:$C$35,0))) -> 1 | W19: =IF(OR(V19=3,V19=2),Q19,0) -> 0 | X19: =IF(ISNA(V19),"",Q19) -> AUS | Y19: =IF(L19=2,T19,NA()) ->  | Z19: =IF(L19=2,1,NA()) ->  | AE19: =IF($AE$15=1,0,INDEX(tblTerritories!$S$3:$V$19,A19,$AE$15-1)) -> 0 | AF19: =IF(ISNA(INDEX($AE$19:$AE$35,MATCH(N19,$C$19:$C$35,0))),0,INDEX($AE$19:$AE$35,MATCH(N19,$C$19:$C$35,0))) -> 0 | AJ19: =LARGE($R$19:$R$35,ROW(R1)-ROW($R$1)+1) -> 85.2 | AM19: =IF(ISNUMBER(O19),N19,CONCATENATE(N19)) -> Australia | AN19: =IF(ISNUMBER(P19),P19,"-") -> 85.2 | AP19: =IF(AF19=0,NA(),$AN19) ->  | AR19: =IF(W19=0,NA(),$AN19) ->  | AS19: =TEXT(AN19,$Q$2) -> 85.2 | AT19: =AT18+MATCH(AT$17,OFFSET($S$19:$S$35,AT18,0),0) -> 1 | AU19: =AU18+MATCH(AU$17,OFFSET($S$19:$S$35,AU18,0),0) -> 7 | AV19: =AV18+MATCH(AV$17,OFFSET($S$19:$S$35,AV18,0),0) -> 10 | AW19: =AW18+MATCH(AW$17,OFFSET($S$19:$S$35,AW18,0),0) -> 14 | AY19: =IF(ISNA(AT19),"",INDEX($N$19:$P$35,$AT19,AY$17)) -> Australia | AZ19: =IF(ISNA(AT19),"",INDEX($N$19:$P$35,$AT19,AZ$17)) -> 85.2 | BB19: =IF(ISNA(AU19),"",INDEX($N$19:$P$35,$AU19,BB$17)) -> Taiwan | BC19: =IF(ISNA(AU19),"",INDEX($N$19:$P$35,$AU19,BC$17)) -> 69.8 | BE19: =IF(ISNA(AV19),"",INDEX($N$19:$P$35,$AV19,BE$17)) -> India | BF19: =IF(ISNA(AV19),"",INDEX($N$19:$P$35,$AV19,BF$17)) -> 54.1 | BH19: =IF(ISNA(AW19),"",INDEX($N$19:$P$35,$AW19,BH$17)) -> Indonesia | BI19: =IF(ISNA(AW19),"",INDEX($N$19:$P$35,$AW19,BI$17)) -> 46.1
A20: =tblTerritories!A4 -> 2 | B20: =tblTerritories!B4 -> KHM | C20: =tblTerritories!C4 -> Cambodia | E20: =tblTerritories!E4 -> Cambodia | F20: =IF(tblTerritories!G4=3,3,IF(tblTerritories!G4=2,2,1)) -> 1 | G20: =IF(F20=0,"",ROUND(INDEX(aScores,$B$2,$A20),2)) -> 23.92 | H20: =IF(F20=0,"",RANK(G20,G$19:G$35,$B$7)+COUNTIF(G$19:G20,G20)-1) -> 15 | I20: =IF(ISERROR(MATCH($A20,H$19:H$35,0)),"",MATCH($A20,H$19:H$35,0)) -> 11 | J20: =IF(I20="","",1) -> 1 | K20: =IF(I20="","",RANK(O20,O$19:O$35,$B$7)) -> 2 | L20: =IF(I20="",0,INDEX($F$19:$F$35,I20)) -> 1 | M20: =IF(I20="","",IF(OR(K20=K19,K20=K21),CONCATENATE("=",K20),K20)) -> 2 | N20: =IF(I20="","",INDEX($C$19:$C$35,I20)) -> New Zealand | O20: =IF(I20="","",INDEX(aRoundedScores,$B$2,I20)) -> 81.8 | P20: =IF(L20=0,"",IF($C$2=1,"-",O20)) -> 81.8 | Q20: =IF(ISNA(VLOOKUP(N20,uxb_regions!$C$3:$I$79,7,FALSE)),"",VLOOKUP(N20,uxb_regions!$C$3:$I$79,7,FALSE)) -> NZL | R20: =IF(L20=0,"",O20) -> 81.8 | S20: =IF(Q20="","",CHOOSE($U$3,IF(R20<R$7,1,IF(R20<R$8,2,IF(R20<R$9,3,IF(R20<=R$10,4)))))) -> 4 | T20: =IF(ISNUMBER(O20),O20,NA()) -> 81.8 | U20: =1 -> 1 | V20: =IF(ISNA(INDEX($F$19:$F$35,MATCH(N20,$C$19:$C$35,0))),0,INDEX($F$19:$F$35,MATCH(N20,$C$19:$C$35,0))) -> 1 | W20: =IF(OR(V20=3,V20=2),Q20,0) -> 0 | X20: =IF(ISNA(V20),"",Q20) -> NZL | Y20: =IF(L20=2,T20,NA()) ->  | Z20: =IF(L20=2,1,NA()) ->  | AE20: =IF($AE$15=1,0,INDEX(tblTerritories!$S$3:$V$19,A20,$AE$15-1)) -> 0 | AF20: =IF(ISNA(INDEX($AE$19:$AE$35,MATCH(N20,$C$19:$C$35,0))),0,INDEX($AE$19:$AE$35,MATCH(N20,$C$19:$C$35,0))) -> 0 | AJ20: =LARGE($R$19:$R$35,ROW(R2)-ROW($R$1)+1) -> 81.8 | AM20: =IF(ISNUMBER(O20),N20,CONCATENATE(N20)) -> New Zealand | AN20: =IF(ISNUMBER(P20),P20,"-") -> 81.8 | AP20: =IF(AF20=0,NA(),$AN20) ->  | AR20: =IF(W20=0,NA(),$AN20) ->  | AS20: =TEXT(AN20,$Q$2) -> 81.8 | AT20: =AT19+MATCH(AT$17,OFFSET($S$19:$S$35,AT19,0),0) -> 2 | AU20: =AU19+MATCH(AU$17,OFFSET($S$19:$S$35,AU19,0),0) -> 8 | AV20: =AV19+MATCH(AV$17,OFFSET($S$19:$S$35,AV19,0),0) -> 11 | AW20: =AW19+MATCH(AW$17,OFFSET($S$19:$S$35,AW19,0),0) -> 15 | AY20: =IF(ISNA(AT20),"",INDEX($N$19:$P$35,$AT20,AY$17)) -> New Zealand | AZ20: =IF(ISNA(AT20),"",INDEX($N$19:$P$35,$AT20,AZ$17)) -> 81.8 | BB20: =IF(ISNA(AU20),"",INDEX($N$19:$P$35,$AU20,BB$17)) -> Singapore | BC20: =IF(ISNA(AU20),"",INDEX($N$19:$P$35,$AU20,BC$17)) -> 69.8 | BE20: =IF(ISNA(AV20),"",INDEX($N$19:$P$35,$AV20,BE$17)) -> Thailand | BF20: =IF(ISNA(AV20),"",INDEX($N$19:$P$35,$AV20,BF$17)) -> 53.1 | BH20: =IF(ISNA(AW20),"",INDEX($N$19:$P$35,$AW20,BH$17)) -> Cambodia | BI20: =IF(ISNA(AW20),"",INDEX($N$19:$P$35,$AW20,BI$17)) -> 23.9
A21: =tblTerritories!A5 -> 3 | B21: =tblTerritories!B5 -> CHN | C21: =tblTerritories!C5 -> China | E21: =tblTerritories!E5 -> China | F21: =IF(tblTerritories!G5=3,3,IF(tblTerritories!G5=2,2,1)) -> 1 | G21: 61.58 | H21: =IF(F21=0,"",RANK(G21,G$19:G$35,$B$7)+COUNTIF(G$19:G21,G21)-1) -> 9 | I21: 4 | J21: 1 | K21: 3 | L21: 1 | M21: 3 | N21: Hong Kong | O21: 81.4 | P21: 81.4 | Q21: =IF(ISNA(VLOOKUP(N21,uxb_regions!$C$3:$I$79,7,FALSE)),"",VLOOKUP(N21,uxb_regions!$C$3:$I$79,7,FALSE)) -> HKG | R21: 81.4 | S21: 4 | T21: 81.4 | U21: =1 -> 1 | V21: 1 | W21: 0 | X21: HKG | AE21: =IF($AE$15=1,0,INDEX(tblTerritories!$S$3:$V$19,A21,$AE$15-1)) -> 0 | AF21: 0 | AJ21: 81.4 | AM21: Hong Kong | AN21: 81.4 | AS21: 81.4 | AT21: 3 | AU21: 9 | AV21: 12 | AW21: 16 | AY21: Hong Kong | AZ21: 81.4 | BB21: China | BC21: 61.6 | BE21: Philippines | BF21: 50.4 | BH21: Laos | BI21: 12.9
A22: =tblTerritories!A6 -> 4 | B22: =tblTerritories!B6 -> HKG | C22: =tblTerritories!C6 -> Hong Kong | E22: =tblTerritories!E6 -> Hong Kong | F22: =IF(tblTerritories!G6=3,3,IF(tblTerritories!G6=2,2,1)) -> 1 | G22: 81.41 | H22: =IF(F22=0,"",RANK(G22,G$19:G$35,$B$7)+COUNTIF(G$19:G22,G22)-1) -> 3 | I22: 7 | J22: 1 | K22: 4 | L22: 1 | M22: 4 | N22: Japan | O22: 75.9 | P22: 75.9 | Q22: =IF(ISNA(VLOOKUP(N22,uxb_regions!$C$3:$I$79,7,FALSE)),"",VLOOKUP(N22,uxb_regions!$C$3:$I$79,7,FALSE)) -> JPN | R22: 75.9 | S22: 4 | T22: 75.9 | U22: =1 -> 1 | V22: 1 | W22: 0 | X22: JPN | AE22: =IF($AE$15=1,0,INDEX(tblTerritories!$S$3:$V$19,A22,$AE$15-1)) -> 0 | AF22: 0 | AJ22: 75.9 | AM22: Japan | AN22: 75.9 | AS22: 75.9 | AT22: 4 | AV22: 13 | AW22: 17 | AY22: Japan | AZ22: 75.9 | BE22: Vietnam | BF22: 49.4 | BH22: Myanmar | BI22: 10.8
A23: =tblTerritories!A7 -> 5 | B23: =tblTerritories!B7 -> IND | C23: =tblTerritories!C7 -> India | E23: =tblTerritories!E7 -> India | F23: =IF(tblTerritories!G7=3,3,IF(tblTerritories!G7=2,2,1)) -> 1 | G23: 54.14 | H23: =IF(F23=0,"",RANK(G23,G$19:G$35,$B$7)+COUNTIF(G$19:G23,G23)-1) -> 10 | I23: 14 | J23: 1 | K23: 5 | L23: 1 | M23: =5 | N23: South Korea | O23: 71.8 | P23: 71.8 | Q23: =IF(ISNA(VLOOKUP(N23,uxb_regions!$C$3:$I$79,7,FALSE)),"",VLOOKUP(N23,uxb_regions!$C$3:$I$79,7,FALSE)) -> KOR | R23: 71.8 | S23: 4 | T23: 71.8 | U23: =1 -> 1 | V23: 1 | W23: 0 | X23: KOR | AE23: =IF($AE$15=1,0,INDEX(tblTerritories!$S$3:$V$19,A23,$AE$15-1)) -> 0 | AF23: 0 | AJ23: 71.8 | AM23: South Korea | AN23: 71.8 | AS23: 71.8 | AT23: 5 | AY23: South Korea | AZ23: 71.8
A24: =tblTerritories!A8 -> 6 | B24: =tblTerritories!B8 -> IDN | C24: =tblTerritories!C8 -> Indonesia | E24: =tblTerritories!E8 -> Indonesia | F24: =IF(tblTerritories!G8=3,3,IF(tblTerritories!G8=2,2,1)) -> 1 | G24: 46.07 | H24: =IF(F24=0,"",RANK(G24,G$19:G$35,$B$7)+COUNTIF(G$19:G24,G24)-1) -> 14 | I24: 9 | J24: 1 | K24: 5 | L24: 1 | M24: =5 | N24: Malaysia | O24: 71.8 | P24: 71.8 | Q24: =IF(ISNA(VLOOKUP(N24,uxb_regions!$C$3:$I$79,7,FALSE)),"",VLOOKUP(N24,uxb_regions!$C$3:$I$79,7,FALSE)) -> MYS | R24: 71.8 | S24: 4 | T24: 71.8 | U24: =1 -> 1 | V24: 1 | W24: 0 | X24: MYS | AE24: =IF($AE$15=1,0,INDEX(tblTerritories!$S$3:$V$19,A24,$AE$15-1)) -> 0 | AF24: 0 | AJ24: 71.8 | AM24: Malaysia | AN24: 71.8 | AS24: 71.8 | AT24: 6 | AY24: Malaysia | AZ24: 71.8
A25: =tblTerritories!A9 -> 7 | B25: =tblTerritories!B9 -> JPN | C25: =tblTerritories!C9 -> Japan | E25: =tblTerritories!E9 -> Japan | F25: =IF(tblTerritories!G9=3,3,IF(tblTerritories!G9=2,2,1)) -> 1 | G25: 75.86 | H25: =IF(F25=0,"",RANK(G25,G$19:G$35,$B$7)+COUNTIF(G$19:G25,G25)-1) -> 4 | I25: 15 | J25: 1 | K25: 7 | L25: 1 | M25: =7 | N25: Taiwan | O25: 69.8 | P25: 69.8 | Q25: =IF(ISNA(VLOOKUP(N25,uxb_regions!$C$3:$I$79,7,FALSE)),"",VLOOKUP(N25,uxb_regions!$C$3:$I$79,7,FALSE)) -> TWN | R25: 69.8 | S25: 3 | T25: 69.8 | U25: =1 -> 1 | V25: 1 | W25: 0 | X25: TWN | AE25: =IF($AE$15=1,0,INDEX(tblTerritories!$S$3:$V$19,A25,$AE$15-1)) -> 0 | AF25: 0 | AJ25: 69.8 | AM25: Taiwan | AN25: 69.8 | AS25: 69.8
A26: =tblTerritories!A10 -> 8 | B26: =tblTerritories!B10 -> LAO | C26: =tblTerritories!C10 -> Laos | E26: =tblTerritories!E10 -> Laos | F26: =IF(tblTerritories!G10=3,3,IF(tblTerritories!G10=2,2,1)) -> 1 | G26: 12.94 | H26: =IF(F26=0,"",RANK(G26,G$19:G$35,$B$7)+COUNTIF(G$19:G26,G26)-1) -> 16 | I26: 13 | J26: 1 | K26: 7 | L26: 1 | M26: =7 | N26: Singapore | O26: 69.8 | P26: 69.8 | Q26: =IF(ISNA(VLOOKUP(N26,uxb_regions!$C$3:$I$79,7,FALSE)),"",VLOOKUP(N26,uxb_regions!$C$3:$I$79,7,FALSE)) -> SGP | R26: 69.8 | S26: 3 | T26: 69.8 | U26: =1 -> 1 | V26: 1 | W26: 0 | X26: SGP | AE26: =IF($AE$15=1,0,INDEX(tblTerritories!$S$3:$V$19,A26,$AE$15-1)) -> 0 | AF26: 0 | AJ26: 69.8 | AM26: Singapore | AN26: 69.8 | AS26: 69.8
A27: =tblTerritories!A11 -> 9 | B27: =tblTerritories!B11 -> MYS | C27: =tblTerritories!C11 -> Malaysia | E27: =tblTerritories!E11 -> Malaysia | F27: =IF(tblTerritories!G11=3,3,IF(tblTerritories!G11=2,2,1)) -> 1 | G27: 71.8 | H27: =IF(F27=0,"",RANK(G27,G$19:G$35,$B$7)+COUNTIF(G$19:G27,G27)-1) -> 6 | I27: 3 | J27: 1 | K27: 9 | L27: 1 | M27: 9 | N27: China | O27: 61.6 | P27: 61.6 | Q27: =IF(ISNA(VLOOKUP(N27,uxb_regions!$C$3:$I$79,7,FALSE)),"",VLOOKUP(N27,uxb_regions!$C$3:$I$79,7,FALSE)) -> CHN | R27: 61.6 | S27: 3 | T27: 61.6 | U27: =1 -> 1 | V27: 1 | W27: 0 | X27: CHN | AE27: =IF($AE$15=1,0,INDEX(tblTerritories!$S$3:$V$19,A27,$AE$15-1)) -> 0 | AF27: 0 | AJ27: 61.6 | AM27: China | AN27: 61.6 | AS27: 61.6
A28: =tblTerritories!A12 -> 10 | B28: =tblTerritories!B12 -> MMR | C28: =tblTerritories!C12 -> Myanmar | E28: =tblTerritories!E12 -> Myanmar | F28: =IF(tblTerritories!G12=3,3,IF(tblTerritories!G12=2,2,1)) -> 1 | G28: 10.82 | H28: =IF(F28=0,"",RANK(G28,G$19:G$35,$B$7)+COUNTIF(G$19:G28,G28)-1) -> 17 | I28: 5 | J28: 1 | K28: 10 | L28: 1 | M28: 10 | N28: India | O28: 54.1 | P28: 54.1 | Q28: =IF(ISNA(VLOOKUP(N28,uxb_regions!$C$3:$I$79,7,FALSE)),"",VLOOKUP(N28,uxb_regions!$C$3:$I$79,7,FALSE)) -> IND | R28: 54.1 | S28: 2 | T28: 54.1 | U28: =1 -> 1 | V28: 1 | W28: 0 | X28: IND | AE28: =IF($AE$15=1,0,INDEX(tblTerritories!$S$3:$V$19,A28,$AE$15-1)) -> 0 | AF28: 0 | AJ28: 54.1 | AM28: India | AN28: 54.1 | AS28: 54.1
A29: =tblTerritories!A13 -> 11 | B29: =tblTerritories!B13 -> NZL | C29: =tblTerritories!C13 -> New Zealand | E29: =tblTerritories!E13 -> New Zealand | F29: =IF(tblTerritories!G13=3,3,IF(tblTerritories!G13=2,2,1)) -> 1 | G29: 81.81 | H29: =IF(F29=0,"",RANK(G29,G$19:G$35,$B$7)+COUNTIF(G$19:G29,G29)-1) -> 2 | I29: 16 | J29: 1 | K29: 11 | L29: 1 | M29: 11 | N29: Thailand | O29: 53.1 | P29: 53.1 | Q29: =IF(ISNA(VLOOKUP(N29,uxb_regions!$C$3:$I$79,7,FALSE)),"",VLOOKUP(N29,uxb_regions!$C$3:$I$79,7,FALSE)) -> THA | R29: 53.1 | S29: 2 | T29: 53.1 | U29: =1 -> 1 | V29: 1 | W29: 0 | X29: THA | AE29: =IF($AE$15=1,0,INDEX(tblTerritories!$S$3:$V$19,A29,$AE$15-1)) -> 0 | AF29: 0 | AJ29: 53.1 | AM29: Thailand | AN29: 53.1 | AS29: 53.1
A30: =tblTerritories!A14 -> 12 | B30: =tblTerritories!B14 -> PHL | C30: =tblTerritories!C14 -> Philippines | E30: =tblTerritories!E14 -> Philippines | F30: =IF(tblTerritories!G14=3,3,IF(tblTerritories!G14=2,2,1)) -> 1 | G30: 50.41 | H30: =IF(F30=0,"",RANK(G30,G$19:G$35,$B$7)+COUNTIF(G$19:G30,G30)-1) -> 12 | I30: 12 | J30: 1 | K30: 12 | L30: 1 | M30: 12 | N30: Philippines | O30: 50.4 | P30: 50.4 | Q30: =IF(ISNA(VLOOKUP(N30,uxb_regions!$C$3:$I$79,7,FALSE)),"",VLOOKUP(N30,uxb_regions!$C$3:$I$79,7,FALSE)) -> PHL | R30: 50.4 | S30: 2 | T30: 50.4 | U30: =1 -> 1 | V30: 1 | W30: 0 | X30: PHL | AE30: =IF($AE$15=1,0,INDEX(tblTerritories!$S$3:$V$19,A30,$AE$15-1)) -> 0 | AF30: 0 | AJ30: 50.4 | AM30: Philippines | AN30: 50.4 | AS30: 50.4
A31: =tblTerritories!A15 -> 13 | B31: =tblTerritories!B15 -> SGP | C31: =tblTerritories!C15 -> Singapore | E31: =tblTerritories!E15 -> Singapore | F31: =IF(tblTerritories!G15=3,3,IF(tblTerritories!G15=2,2,1)) -> 1 | G31: 69.76 | H31: =IF(F31=0,"",RANK(G31,G$19:G$35,$B$7)+COUNTIF(G$19:G31,G31)-1) -> 8 | I31: 17 | J31: 1 | K31: 13 | L31: 1 | M31: 13 | N31: Vietnam | O31: 49.4 | P31: 49.4 | Q31: =IF(ISNA(VLOOKUP(N31,uxb_regions!$C$3:$I$79,7,FALSE)),"",VLOOKUP(N31,uxb_regions!$C$3:$I$79,7,FALSE)) -> VNM | R31: 49.4 | S31: 2 | T31: 49.4 | U31: =1 -> 1 | V31: 1 | W31: 0 | X31: VNM | AE31: =IF($AE$15=1,0,INDEX(tblTerritories!$S$3:$V$19,A31,$AE$15-1)) -> 0 | AF31: 0 | AJ31: 49.4 | AM31: Vietnam | AN31: 49.4 | AS31: 49.4
A32: =tblTerritories!A16 -> 14 | B32: =tblTerritories!B16 -> KOR | C32: =tblTerritories!C16 -> South Korea | E32: =tblTerritories!E16 -> South Korea | F32: =IF(tblTerritories!G16=3,3,IF(tblTerritories!G16=2,2,1)) -> 1 | G32: 71.83 | H32: =IF(F32=0,"",RANK(G32,G$19:G$35,$B$7)+COUNTIF(G$19:G32,G32)-1) -> 5 | I32: 6 | J32: 1 | K32: 14 | L32: 1 | M32: 14 | N32: Indonesia | O32: 46.1 | P32: 46.1 | Q32: =IF(ISNA(VLOOKUP(N32,uxb_regions!$C$3:$I$79,7,FALSE)),"",VLOOKUP(N32,uxb_regions!$C$3:$I$79,7,FALSE)) -> IDN | R32: 46.1 | S32: 1 | T32: 46.1 | U32: =1 -> 1 | V32: 1 | W32: 0 | X32: IDN | AE32: =IF($AE$15=1,0,INDEX(tblTerritories!$S$3:$V$19,A32,$AE$15-1)) -> 0 | AF32: 0 | AJ32: 46.1 | AM32: Indonesia | AN32: 46.1 | AS32: 46.1
A33: =tblTerritories!A17 -> 15 | B33: =tblTerritories!B17 -> TWN | C33: =tblTerritories!C17 -> Taiwan | E33: =tblTerritories!E17 -> Taiwan | F33: =IF(tblTerritories!G17=3,3,IF(tblTerritories!G17=2,2,1)) -> 1 | G33: 69.81 | H33: =IF(F33=0,"",RANK(G33,G$19:G$35,$B$7)+COUNTIF(G$19:G33,G33)-1) -> 7 | I33: 2 | J33: 1 | K33: 15 | L33: 1 | M33: 15 | N33: Cambodia | O33: 23.9 | P33: 23.9 | Q33: =IF(ISNA(VLOOKUP(N33,uxb_regions!$C$3:$I$79,7,FALSE)),"",VLOOKUP(N33,uxb_regions!$C$3:$I$79,7,FALSE)) -> KHM | R33: 23.9 | S33: 1 | T33: 23.9 | U33: =1 -> 1 | V33: 1 | W33: 0 | X33: KHM | AE33: =IF($AE$15=1,0,INDEX(tblTerritories!$S$3:$V$19,A33,$AE$15-1)) -> 0 | AF33: 0 | AJ33: 23.9 | AM33: Cambodia | AN33: 23.9 | AS33: 23.9
A34: =tblTerritories!A18 -> 16 | B34: =tblTerritories!B18 -> THA | C34: =tblTerritories!C18 -> Thailand | E34: =tblTerritories!E18 -> Thailand | F34: =IF(tblTerritories!G18=3,3,IF(tblTerritories!G18=2,2,1)) -> 1 | G34: 53.1 | H34: =IF(F34=0,"",RANK(G34,G$19:G$35,$B$7)+COUNTIF(G$19:G34,G34)-1) -> 11 | I34: 8 | J34: 1 | K34: 16 | L34: 1 | M34: 16 | N34: Laos | O34: 12.9 | P34: 12.9 | Q34: =IF(ISNA(VLOOKUP(N34,uxb_regions!$C$3:$I$79,7,FALSE)),"",VLOOKUP(N34,uxb_regions!$C$3:$I$79,7,FALSE)) -> LAO | R34: 12.9 | S34: 1 | T34: 12.9 | U34: =1 -> 1 | V34: 1 | W34: 0 | X34: LAO | AE34: =IF($AE$15=1,0,INDEX(tblTerritories!$S$3:$V$19,A34,$AE$15-1)) -> 0 | AF34: 0 | AJ34: 12.9 | AM34: Laos | AN34: 12.9 | AS34: 12.9
A35: =tblTerritories!A19 -> 17 | B35: =tblTerritories!B19 -> VNM | C35: =tblTerritories!C19 -> Vietnam | E35: =tblTerritories!E19 -> Vietnam | F35: =IF(tblTerritories!G19=3,3,IF(tblTerritories!G19=2,2,1)) -> 1 | G35: 49.36 | H35: =IF(F35=0,"",RANK(G35,G$19:G$35,$B$7)+COUNTIF(G$19:G35,G35)-1) -> 13 | I35: 10 | J35: 1 | K35: 17 | L35: 1 | M35: 17 | N35: Myanmar | O35: 10.8 | P35: 10.8 | Q35: =IF(ISNA(VLOOKUP(N35,uxb_regions!$C$3:$I$79,7,FALSE)),"",VLOOKUP(N35,uxb_regions!$C$3:$I$79,7,FALSE)) -> MMR | R35: 10.8 | S35: 1 | T35: 10.8 | U35: =1 -> 1 | V35: 1 | W35: 0 | X35: MMR | AE35: =IF($AE$15=1,0,INDEX(tblTerritories!$S$3:$V$19,A35,$AE$15-1)) -> 0 | AF35: 0 | AJ35: 10.8 | AM35: Myanmar | AN35: 10.8 | AS35: 10.8
J39: 1 | O39: =IF(uxb_works!B7>1,INDEX(G18:G35,uxb_works!B7),NA()) -> 

Sheet uxb_mapdata (hidden)
N1: 1 | P1: 2 | R1: 3 | T1: 4 | V1: 5
I12: Highlight outline | J12: Shape outline | K12: N/A Fill | M12: 1 | N12: 2 | O12: 3 | P12: 4
J13: x
M16: Regions
J17: x

Sheet uxb_regions (hidden)
B1: RegionCode | C1: <none> | I1: MAPCODE
A2: 1 | C2: <none>
A3: 2 | B3: AUS | C3: =tblTerritories!C3 -> Australia | E3: =B3 -> AUS | I3: =B3 -> AUS
A4: 3 | B4: KHM | C4: =tblTerritories!C4 -> Cambodia | E4: =B4 -> KHM | I4: =B4 -> KHM
A5: 4 | B5: CHN | C5: =tblTerritories!C5 -> China | E5: CHN | I5: CHN
A6: 5 | B6: HKG | C6: =tblTerritories!C6 -> Hong Kong | E6: HKG | I6: HKG
A7: 6 | B7: IND | C7: =tblTerritories!C7 -> India | E7: IND | I7: IND
A8: 7 | B8: IDN | C8: =tblTerritories!C8 -> Indonesia | E8: IDN | I8: IDN
A9: 8 | B9: JPN | C9: =tblTerritories!C9 -> Japan | E9: JPN | I9: JPN
A10: 9 | B10: LAO | C10: =tblTerritories!C10 -> Laos | E10: LAO | I10: LAO
A11: 10 | B11: MYS | C11: =tblTerritories!C11 -> Malaysia | E11: MYS | I11: MYS
A12: 11 | B12: MMR | C12: =tblTerritories!C12 -> Myanmar | E12: MMR | I12: MMR
A13: 12 | B13: NZL | C13: =tblTerritories!C13 -> New Zealand | E13: NZL | I13: NZL
A14: 13 | B14: PHL | C14: =tblTerritories!C14 -> Philippines | E14: PHL | I14: PHL
A15: 14 | B15: SGP | C15: =tblTerritories!C15 -> Singapore | E15: SGP | I15: SGP
A16: 15 | B16: KOR | C16: =tblTerritories!C16 -> South Korea | E16: KOR | I16: KOR
A17: 16 | B17: TWN | C17: =tblTerritories!C17 -> Taiwan | E17: TWN | I17: TWN
A18: 17 | B18: THA | C18: =tblTerritories!C18 -> Thailand | E18: THA | I18: THA
A19: 18 | B19: VNM | C19: =tblTerritories!C19 -> Vietnam | E19: VNM | I19: VNM

Sheet tblIndicators (hidden)
A1: ID | B1: IS_BG | C1: Spare1 | D1: INDI_CODE | E1: PARENT_CODE | F1: DEPTH | G1: REF | H1: NDICATOR_SHORT | I1: DESCRITION OF CATEGORIES | K1: DESCRITION OF INDICATORS | L1: DESCRITION | M1: INDICATOR_MULTI | N1: INDICATOR_UNIT | O1: Scoring Criteria (0-100 or 0-4 etc) | P1: Year | Q1: Geography | R1: HIGH=Good | S1: Format | T1: MAIN_SOURCE | U1: SOURCE_WS_ID | V1: HIGH_IS | W1: NORM_ID (1=sumproduct, 2=min max set by data values, 3=min max set by user here) | X1: Set Min | Y1: Set Max | Z1: WEIGHT_NOM | AA1: WEIGHT_PERC | AB1: REF_INDI | AC1: PARENT | AD1: Weight_row | AE1: Weight_nom | AF1: Weight-% | AH1: Weight_nom_2 | AI1: Weight-%_2
A2: 1 | B2: 0 | D2: TOTAL | E2: OVERALL SCORE | F2: 0 | H2: OVERALL SCORE | I2: ="The overall score is the weighted sum of the following categories scores: "&G3&") "&H3&" "&G6&") "&H6&" "&G11&") "&H11&" "&G17&") "&H17&"" -> The overall score is the weighted sum of the following categories scores: 1) Intellectual property 2) Transparency and trade 3) Customs environment 4) Supply and demand | K2: ="The overall score is the weighted sum of the following category scores: 1) "&G3&" 2) "&G6&" 3) "&G11&" 4) "&G17&"" -> The overall score is the weighted sum of the following category scores: 1) 1 2) 2 3) 3 4) 4 | L2: =IF(F2=2,K2,I2) -> The overall score is the weighted sum of the following categories scores: 1) Intellectual property 2) Transparency and trade 3) Customs environment 4) Supply and demand | M2: Index score/number | O2: Index score/number | P2: =O2 -> Index score/number | S2: 0.0 | T2: EIU Calculation | V2: =IF(R2="","",IF(R2="High score = good",0,1)) ->  | W2: 1 | Z2: =AF2 -> 0 | AA2: =IF(F2=0,"",IF(SUMIF(E$3:E$113,E2,Z$3:Z$20)=0,0,Z2/SUMIF(E$3:E$20,E2,Z$3:Z$20))) ->  | AB2: =IF(G2="",H2,CONCATENATE(G2,") ",IF(F2>=2,H2,UPPER(H2)))) -> OVERALL SCORE
A3: 2 | B3: 0 | D3: IP | E3: TOTAL | F3: 1 | G3: 1 | H3: Intellectual property | I3: ="Measures the overall intellectual property and whether a country offers brand-owners a customs recordal. The category score is the weighted sum of the following indicator scores: "&G4&") "&H4&" "&G5&") "&H5&"" -> Measures the overall intellectual property and whether a country offers brand-owners a customs recordal. The category score is the weighted sum of the following indicator scores: 1.1) Protection of IP rights 1.2) Customs recordal system | L3: =IF(F3=2,K3,I3) -> Measures the overall intellectual property and whether a country offers brand-owners a customs recordal. The category score is the weighted sum of the following indicator scores: 1.1) Protection of IP rights 1.2) Customs recordal system | M3: Index score/number | O3: Index score/number | P3: =O3 -> Index score/number | S3: #0.0 | T3: EIU Calculation | U3: =G3 -> 1 | V3: =IF(R3="","",IF(R3="High score = good",0,1)) ->  | W3: 1 | Z3: =AF3 -> 0.25 | AA3: 0.25 | AB3: 1) INTELLECTUAL PROPERTY | AC3: =$AB$2 -> OVERALL SCORE | AD3: =MATCH($D3,Weights!$C$7:$C$38,0) -> 1 | AE3: =IF(ISERROR(AD3),1,INDEX(Weights!$G$7:$G$68,AD3)) -> 1 | AF3: =IF(ISERROR(AE3/SUMIF($E$2:$E$29,$E3,AE$2:AE$20)),0,AE3/SUMIF($E$2:$E$29,$E3,AE$2:AE$20)) -> 0.25 | AH3: =IF(ISERROR(AD3),1,INDEX(iWeights!$H$5:$Q$30,AD3,uxb_works!$B$34)) -> 1 | AI3: =IF(ISERROR(AH3/SUMIF($E$2:$E$29,$E3,AH$2:AH$20)),0,AH3/SUMIF($E$2:$E$29,$E3,AH$2:AH$20)) -> 0.25
A4: =A3+1 -> 3 | B4: 0 | D4: IP_11 | E4: IP | F4: 2 | G4: 1.1 | H4: Protection of IP rights | I4: Extent to which a high standard of comprehensive IP laws are enforced | K4: Extent to which a high standard of comprehensive IP laws are enforced | L4: =IF(F4=2,K4,I4) -> Extent to which a high standard of comprehensive IP laws are enforced | M4: 1 | O4: 0-4 (4 = bad/high risk) | P4: Rating | R4: High score = good | S4: #0 | T4: EIU Operational Risk Model | U4: =G4 -> 1.1 | V4: 1 | W4: 3 | X4: 0 | Y4: 4 | Z4: =AF4 -> 0.8 | AA4: 0.8 | AB4: 1.1) Protection of IP rights | AC4: =$AB$3 -> 1) INTELLECTUAL PROPERTY | AD4: =MATCH($D4,Weights!$C$7:$C$38,0) -> 8 | AE4: =IF(ISERROR(AD4),1,INDEX(Weights!$G$7:$G$68,AD4)) -> 4 | AF4: 0.8 | AH4: =IF(ISERROR(AD4),1,INDEX(iWeights!$H$5:$Q$30,AD4,uxb_works!$B$34)) -> 4 | AI4: 0.8
A5: =A4+1 -> 4 | B5: 0 | D5: IP_13 | E5: IP | F5: 2 | G5: 1.2 | H5: Customs recordal system | I5: Existence of a customs recordal system for brand owners | K5: Existence of a customs recordal system for brand owners | L5: =IF(F5=2,K5,I5) -> Existence of a customs recordal system for brand owners | M5: 1 | O5: 0 = No, 1 = yes | P5: Yes/no | R5: High score = good | S5: #0 | T5: Baker McKenzie | U5: 1.2 | V5: 0 | W5: 3 | X5: 0 | Y5: 1 | Z5: 0.2 | AA5: 0.2 | AB5: 1.2) Customs recordal system | AC5: 1) INTELLECTUAL PROPERTY | AD5: =MATCH($D5,Weights!$C$7:$C$38,0) -> 9 | AE5: =IF(ISERROR(AD5),1,INDEX(Weights!$G$7:$G$68,AD5)) -> 1 | AF5: 0.2 | AH5: =IF(ISERROR(AD5),1,INDEX(iWeights!$H$5:$Q$30,AD5,uxb_works!$B$34)) -> 1 | AI5: 0.2
A6: 5 | B6: 0 | D6: TT | E6: TOTAL | F6: 1 | G6: 2 | H6: Transparency and trade | I6: ="Measures the extent to which countries co-operator with national, regional, and international stakeholders and exercise governance over its free trade zones and similar areas. The category score is the weighted sum of the following indicator scores: "&G7&") "&H7&" "&G8&") "&H8&" "&G9&") "&H9&" "&G10&") "&H10&"" -> Measures the extent to which countries co-operator with national, regional, and international stakeholders and exercise governance over its free trade zones and similar areas. The category score is the weighted sum of the following indicator scores: 2.1) Track and trace services 2.2) Adoption of Annex D of Revised Kyoto Convention 2.3) Government cooperation 2.4) FTZ governance | K6: ="TBA - Descrition of "&H6 -> TBA - Descrition of Transparency and trade | L6: Measures the extent to which countries co-operator with national, regional, and international stakeholders and exercise governance over its free trade zones and similar areas. The category score is the weighted sum of the following indicator scores: 2.1) Track and trace services 2.2) Adoption of Annex D of Revised Kyoto Convention 2.3) Government cooperation 2.4) FTZ governance | M6: 1 | O6: Index score/number | P6: =O6 -> Index score/number | S6: #0.0 | T6: EIU Calculation | U6: 2 | W6: 1 | Z6: 0.25 | AA6: 0.25 | AB6: 2) TRANSPARENCY AND TRADE | AC6: =AB2 -> OVERALL SCORE | AD6: =MATCH($D6,Weights!$C$7:$C$38,0) -> 2 | AE6: =IF(ISERROR(AD6),1,INDEX(Weights!$G$7:$G$68,AD6)) -> 1 | AF6: 0.25 | AH6: =IF(ISERROR(AD6),1,INDEX(iWeights!$H$5:$Q$30,AD6,uxb_works!$B$34)) -> 1 | AI6: 0.25
A7: 6 | B7: 0 | D7: TT_21 | E7: TT | F7: 2 | G7: 2.1 | H7: Track and trace services | I7: The ability to track and trace consignments | K7: The ability to track and trace consignments | L7: The ability to track and trace consignments | M7: 1 | O7: 0-5 (5 = high) | P7: Rating | R7: High score = good | S7: #0 | T7: WB Logistics Performance Index | U7: 2.1 | V7: 0 | W7: 3 | X7: 0 | Y7: 5 | Z7: 0.25 | AA7: 0.25 | AB7: 2.1) Track and trace services | AC7: =$AB$6 -> 2) TRANSPARENCY AND TRADE | AD7: =MATCH($D7,Weights!$C$7:$C$38,0) -> 11 | AE7: =IF(ISERROR(AD7),1,INDEX(Weights!$G$7:$G$68,AD7)) -> 1 | AF7: 0.25 | AH7: =IF(ISERROR(AD7),1,INDEX(iWeights!$H$5:$Q$30,AD7,uxb_works!$B$34)) -> 1 | AI7: 0.25
A8: 7 | B8: 0 | D8: TT_22 | E8: TT | F8: 2 | G8: 2.2 | H8: Adoption of Annex D of Revised Kyoto Convention | I8: A country’s adoption of Annex D of the Revised Kyoto Convention, a commitment to best practices in customs warehouses and FTZs | K8: A country’s adoption of Annex D of the Revised Kyoto Convention, a commitment to best practices in customs warehouses and FTZs | L8: A country’s adoption of Annex D of the Revised Kyoto Convention, a commitment to best practices in customs warehouses and FTZs | M8: 1 | O8: 0 = No, 1 = yes | P8: Yes/no | R8: High score = good | S8: #0 | T8: World Customs Organization | U8: 2.2 | V8: 0 | W8: 3 | X8: 0 | Y8: 1 | Z8: 0.25 | AA8: 0.25 | AB8: 2.2) Adoption of Annex D of Revised Kyoto Convention | AC8: =$AB$6 -> 2) TRANSPARENCY AND TRADE | AD8: =MATCH($D8,Weights!$C$7:$C$38,0) -> 12 | AE8: =IF(ISERROR(AD8),1,INDEX(Weights!$G$7:$G$68,AD8)) -> 1 | AF8: 0.25 | AH8: =IF(ISERROR(AD8),1,INDEX(iWeights!$H$5:$Q$30,AD8,uxb_works!$B$34)) -> 1 | AI8: 0.25
A9: 8 | B9: 0 | D9: TT_23 | E9: TT | F9: 2 | G9: 2.3 | H9: Government cooperation | I9: A government’s commitment to cooperate with stakeholders in the prevention of illicit trade | K9: A government’s commitment to cooperate with stakeholders in the prevention of illicit trade | L9: A government’s commitment to cooperate with stakeholders in the prevention of illicit trade | M9: 1 | O9: 1 = No, 2 = yes | P9: Yes/no | R9: High score = good | S9: #0 | T9: Expert survey | U9: 2.3 | V9: 0 | W9: 3 | X9: 1 | Y9: 2 | Z9: =AF9 -> 0.25 | AA9: 0.25 | AB9: 2.3) Government cooperation | AC9: 2) TRANSPARENCY AND TRADE | AD9: =MATCH($D9,Weights!$C$7:$C$38,0) -> 13 | AE9: =IF(ISERROR(AD9),1,INDEX(Weights!$G$7:$G$68,AD9)) -> 1 | AF9: 0.25 | AH9: =IF(ISERROR(AD9),1,INDEX(iWeights!$H$5:$Q$30,AD9,uxb_works!$B$34)) -> 1 | AI9: 0.25
A10: 9 | B10: 0 | D10: TT_24 | E10: TT | F10: 2 | G10: 2.4 | H10: FTZ governance | I10: Extent to which a customs organization and other law enforcement agencies monitor FTZs in their jurisdiction | K10: Extent to which a customs organization and other law enforcement agencies monitor FTZs in their jurisdiction | L10: Extent to which a customs organization and other law enforcement agencies monitor FTZs in their jurisdiction | M10: 1 | O10: 0 - 4 (4 = good governance) | P10: Rating | R10: High score = good | S10: #0 | T10: Expert survey | U10: 2.4 | V10: 0 | W10: 3 | X10: 0 | Y10: 4 | Z10: 0.25 | AA10: 0.25 | AB10: 2.4) FTZ governance | AC10: 2) TRANSPARENCY AND TRADE | AD10: =MATCH($D10,Weights!$C$7:$C$38,0) -> 14 | AE10: =IF(ISERROR(AD10),1,INDEX(Weights!$G$7:$G$68,AD10)) -> 1 | AF10: 0.25 | AH10: =IF(ISERROR(AD10),1,INDEX(iWeights!$H$5:$Q$30,AD10,uxb_works!$B$34)) -> 1 | AI10: 0.25
A11: 10 | B11: 0 | D11: CE | E11: TOTAL | F11: 1 | G11: 3 | H11: Customs environment | I11: ="Measures the balance between trade facilitation and illicit trade considerations, including corruption and automation. The category score is the weighted sum of the following indicator scores: "&G12&") "&H12&" "&G13&") "&H13&" "&G14&") "&H14&" "&G15&") "&H15&" "&G16&") "&H16&"" -> Measures the balance between trade facilitation and illicit trade considerations, including corruption and automation. The category score is the weighted sum of the following indicator scores: 3.1) Percentage of shipments physically inspected 3.2) Customs clearance and inspection 3.3) Automation 3.4) Corruption 3.5) Accredited Economic Operator programme | K11: ="The category score is the weighted sum of the following indicator scores: "&I12&") "&J12&" "&I13&") "&J13&" "&I14&") "&J14&" "&I15&") "&J15&" "&I16&") "&J16&"" -> The category score is the weighted sum of the following indicator scores: Proportion of shipments physically inspected. Data is underweighted on the advice of expert panel. ) Average number of days for clearance with physical inspections) Electronic exchange of data, automated border procedures, and use of risk management) Extent of corruption among public officials ) Existence of an Accredited Economic Operator programme ) | L11: Measures the balance between trade facilitation and illicit trade considerations, including corruption and automation. The category score is the weighted sum of the following indicator scores: 3.1) Percentage of shipments physically inspected 3.2) Customs clearance and inspection 3.3) Automation 3.4) Corruption 3.5) Accredited Economic Operator programme | M11: 1 | O11: Index score/number | P11: =O11 -> Index score/number | S11: #0.0 | T11: EIU Calculation | U11: 3 | W11: 1 | Z11: 0.25 | AA11: 0.25 | AB11: 3) CUSTOMS ENVIRONMENT | AC11: =AB2 -> OVERALL SCORE | AD11: =MATCH($D11,Weights!$C$7:$C$38,0) -> 3 | AE11: =IF(ISERROR(AD11),1,INDEX(Weights!$G$7:$G$68,AD11)) -> 1 | AF11: 0.25 | AH11: =IF(ISERROR(AD11),1,INDEX(iWeights!$H$5:$Q$30,AD11,uxb_works!$B$34)) -> 1 | AI11: 0.25
A12: 11 | B12: 0 | D12: CE_31 | E12: CE | F12: 2 | G12: 3.1 | H12: Percentage of shipments physically inspected | I12: Proportion of shipments physically inspected. Data is underweighted on the advice of expert panel. | K12: Proportion of shipments physically inspected. Data is underweighted on the advice of expert panel. | L12: Proportion of shipments physically inspected. Data is underweighted on the advice of expert panel. | M12: 1 | O12: Higher = better | P12: % | R12: High score = good | S12: #0 | T12: WB Logistics Performance Index; EIU analysis | U12: 3.1 | V12: 0 | W12: 2 | Z12: 0.1111111111 | AA12: 0.1111111111 | AB12: 3.1) Percentage of shipments physically inspected | AC12: =$AB$11 -> 3) CUSTOMS ENVIRONMENT | AD12: =MATCH($D12,Weights!$C$7:$C$38,0) -> 16 | AE12: =IF(ISERROR(AD12),1,INDEX(Weights!$G$7:$G$68,AD12)) -> 0.5 | AF12: 0.1111111111 | AH12: =IF(ISERROR(AD12),1,INDEX(iWeights!$H$5:$Q$30,AD12,uxb_works!$B$34)) -> 0.5 | AI12: 0.1111111111
A13: 12 | B13: 0 | D13: CE_32 | E13: CE | F13: 2 | G13: 3.2 | H13: Customs clearance and inspection | I13: Average number of days for clearance with physical inspections | K13: Average number of days for clearance with physical inspections | L13: Average number of days for clearance with physical inspections | M13: 1 | O13: Lower = better | P13: # of days | R13: High score = bad | S13: #0 | T13: WB/IFC Ease of Doing Business Ranking | U13: 3.2 | V13: 1 | W13: 2 | Z13: 0.2222222222 | AA13: 0.2222222222 | AB13: 3.2) Customs clearance and inspection | AC13: =$AB$11 -> 3) CUSTOMS ENVIRONMENT | AD13: =MATCH($D13,Weights!$C$7:$C$38,0) -> 17 | AE13: =IF(ISERROR(AD13),1,INDEX(Weights!$G$7:$G$68,AD13)) -> 1 | AF13: 0.2222222222 | AH13: =IF(ISERROR(AD13),1,INDEX(iWeights!$H$5:$Q$30,AD13,uxb_works!$B$34)) -> 1 | AI13: 0.2222222222
A14: 13 | B14: 0 | D14: CE_33 | E14: CE | F14: 2 | G14: 3.3 | H14: Automation | I14: Electronic exchange of data, automated border procedures, and use of risk management | K14: Electronic exchange of data, automated border procedures, and use of risk management | L14: Electronic exchange of data, automated border procedures, and use of risk management | M14: 1 | O14: Higher = better | P14: Rating | R14: High score = good | S14: #0.00 | T14: OECD Trade Facilitation Index | U14: 3.3 | V14: 0 | W14: 2 | Z14: 0.2222222222 | AA14: 0.2222222222 | AB14: 3.3) Automation | AC14: 3) CUSTOMS ENVIRONMENT | AD14: =MATCH($D14,Weights!$C$7:$C$38,0) -> 18 | AE14: =IF(ISERROR(AD14),1,INDEX(Weights!$G$7:$G$68,AD14)) -> 1 | AF14: 0.2222222222 | AH14: =IF(ISERROR(AD14),1,INDEX(iWeights!$H$5:$Q$30,AD14,uxb_works!$B$34)) -> 1 | AI14: 0.2222222222
A15: 14 | B15: 0 | D15: CE_34 | E15: CE | F15: 2 | G15: 3.4 | H15: Corruption | I15: Extent of corruption among public officials | K15: Extent of corruption among public officials | L15: Extent of corruption among public officials | M15: 1 | O15: 0 - 4 (0 = best, 4 = worst) | P15: EIU rating | R15: High score = bad | S15: #0 | T15: EIU Operational Risk Review | U15: 3.4 | V15: 1 | W15: 3 | X15: 0 | Y15: 4 | Z15: 0.2222222222 | AA15: 0.2222222222 | AB15: 3.4) Corruption | AC15: 3) CUSTOMS ENVIRONMENT | AD15: =MATCH($D15,Weights!$C$7:$C$38,0) -> 19 | AE15: =IF(ISERROR(AD15),1,INDEX(Weights!$G$7:$G$68,AD15)) -> 1 | AF15: 0.2222222222 | AH15: =IF(ISERROR(AD15),1,INDEX(iWeights!$H$5:$Q$30,AD15,uxb_works!$B$34)) -> 1 | AI15: 0.2222222222
A16: 15 | B16: 0 | D16: CE_35 | E16: CE | F16: 2 | G16: 3.5 | H16: Accredited Economic Operator programme | I16: Existence of an Accredited Economic Operator programme | K16: Existence of an Accredited Economic Operator programme | L16: Existence of an Accredited Economic Operator programme | M16: 1 | O16: 3 = Programmes exist; 2 = Programme to be launched; 1 = No programme exists | P16: Rating | R16: High score = good | S16: #0 | T16: World Customs Organisation | U16: 3.5 | V16: 0 | W16: 3 | X16: 1 | Y16: 3 | Z16: 0.2222222222 | AA16: 0.2222222222 | AB16: 3.5) Accredited Economic Operator programme | AC16: 3) CUSTOMS ENVIRONMENT | AD16: =MATCH($D16,Weights!$C$7:$C$38,0) -> 20 | AE16: =IF(ISERROR(AD16),1,INDEX(Weights!$G$7:$G$68,AD16)) -> 1 | AF16: 0.2222222222 | AH16: =IF(ISERROR(AD16),1,INDEX(iWeights!$H$5:$Q$30,AD16,uxb_works!$B$34)) -> 1 | AI16: 0.2222222222
A17: 16 | B17: 0 | D17: SD | E17: TOTAL | F17: 1 | G17: 4 | H17: Supply and demand | I17: ="Measures the domestic policy environment for each country with regards to the supply and demand of illicit trade. The category score is the weighted sum of the following indicator scores: "&G18&") "&H18&" "&G19&") "&H19&" "&G20&") "&H20&"" -> Measures the domestic policy environment for each country with regards to the supply and demand of illicit trade. The category score is the weighted sum of the following indicator scores: 4.1) Tax and social security burdens 4.2) Quality of state institutions 4.3) Labour market regulations | K17: ="The category score is the weighted sum of the following indicator scores: "&I18&") "&J18&" "&I19&") "&J19&" "&I20&") "&J20&"" -> The category score is the weighted sum of the following indicator scores: Extend of corporate tax and social security contributions of companies ) Effectiveness of country’s public institutions) Degree of restrictiveness on hiring and firing ) | L17: Measures the domestic policy environment for each country with regards to the supply and demand of illicit trade. The category score is the weighted sum of the following indicator scores: 4.1) Tax and social security burdens 4.2) Quality of state institutions 4.3) Labour market regulations | M17: 1 | O17: Index score/number | P17: =O17 -> Index score/number | S17: #0.0 | T17: EIU Calculation | U17: 4 | W17: 1 | Z17: 0.25 | AA17: 0.25 | AB17: 4) SUPPLY AND DEMAND | AC17: =AB2 -> OVERALL SCORE | AD17: =MATCH($D17,Weights!$C$7:$C$38,0) -> 4 | AE17: =IF(ISERROR(AD17),1,INDEX(Weights!$G$7:$G$68,AD17)) -> 1 | AF17: 0.25 | AH17: =IF(ISERROR(AD17),1,INDEX(iWeights!$H$5:$Q$30,AD17,uxb_works!$B$34)) -> 1 | AI17: 0.25
A18: 17 | B18: 0 | D18: SD_41 | E18: SD | F18: 2 | G18: 4.1 | H18: Tax and social security burdens | I18: Extend of corporate tax and social security contributions of companies | K18: Extend of corporate tax and social security contributions of companies | L18: Extend of corporate tax and social security contributions of companies | M18: 1 | O18: 1-5 (5 = high) | P18: EIU rating | R18: High score = good | S18: #0 | T18: EIU Business Environment Rankings | U18: 4.1 | V18: 0 | W18: 3 | X18: 1 | Y18: 5 | Z18: 0.3333333333 | AA18: 0.3333333333 | AB18: 4.1) Tax and social security burdens | AC18: =$AB$17 -> 4) SUPPLY AND DEMAND | AD18: =MATCH($D18,Weights!$C$7:$C$38,0) -> 22 | AE18: =IF(ISERROR(AD18),1,INDEX(Weights!$G$7:$G$68,AD18)) -> 1 | AF18: 0.3333333333 | AH18: =IF(ISERROR(AD18),1,INDEX(iWeights!$H$5:$Q$30,AD18,uxb_works!$B$34)) -> 1 | AI18: 0.3333333333
A19: 18 | B19: 0 | D19: SD_42 | E19: SD | F19: 2 | G19: 4.2 | H19: Quality of state institutions | I19: Effectiveness of country’s public institutions | K19: Effectiveness of country’s public institutions | L19: Effectiveness of country’s public institutions | M19: 1 | O19: 1-10 (10 = high) | P19: EIU rating | R19: High score = good | S19: #0 | T19: EIU Operational Risk Review | U19: 4.2 | V19: 0 | W19: 3 | X19: 1 | Y19: 10 | Z19: 0.3333333333 | AA19: 0.3333333333 | AB19: 4.2) Quality of state institutions | AC19: =$AB$17 -> 4) SUPPLY AND DEMAND | AD19: =MATCH($D19,Weights!$C$7:$C$38,0) -> 23 | AE19: =IF(ISERROR(AD19),1,INDEX(Weights!$G$7:$G$68,AD19)) -> 1 | AF19: 0.3333333333 | AH19: =IF(ISERROR(AD19),1,INDEX(iWeights!$H$5:$Q$30,AD19,uxb_works!$B$34)) -> 1 | AI19: 0.3333333333
A20: 19 | B20: 0 | D20: SD_43 | E20: SD | F20: 2 | G20: 4.3 | H20: Labour market regulations | I20: Degree of restrictiveness on hiring and firing | K20: Degree of restrictiveness on hiring and firing | L20: Degree of restrictiveness on hiring and firing | M20: 1 | O20: 1-5 (5 = high) | P20: EIU rating | R20: High score = good | S20: #0 | T20: EIU Business Environment Rankings | U20: 4.3 | V20: 0 | W20: 3 | X20: 1 | Y20: 5 | Z20: 0.3333333333 | AA20: 0.3333333333 | AB20: 4.3) Labour market regulations | AC20: 4) SUPPLY AND DEMAND | AD20: =MATCH($D20,Weights!$C$7:$C$38,0) -> 24 | AE20: =IF(ISERROR(AD20),1,INDEX(Weights!$G$7:$G$68,AD20)) -> 1 | AF20: 0.3333333333 | AH20: =IF(ISERROR(AD20),1,INDEX(iWeights!$H$5:$Q$30,AD20,uxb_works!$B$34)) -> 1 | AI20: 0.3333333333

Sheet tblIndiSets (hidden)
A2: CATEGORIES
A5: TOTAL | B5: =IF(A5="","",MATCH(A5,tblIndicators!D$2:D$20,0)) -> 1 | C5: =IF($A5="","",INDEX(tblIndicators!AB$2:AB$20,$B5)) -> OVERALL SCORE
A6: IP | B6: =IF(A6="","",MATCH(A6,tblIndicators!D$2:D$20,0)) -> 2 | C6: =IF($A6="","",INDEX(tblIndicators!AB$2:AB$20,$B6)) -> 1) INTELLECTUAL PROPERTY | Q6: TOTAL | R6: TOTAL | S6: TOTAL | T6: TOTAL | U6: TOTAL | V6: TOTAL
A7: TT | B7: =IF(A7="","",MATCH(A7,tblIndicators!D$2:D$20,0)) -> 5 | C7: =IF($A7="","",INDEX(tblIndicators!AB$2:AB$20,$B7)) -> 2) TRANSPARENCY AND TRADE | Q7: IP | R7: IP
A8: CE | B8: =IF(A8="","",MATCH(A8,tblIndicators!D$2:D$20,0)) -> 10 | C8: =IF($A8="","",INDEX(tblIndicators!AB$2:AB$20,$B8)) -> 3) CUSTOMS ENVIRONMENT | Q8: IP_11 | R8: =Q11 -> TT
A9: SD | B9: =IF(A9="","",MATCH(A9,tblIndicators!D$2:D$20,0)) -> 16 | C9: =IF($A9="","",INDEX(tblIndicators!AB$2:AB$20,$B9)) -> 4) SUPPLY AND DEMAND | Q9: IP_12 | R9: =#REF! -> 
Q10: IP_14 | R10: =Q26 -> IFF
Q11: TT
A12: CATEGORIES + INDICATORS (SCORING ONES ONLY) | Q12: TT_21
A13: TOTAL | B13: =IF(A13="","",MATCH(A13,tblIndicators!D$2:D$20,0)) -> 1 | C13: =IF($A13="","",INDEX(tblIndicators!AB$2:AB$20,$B13)) -> OVERALL SCORE | Q13: TT_22
A14: IP | B14: =IF(A14="","",MATCH(A14,tblIndicators!D$2:D$20,0)) -> 2 | C14: =IF($A14="","",INDEX(tblIndicators!AB$2:AB$20,$B14)) -> 1) INTELLECTUAL PROPERTY | Q14: TT_23
A15: IP_11 | B15: =IF(A15="","",MATCH(A15,tblIndicators!D$2:D$20,0)) -> 3 | C15: =IF($A15="","",INDEX(tblIndicators!AB$2:AB$20,$B15)) -> 1.1) Protection of IP rights | Q15: TT_24
A16: IP_13 | B16: =IF(A16="","",MATCH(A16,tblIndicators!D$2:D$20,0)) -> 4 | C16: =IF($A16="","",INDEX(tblIndicators!AB$2:AB$20,$B16)) -> 1.2) Customs recordal system | Q16: CE_31
A17: TT | B17: =IF(A17="","",MATCH(A17,tblIndicators!D$2:D$20,0)) -> 5 | C17: =IF($A17="","",INDEX(tblIndicators!AB$2:AB$20,$B17)) -> 2) TRANSPARENCY AND TRADE | Q17: CE_32
A18: TT_21 | B18: =IF(A18="","",MATCH(A18,tblIndicators!D$2:D$20,0)) -> 6 | C18: =IF($A18="","",INDEX(tblIndicators!AB$2:AB$20,$B18)) -> 2.1) Track and trace services | Q18: CE_33
A19: TT_22 | B19: =IF(A19="","",MATCH(A19,tblIndicators!D$2:D$20,0)) -> 7 | C19: =IF($A19="","",INDEX(tblIndicators!AB$2:AB$20,$B19)) -> 2.2) Adoption of Annex D of Revised Kyoto Convention | Q19: CE_34
A20: TT_23 | B20: =IF(A20="","",MATCH(A20,tblIndicators!D$2:D$20,0)) -> 8 | C20: =IF($A20="","",INDEX(tblIndicators!AB$2:AB$20,$B20)) -> 2.3) Government cooperation | Q20: CE_35
A21: TT_24 | B21: =IF(A21="","",MATCH(A21,tblIndicators!D$2:D$20,0)) -> 9 | C21: =IF($A21="","",INDEX(tblIndicators!AB$2:AB$20,$B21)) -> 2.4) FTZ governance | Q21: SD
A22: CE | B22: =IF(A22="","",MATCH(A22,tblIndicators!D$2:D$20,0)) -> 10 | C22: =IF($A22="","",INDEX(tblIndicators!AB$2:AB$20,$B22)) -> 3) CUSTOMS ENVIRONMENT | Q22: SD_42
A23: CE_31 | B23: =IF(A23="","",MATCH(A23,tblIndicators!D$2:D$20,0)) -> 11 | C23: =IF($A23="","",INDEX(tblIndicators!AB$2:AB$20,$B23)) -> 3.1) Percentage of shipments physically inspected | Q23: SD_43
A24: CE_32 | B24: =IF(A24="","",MATCH(A24,tblIndicators!D$2:D$20,0)) -> 12 | C24: =IF($A24="","",INDEX(tblIndicators!AB$2:AB$20,$B24)) -> 3.2) Customs clearance and inspection | Q24: SD_44
A25: CE_33 | B25: =IF(A25="","",MATCH(A25,tblIndicators!D$2:D$20,0)) -> 13 | C25: =IF($A25="","",INDEX(tblIndicators!AB$2:AB$20,$B25)) -> 3.3) Automation | Q25: SD_45
A26: CE_34 | B26: =IF(A26="","",MATCH(A26,tblIndicators!D$2:D$20,0)) -> 14 | C26: =IF($A26="","",INDEX(tblIndicators!AB$2:AB$20,$B26)) -> 3.4) Corruption | Q26: IFF
A27: CE_35 | B27: =IF(A27="","",MATCH(A27,tblIndicators!D$2:D$20,0)) -> 15 | C27: =IF($A27="","",INDEX(tblIndicators!AB$2:AB$20,$B27)) -> 3.5) Accredited Economic Operator programme | Q27: IFF_51
A28: SD | B28: =IF(A28="","",MATCH(A28,tblIndicators!D$2:D$20,0)) -> 16 | C28: =IF($A28="","",INDEX(tblIndicators!AB$2:AB$20,$B28)) -> 4) SUPPLY AND DEMAND | Q28: IFF_52
A29: SD_41 | B29: =IF(A29="","",MATCH(A29,tblIndicators!D$2:D$20,0)) -> 17 | C29: =IF($A29="","",INDEX(tblIndicators!AB$2:AB$20,$B29)) -> 4.1) Tax and social security burdens | Q29: IFF_53
A30: SD_42 | B30: =IF(A30="","",MATCH(A30,tblIndicators!D$2:D$20,0)) -> 18 | C30: =IF($A30="","",INDEX(tblIndicators!AB$2:AB$20,$B30)) -> 4.2) Quality of state institutions | Q30: IFF_54
A31: SD_43 | B31: =IF(A31="","",MATCH(A31,tblIndicators!D$2:D$20,0)) -> 19 | C31: =IF($A31="","",INDEX(tblIndicators!AB$2:AB$20,$B31)) -> 4.3) Labour market regulations | Q31: IFF_55
A34: INDICATOR RANKING | B34: Cat, Indi + Sub Indi
A36: TOTAL | B36: =IF(A36="","",MATCH(A36,tblIndicators!D$2:D$20,0)) -> 1 | C36: =IF($A36="","",REPT(" ",D36)&INDEX(tblIndicators!AB$2:AB$20,$B36)) -> OVERALL SCORE | D36: =tblIndicators!F2*2 -> 0
A37: IP | B37: =IF(A37="","",MATCH(A37,tblIndicators!D$2:D$20,0)) -> 2 | C37: =IF($A37="","",REPT(" ",D37)&INDEX(tblIndicators!AB$2:AB$20,$B37)) -> 1) INTELLECTUAL PROPERTY | D37: =tblIndicators!F3*2 -> 2
A38: IP_11 | B38: =IF(A38="","",MATCH(A38,tblIndicators!D$2:D$20,0)) -> 3 | C38: =IF($A38="","",REPT(" ",D38)&INDEX(tblIndicators!AB$2:AB$20,$B38)) -> 1.1) Protection of IP rights | D38: =tblIndicators!F4*2 -> 4
A39: IP_13 | B39: =IF(A39="","",MATCH(A39,tblIndicators!D$2:D$20,0)) -> 4 | C39: =IF($A39="","",REPT(" ",D39)&INDEX(tblIndicators!AB$2:AB$20,$B39)) -> 1.2) Customs recordal system | D39: =tblIndicators!F5*2 -> 4
A40: TT | B40: =IF(A40="","",MATCH(A40,tblIndicators!D$2:D$20,0)) -> 5 | C40: =IF($A40="","",REPT(" ",D40)&INDEX(tblIndicators!AB$2:AB$20,$B40)) -> 2) TRANSPARENCY AND TRADE | D40: =tblIndicators!F6*2 -> 2
A41: TT_21 | B41: =IF(A41="","",MATCH(A41,tblIndicators!D$2:D$20,0)) -> 6 | C41: =IF($A41="","",REPT(" ",D41)&INDEX(tblIndicators!AB$2:AB$20,$B41)) -> 2.1) Track and trace services | D41: =tblIndicators!F7*2 -> 4
A42: TT_22 | B42: =IF(A42="","",MATCH(A42,tblIndicators!D$2:D$20,0)) -> 7 | C42: =IF($A42="","",REPT(" ",D42)&INDEX(tblIndicators!AB$2:AB$20,$B42)) -> 2.2) Adoption of Annex D of Revised Kyoto Convention | D42: =tblIndicators!F8*2 -> 4
A43: TT_23 | B43: =IF(A43="","",MATCH(A43,tblIndicators!D$2:D$20,0)) -> 8 | C43: =IF($A43="","",REPT(" ",D43)&INDEX(tblIndicators!AB$2:AB$20,$B43)) -> 2.3) Government cooperation | D43: =tblIndicators!F9*2 -> 4
A44: TT_24 | B44: =IF(A44="","",MATCH(A44,tblIndicators!D$2:D$20,0)) -> 9 | C44: =IF($A44="","",REPT(" ",D44)&INDEX(tblIndicators!AB$2:AB$20,$B44)) -> 2.4) FTZ governance | D44: =tblIndicators!F10*2 -> 4
A45: CE | B45: =IF(A45="","",MATCH(A45,tblIndicators!D$2:D$20,0)) -> 10 | C45: =IF($A45="","",REPT(" ",D45)&INDEX(tblIndicators!AB$2:AB$20,$B45)) -> 3) CUSTOMS ENVIRONMENT | D45: =tblIndicators!F11*2 -> 2
A46: CE_31 | B46: =IF(A46="","",MATCH(A46,tblIndicators!D$2:D$20,0)) -> 11 | C46: =IF($A46="","",REPT(" ",D46)&INDEX(tblIndicators!AB$2:AB$20,$B46)) -> 3.1) Percentage of shipments physically inspected | D46: =tblIndicators!F12*2 -> 4
A47: CE_32 | B47: =IF(A47="","",MATCH(A47,tblIndicators!D$2:D$20,0)) -> 12 | C47: =IF($A47="","",REPT(" ",D47)&INDEX(tblIndicators!AB$2:AB$20,$B47)) -> 3.2) Customs clearance and inspection | D47: =tblIndicators!F13*2 -> 4
A48: CE_33 | B48: =IF(A48="","",MATCH(A48,tblIndicators!D$2:D$20,0)) -> 13 | C48: =IF($A48="","",REPT(" ",D48)&INDEX(tblIndicators!AB$2:AB$20,$B48)) -> 3.3) Automation | D48: =tblIndicators!F14*2 -> 4
A49: CE_34 | B49: =IF(A49="","",MATCH(A49,tblIndicators!D$2:D$20,0)) -> 14 | C49: =IF($A49="","",REPT(" ",D49)&INDEX(tblIndicators!AB$2:AB$20,$B49)) -> 3.4) Corruption | D49: =tblIndicators!F15*2 -> 4
A50: CE_35 | B50: =IF(A50="","",MATCH(A50,tblIndicators!D$2:D$20,0)) -> 15 | C50: =IF($A50="","",REPT(" ",D50)&INDEX(tblIndicators!AB$2:AB$20,$B50)) -> 3.5) Accredited Economic Operator programme | D50: =tblIndicators!F16*2 -> 4
A51: SD | B51: =IF(A51="","",MATCH(A51,tblIndicators!D$2:D$20,0)) -> 16 | C51: =IF($A51="","",REPT(" ",D51)&INDEX(tblIndicators!AB$2:AB$20,$B51)) -> 4) SUPPLY AND DEMAND | D51: =tblIndicators!F17*2 -> 2
A52: SD_41 | B52: =IF(A52="","",MATCH(A52,tblIndicators!D$2:D$20,0)) -> 17 | C52: =IF($A52="","",REPT(" ",D52)&INDEX(tblIndicators!AB$2:AB$20,$B52)) -> 4.1) Tax and social security burdens | D52: =tblIndicators!F18*2 -> 4
A53: SD_42 | B53: =IF(A53="","",MATCH(A53,tblIndicators!D$2:D$20,0)) -> 18 | C53: =IF($A53="","",REPT(" ",D53)&INDEX(tblIndicators!AB$2:AB$20,$B53)) -> 4.2) Quality of state institutions | D53: =tblIndicators!F19*2 -> 4
A54: SD_43 | B54: =IF(A54="","",MATCH(A54,tblIndicators!D$2:D$20,0)) -> 19 | C54: =IF($A54="","",REPT(" ",D54)&INDEX(tblIndicators!AB$2:AB$20,$B54)) -> 4.3) Labour market regulations | D54: =tblIndicators!F20*2 -> 4
A58: TOTAL | B58: =IF(A58="","",MATCH(A58,tblIndicators!D$2:D$20,0)) -> 1 | C58: VIEW ALL
A59: IP | B59: =IF(A59="","",MATCH(A59,tblIndicators!D$2:D$20,0)) -> 2 | C59: =IF($A59="","",INDEX(tblIndicators!AB$2:AB$20,$B59)) -> 1) INTELLECTUAL PROPERTY
A60: TT | B60: =IF(A60="","",MATCH(A60,tblIndicators!D$2:D$20,0)) -> 5 | C60: =IF($A60="","",INDEX(tblIndicators!AB$2:AB$20,$B60)) -> 2) TRANSPARENCY AND TRADE
A61: CE | B61: =IF(A61="","",MATCH(A61,tblIndicators!D$2:D$20,0)) -> 10 | C61: =IF($A61="","",INDEX(tblIndicators!AB$2:AB$20,$B61)) -> 3) CUSTOMS ENVIRONMENT
A62: SD | B62: =IF(A62="","",MATCH(A62,tblIndicators!D$2:D$20,0)) -> 16 | C62: =IF($A62="","",INDEX(tblIndicators!AB$2:AB$20,$B62)) -> 4) SUPPLY AND DEMAND
A80: MAP
A92: Weights Compare
C93: Country Name
C94: Score: Weight Profile 1
C95: Score: Weight Profile 2
C96: Change in Score
C97: Rank: Weight Profile 1
C98: Rank: Weight Profile 2
C99: Change in Rank

Sheet tblCategories (hidden)
A1: CityID | B1: ISO | C1: Indicator | D1: DisplayName | E1: ISO/MAP | F1: Display_Status | G1: ParentCity | M1: 1 | N1: 2 | O1: 3 | P1: 4 | Q1: 5 | V1: For Spider Chart | Y1: 1 | Z1: 2 | AA1: 3 | AB1: 4 | AC1: 5
A2: 0 | C2: <none> | D2: =C2 -> <none> | F2: 0 | K2: =tblIndiSets!C58 -> VIEW ALL | M2: =INDEX($K$2:$K$7,M1) -> VIEW ALL | N2: =INDEX($K$2:$K$7,N1) -> 1) INTELLECTUAL PROPERTY | O2: =INDEX($K$2:$K$7,O1) -> 2) TRANSPARENCY AND TRADE | P2: =INDEX($K$2:$K$7,P1) -> 4) SUPPLY AND DEMAND | Q2: =INDEX($K$2:$K$7,Q1) -> 0 | W2: All | Y2: =INDEX($K$2:$K$7,Y1) -> VIEW ALL | Z2: =INDEX($K$2:$K$7,Z1) -> 1) INTELLECTUAL PROPERTY | AA2: =INDEX($K$2:$K$7,AA1) -> 2) TRANSPARENCY AND TRADE | AB2: =INDEX($K$2:$K$7,AB1) -> 4) SUPPLY AND DEMAND | AC2: =INDEX($K$2:$K$7,AC1) -> 0
A3: =A2+1 -> 1 | C3: =tblIndicators!AB3 -> 1) INTELLECTUAL PROPERTY | D3: =C3 -> 1) INTELLECTUAL PROPERTY | F3: =INDEX(M3:Q3,uxb_works!$B$32) -> 1 | H3: City_HIGHLIGHT_ID | I3: =uxb_works!B7 -> 0 | K3: =tblIndiSets!C59 -> 1) INTELLECTUAL PROPERTY | L3: 1 | M3: 1 | N3: 1 | O3: 0 | P3: 0 | Q3: 0 | U3: =INDEX(Y3:AC3,uxb_works!$B$32) -> 1 | W3: =K3 -> 1) INTELLECTUAL PROPERTY | X3: 1 | Y3: 1 | Z3: 0 | AA3: 0 | AB3: 0 | AC3: 0
A4: =A3+1 -> 2 | C4: =tblIndicators!AB4 -> 1.1) Protection of IP rights | D4: =C4 -> 1.1) Protection of IP rights | F4: =INDEX(M4:Q4,uxb_works!$B$32) -> 1 | H4: GROUP_HIGHLIGHT_ID | I4: 1 | K4: =tblIndiSets!C60 -> 2) TRANSPARENCY AND TRADE | L4: 1 | M4: 1 | N4: 1 | O4: 0 | P4: 0 | Q4: 0 | U4: =INDEX(Y4:AC4,uxb_works!$B$32) -> 0 | W4: =K4 -> 2) TRANSPARENCY AND TRADE | X4: 1 | Y4: 0 | Z4: 1 | AA4: 0 | AB4: 0 | AC4: 0
A5: 3 | C5: =tblIndicators!AB5 -> 1.2) Customs recordal system | D5: 1.2) Customs recordal system | F5: =INDEX(M5:Q5,uxb_works!$B$32) -> 1 | K5: =tblIndiSets!C62 -> 4) SUPPLY AND DEMAND | L5: 1 | M5: 1 | N5: 1 | O5: 0 | P5: 0 | Q5: 0 | U5: =INDEX(Y5:AC5,uxb_works!$B$32) -> 0 | W5: 4) SUPPLY AND DEMAND | X5: 1 | Y5: 0 | Z5: 1 | AA5: 0 | AB5: 0 | AC5: 0
A6: 4 | C6: =tblIndicators!AB6 -> 2) TRANSPARENCY AND TRADE | D6: 2) TRANSPARENCY AND TRADE | F6: =INDEX(M6:Q6,uxb_works!$B$32) -> 1 | L6: 1 | M6: 1 | N6: 0 | O6: 1 | P6: 0 | Q6: 0 | U6: =INDEX(Y6:AC6,uxb_works!$B$32) -> 1 | X6: 1 | Y6: 1 | Z6: 0 | AA6: 0 | AB6: 0 | AC6: 0
A7: 5 | C7: =tblIndicators!AB7 -> 2.1) Track and trace services | D7: 2.1) Track and trace services | F7: =INDEX(M7:Q7,uxb_works!$B$32) -> 1 | L7: 1 | M7: 1 | N7: 0 | O7: 1 | P7: 0 | Q7: 0 | U7: =INDEX(Y7:AC7,uxb_works!$B$32) -> 0 | X7: 1 | Y7: 0 | Z7: 0 | AA7: 1 | AB7: 0 | AC7: 0
A8: 6 | C8: =tblIndicators!AB8 -> 2.2) Adoption of Annex D of Revised Kyoto Convention | D8: 2.2) Adoption of Annex D of Revised Kyoto Convention | F8: =INDEX(M8:Q8,uxb_works!$B$32) -> 1 | L8: 1 | M8: 1 | N8: 0 | O8: 1 | P8: 0 | Q8: 0 | U8: =INDEX(Y8:AC8,uxb_works!$B$32) -> 0 | X8: 1 | Y8: 0 | Z8: 0 | AA8: 1 | AB8: 0 | AC8: 0
A9: 7 | C9: =tblIndicators!AB9 -> 2.3) Government cooperation | D9: 2.3) Government cooperation | F9: =INDEX(M9:Q9,uxb_works!$B$32) -> 1 | L9: 1 | M9: 1 | N9: 0 | O9: 1 | P9: 0 | Q9: 0 | U9: =INDEX(Y9:AC9,uxb_works!$B$32) -> 0 | X9: 1 | Y9: 0 | Z9: 0 | AA9: 1 | AB9: 0 | AC9: 0
A10: 8 | C10: =tblIndicators!AB10 -> 2.4) FTZ governance | D10: 2.4) FTZ governance | F10: =INDEX(M10:Q10,uxb_works!$B$32) -> 1 | L10: 1 | M10: 1 | N10: 0 | O10: 1 | P10: 0 | Q10: 0 | U10: =INDEX(Y10:AC10,uxb_works!$B$32) -> 0 | X10: 1 | Y10: 0 | Z10: 0 | AA10: 1 | AB10: 0 | AC10: 0
A11: 9 | C11: =tblIndicators!AB11 -> 3) CUSTOMS ENVIRONMENT | D11: 3) CUSTOMS ENVIRONMENT | F11: =INDEX(M11:Q11,uxb_works!$B$32) -> 1 | L11: 1 | M11: 1 | N11: 0 | O11: 0 | P11: 1 | Q11: 0 | U11: =INDEX(Y11:AC11,uxb_works!$B$32) -> 1 | X11: 1 | Y11: 1 | Z11: 0 | AA11: 0 | AB11: 0 | AC11: 0
A12: 10 | C12: =tblIndicators!AB12 -> 3.1) Percentage of shipments physically inspected | D12: 3.1) Percentage of shipments physically inspected | F12: =INDEX(M12:Q12,uxb_works!$B$32) -> 1 | L12: 1 | M12: 1 | N12: 0 | O12: 0 | P12: 1 | Q12: 0 | U12: =INDEX(Y12:AC12,uxb_works!$B$32) -> 0 | X12: 1 | Y12: 0 | Z12: 0 | AA12: 0 | AB12: 1 | AC12: 0
A13: 11 | C13: =tblIndicators!AB13 -> 3.2) Customs clearance and inspection | D13: 3.2) Customs clearance and inspection | F13: =INDEX(M13:Q13,uxb_works!$B$32) -> 1 | L13: 1 | M13: 1 | N13: 0 | O13: 0 | P13: 1 | Q13: 0 | U13: =INDEX(Y13:AC13,uxb_works!$B$32) -> 0 | X13: 1 | Y13: 0 | Z13: 0 | AA13: 0 | AB13: 1 | AC13: 0
A14: 12 | C14: =tblIndicators!AB14 -> 3.3) Automation | D14: 3.3) Automation | F14: =INDEX(M14:Q14,uxb_works!$B$32) -> 1 | L14: 1 | M14: 1 | N14: 0 | O14: 0 | P14: 1 | Q14: 0 | U14: =INDEX(Y14:AC14,uxb_works!$B$32) -> 0 | X14: 1 | Y14: 0 | Z14: 0 | AA14: 0 | AB14: 1 | AC14: 0
A15: 13 | C15: =tblIndicators!AB15 -> 3.4) Corruption | D15: 3.4) Corruption | F15: =INDEX(M15:Q15,uxb_works!$B$32) -> 1 | L15: 1 | M15: 1 | N15: 0 | O15: 0 | P15: 1 | Q15: 0 | U15: =INDEX(Y15:AC15,uxb_works!$B$32) -> 0 | X15: 1 | Y15: 0 | Z15: 0 | AA15: 0 | AB15: 1 | AC15: 0
A16: 14 | C16: =tblIndicators!AB16 -> 3.5) Accredited Economic Operator programme | D16: 3.5) Accredited Economic Operator programme | F16: =INDEX(M16:Q16,uxb_works!$B$32) -> 1 | L16: 1 | M16: 1 | N16: 0 | O16: 0 | P16: 1 | Q16: 0 | U16: =INDEX(Y16:AC16,uxb_works!$B$32) -> 0 | X16: 1 | Y16: 0 | Z16: 0 | AA16: 0 | AB16: 1 | AC16: 0
A17: 15 | C17: =tblIndicators!AB17 -> 4) SUPPLY AND DEMAND | D17: 4) SUPPLY AND DEMAND | F17: =INDEX(M17:Q17,uxb_works!$B$32) -> 1 | L17: 1 | M17: 1 | N17: 0 | O17: 0 | P17: 0 | Q17: 1 | U17: =INDEX(Y17:AC17,uxb_works!$B$32) -> 1 | X17: 1 | Y17: 1 | Z17: 0 | AA17: 0 | AB17: 0 | AC17: 0
A18: 16 | C18: =tblIndicators!AB18 -> 4.1) Tax and social security burdens | D18: 4.1) Tax and social security burdens | F18: =INDEX(M18:Q18,uxb_works!$B$32) -> 1 | L18: 1 | M18: 1 | N18: 0 | O18: 0 | P18: 0 | Q18: 1 | U18: =INDEX(Y18:AC18,uxb_works!$B$32) -> 0 | X18: 1 | Y18: 0 | Z18: 0 | AA18: 0 | AB18: 0 | AC18: 1
A19: 17 | C19: =tblIndicators!AB19 -> 4.2) Quality of state institutions | D19: 4.2) Quality of state institutions | F19: =INDEX(M19:Q19,uxb_works!$B$32) -> 1 | L19: 1 | M19: 1 | N19: 0 | O19: 0 | P19: 0 | Q19: 1 | U19: =INDEX(Y19:AC19,uxb_works!$B$32) -> 0 | X19: 1 | Y19: 0 | Z19: 0 | AA19: 0 | AB19: 0 | AC19: 1
A20: 18 | C20: =tblIndicators!AB20 -> 4.3) Labour market regulations | D20: 4.3) Labour market regulations | F20: =INDEX(M20:Q20,uxb_works!$B$32) -> 1 | L20: 1 | M20: 1 | N20: 0 | O20: 0 | P20: 0 | Q20: 1 | U20: =INDEX(Y20:AC20,uxb_works!$B$32) -> 0 | X20: 1 | Y20: 0 | Z20: 0 | AA20: 0 | AB20: 0 | AC20: 1

Sheet tblTerritories (hidden)
A1: CityID | C1: City | D1: RegionID | E1: DisplayName | F1: MAP OBJECT IDENTIFIER | H1: Display_Status | I1: Parentcity | L1: Tier No. | Q1: 1 | R1: 2 | S1: 3 | T1: 4 | U1: 5 | V1: 6
A2: 0 | C2: <none> | D2: 0 | E2: =C2 -> <none> | G2: 0 | O2: Groups | Q2: =INDEX(luRegionsPlusNone,Q1) -> <none> | R2: All Incomes | S2: Upper income | T2: Lower middle income | U2: low income | V2: Least developed
A3: 1 | B3: =uxb_regions!B3 -> AUS | C3: Australia | D3: =H3 -> 0 | E3: =C3 -> Australia | F3: =C3 -> Australia | G3: =IF(A3=$K$3,3,IF(INDEX($R3:$V3,$K$5)=0,0,IF(INDEX($Q3:$V3,$K$4)=1,2,1))) -> 1 | J3: CITY_HIGHLIGHT_ID | K3: =uxb_works!B7 -> 0 | L3: =MATCH(1,S3:V3,0) -> 1 | N3: 1 | O3: <none> | Q3: 0 | R3: 1 | S3: 1 | T3: 0 | U3: 0 | V3: 0 | Y3: =O3 -> <none>
A4: 2 | B4: =uxb_regions!B4 -> KHM | C4: Cambodia | D4: =H4 -> 0 | E4: =C4 -> Cambodia | F4: =C4 -> Cambodia | G4: 1 | J4: GROUP_HIGHLIGHT_ID | K4: =IF(uxb_works!B9=2,1,uxb_works!B9) -> 1 | L4: 4 | N4: 2 | O4: All Incomes | Q4: 0 | R4: 1 | S4: 0 | T4: 0 | U4: 0 | V4: 1 | Y4: =O5 -> Upper income
A5: 3 | B5: =uxb_regions!B5 -> CHN | C5: China | D5: 0 | E5: China | F5: China | G5: 1 | J5: GROUP_FILTER_ID | K5: =uxb_works!B10 -> 1 | L5: 2 | M5: 1 | N5: 3 | O5: Upper income | Q5: 0 | R5: 1 | S5: 0 | T5: 1 | U5: 0 | V5: 0 | Y5: =O6 -> Lower middle income
A6: 4 | B6: =uxb_regions!B6 -> HKG | C6: Hong Kong | D6: 0 | E6: Hong Kong | F6: Hong Kong | G6: =IF(A6=$K$3,3,IF(INDEX($R6:$V6,$K$5)=0,0,IF(INDEX($Q6:$V6,$K$4)=1,2,1))) -> 1 | L6: =MATCH(1,S6:V6,0) -> 1 | M6: 2 | N6: 4 | O6: Lower middle income | Q6: 0 | R6: 1 | S6: 1 | T6: 0 | U6: 0 | V6: 0 | Y6: low income
A7: 5 | B7: =uxb_regions!B7 -> IND | C7: India | D7: 0 | E7: India | F7: India | G7: 1 | L7: 2 | M7: 3 | N7: 5 | O7: low income | Q7: 0 | R7: 1 | S7: 0 | T7: 1 | U7: 0 | V7: 0 | Y7: Least developed
A8: 6 | B8: =uxb_regions!B8 -> IDN | C8: Indonesia | D8: 0 | E8: Indonesia | F8: Indonesia | G8: 1 | L8: 3 | M8: 4 | N8: 6 | O8: Least developed | Q8: 0 | R8: 1 | S8: 0 | T8: 0 | U8: 1 | V8: 0
A9: 7 | B9: =uxb_regions!B9 -> JPN | C9: Japan | D9: 0 | E9: Japan | F9: Japan | G9: 1 | L9: 1 | Q9: 0 | R9: 1 | S9: 1 | T9: 0 | U9: 0 | V9: 0
A10: 8 | B10: =uxb_regions!B10 -> LAO | C10: Laos | D10: 0 | E10: Laos | F10: Laos | G10: 1 | L10: 4 | Q10: 0 | R10: 1 | S10: 0 | T10: 0 | U10: 0 | V10: 1
A11: 9 | B11: =uxb_regions!B11 -> MYS | C11: Malaysia | D11: 0 | E11: Malaysia | F11: Malaysia | G11: 1 | L11: 2 | Q11: 0 | R11: 1 | S11: 0 | T11: 1 | U11: 0 | V11: 0
A12: 10 | B12: =uxb_regions!B12 -> MMR | C12: Myanmar | D12: 0 | E12: Myanmar | F12: Myanmar | G12: 1 | L12: 4 | Q12: 0 | R12: 1 | S12: 0 | T12: 0 | U12: 0 | V12: 1
A13: 11 | B13: =uxb_regions!B13 -> NZL | C13: New Zealand | D13: 0 | E13: New Zealand | F13: New Zealand | G13: 1 | L13: 1 | Q13: 0 | R13: 1 | S13: 1 | T13: 0 | U13: 0 | V13: 0
A14: 12 | B14: =uxb_regions!B14 -> PHL | C14: Philippines | D14: 0 | E14: Philippines | F14: Philippines | G14: 1 | L14: 3 | Q14: 0 | R14: 1 | S14: 0 | T14: 0 | U14: 1 | V14: 0
A15: 13 | B15: =uxb_regions!B15 -> SGP | C15: Singapore | D15: 0 | E15: Singapore | F15: Singapore | G15: 1 | L15: 1 | Q15: 0 | R15: 1 | S15: 1 | T15: 0 | U15: 0 | V15: 0
A16: 14 | B16: =uxb_regions!B16 -> KOR | C16: South Korea | D16: 0 | E16: South Korea | F16: South Korea | G16: 1 | L16: 1 | Q16: 0 | R16: 1 | S16: 1 | T16: 0 | U16: 0 | V16: 0
A17: 15 | B17: =uxb_regions!B17 -> TWN | C17: Taiwan | D17: 0 | E17: Taiwan | F17: Taiwan | G17: 1 | L17: 1 | Q17: 0 | R17: 1 | S17: 1 | T17: 0 | U17: 0 | V17: 0
A18: 16 | B18: =uxb_regions!B18 -> THA | C18: Thailand | D18: 0 | E18: Thailand | F18: Thailand | G18: 1 | L18: 3 | Q18: 0 | R18: 1 | S18: 0 | T18: 0 | U18: 1 | V18: 0
A19: 17 | B19: =uxb_regions!B19 -> VNM | C19: Vietnam | D19: 0 | E19: Vietnam | F19: Vietnam | G19: 1 | L19: 4 | Q19: 0 | R19: 1 | S19: 0 | T19: 0 | U19: 0 | V19: 1
S21: =SUM(S3:S19) -> 7 | T21: =SUM(T3:T19) -> 3 | U21: =SUM(U3:U19) -> 3 | V21: =SUM(V3:V19) -> 4

Sheet iData (hidden)
J3: 3 | K3: 4 | L3: 5 | M3: 6 | N3: 7 | O3: 8 | P3: 9 | Q3: 10 | R3: 11 | S3: 12 | T3: 13 | U3: 14 | V3: 15 | W3: 16 | X3: 17 | Y3: 18 | Z3: 19
B4: =tblIndicators!A1 -> ID | C4: =tblIndicators!B1 -> IS_BG | D4: =tblIndicators!D1 -> INDI_CODE | E4: =tblIndicators!E1 -> PARENT_CODE | F4: Name | G4: =tblIndicators!W1 -> NORM_ID (1=sumproduct, 2=min max set by data values, 3=min max set by user here) | H4: Indicator | I4: Multiplication Factor | J4: =INDEX(tblTerritories!$C$3:$C$19,J3-2) -> Australia | K4: =INDEX(tblTerritories!$C$3:$C$19,K3-2) -> Cambodia | L4: =INDEX(tblTerritories!$C$3:$C$19,L3-2) -> China | M4: =INDEX(tblTerritories!$C$3:$C$19,M3-2) -> Hong Kong | N4: =INDEX(tblTerritories!$C$3:$C$19,N3-2) -> India | O4: =INDEX(tblTerritories!$C$3:$C$19,O3-2) -> Indonesia | P4: =INDEX(tblTerritories!$C$3:$C$19,P3-2) -> Japan | Q4: =INDEX(tblTerritories!$C$3:$C$19,Q3-2) -> Laos | R4: =INDEX(tblTerritories!$C$3:$C$19,R3-2) -> Malaysia | S4: =INDEX(tblTerritories!$C$3:$C$19,S3-2) -> Myanmar | T4: =INDEX(tblTerritories!$C$3:$C$19,T3-2) -> New Zealand | U4: =INDEX(tblTerritories!$C$3:$C$19,U3-2) -> Philippines | V4: =INDEX(tblTerritories!$C$3:$C$19,V3-2) -> Singapore | W4: =INDEX(tblTerritories!$C$3:$C$19,W3-2) -> South Korea | X4: =INDEX(tblTerritories!$C$3:$C$19,X3-2) -> Taiwan | Y4: =INDEX(tblTerritories!$C$3:$C$19,Y3-2) -> Thailand | Z4: =INDEX(tblTerritories!$C$3:$C$19,Z3-2) -> Vietnam
B5: =tblIndicators!A2 -> 1 | C5: =tblIndicators!B2 -> 0 | D5: =tblIndicators!D2 -> TOTAL | E5: =tblIndicators!E2 -> OVERALL SCORE | F5: =tblIndicators!H2 -> OVERALL SCORE | G5: =tblIndicators!W2 -> 1 | H5: =tblIndicators!AB2 -> OVERALL SCORE | I5: =IF(G5=1,"",tblIndicators!M2) ->  | J5: =IF($G5=1,"",$I5*Data!J5) ->  | K5: =IF($G5=1,"",$I5*Data!K5) ->  | L5: =IF($G5=1,"",$I5*Data!L5) ->  | M5: =IF($G5=1,"",$I5*Data!M5) ->  | N5: =IF($G5=1,"",$I5*Data!N5) ->  | O5: =IF($G5=1,"",$I5*Data!O5) ->  | P5: =IF($G5=1,"",$I5*Data!P5) ->  | Q5: =IF($G5=1,"",$I5*Data!Q5) ->  | R5: =IF($G5=1,"",$I5*Data!R5) ->  | S5: =IF($G5=1,"",$I5*Data!S5) ->  | T5: =IF($G5=1,"",$I5*Data!T5) ->  | U5: =IF($G5=1,"",$I5*Data!U5) ->  | V5: =IF($G5=1,"",$I5*Data!V5) ->  | W5: =IF($G5=1,"",$I5*Data!W5) ->  | X5: =IF($G5=1,"",$I5*Data!X5) ->  | Y5: =IF($G5=1,"",$I5*Data!Y5) ->  | Z5: =IF($G5=1,"",$I5*Data!Z5) -> 
B6: =tblIndicators!A3 -> 2 | C6: =tblIndicators!B3 -> 0 | D6: =tblIndicators!D3 -> IP | E6: =tblIndicators!E3 -> TOTAL | F6: =tblIndicators!H3 -> Intellectual property | G6: =tblIndicators!W3 -> 1 | H6: =tblIndicators!AB3 -> 1) INTELLECTUAL PROPERTY | I6: =IF(G6=1,"",tblIndicators!M3) ->  | J6: =IF($G6=1,"",$I6*Data!J6) ->  | K6: =IF($G6=1,"",$I6*Data!K6) ->  | L6: =IF($G6=1,"",$I6*Data!L6) ->  | M6: =IF($G6=1,"",$I6*Data!M6) ->  | N6: =IF($G6=1,"",$I6*Data!N6) ->  | O6: =IF($G6=1,"",$I6*Data!O6) ->  | P6: =IF($G6=1,"",$I6*Data!P6) ->  | Q6: =IF($G6=1,"",$I6*Data!Q6) ->  | R6: =IF($G6=1,"",$I6*Data!R6) ->  | S6: =IF($G6=1,"",$I6*Data!S6) ->  | T6: =IF($G6=1,"",$I6*Data!T6) ->  | U6: =IF($G6=1,"",$I6*Data!U6) ->  | V6: =IF($G6=1,"",$I6*Data!V6) ->  | W6: =IF($G6=1,"",$I6*Data!W6) ->  | X6: =IF($G6=1,"",$I6*Data!X6) ->  | Y6: =IF($G6=1,"",$I6*Data!Y6) ->  | Z6: =IF($G6=1,"",$I6*Data!Z6) -> 
B7: =tblIndicators!A4 -> 3 | C7: =tblIndicators!B4 -> 0 | D7: =tblIndicators!D4 -> IP_11 | E7: =tblIndicators!E4 -> IP | F7: =tblIndicators!H4 -> Protection of IP rights | G7: =tblIndicators!W4 -> 3 | H7: =tblIndicators!AB4 -> 1.1) Protection of IP rights | I7: =IF(G7=1,"",tblIndicators!M4) -> 1 | J7: =IF(OR($G7=1,Data!J7=""),"",$I7*Data!J7) -> 0 | K7: =IF(OR($G7=1,Data!K7=""),"",$I7*Data!K7) -> 3 | L7: =IF(OR($G7=1,Data!L7=""),"",$I7*Data!L7) -> 2 | M7: =IF(OR($G7=1,Data!M7=""),"",$I7*Data!M7) -> 1 | N7: =IF(OR($G7=1,Data!N7=""),"",$I7*Data!N7) -> 2 | O7: =IF(OR($G7=1,Data!O7=""),"",$I7*Data!O7) -> 3 | P7: =IF(OR($G7=1,Data!P7=""),"",$I7*Data!P7) -> 1 | Q7: =IF(OR($G7=1,Data!Q7=""),"",$I7*Data!Q7) -> 4 | R7: =IF(OR($G7=1,Data!R7=""),"",$I7*Data!R7) -> 1 | S7: =IF(OR($G7=1,Data!S7=""),"",$I7*Data!S7) -> 4 | T7: =IF(OR($G7=1,Data!T7=""),"",$I7*Data!T7) -> 0 | U7: =IF(OR($G7=1,Data!U7=""),"",$I7*Data!U7) -> 3 | V7: =IF(OR($G7=1,Data!V7=""),"",$I7*Data!V7) -> 0 | W7: =IF(OR($G7=1,Data!W7=""),"",$I7*Data!W7) -> 2 | X7: =IF(OR($G7=1,Data!X7=""),"",$I7*Data!X7) -> 1 | Y7: =IF(OR($G7=1,Data!Y7=""),"",$I7*Data!Y7) -> 3 | Z7: =IF(OR($G7=1,Data!Z7=""),"",$I7*Data!Z7) -> 3
B8: =tblIndicators!A5 -> 4 | C8: =tblIndicators!B5 -> 0 | D8: =tblIndicators!D5 -> IP_13 | E8: =tblIndicators!E5 -> IP | F8: =tblIndicators!H5 -> Customs recordal system | G8: =tblIndicators!W5 -> 3 | H8: =tblIndicators!AB5 -> 1.2) Customs recordal system | I8: =IF(G8=1,"",tblIndicators!M5) -> 1 | J8: =IF(OR($G8=1,Data!J8=""),"",$I8*Data!J8) -> 1 | K8: =IF(OR($G8=1,Data!K8=""),"",$I8*Data!K8) -> 0 | L8: =IF(OR($G8=1,Data!L8=""),"",$I8*Data!L8) -> 1 | M8: =IF(OR($G8=1,Data!M8=""),"",$I8*Data!M8) -> 1 | N8: =IF(OR($G8=1,Data!N8=""),"",$I8*Data!N8) -> 0 | O8: =IF(OR($G8=1,Data!O8=""),"",$I8*Data!O8) -> 0 | P8: =IF(OR($G8=1,Data!P8=""),"",$I8*Data!P8) -> 1 | Q8: =IF(OR($G8=1,Data!Q8=""),"",$I8*Data!Q8) -> 0 | R8: =IF(OR($G8=1,Data!R8=""),"",$I8*Data!R8) -> 0 | S8: =IF(OR($G8=1,Data!S8=""),"",$I8*Data!S8) -> 0 | T8: =IF(OR($G8=1,Data!T8=""),"",$I8*Data!T8) -> 1 | U8: =IF(OR($G8=1,Data!U8=""),"",$I8*Data!U8) -> 1 | V8: =IF(OR($G8=1,Data!V8=""),"",$I8*Data!V8) -> 0 | W8: =IF(OR($G8=1,Data!W8=""),"",$I8*Data!W8) -> 1 | X8: =IF(OR($G8=1,Data!X8=""),"",$I8*Data!X8) -> 1 | Y8: =IF(OR($G8=1,Data!Y8=""),"",$I8*Data!Y8) -> 0 | Z8: =IF(OR($G8=1,Data!Z8=""),"",$I8*Data!Z8) -> 1
B9: =tblIndicators!A6 -> 5 | C9: =tblIndicators!B6 -> 0 | D9: =tblIndicators!D6 -> TT | E9: =tblIndicators!E6 -> TOTAL | F9: =tblIndicators!H6 -> Transparency and trade | G9: =tblIndicators!W6 -> 1 | H9: =tblIndicators!AB6 -> 2) TRANSPARENCY AND TRADE | I9: =IF(G9=1,"",tblIndicators!M6) ->  | J9: =IF(OR($G9=1,Data!J9=""),"",$I9*Data!J9) ->  | K9: =IF(OR($G9=1,Data!K9=""),"",$I9*Data!K9) ->  | L9: =IF(OR($G9=1,Data!L9=""),"",$I9*Data!L9) ->  | M9: =IF(OR($G9=1,Data!M9=""),"",$I9*Data!M9) ->  | N9: =IF(OR($G9=1,Data!N9=""),"",$I9*Data!N9) ->  | O9: =IF(OR($G9=1,Data!O9=""),"",$I9*Data!O9) ->  | P9: =IF(OR($G9=1,Data!P9=""),"",$I9*Data!P9) ->  | Q9: =IF(OR($G9=1,Data!Q9=""),"",$I9*Data!Q9) ->  | R9: =IF(OR($G9=1,Data!R9=""),"",$I9*Data!R9) ->  | S9: =IF(OR($G9=1,Data!S9=""),"",$I9*Data!S9) ->  | T9: =IF(OR($G9=1,Data!T9=""),"",$I9*Data!T9) ->  | U9: =IF(OR($G9=1,Data!U9=""),"",$I9*Data!U9) ->  | V9: =IF(OR($G9=1,Data!V9=""),"",$I9*Data!V9) ->  | W9: =IF(OR($G9=1,Data!W9=""),"",$I9*Data!W9) ->  | X9: =IF(OR($G9=1,Data!X9=""),"",$I9*Data!X9) ->  | Y9: =IF(OR($G9=1,Data!Y9=""),"",$I9*Data!Y9) ->  | Z9: =IF(OR($G9=1,Data!Z9=""),"",$I9*Data!Z9) -> 
B10: =tblIndicators!A7 -> 6 | C10: =tblIndicators!B7 -> 0 | D10: =tblIndicators!D7 -> TT_21 | E10: =tblIndicators!E7 -> TT | F10: =tblIndicators!H7 -> Track and trace services | G10: =tblIndicators!W7 -> 3 | H10: =tblIndicators!AB7 -> 2.1) Track and trace services | I10: =IF(G10=1,"",tblIndicators!M7) -> 1 | J10: =IF(OR($G10=1,Data!J10=""),"",$I10*Data!J10) -> 3.8 | K10: =IF(OR($G10=1,Data!K10=""),"",$I10*Data!K10) ->  | L10: =IF(OR($G10=1,Data!L10=""),"",$I10*Data!L10) -> 3.5 | M10: =IF(OR($G10=1,Data!M10=""),"",$I10*Data!M10) -> 3.9 | N10: =IF(OR($G10=1,Data!N10=""),"",$I10*Data!N10) -> 3.1 | O10: =IF(OR($G10=1,Data!O10=""),"",$I10*Data!O10) -> 3.1 | P10: =IF(OR($G10=1,Data!P10=""),"",$I10*Data!P10) -> 4 | Q10: =IF(OR($G10=1,Data!Q10=""),"",$I10*Data!Q10) -> 2.2 | R10: =IF(OR($G10=1,Data!R10=""),"",$I10*Data!R10) -> 3.6 | S10: =IF(OR($G10=1,Data!S10=""),"",$I10*Data!S10) -> 2.36 | T10: =IF(OR($G10=1,Data!T10=""),"",$I10*Data!T10) -> 3.3 | U10: =IF(OR($G10=1,Data!U10=""),"",$I10*Data!U10) -> 3 | V10: =IF(OR($G10=1,Data!V10=""),"",$I10*Data!V10) -> 3.9 | W10: =IF(OR($G10=1,Data!W10=""),"",$I10*Data!W10) -> 3.7 | X10: =IF(OR($G10=1,Data!X10=""),"",$I10*Data!X10) -> 3.8 | Y10: =IF(OR($G10=1,Data!Y10=""),"",$I10*Data!Y10) -> 3.5 | Z10: =IF(OR($G10=1,Data!Z10=""),"",$I10*Data!Z10) -> 3.2
B11: =tblIndicators!A8 -> 7 | C11: =tblIndicators!B8 -> 0 | D11: =tblIndicators!D8 -> TT_22 | E11: =tblIndicators!E8 -> TT | F11: =tblIndicators!H8 -> Adoption of Annex D of Revised Kyoto Convention | G11: =tblIndicators!W8 -> 3 | H11: =tblIndicators!AB8 -> 2.2) Adoption of Annex D of Revised Kyoto Convention | I11: =IF(G11=1,"",tblIndicators!M8) -> 1 | J11: =IF(OR($G11=1,Data!J11=""),"",$I11*Data!J11) -> 1 | K11: =IF(OR($G11=1,Data!K11=""),"",$I11*Data!K11) -> 1 | L11: =IF(OR($G11=1,Data!L11=""),"",$I11*Data!L11) -> 1 | M11: =IF(OR($G11=1,Data!M11=""),"",$I11*Data!M11) -> 0 | N11: =IF(OR($G11=1,Data!N11=""),"",$I11*Data!N11) -> 1 | O11: =IF(OR($G11=1,Data!O11=""),"",$I11*Data!O11) -> 1 | P11: =IF(OR($G11=1,Data!P11=""),"",$I11*Data!P11) -> 1 | Q11: =IF(OR($G11=1,Data!Q11=""),"",$I11*Data!Q11) -> 0 | R11: =IF(OR($G11=1,Data!R11=""),"",$I11*Data!R11) -> 1 | S11: =IF(OR($G11=1,Data!S11=""),"",$I11*Data!S11) -> 0 | T11: =IF(OR($G11=1,Data!T11=""),"",$I11*Data!T11) -> 1 | U11: =IF(OR($G11=1,Data!U11=""),"",$I11*Data!U11) -> 1 | V11: =IF(OR($G11=1,Data!V11=""),"",$I11*Data!V11) -> 0 | W11: =IF(OR($G11=1,Data!W11=""),"",$I11*Data!W11) -> 1 | X11: =IF(OR($G11=1,Data!X11=""),"",$I11*Data!X11) -> 0 | Y11: =IF(OR($G11=1,Data!Y11=""),"",$I11*Data!Y11) -> 1 | Z11: =IF(OR($G11=1,Data!Z11=""),"",$I11*Data!Z11) -> 1
B12: =tblIndicators!A9 -> 8 | C12: =tblIndicators!B9 -> 0 | D12: =tblIndicators!D9 -> TT_23 | E12: =tblIndicators!E9 -> TT | F12: =tblIndicators!H9 -> Government cooperation | G12: =tblIndicators!W9 -> 3 | H12: =tblIndicators!AB9 -> 2.3) Government cooperation | I12: =IF(G12=1,"",tblIndicators!M9) -> 1 | J12: =IF(OR($G12=1,Data!J12=""),"",$I12*Data!J12) -> 2 | K12: =IF(OR($G12=1,Data!K12=""),"",$I12*Data!K12) -> 1 | L12: =IF(OR($G12=1,Data!L12=""),"",$I12*Data!L12) -> 2 | M12: =IF(OR($G12=1,Data!M12=""),"",$I12*Data!M12) -> 2 | N12: =IF(OR($G12=1,Data!N12=""),"",$I12*Data!N12) -> 2 | O12: =IF(OR($G12=1,Data!O12=""),"",$I12*Data!O12) -> 2 | P12: =IF(OR($G12=1,Data!P12=""),"",$I12*Data!P12) -> 2 | Q12: =IF(OR($G12=1,Data!Q12=""),"",$I12*Data!Q12) -> 1 | R12: =IF(OR($G12=1,Data!R12=""),"",$I12*Data!R12) -> 2 | S12: =IF(OR($G12=1,Data!S12=""),"",$I12*Data!S12) -> 1 | T12: =IF(OR($G12=1,Data!T12=""),"",$I12*Data!T12) -> 1 | U12: =IF(OR($G12=1,Data!U12=""),"",$I12*Data!U12) -> 2 | V12: =IF(OR($G12=1,Data!V12=""),"",$I12*Data!V12) -> 1 | W12: =IF(OR($G12=1,Data!W12=""),"",$I12*Data!W12) -> 2 | X12: =IF(OR($G12=1,Data!X12=""),"",$I12*Data!X12) -> 1 | Y12: =IF(OR($G12=1,Data!Y12=""),"",$I12*Data!Y12) -> 1 | Z12: =IF(OR($G12=1,Data!Z12=""),"",$I12*Data!Z12) -> 1
B13: =tblIndicators!A10 -> 9 | C13: =tblIndicators!B10 -> 0 | D13: =tblIndicators!D10 -> TT_24 | E13: =tblIndicators!E10 -> TT | F13: =tblIndicators!H10 -> FTZ governance | G13: =tblIndicators!W10 -> 3 | H13: =tblIndicators!AB10 -> 2.4) FTZ governance | I13: =IF(G13=1,"",tblIndicators!M10) -> 1 | J13: =IF(OR($G13=1,Data!J13=""),"",$I13*Data!J13) -> 2 | K13: =IF(OR($G13=1,Data!K13=""),"",$I13*Data!K13) -> 0 | L13: =IF(OR($G13=1,Data!L13=""),"",$I13*Data!L13) -> 2 | M13: =IF(OR($G13=1,Data!M13=""),"",$I13*Data!M13) -> 4 | N13: =IF(OR($G13=1,Data!N13=""),"",$I13*Data!N13) -> 1 | O13: =IF(OR($G13=1,Data!O13=""),"",$I13*Data!O13) -> 2 | P13: =IF(OR($G13=1,Data!P13=""),"",$I13*Data!P13) -> 3 | Q13: =IF(OR($G13=1,Data!Q13=""),"",$I13*Data!Q13) -> 0 | R13: =IF(OR($G13=1,Data!R13=""),"",$I13*Data!R13) -> 4 | S13: =IF(OR($G13=1,Data!S13=""),"",$I13*Data!S13) -> 0 | T13: =IF(OR($G13=1,Data!T13=""),"",$I13*Data!T13) -> 1 | U13: =IF(OR($G13=1,Data!U13=""),"",$I13*Data!U13) -> 2 | V13: =IF(OR($G13=1,Data!V13=""),"",$I13*Data!V13) -> 1 | W13: =IF(OR($G13=1,Data!W13=""),"",$I13*Data!W13) -> 4 | X13: =IF(OR($G13=1,Data!X13=""),"",$I13*Data!X13) -> 4 | Y13: =IF(OR($G13=1,Data!Y13=""),"",$I13*Data!Y13) -> 4 | Z13: =IF(OR($G13=1,Data!Z13=""),"",$I13*Data!Z13) -> 3
B14: =tblIndicators!A11 -> 10 | C14: =tblIndicators!B11 -> 0 | D14: =tblIndicators!D11 -> CE | E14: =tblIndicators!E11 -> TOTAL | F14: =tblIndicators!H11 -> Customs environment | G14: =tblIndicators!W11 -> 1 | H14: =tblIndicators!AB11 -> 3) CUSTOMS ENVIRONMENT | I14: =IF(G14=1,"",tblIndicators!M11) ->  | J14: =IF(OR($G14=1,Data!J14=""),"",$I14*Data!J14) ->  | K14: =IF(OR($G14=1,Data!K14=""),"",$I14*Data!K14) ->  | L14: =IF(OR($G14=1,Data!L14=""),"",$I14*Data!L14) ->  | M14: =IF(OR($G14=1,Data!M14=""),"",$I14*Data!M14) ->  | N14: =IF(OR($G14=1,Data!N14=""),"",$I14*Data!N14) ->  | O14: =IF(OR($G14=1,Data!O14=""),"",$I14*Data!O14) ->  | P14: =IF(OR($G14=1,Data!P14=""),"",$I14*Data!P14) ->  | Q14: =IF(OR($G14=1,Data!Q14=""),"",$I14*Data!Q14) ->  | R14: =IF(OR($G14=1,Data!R14=""),"",$I14*Data!R14) ->  | S14: =IF(OR($G14=1,Data!S14=""),"",$I14*Data!S14) ->  | T14: =IF(OR($G14=1,Data!T14=""),"",$I14*Data!T14) ->  | U14: =IF(OR($G14=1,Data!U14=""),"",$I14*Data!U14) ->  | V14: =IF(OR($G14=1,Data!V14=""),"",$I14*Data!V14) ->  | W14: =IF(OR($G14=1,Data!W14=""),"",$I14*Data!W14) ->  | X14: =IF(OR($G14=1,Data!X14=""),"",$I14*Data!X14) ->  | Y14: =IF(OR($G14=1,Data!Y14=""),"",$I14*Data!Y14) ->  | Z14: =IF(OR($G14=1,Data!Z14=""),"",$I14*Data!Z14) -> 
B15: =tblIndicators!A12 -> 11 | C15: =tblIndicators!B12 -> 0 | D15: =tblIndicators!D12 -> CE_31 | E15: =tblIndicators!E12 -> CE | F15: =tblIndicators!H12 -> Percentage of shipments physically inspected | G15: =tblIndicators!W12 -> 2 | H15: =tblIndicators!AB12 -> 3.1) Percentage of shipments physically inspected | I15: =IF(G15=1,"",tblIndicators!M12) -> 1 | J15: =IF(OR($G15=1,Data!J15=""),"",$I15*Data!J15) -> 2 | K15: =IF(OR($G15=1,Data!K15=""),"",$I15*Data!K15) -> 0 | L15: =IF(OR($G15=1,Data!L15=""),"",$I15*Data!L15) -> 7 | M15: =IF(OR($G15=1,Data!M15=""),"",$I15*Data!M15) -> 1 | N15: =IF(OR($G15=1,Data!N15=""),"",$I15*Data!N15) -> 22 | O15: =IF(OR($G15=1,Data!O15=""),"",$I15*Data!O15) -> 8 | P15: =IF(OR($G15=1,Data!P15=""),"",$I15*Data!P15) -> 3 | Q15: =IF(OR($G15=1,Data!Q15=""),"",$I15*Data!Q15) -> 0 | R15: =IF(OR($G15=1,Data!R15=""),"",$I15*Data!R15) -> 2 | S15: =IF(OR($G15=1,Data!S15=""),"",$I15*Data!S15) -> 0 | T15: =IF(OR($G15=1,Data!T15=""),"",$I15*Data!T15) -> 1 | U15: =IF(OR($G15=1,Data!U15=""),"",$I15*Data!U15) -> 10 | V15: =IF(OR($G15=1,Data!V15=""),"",$I15*Data!V15) -> 5 | W15: =IF(OR($G15=1,Data!W15=""),"",$I15*Data!W15) -> 18 | X15: =IF(OR($G15=1,Data!X15=""),"",$I15*Data!X15) -> 2 | Y15: =IF(OR($G15=1,Data!Y15=""),"",$I15*Data!Y15) -> 3 | Z15: =IF(OR($G15=1,Data!Z15=""),"",$I15*Data!Z15) -> 53
B16: =tblIndicators!A13 -> 12 | C16: =tblIndicators!B13 -> 0 | D16: =tblIndicators!D13 -> CE_32 | E16: =tblIndicators!E13 -> CE | F16: =tblIndicators!H13 -> Customs clearance and inspection | G16: =tblIndicators!W13 -> 2 | H16: =tblIndicators!AB13 -> 3.2) Customs clearance and inspection | I16: =IF(G16=1,"",tblIndicators!M13) -> 1 | J16: =IF(OR($G16=1,Data!J16=""),"",$I16*Data!J16) -> 1 | K16: =IF(OR($G16=1,Data!K16=""),"",$I16*Data!K16) -> 3 | L16: =IF(OR($G16=1,Data!L16=""),"",$I16*Data!L16) -> 4 | M16: =IF(OR($G16=1,Data!M16=""),"",$I16*Data!M16) -> 1 | N16: =IF(OR($G16=1,Data!N16=""),"",$I16*Data!N16) -> 4 | O16: =IF(OR($G16=1,Data!O16=""),"",$I16*Data!O16) -> 4 | P16: =IF(OR($G16=1,Data!P16=""),"",$I16*Data!P16) -> 2 | Q16: =IF(OR($G16=1,Data!Q16=""),"",$I16*Data!Q16) -> 7 | R16: =IF(OR($G16=1,Data!R16=""),"",$I16*Data!R16) -> 1 | S16: =IF(OR($G16=1,Data!S16=""),"",$I16*Data!S16) -> 4 | T16: =IF(OR($G16=1,Data!T16=""),"",$I16*Data!T16) -> 1 | U16: =IF(OR($G16=1,Data!U16=""),"",$I16*Data!U16) -> 2 | V16: =IF(OR($G16=1,Data!V16=""),"",$I16*Data!V16) -> 1 | W16: =IF(OR($G16=1,Data!W16=""),"",$I16*Data!W16) -> 1 | X16: =IF(OR($G16=1,Data!X16=""),"",$I16*Data!X16) -> 1 | Y16: =IF(OR($G16=1,Data!Y16=""),"",$I16*Data!Y16) -> 2 | Z16: =IF(OR($G16=1,Data!Z16=""),"",$I16*Data!Z16) -> 4
B17: =tblIndicators!A14 -> 13 | C17: =tblIndicators!B14 -> 0 | D17: =tblIndicators!D14 -> CE_33 | E17: =tblIndicators!E14 -> CE | F17: =tblIndicators!H14 -> Automation | G17: =tblIndicators!W14 -> 2 | H17: =tblIndicators!AB14 -> 3.3) Automation | I17: =IF(G17=1,"",tblIndicators!M14) -> 1 | J17: =IF(OR($G17=1,Data!J17=""),"",$I17*Data!J17) -> 1.71 | K17: =IF(OR($G17=1,Data!K17=""),"",$I17*Data!K17) -> 0.75 | L17: =IF(OR($G17=1,Data!L17=""),"",$I17*Data!L17) -> 1.75 | M17: =IF(OR($G17=1,Data!M17=""),"",$I17*Data!M17) -> 1.8 | N17: =IF(OR($G17=1,Data!N17=""),"",$I17*Data!N17) -> 1.75 | O17: =IF(OR($G17=1,Data!O17=""),"",$I17*Data!O17) -> 1.5 | P17: =IF(OR($G17=1,Data!P17=""),"",$I17*Data!P17) -> 1.14 | Q17: =IF(OR($G17=1,Data!Q17=""),"",$I17*Data!Q17) -> 0.25 | R17: =IF(OR($G17=1,Data!R17=""),"",$I17*Data!R17) -> 1.25 | S17: =IF(OR($G17=1,Data!S17=""),"",$I17*Data!S17) -> 0.25 | T17: =IF(OR($G17=1,Data!T17=""),"",$I17*Data!T17) -> 1.71 | U17: =IF(OR($G17=1,Data!U17=""),"",$I17*Data!U17) -> 1 | V17: =IF(OR($G17=1,Data!V17=""),"",$I17*Data!V17) -> 1.8 | W17: =IF(OR($G17=1,Data!W17=""),"",$I17*Data!W17) -> 1.57 | X17: =IF(OR($G17=1,Data!X17=""),"",$I17*Data!X17) -> 1.75 | Y17: =IF(OR($G17=1,Data!Y17=""),"",$I17*Data!Y17) -> 1.75 | Z17: =IF(OR($G17=1,Data!Z17=""),"",$I17*Data!Z17) -> 1.25
B18: =tblIndicators!A15 -> 14 | C18: =tblIndicators!B15 -> 0 | D18: =tblIndicators!D15 -> CE_34 | E18: =tblIndicators!E15 -> CE | F18: =tblIndicators!H15 -> Corruption | G18: =tblIndicators!W15 -> 3 | H18: =tblIndicators!AB15 -> 3.4) Corruption | I18: =IF(G18=1,"",tblIndicators!M15) -> 1 | J18: =IF(OR($G18=1,Data!J18=""),"",$I18*Data!J18) -> 0 | K18: =IF(OR($G18=1,Data!K18=""),"",$I18*Data!K18) -> 4 | L18: =IF(OR($G18=1,Data!L18=""),"",$I18*Data!L18) -> 3 | M18: =IF(OR($G18=1,Data!M18=""),"",$I18*Data!M18) -> 1 | N18: =IF(OR($G18=1,Data!N18=""),"",$I18*Data!N18) -> 3 | O18: =IF(OR($G18=1,Data!O18=""),"",$I18*Data!O18) -> 4 | P18: =IF(OR($G18=1,Data!P18=""),"",$I18*Data!P18) -> 1 | Q18: =IF(OR($G18=1,Data!Q18=""),"",$I18*Data!Q18) -> 4 | R18: =IF(OR($G18=1,Data!R18=""),"",$I18*Data!R18) -> 2 | S18: =IF(OR($G18=1,Data!S18=""),"",$I18*Data!S18) -> 4 | T18: =IF(OR($G18=1,Data!T18=""),"",$I18*Data!T18) -> 0 | U18: =IF(OR($G18=1,Data!U18=""),"",$I18*Data!U18) -> 4 | V18: =IF(OR($G18=1,Data!V18=""),"",$I18*Data!V18) -> 0 | W18: =IF(OR($G18=1,Data!W18=""),"",$I18*Data!W18) -> 2 | X18: =IF(OR($G18=1,Data!X18=""),"",$I18*Data!X18) -> 1 | Y18: =IF(OR($G18=1,Data!Y18=""),"",$I18*Data!Y18) -> 3 | Z18: =IF(OR($G18=1,Data!Z18=""),"",$I18*Data!Z18) -> 3
B19: =tblIndicators!A16 -> 15 | C19: =tblIndicators!B16 -> 0 | D19: =tblIndicators!D16 -> CE_35 | E19: =tblIndicators!E16 -> CE | F19: =tblIndicators!H16 -> Accredited Economic Operator programme | G19: =tblIndicators!W16 -> 3 | H19: =tblIndicators!AB16 -> 3.5) Accredited Economic Operator programme | I19: =IF(G19=1,"",tblIndicators!M16) -> 1 | J19: =IF(OR($G19=1,Data!J19=""),"",$I19*Data!J19) -> 3 | K19: =IF(OR($G19=1,Data!K19=""),"",$I19*Data!K19) -> 1 | L19: =IF(OR($G19=1,Data!L19=""),"",$I19*Data!L19) -> 3 | M19: =IF(OR($G19=1,Data!M19=""),"",$I19*Data!M19) -> 3 | N19: =IF(OR($G19=1,Data!N19=""),"",$I19*Data!N19) -> 3 | O19: =IF(OR($G19=1,Data!O19=""),"",$I19*Data!O19) -> 2 | P19: =IF(OR($G19=1,Data!P19=""),"",$I19*Data!P19) -> 3 | Q19: =IF(OR($G19=1,Data!Q19=""),"",$I19*Data!Q19) -> 1 | R19: =IF(OR($G19=1,Data!R19=""),"",$I19*Data!R19) -> 3 | S19: =IF(OR($G19=1,Data!S19=""),"",$I19*Data!S19) -> 1 | T19: =IF(OR($G19=1,Data!T19=""),"",$I19*Data!T19) -> 3 | U19: =IF(OR($G19=1,Data!U19=""),"",$I19*Data!U19) -> 1 | V19: =IF(OR($G19=1,Data!V19=""),"",$I19*Data!V19) -> 3 | W19: =IF(OR($G19=1,Data!W19=""),"",$I19*Data!W19) -> 3 | X19: =IF(OR($G19=1,Data!X19=""),"",$I19*Data!X19) -> 3 | Y19: =IF(OR($G19=1,Data!Y19=""),"",$I19*Data!Y19) -> 3 | Z19: =IF(OR($G19=1,Data!Z19=""),"",$I19*Data!Z19) -> 2
B20: =tblIndicators!A17 -> 16 | C20: =tblIndicators!B17 -> 0 | D20: =tblIndicators!D17 -> SD | E20: =tblIndicators!E17 -> TOTAL | F20: =tblIndicators!H17 -> Supply and demand | G20: =tblIndicators!W17 -> 1 | H20: =tblIndicators!AB17 -> 4) SUPPLY AND DEMAND | I20: =IF(G20=1,"",tblIndicators!M17) ->  | J20: =IF(OR($G20=1,Data!J20=""),"",$I20*Data!J20) ->  | K20: =IF(OR($G20=1,Data!K20=""),"",$I20*Data!K20) ->  | L20: =IF(OR($G20=1,Data!L20=""),"",$I20*Data!L20) ->  | M20: =IF(OR($G20=1,Data!M20=""),"",$I20*Data!M20) ->  | N20: =IF(OR($G20=1,Data!N20=""),"",$I20*Data!N20) ->  | O20: =IF(OR($G20=1,Data!O20=""),"",$I20*Data!O20) ->  | P20: =IF(OR($G20=1,Data!P20=""),"",$I20*Data!P20) ->  | Q20: =IF(OR($G20=1,Data!Q20=""),"",$I20*Data!Q20) ->  | R20: =IF(OR($G20=1,Data!R20=""),"",$I20*Data!R20) ->  | S20: =IF(OR($G20=1,Data!S20=""),"",$I20*Data!S20) ->  | T20: =IF(OR($G20=1,Data!T20=""),"",$I20*Data!T20) ->  | U20: =IF(OR($G20=1,Data!U20=""),"",$I20*Data!U20) ->  | V20: =IF(OR($G20=1,Data!V20=""),"",$I20*Data!V20) ->  | W20: =IF(OR($G20=1,Data!W20=""),"",$I20*Data!W20) ->  | X20: =IF(OR($G20=1,Data!X20=""),"",$I20*Data!X20) ->  | Y20: =IF(OR($G20=1,Data!Y20=""),"",$I20*Data!Y20) ->  | Z20: =IF(OR($G20=1,Data!Z20=""),"",$I20*Data!Z20) -> 
B21: =tblIndicators!A18 -> 17 | C21: =tblIndicators!B18 -> 0 | D21: =tblIndicators!D18 -> SD_41 | E21: =tblIndicators!E18 -> SD | F21: =tblIndicators!H18 -> Tax and social security burdens | G21: =tblIndicators!W18 -> 3 | H21: =tblIndicators!AB18 -> 4.1) Tax and social security burdens | I21: =IF(G21=1,"",tblIndicators!M18) -> 1 | J21: =IF(OR($G21=1,Data!J21=""),"",$I21*Data!J21) -> 4 | K21: =IF(OR($G21=1,Data!K21=""),"",$I21*Data!K21) -> 3 | L21: =IF(OR($G21=1,Data!L21=""),"",$I21*Data!L21) -> 3 | M21: =IF(OR($G21=1,Data!M21=""),"",$I21*Data!M21) -> 5 | N21: =IF(OR($G21=1,Data!N21=""),"",$I21*Data!N21) -> 3 | O21: =IF(OR($G21=1,Data!O21=""),"",$I21*Data!O21) -> 3 | P21: =IF(OR($G21=1,Data!P21=""),"",$I21*Data!P21) -> 4 | Q21: =IF(OR($G21=1,Data!Q21=""),"",$I21*Data!Q21) -> 3 | R21: =IF(OR($G21=1,Data!R21=""),"",$I21*Data!R21) -> 4 | S21: =IF(OR($G21=1,Data!S21=""),"",$I21*Data!S21) -> 2 | T21: =IF(OR($G21=1,Data!T21=""),"",$I21*Data!T21) -> 5 | U21: =IF(OR($G21=1,Data!U21=""),"",$I21*Data!U21) -> 3 | V21: =IF(OR($G21=1,Data!V21=""),"",$I21*Data!V21) -> 4 | W21: =IF(OR($G21=1,Data!W21=""),"",$I21*Data!W21) -> 3 | X21: =IF(OR($G21=1,Data!X21=""),"",$I21*Data!X21) -> 4 | Y21: =IF(OR($G21=1,Data!Y21=""),"",$I21*Data!Y21) -> 3 | Z21: =IF(OR($G21=1,Data!Z21=""),"",$I21*Data!Z21) -> 3
B22: =tblIndicators!A19 -> 18 | C22: =tblIndicators!B19 -> 0 | D22: =tblIndicators!D19 -> SD_42 | E22: =tblIndicators!E19 -> SD | F22: =tblIndicators!H19 -> Quality of state institutions | G22: =tblIndicators!W19 -> 3 | H22: =tblIndicators!AB19 -> 4.2) Quality of state institutions | I22: =IF(G22=1,"",tblIndicators!M19) -> 1 | J22: =IF(OR($G22=1,Data!J22=""),"",$I22*Data!J22) -> 9 | K22: =IF(OR($G22=1,Data!K22=""),"",$I22*Data!K22) -> 2 | L22: =IF(OR($G22=1,Data!L22=""),"",$I22*Data!L22) -> 4 | M22: =IF(OR($G22=1,Data!M22=""),"",$I22*Data!M22) -> 8 | N22: =IF(OR($G22=1,Data!N22=""),"",$I22*Data!N22) -> 5 | O22: =IF(OR($G22=1,Data!O22=""),"",$I22*Data!O22) -> 4 | P22: =IF(OR($G22=1,Data!P22=""),"",$I22*Data!P22) -> 7 | Q22: =IF(OR($G22=1,Data!Q22=""),"",$I22*Data!Q22) -> 3 | R22: =IF(OR($G22=1,Data!R22=""),"",$I22*Data!R22) -> 7 | S22: =IF(OR($G22=1,Data!S22=""),"",$I22*Data!S22) -> 2 | T22: =IF(OR($G22=1,Data!T22=""),"",$I22*Data!T22) -> 10 | U22: =IF(OR($G22=1,Data!U22=""),"",$I22*Data!U22) -> 4 | V22: =IF(OR($G22=1,Data!V22=""),"",$I22*Data!V22) -> 10 | W22: =IF(OR($G22=1,Data!W22=""),"",$I22*Data!W22) -> 7 | X22: =IF(OR($G22=1,Data!X22=""),"",$I22*Data!X22) -> 7 | Y22: =IF(OR($G22=1,Data!Y22=""),"",$I22*Data!Y22) -> 5 | Z22: =IF(OR($G22=1,Data!Z22=""),"",$I22*Data!Z22) -> 4
B23: =tblIndicators!A20 -> 19 | C23: =tblIndicators!B20 -> 0 | D23: =tblIndicators!D20 -> SD_43 | E23: =tblIndicators!E20 -> SD | F23: =tblIndicators!H20 -> Labour market regulations | G23: =tblIndicators!W20 -> 3 | H23: =tblIndicators!AB20 -> 4.3) Labour market regulations | I23: =IF(G23=1,"",tblIndicators!M20) -> 1 | J23: =IF(OR($G23=1,Data!J23=""),"",$I23*Data!J23) -> 3 | K23: =IF(OR($G23=1,Data!K23=""),"",$I23*Data!K23) -> 2 | L23: =IF(OR($G23=1,Data!L23=""),"",$I23*Data!L23) -> 3 | M23: =IF(OR($G23=1,Data!M23=""),"",$I23*Data!M23) -> 5 | N23: =IF(OR($G23=1,Data!N23=""),"",$I23*Data!N23) -> 2 | O23: =IF(OR($G23=1,Data!O23=""),"",$I23*Data!O23) -> 3 | P23: =IF(OR($G23=1,Data!P23=""),"",$I23*Data!P23) -> 3 | Q23: =IF(OR($G23=1,Data!Q23=""),"",$I23*Data!Q23) -> 3 | R23: =IF(OR($G23=1,Data!R23=""),"",$I23*Data!R23) -> 3 | S23: =IF(OR($G23=1,Data!S23=""),"",$I23*Data!S23) -> 2 | T23: =IF(OR($G23=1,Data!T23=""),"",$I23*Data!T23) -> 4 | U23: =IF(OR($G23=1,Data!U23=""),"",$I23*Data!U23) -> 4 | V23: =IF(OR($G23=1,Data!V23=""),"",$I23*Data!V23) -> 4 | W23: =IF(OR($G23=1,Data!W23=""),"",$I23*Data!W23) -> 3 | X23: =IF(OR($G23=1,Data!X23=""),"",$I23*Data!X23) -> 4 | Y23: =IF(OR($G23=1,Data!Y23=""),"",$I23*Data!Y23) -> 4 | Z23: =IF(OR($G23=1,Data!Z23=""),"",$I23*Data!Z23) -> 3

Sheet iSummary (hidden)
A1: All tiers | B1: =uxb_works!B8 -> 1 | C1: ="Average: "&INDEX(luRegions,B2) -> Average: <none>
B2: =uxb_works!B10 -> 1
A3: Rounding | B3: 1
H5: 1 | S5: 2 | AD5: 3 | AO5: 4 | AZ5: 5 | BK5: 6
H6: =INDEX(tblIndiSets!$B$5:$B$10,H5) -> 1 | N6: =INDEX(tblIndiSets!$C$5:$C$10,H5) -> OVERALL SCORE | S6: =INDEX(tblIndiSets!$B$5:$B$10,S5) -> 2 | Y6: =INDEX(tblIndiSets!$C$5:$C$10,S5) -> 1) INTELLECTUAL PROPERTY | AD6: =INDEX(tblIndiSets!$B$5:$B$10,AD5) -> 5 | AJ6: =INDEX(tblIndiSets!$C$5:$C$10,AD5) -> 2) TRANSPARENCY AND TRADE | AO6: =INDEX(tblIndiSets!$B$5:$B$10,AO5) -> 10 | AU6: =INDEX(tblIndiSets!$C$5:$C$10,AO5) -> 3) CUSTOMS ENVIRONMENT | AZ6: =INDEX(tblIndiSets!$B$5:$B$10,AZ5) -> 16 | BF6: =INDEX(tblIndiSets!$C$5:$C$10,AZ5) -> 4) SUPPLY AND DEMAND | BK6: =INDEX(tblIndiSets!$B$5:$B$10,BK5) -> 0 | BQ6: =INDEX(tblIndiSets!$C$5:$C$10,BK5) -> 0
B7: IN/OUT Group | D7: IsRegion | E7: ActiveStatus | F7: All Tiers | H7: Score | I7: Rank | J7: LU | K7: RankRounded | P7: Score | S7: Score | T7: Rank | U7: LU | V7: RankRounded | AA7: Score | AD7: Score | AE7: Rank | AF7: LU | AG7: RankRounded | AL7: Score | AO7: Score | AP7: Rank | AQ7: LU | AR7: RankRounded | AW7: Score | AZ7: Score | BA7: Rank | BB7: LU | BC7: RankRounded | BH7: Score | BK7: Score | BL7: Rank | BM7: LU | BN7: RankRounded | BS7: Score
A8: =tblTerritories!A3 -> 1 | B8: =INDEX(tblTerritories!$R$3:$V$19,$A8,$B$1) -> 1 | C8: =tblTerritories!E3 -> Australia | D8: =tblTerritories!D3 -> 0 | E8: =tblTerritories!G3 -> 1 | F8: =VLOOKUP(C8,tblTerritories!$F$3:$L$20,7,FALSE)+10 -> 11 | H8: =IF($E8=0,"",ROUND(INDEX(aScores,H$6,$A8),$B$3)) -> 85.2 | I8: =IF($E8=0,"",RANK(H8,H$8:H$24,0)+COUNTIF(H$8:H8,H8)-1) -> 1 | J8: =IF(ISERROR(MATCH($A8,I$8:I$24,0)),"",MATCH($A8,I$8:I$24,0)) -> 1 | K8: =IF(J8="","",RANK(P8,P$8:P$24)) -> 1 | L8: =IF(J8="","",COUNTIF(P$8:P$24,P8)) -> 1 | M8: =IF(J8="",0,INDEX($E$8:$E$24,J8)) -> 1 | N8: =IF(J8="","",IF(L8>1,CONCATENATE("=",K8),K8)) -> 1 | O8: =IF(J8="","",INDEX($C$8:$C$24,J8)) -> Australia | P8: =IF(J8="","",INDEX(H$8:H$24,J8)) -> 85.2 | S8: =IF($E8=0,"",ROUND(INDEX(aScores,S$6,$A8),$B$3)) -> 100 | T8: =IF($E8=0,"",RANK(S8,S$8:S$24,0)+COUNTIF(S$8:S8,S8)-1) -> 1 | U8: =IF(ISERROR(MATCH($A8,T$8:T$24,0)),"",MATCH($A8,T$8:T$24,0)) -> 1 | V8: =IF(U8="","",RANK(AA8,AA$8:AA$24)) -> 1 | W8: =IF(U8="","",COUNTIF(AA$8:AA$24,AA8)) -> 2 | X8: =IF(U8="",0,INDEX($E$8:$E$24,U8)) -> 1 | Y8: =IF(U8="","",IF(W8>1,CONCATENATE("=",V8),V8)) -> =1 | Z8: =IF(U8="","",INDEX($C$8:$C$24,U8)) -> Australia | AA8: =IF(U8="","",INDEX(S$8:S$24,U8)) -> 100 | AD8: =IF($E8=0,"",ROUND(INDEX(aScores,AD$6,$A8),$B$3)) -> 81.5 | AE8: =IF($E8=0,"",RANK(AD8,AD$8:AD$24,0)+COUNTIF(AD$8:AD8,AD8)-1) -> 4 | AF8: =IF(ISERROR(MATCH($A8,AE$8:AE$24,0)),"",MATCH($A8,AE$8:AE$24,0)) -> 14 | AG8: =IF(AF8="","",RANK(AL8,AL$8:AL$24)) -> 1 | AH8: =IF(AF8="","",COUNTIF(AL$8:AL$24,AL8)) -> 1 | AI8: =IF(AF8="",0,INDEX($E$8:$E$24,AF8)) -> 1 | AJ8: =IF(AF8="","",IF(AH8>1,CONCATENATE("=",AG8),AG8)) -> 1 | AK8: =IF(AF8="","",INDEX($C$8:$C$24,AF8)) -> South Korea | AL8: =IF(AF8="","",INDEX(AD$8:AD$24,AF8)) -> 93.5 | AO8: =IF($E8=0,"",ROUND(INDEX(aScores,AO$6,$A8),$B$3)) -> 88 | AP8: =IF($E8=0,"",RANK(AO8,AO$8:AO$24,0)+COUNTIF(AO$8:AO8,AO8)-1) -> 2 | AQ8: =IF(ISERROR(MATCH($A8,AP$8:AP$24,0)),"",MATCH($A8,AP$8:AP$24,0)) -> 13 | AR8: =IF(AQ8="","",RANK(AW8,AW$8:AW$24)) -> 1 | AS8: =IF(AQ8="","",COUNTIF(AW$8:AW$24,AW8)) -> 1 | AT8: =IF(AQ8="",0,INDEX($E$8:$E$24,AQ8)) -> 1 | AU8: =IF(AQ8="","",IF(AS8>1,CONCATENATE("=",AR8),AR8)) -> 1 | AV8: =IF(AQ8="","",INDEX($C$8:$C$24,AQ8)) -> Singapore | AW8: =IF(AQ8="","",INDEX(AO$8:AO$24,AQ8)) -> 89.9 | AZ8: =IF($E8=0,"",ROUND(INDEX(aScores,AZ$6,$A8),$B$3)) -> 71.3 | BA8: =IF($E8=0,"",RANK(AZ8,AZ$8:AZ$24,0)+COUNTIF(AZ$8:AZ8,AZ8)-1) -> 5 | BB8: =IF(ISERROR(MATCH($A8,BA$8:BA$24,0)),"",MATCH($A8,BA$8:BA$24,0)) -> 4 | BC8: =IF(BB8="","",RANK(BH8,BH$8:BH$24)) -> 1 | BD8: =IF(BB8="","",COUNTIF(BH$8:BH$24,BH8)) -> 1 | BE8: =IF(BB8="",0,INDEX($E$8:$E$24,BB8)) -> 1 | BF8: =IF(BB8="","",IF(BD8>1,CONCATENATE("=",BC8),BC8)) -> 1 | BG8: =IF(BB8="","",INDEX($C$8:$C$24,BB8)) -> Hong Kong | BH8: =IF(BB8="","",INDEX(AZ$8:AZ$24,BB8)) -> 92.6 | BK8: =IF($E8=0,"",ROUND(INDEX(aScores,BK$6,$A8),$B$3)) -> 100 | BL8: =IF($E8=0,"",RANK(BK8,BK$8:BK$24,0)+COUNTIF(BK$8:BK8,BK8)-1) ->  | BM8: =IF(ISERROR(MATCH($A8,BL$8:BL$24,0)),"",MATCH($A8,BL$8:BL$24,0)) ->  | BN8: =IF(BM8="","",RANK(BS8,BS$8:BS$24)) ->  | BO8: =IF(BM8="","",COUNTIF(BS$8:BS$24,BS8)) ->  | BP8: =IF(BM8="",0,INDEX($E$8:$E$24,BM8)) -> 0 | BQ8: =IF(BM8="","",IF(BO8>1,CONCATENATE("=",BN8),BN8)) ->  | BR8: =IF(BM8="","",INDEX($C$8:$C$24,BM8)) ->  | BS8: =IF(BM8="","",INDEX(BK$8:BK$24,BM8)) -> 
A9: =tblTerritories!A4 -> 2 | B9: =INDEX(tblTerritories!$R$3:$V$19,$A9,$B$1) -> 1 | C9: =tblTerritories!E4 -> Cambodia | D9: =tblTerritories!D4 -> 0 | E9: =tblTerritories!G4 -> 1 | F9: =VLOOKUP(C9,tblTerritories!$F$3:$L$20,7,FALSE)+10 -> 14 | H9: =IF($E9=0,"",ROUND(INDEX(aScores,H$6,$A9),$B$3)) -> 23.9 | I9: =IF($E9=0,"",RANK(H9,H$8:H$24,0)+COUNTIF(H$8:H9,H9)-1) -> 15 | J9: 11 | K9: 2 | L9: 1 | M9: 1 | N9: =IF(J9="","",IF(L9>1,CONCATENATE("=",K9),K9)) -> 2 | O9: New Zealand | P9: 81.8 | S9: 20 | T9: =IF($E9=0,"",RANK(S9,S$8:S$24,0)+COUNTIF(S$8:S9,S9)-1) -> 13 | U9: 11 | V9: 1 | W9: 2 | X9: 1 | Y9: =IF(U9="","",IF(W9>1,CONCATENATE("=",V9),V9)) -> =1 | Z9: New Zealand | AA9: 100 | AD9: 25 | AE9: =IF($E9=0,"",RANK(AD9,AD$8:AD$24,0)+COUNTIF(AD$8:AD9,AD9)-1) -> 15 | AF9: 9 | AG9: 2 | AH9: 1 | AI9: 1 | AJ9: =IF(AF9="","",IF(AH9>1,CONCATENATE("=",AG9),AG9)) -> 2 | AK9: Malaysia | AL9: 93 | AO9: 22 | AP9: =IF($E9=0,"",RANK(AO9,AO$8:AO$24,0)+COUNTIF(AO$8:AO9,AO9)-1) -> 15 | AQ9: 1 | AR9: 2 | AS9: 1 | AT9: 1 | AU9: =IF(AQ9="","",IF(AS9>1,CONCATENATE("=",AR9),AR9)) -> 2 | AV9: Australia | AW9: 88 | AZ9: 28.7 | BA9: =IF($E9=0,"",RANK(AZ9,AZ$8:AZ$24,0)+COUNTIF(AZ$8:AZ9,AZ9)-1) -> 16 | BB9: 11 | BC9: 2 | BD9: 1 | BE9: 1 | BF9: =IF(BB9="","",IF(BD9>1,CONCATENATE("=",BC9),BC9)) -> 2 | BG9: New Zealand | BH9: 91.7 | BK9: 25 | BL9: =IF($E9=0,"",RANK(BK9,BK$8:BK$24,0)+COUNTIF(BK$8:BK9,BK9)-1) ->  | BP9: 0 | BQ9: =IF(BM9="","",IF(BO9>1,CONCATENATE("=",BN9),BN9)) -> 
A10: =tblTerritories!A5 -> 3 | B10: =INDEX(tblTerritories!$R$3:$V$19,$A10,$B$1) -> 1 | C10: =tblTerritories!E5 -> China | D10: =tblTerritories!D5 -> 0 | E10: =tblTerritories!G5 -> 1 | F10: =VLOOKUP(C10,tblTerritories!$F$3:$L$20,7,FALSE)+10 -> 12 | H10: 61.6 | I10: =IF($E10=0,"",RANK(H10,H$8:H$24,0)+COUNTIF(H$8:H10,H10)-1) -> 9 | J10: 4 | K10: 3 | L10: 1 | M10: 1 | N10: 3 | O10: Hong Kong | P10: 81.4 | S10: 60 | T10: =IF($E10=0,"",RANK(S10,S$8:S$24,0)+COUNTIF(S$8:S10,S10)-1) -> 7 | U10: 4 | V10: 3 | W10: 4 | X10: 1 | Y10: =3 | Z10: Hong Kong | AA10: 80 | AD10: 80 | AE10: =IF($E10=0,"",RANK(AD10,AD$8:AD$24,0)+COUNTIF(AD$8:AD10,AD10)-1) -> 5 | AF10: 7 | AG10: 3 | AH10: 1 | AI10: 1 | AJ10: 3 | AK10: Japan | AL10: 88.8 | AO10: 61.9 | AP10: =IF($E10=0,"",RANK(AO10,AO$8:AO$24,0)+COUNTIF(AO$8:AO10,AO10)-1) -> 11 | AQ10: 11 | AR10: 3 | AS10: 1 | AT10: 1 | AU10: 3 | AV10: New Zealand | AW10: 87.8 | AZ10: 44.4 | BA10: =IF($E10=0,"",RANK(AZ10,AZ$8:AZ$24,0)+COUNTIF(AZ$8:AZ10,AZ10)-1) -> 11 | BB10: 13 | BC10: 3 | BD10: 1 | BE10: 1 | BF10: 3 | BG10: Singapore | BH10: 83.3 | BK10: 70 | BL10: =IF($E10=0,"",RANK(BK10,BK$8:BK$24,0)+COUNTIF(BK$8:BK10,BK10)-1) ->  | BP10: 0
A11: =tblTerritories!A6 -> 4 | B11: =INDEX(tblTerritories!$R$3:$V$19,$A11,$B$1) -> 1 | C11: =tblTerritories!E6 -> Hong Kong | D11: =tblTerritories!D6 -> 0 | E11: =tblTerritories!G6 -> 1 | F11: =VLOOKUP(C11,tblTerritories!$F$3:$L$20,7,FALSE)+10 -> 11 | H11: 81.4 | I11: =IF($E11=0,"",RANK(H11,H$8:H$24,0)+COUNTIF(H$8:H11,H11)-1) -> 3 | J11: 7 | K11: 4 | L11: 1 | M11: 1 | N11: 4 | O11: Japan | P11: 75.9 | S11: 80 | T11: =IF($E11=0,"",RANK(S11,S$8:S$24,0)+COUNTIF(S$8:S11,S11)-1) -> 3 | U11: 7 | V11: 3 | W11: 4 | X11: 1 | Y11: =3 | Z11: Japan | AA11: 80 | AD11: 69.5 | AE11: =IF($E11=0,"",RANK(AD11,AD$8:AD$24,0)+COUNTIF(AD$8:AD11,AD11)-1) -> 9 | AF11: 1 | AG11: 4 | AH11: 1 | AI11: 1 | AJ11: 4 | AK11: Australia | AL11: 81.5 | AO11: 83.5 | AP11: =IF($E11=0,"",RANK(AO11,AO$8:AO$24,0)+COUNTIF(AO$8:AO11,AO11)-1) -> 4 | AQ11: 4 | AR11: 4 | AS11: 1 | AT11: 1 | AU11: 4 | AV11: Hong Kong | AW11: 83.5 | AZ11: 92.6 | BA11: =IF($E11=0,"",RANK(AZ11,AZ$8:AZ$24,0)+COUNTIF(AZ$8:AZ11,AZ11)-1) -> 1 | BB11: 15 | BC11: 4 | BD11: 1 | BE11: 1 | BF11: 4 | BG11: Taiwan | BH11: 72.2 | BK11: 0 | BL11: =IF($E11=0,"",RANK(BK11,BK$8:BK$24,0)+COUNTIF(BK$8:BK11,BK11)-1) ->  | BP11: 0
A12: =tblTerritories!A7 -> 5 | B12: =INDEX(tblTerritories!$R$3:$V$19,$A12,$B$1) -> 1 | C12: =tblTerritories!E7 -> India | D12: =tblTerritories!D7 -> 0 | E12: =tblTerritories!G7 -> 1 | F12: =VLOOKUP(C12,tblTerritories!$F$3:$L$20,7,FALSE)+10 -> 12 | H12: 54.1 | I12: =IF($E12=0,"",RANK(H12,H$8:H$24,0)+COUNTIF(H$8:H12,H12)-1) -> 10 | J12: 9 | K12: 5 | L12: 2 | M12: 1 | N12: =5 | O12: Malaysia | P12: 71.8 | S12: 40 | T12: =IF($E12=0,"",RANK(S12,S$8:S$24,0)+COUNTIF(S$8:S12,S12)-1) -> 10 | U12: 13 | V12: 3 | W12: 4 | X12: 1 | Y12: =3 | Z12: Singapore | AA12: 80 | AD12: 71.8 | AE12: =IF($E12=0,"",RANK(AD12,AD$8:AD$24,0)+COUNTIF(AD$8:AD12,AD12)-1) -> 8 | AF12: 3 | AG12: 5 | AH12: 1 | AI12: 1 | AJ12: 5 | AK12: China | AL12: 80 | AO12: 65 | AP12: =IF($E12=0,"",RANK(AO12,AO$8:AO$24,0)+COUNTIF(AO$8:AO12,AO12)-1) -> 10 | AQ12: 15 | AR12: 5 | AS12: 1 | AT12: 1 | AU12: 5 | AV12: Taiwan | AW12: 83 | AZ12: 39.8 | BA12: =IF($E12=0,"",RANK(AZ12,AZ$8:AZ$24,0)+COUNTIF(AZ$8:AZ12,AZ12)-1) -> 15 | BB12: 1 | BC12: 5 | BD12: 1 | BE12: 1 | BF12: 5 | BG12: Australia | BH12: 71.3 | BK12: 100 | BL12: =IF($E12=0,"",RANK(BK12,BK$8:BK$24,0)+COUNTIF(BK$8:BK12,BK12)-1) ->  | BP12: 0
A13: =tblTerritories!A8 -> 6 | B13: =INDEX(tblTerritories!$R$3:$V$19,$A13,$B$1) -> 1 | C13: =tblTerritories!E8 -> Indonesia | D13: =tblTerritories!D8 -> 0 | E13: =tblTerritories!G8 -> 1 | F13: =VLOOKUP(C13,tblTerritories!$F$3:$L$20,7,FALSE)+10 -> 13 | H13: 46.1 | I13: =IF($E13=0,"",RANK(H13,H$8:H$24,0)+COUNTIF(H$8:H13,H13)-1) -> 14 | J13: 14 | K13: 5 | L13: 2 | M13: 1 | N13: =5 | O13: South Korea | P13: 71.8 | S13: 20 | T13: =IF($E13=0,"",RANK(S13,S$8:S$24,0)+COUNTIF(S$8:S13,S13)-1) -> 14 | U13: 15 | V13: 3 | W13: 4 | X13: 1 | Y13: =3 | Z13: Taiwan | AA13: 80 | AD13: 78 | AE13: =IF($E13=0,"",RANK(AD13,AD$8:AD$24,0)+COUNTIF(AD$8:AD13,AD13)-1) -> 6 | AF13: 6 | AG13: 6 | AH13: 1 | AI13: 1 | AJ13: 6 | AK13: Indonesia | AL13: 78 | AO13: 41.8 | AP13: =IF($E13=0,"",RANK(AO13,AO$8:AO$24,0)+COUNTIF(AO$8:AO13,AO13)-1) -> 13 | AQ13: 14 | AR13: 6 | AS13: 1 | AT13: 1 | AU13: 6 | AV13: South Korea | AW13: 78.3 | AZ13: 44.4 | BA13: =IF($E13=0,"",RANK(AZ13,AZ$8:AZ$24,0)+COUNTIF(AZ$8:AZ13,AZ13)-1) -> 12 | BB13: 7 | BC13: 6 | BD13: 2 | BE13: 1 | BF13: =6 | BG13: Japan | BH13: 63.9 | BK13: 50 | BL13: =IF($E13=0,"",RANK(BK13,BK$8:BK$24,0)+COUNTIF(BK$8:BK13,BK13)-1) ->  | BP13: 0
A14: =tblTerritories!A9 -> 7 | B14: =INDEX(tblTerritories!$R$3:$V$19,$A14,$B$1) -> 1 | C14: =tblTerritories!E9 -> Japan | D14: =tblTerritories!D9 -> 0 | E14: =tblTerritories!G9 -> 1 | F14: =VLOOKUP(C14,tblTerritories!$F$3:$L$20,7,FALSE)+10 -> 11 | H14: 75.9 | I14: =IF($E14=0,"",RANK(H14,H$8:H$24,0)+COUNTIF(H$8:H14,H14)-1) -> 4 | J14: 13 | K14: 7 | L14: 2 | M14: 1 | N14: =7 | O14: Singapore | P14: 69.8 | S14: 80 | T14: =IF($E14=0,"",RANK(S14,S$8:S$24,0)+COUNTIF(S$8:S14,S14)-1) -> 4 | U14: 3 | V14: 7 | W14: 3 | X14: 1 | Y14: =7 | Z14: China | AA14: 60 | AD14: 88.8 | AE14: =IF($E14=0,"",RANK(AD14,AD$8:AD$24,0)+COUNTIF(AD$8:AD14,AD14)-1) -> 3 | AF14: 12 | AG14: 7 | AH14: 1 | AI14: 1 | AJ14: 7 | AK14: Philippines | AL14: 77.5 | AO14: 70.8 | AP14: =IF($E14=0,"",RANK(AO14,AO$8:AO$24,0)+COUNTIF(AO$8:AO14,AO14)-1) -> 7 | AQ14: 7 | AR14: 7 | AS14: 1 | AT14: 1 | AU14: 7 | AV14: Japan | AW14: 70.8 | AZ14: 63.9 | BA14: =IF($E14=0,"",RANK(AZ14,AZ$8:AZ$24,0)+COUNTIF(AZ$8:AZ14,AZ14)-1) -> 6 | BB14: 9 | BC14: 6 | BD14: 2 | BE14: 1 | BF14: =6 | BG14: Malaysia | BH14: 63.9 | BK14: 70.8 | BL14: =IF($E14=0,"",RANK(BK14,BK$8:BK$24,0)+COUNTIF(BK$8:BK14,BK14)-1) ->  | BP14: 0
A15: =tblTerritories!A10 -> 8 | B15: =INDEX(tblTerritories!$R$3:$V$19,$A15,$B$1) -> 1 | C15: =tblTerritories!E10 -> Laos | D15: =tblTerritories!D10 -> 0 | E15: =tblTerritories!G10 -> 1 | F15: =VLOOKUP(C15,tblTerritories!$F$3:$L$20,7,FALSE)+10 -> 14 | H15: 12.9 | I15: =IF($E15=0,"",RANK(H15,H$8:H$24,0)+COUNTIF(H$8:H15,H15)-1) -> 16 | J15: 15 | K15: 7 | L15: 2 | M15: 1 | N15: =7 | O15: Taiwan | P15: 69.8 | S15: 0 | T15: =IF($E15=0,"",RANK(S15,S$8:S$24,0)+COUNTIF(S$8:S15,S15)-1) -> 16 | U15: 9 | V15: 7 | W15: 3 | X15: 1 | Y15: =7 | Z15: Malaysia | AA15: 60 | AD15: 11 | AE15: =IF($E15=0,"",RANK(AD15,AD$8:AD$24,0)+COUNTIF(AD$8:AD15,AD15)-1) -> 17 | AF15: 5 | AG15: 8 | AH15: 1 | AI15: 1 | AJ15: 8 | AK15: India | AL15: 71.8 | AO15: 0 | AP15: =IF($E15=0,"",RANK(AO15,AO$8:AO$24,0)+COUNTIF(AO$8:AO15,AO15)-1) -> 17 | AQ15: 9 | AR15: 8 | AS15: 1 | AT15: 1 | AU15: 8 | AV15: Malaysia | AW15: 70.3 | AZ15: 40.7 | BA15: =IF($E15=0,"",RANK(AZ15,AZ$8:AZ$24,0)+COUNTIF(AZ$8:AZ15,AZ15)-1) -> 14 | BB15: 16 | BC15: 8 | BD15: 1 | BE15: 1 | BF15: 8 | BG15: Thailand | BH15: 56.5 | BK15: 0 | BL15: =IF($E15=0,"",RANK(BK15,BK$8:BK$24,0)+COUNTIF(BK$8:BK15,BK15)-1) ->  | BP15: 0
A16: =tblTerritories!A11 -> 9 | B16: =INDEX(tblTerritories!$R$3:$V$19,$A16,$B$1) -> 1 | C16: =tblTerritories!E11 -> Malaysia | D16: =tblTerritories!D11 -> 0 | E16: =tblTerritories!G11 -> 1 | F16: =VLOOKUP(C16,tblTerritories!$F$3:$L$20,7,FALSE)+10 -> 12 | H16: 71.8 | I16: =IF($E16=0,"",RANK(H16,H$8:H$24,0)+COUNTIF(H$8:H16,H16)-1) -> 5 | J16: 3 | K16: 9 | L16: 1 | M16: 1 | N16: =IF(J16="","",IF(L16>1,CONCATENATE("=",K16),K16)) -> 9 | O16: China | P16: 61.6 | S16: 60 | T16: =IF($E16=0,"",RANK(S16,S$8:S$24,0)+COUNTIF(S$8:S16,S16)-1) -> 8 | U16: 14 | V16: 7 | W16: 3 | X16: 1 | Y16: =7 | Z16: South Korea | AA16: 60 | AD16: 93 | AE16: =IF($E16=0,"",RANK(AD16,AD$8:AD$24,0)+COUNTIF(AD$8:AD16,AD16)-1) -> 2 | AF16: 4 | AG16: 9 | AH16: 1 | AI16: 1 | AJ16: 9 | AK16: Hong Kong | AL16: 69.5 | AO16: 70.3 | AP16: =IF($E16=0,"",RANK(AO16,AO$8:AO$24,0)+COUNTIF(AO$8:AO16,AO16)-1) -> 8 | AQ16: 16 | AR16: 9 | AS16: 1 | AT16: 1 | AU16: 9 | AV16: Thailand | AW16: 68.4 | AZ16: 63.9 | BA16: =IF($E16=0,"",RANK(AZ16,AZ$8:AZ$24,0)+COUNTIF(AZ$8:AZ16,AZ16)-1) -> 7 | BB16: 14 | BC16: 9 | BD16: 1 | BE16: 1 | BF16: 9 | BG16: South Korea | BH16: 55.6 | BK16: 100 | BL16: =IF($E16=0,"",RANK(BK16,BK$8:BK$24,0)+COUNTIF(BK$8:BK16,BK16)-1) ->  | BP16: 0
A17: =tblTerritories!A12 -> 10 | B17: =INDEX(tblTerritories!$R$3:$V$19,$A17,$B$1) -> 1 | C17: =tblTerritories!E12 -> Myanmar | D17: =tblTerritories!D12 -> 0 | E17: =tblTerritories!G12 -> 1 | F17: =VLOOKUP(C17,tblTerritories!$F$3:$L$20,7,FALSE)+10 -> 14 | H17: 10.8 | I17: =IF($E17=0,"",RANK(H17,H$8:H$24,0)+COUNTIF(H$8:H17,H17)-1) -> 17 | J17: 5 | K17: 10 | L17: 1 | M17: 1 | N17: 10 | O17: India | P17: 54.1 | S17: 0 | T17: =IF($E17=0,"",RANK(S17,S$8:S$24,0)+COUNTIF(S$8:S17,S17)-1) -> 17 | U17: 5 | V17: 10 | W17: 3 | X17: 1 | Y17: =10 | Z17: India | AA17: 40 | AD17: 11.8 | AE17: =IF($E17=0,"",RANK(AD17,AD$8:AD$24,0)+COUNTIF(AD$8:AD17,AD17)-1) -> 16 | AF17: 16 | AG17: 10 | AH17: 1 | AI17: 1 | AJ17: 10 | AK17: Thailand | AL17: 67.5 | AO17: 11.1 | AP17: =IF($E17=0,"",RANK(AO17,AO$8:AO$24,0)+COUNTIF(AO$8:AO17,AO17)-1) -> 16 | AQ17: 5 | AR17: 10 | AS17: 1 | AT17: 1 | AU17: 10 | AV17: India | AW17: 65 | AZ17: 20.4 | BA17: =IF($E17=0,"",RANK(AZ17,AZ$8:AZ$24,0)+COUNTIF(AZ$8:AZ17,AZ17)-1) -> 17 | BB17: 12 | BC17: 10 | BD17: 1 | BE17: 1 | BF17: 10 | BG17: Philippines | BH17: 52.8 | BK17: 0 | BL17: =IF($E17=0,"",RANK(BK17,BK$8:BK$24,0)+COUNTIF(BK$8:BK17,BK17)-1) ->  | BP17: 0
A18: =tblTerritories!A13 -> 11 | B18: =INDEX(tblTerritories!$R$3:$V$19,$A18,$B$1) -> 1 | C18: =tblTerritories!E13 -> New Zealand | D18: =tblTerritories!D13 -> 0 | E18: =tblTerritories!G13 -> 1 | F18: =VLOOKUP(C18,tblTerritories!$F$3:$L$20,7,FALSE)+10 -> 11 | H18: 81.8 | I18: =IF($E18=0,"",RANK(H18,H$8:H$24,0)+COUNTIF(H$8:H18,H18)-1) -> 2 | J18: 16 | K18: 11 | L18: 1 | M18: 1 | N18: 11 | O18: Thailand | P18: 53.1 | S18: 100 | T18: =IF($E18=0,"",RANK(S18,S$8:S$24,0)+COUNTIF(S$8:S18,S18)-1) -> 2 | U18: 12 | V18: 10 | W18: 3 | X18: 1 | Y18: =10 | Z18: Philippines | AA18: 40 | AD18: 47.8 | AE18: =IF($E18=0,"",RANK(AD18,AD$8:AD$24,0)+COUNTIF(AD$8:AD18,AD18)-1) -> 12 | AF18: 17 | AG18: 11 | AH18: 1 | AI18: 1 | AJ18: 11 | AK18: Vietnam | AL18: 59.8 | AO18: 87.8 | AP18: =IF($E18=0,"",RANK(AO18,AO$8:AO$24,0)+COUNTIF(AO$8:AO18,AO18)-1) -> 3 | AQ18: 3 | AR18: 11 | AS18: 1 | AT18: 1 | AU18: 11 | AV18: China | AW18: 61.9 | AZ18: 91.7 | BA18: =IF($E18=0,"",RANK(AZ18,AZ$8:AZ$24,0)+COUNTIF(AZ$8:AZ18,AZ18)-1) -> 2 | BB18: 3 | BC18: 11 | BD18: 3 | BE18: 1 | BF18: =11 | BG18: China | BH18: 44.4 | BK18: 100 | BL18: =IF($E18=0,"",RANK(BK18,BK$8:BK$24,0)+COUNTIF(BK$8:BK18,BK18)-1) ->  | BP18: 0
A19: =tblTerritories!A14 -> 12 | B19: =INDEX(tblTerritories!$R$3:$V$19,$A19,$B$1) -> 1 | C19: =tblTerritories!E14 -> Philippines | D19: =tblTerritories!D14 -> 0 | E19: =tblTerritories!G14 -> 1 | F19: =VLOOKUP(C19,tblTerritories!$F$3:$L$20,7,FALSE)+10 -> 13 | H19: 50.4 | I19: =IF($E19=0,"",RANK(H19,H$8:H$24,0)+COUNTIF(H$8:H19,H19)-1) -> 12 | J19: 12 | K19: 12 | L19: 1 | M19: 1 | N19: 12 | O19: Philippines | P19: 50.4 | S19: 40 | T19: =IF($E19=0,"",RANK(S19,S$8:S$24,0)+COUNTIF(S$8:S19,S19)-1) -> 11 | U19: 17 | V19: 10 | W19: 3 | X19: 1 | Y19: =10 | Z19: Vietnam | AA19: 40 | AD19: 77.5 | AE19: =IF($E19=0,"",RANK(AD19,AD$8:AD$24,0)+COUNTIF(AD$8:AD19,AD19)-1) -> 7 | AF19: 11 | AG19: 12 | AH19: 1 | AI19: 1 | AJ19: 12 | AK19: New Zealand | AL19: 47.8 | AO19: 31.4 | AP19: =IF($E19=0,"",RANK(AO19,AO$8:AO$24,0)+COUNTIF(AO$8:AO19,AO19)-1) -> 14 | AQ19: 17 | AR19: 12 | AS19: 1 | AT19: 1 | AU19: 12 | AV19: Vietnam | AW19: 53.2 | AZ19: 52.8 | BA19: =IF($E19=0,"",RANK(AZ19,AZ$8:AZ$24,0)+COUNTIF(AZ$8:AZ19,AZ19)-1) -> 10 | BB19: 6 | BC19: 11 | BD19: 3 | BE19: 1 | BF19: =11 | BG19: Indonesia | BH19: 44.4 | BK19: 0 | BL19: =IF($E19=0,"",RANK(BK19,BK$8:BK$24,0)+COUNTIF(BK$8:BK19,BK19)-1) ->  | BP19: 0
A20: =tblTerritories!A15 -> 13 | B20: =INDEX(tblTerritories!$R$3:$V$19,$A20,$B$1) -> 1 | C20: =tblTerritories!E15 -> Singapore | D20: =tblTerritories!D15 -> 0 | E20: =tblTerritories!G15 -> 1 | F20: =VLOOKUP(C20,tblTerritories!$F$3:$L$20,7,FALSE)+10 -> 11 | H20: 69.8 | I20: =IF($E20=0,"",RANK(H20,H$8:H$24,0)+COUNTIF(H$8:H20,H20)-1) -> 7 | J20: 17 | K20: 13 | L20: 1 | M20: 1 | N20: 13 | O20: Vietnam | P20: 49.4 | S20: 80 | T20: =IF($E20=0,"",RANK(S20,S$8:S$24,0)+COUNTIF(S$8:S20,S20)-1) -> 5 | U20: 2 | V20: 13 | W20: 3 | X20: 1 | Y20: =13 | Z20: Cambodia | AA20: 20 | AD20: 25.8 | AE20: =IF($E20=0,"",RANK(AD20,AD$8:AD$24,0)+COUNTIF(AD$8:AD20,AD20)-1) -> 14 | AF20: 15 | AG20: 13 | AH20: 1 | AI20: 1 | AJ20: 13 | AK20: Taiwan | AL20: 44 | AO20: 89.9 | AP20: =IF($E20=0,"",RANK(AO20,AO$8:AO$24,0)+COUNTIF(AO$8:AO20,AO20)-1) -> 1 | AQ20: 6 | AR20: 13 | AS20: 1 | AT20: 1 | AU20: 13 | AV20: Indonesia | AW20: 41.8 | AZ20: 83.3 | BA20: =IF($E20=0,"",RANK(AZ20,AZ$8:AZ$24,0)+COUNTIF(AZ$8:AZ20,AZ20)-1) -> 3 | BB20: 17 | BC20: 11 | BD20: 3 | BE20: 1 | BF20: =11 | BG20: Vietnam | BH20: 44.4 | BK20: 83.3 | BL20: =IF($E20=0,"",RANK(BK20,BK$8:BK$24,0)+COUNTIF(BK$8:BK20,BK20)-1) ->  | BP20: 0
A21: =tblTerritories!A16 -> 14 | B21: =INDEX(tblTerritories!$R$3:$V$19,$A21,$B$1) -> 1 | C21: =tblTerritories!E16 -> South Korea | D21: =tblTerritories!D16 -> 0 | E21: =tblTerritories!G16 -> 1 | F21: =VLOOKUP(C21,tblTerritories!$F$3:$L$20,7,FALSE)+10 -> 11 | H21: 71.8 | I21: =IF($E21=0,"",RANK(H21,H$8:H$24,0)+COUNTIF(H$8:H21,H21)-1) -> 6 | J21: 6 | K21: 14 | L21: 1 | M21: 1 | N21: 14 | O21: Indonesia | P21: 46.1 | S21: 60 | T21: =IF($E21=0,"",RANK(S21,S$8:S$24,0)+COUNTIF(S$8:S21,S21)-1) -> 9 | U21: 6 | V21: 13 | W21: 3 | X21: 1 | Y21: =13 | Z21: Indonesia | AA21: 20 | AD21: 93.5 | AE21: =IF($E21=0,"",RANK(AD21,AD$8:AD$24,0)+COUNTIF(AD$8:AD21,AD21)-1) -> 1 | AF21: 13 | AG21: 14 | AH21: 1 | AI21: 1 | AJ21: 14 | AK21: Singapore | AL21: 25.8 | AO21: 78.3 | AP21: =IF($E21=0,"",RANK(AO21,AO$8:AO$24,0)+COUNTIF(AO$8:AO21,AO21)-1) -> 6 | AQ21: 12 | AR21: 14 | AS21: 1 | AT21: 1 | AU21: 14 | AV21: Philippines | AW21: 31.4 | AZ21: 55.6 | BA21: =IF($E21=0,"",RANK(AZ21,AZ$8:AZ$24,0)+COUNTIF(AZ$8:AZ21,AZ21)-1) -> 9 | BB21: 8 | BC21: 14 | BD21: 1 | BE21: 1 | BF21: 14 | BG21: Laos | BH21: 40.7 | BK21: 50 | BL21: =IF($E21=0,"",RANK(BK21,BK$8:BK$24,0)+COUNTIF(BK$8:BK21,BK21)-1) ->  | BP21: 0
A22: =tblTerritories!A17 -> 15 | B22: =INDEX(tblTerritories!$R$3:$V$19,$A22,$B$1) -> 1 | C22: =tblTerritories!E17 -> Taiwan | D22: =tblTerritories!D17 -> 0 | E22: =tblTerritories!G17 -> 1 | F22: =VLOOKUP(C22,tblTerritories!$F$3:$L$20,7,FALSE)+10 -> 11 | H22: 69.8 | I22: =IF($E22=0,"",RANK(H22,H$8:H$24,0)+COUNTIF(H$8:H22,H22)-1) -> 8 | J22: 2 | K22: 15 | L22: 1 | M22: 1 | N22: 15 | O22: Cambodia | P22: 23.9 | S22: 80 | T22: =IF($E22=0,"",RANK(S22,S$8:S$24,0)+COUNTIF(S$8:S22,S22)-1) -> 6 | U22: 16 | V22: 13 | W22: 3 | X22: 1 | Y22: =13 | Z22: Thailand | AA22: 20 | AD22: 44 | AE22: =IF($E22=0,"",RANK(AD22,AD$8:AD$24,0)+COUNTIF(AD$8:AD22,AD22)-1) -> 13 | AF22: 2 | AG22: 15 | AH22: 1 | AI22: 1 | AJ22: 15 | AK22: Cambodia | AL22: 25 | AO22: 83 | AP22: =IF($E22=0,"",RANK(AO22,AO$8:AO$24,0)+COUNTIF(AO$8:AO22,AO22)-1) -> 5 | AQ22: 2 | AR22: 15 | AS22: 1 | AT22: 1 | AU22: 15 | AV22: Cambodia | AW22: 22 | AZ22: 72.2 | BA22: =IF($E22=0,"",RANK(AZ22,AZ$8:AZ$24,0)+COUNTIF(AZ$8:AZ22,AZ22)-1) -> 4 | BB22: 5 | BC22: 15 | BD22: 1 | BE22: 1 | BF22: 15 | BG22: India | BH22: 39.8 | BK22: 66.7 | BL22: =IF($E22=0,"",RANK(BK22,BK$8:BK$24,0)+COUNTIF(BK$8:BK22,BK22)-1) ->  | BP22: 0
A23: =tblTerritories!A18 -> 16 | B23: =INDEX(tblTerritories!$R$3:$V$19,$A23,$B$1) -> 1 | C23: =tblTerritories!E18 -> Thailand | D23: =tblTerritories!D18 -> 0 | E23: =tblTerritories!G18 -> 1 | F23: =VLOOKUP(C23,tblTerritories!$F$3:$L$20,7,FALSE)+10 -> 13 | H23: 53.1 | I23: =IF($E23=0,"",RANK(H23,H$8:H$24,0)+COUNTIF(H$8:H23,H23)-1) -> 11 | J23: 8 | K23: 16 | L23: 1 | M23: 1 | N23: 16 | O23: Laos | P23: 12.9 | S23: 20 | T23: =IF($E23=0,"",RANK(S23,S$8:S$24,0)+COUNTIF(S$8:S23,S23)-1) -> 15 | U23: 8 | V23: 16 | W23: 2 | X23: 1 | Y23: =16 | Z23: Laos | AA23: 0 | AD23: 67.5 | AE23: =IF($E23=0,"",RANK(AD23,AD$8:AD$24,0)+COUNTIF(AD$8:AD23,AD23)-1) -> 10 | AF23: 10 | AG23: 16 | AH23: 1 | AI23: 1 | AJ23: 16 | AK23: Myanmar | AL23: 11.8 | AO23: 68.4 | AP23: =IF($E23=0,"",RANK(AO23,AO$8:AO$24,0)+COUNTIF(AO$8:AO23,AO23)-1) -> 9 | AQ23: 10 | AR23: 16 | AS23: 1 | AT23: 1 | AU23: 16 | AV23: Myanmar | AW23: 11.1 | AZ23: 56.5 | BA23: =IF($E23=0,"",RANK(AZ23,AZ$8:AZ$24,0)+COUNTIF(AZ$8:AZ23,AZ23)-1) -> 8 | BB23: 2 | BC23: 16 | BD23: 1 | BE23: 1 | BF23: 16 | BG23: Cambodia | BH23: 28.7 | BK23: 75 | BL23: =IF($E23=0,"",RANK(BK23,BK$8:BK$24,0)+COUNTIF(BK$8:BK23,BK23)-1) ->  | BP23: 0
A24: =tblTerritories!A19 -> 17 | B24: =INDEX(tblTerritories!$R$3:$V$19,$A24,$B$1) -> 1 | C24: =tblTerritories!E19 -> Vietnam | D24: =tblTerritories!D19 -> 0 | E24: =tblTerritories!G19 -> 1 | F24: =VLOOKUP(C24,tblTerritories!$F$3:$L$20,7,FALSE)+10 -> 14 | H24: 49.4 | I24: =IF($E24=0,"",RANK(H24,H$8:H$24,0)+COUNTIF(H$8:H24,H24)-1) -> 13 | J24: 10 | K24: 17 | L24: 1 | M24: 1 | N24: =IF(J24="","",IF(L24>1,CONCATENATE("=",K24),K24)) -> 17 | O24: Myanmar | P24: 10.8 | S24: 40 | T24: =IF($E24=0,"",RANK(S24,S$8:S$24,0)+COUNTIF(S$8:S24,S24)-1) -> 12 | U24: 10 | V24: 16 | W24: 2 | X24: 1 | Y24: =IF(U24="","",IF(W24>1,CONCATENATE("=",V24),V24)) -> =16 | Z24: Myanmar | AA24: 0 | AD24: 59.8 | AE24: =IF($E24=0,"",RANK(AD24,AD$8:AD$24,0)+COUNTIF(AD$8:AD24,AD24)-1) -> 11 | AF24: 8 | AG24: 17 | AH24: 1 | AI24: 1 | AJ24: =IF(AF24="","",IF(AH24>1,CONCATENATE("=",AG24),AG24)) -> 17 | AK24: Laos | AL24: 11 | AO24: 53.2 | AP24: =IF($E24=0,"",RANK(AO24,AO$8:AO$24,0)+COUNTIF(AO$8:AO24,AO24)-1) -> 12 | AQ24: 8 | AR24: 17 | AS24: 1 | AT24: 1 | AU24: =IF(AQ24="","",IF(AS24>1,CONCATENATE("=",AR24),AR24)) -> 17 | AV24: Laos | AW24: 0 | AZ24: 44.4 | BA24: =IF($E24=0,"",RANK(AZ24,AZ$8:AZ$24,0)+COUNTIF(AZ$8:AZ24,AZ24)-1) -> 13 | BB24: 10 | BC24: 17 | BD24: 1 | BE24: 1 | BF24: 17 | BG24: Myanmar | BH24: 20.4 | BL24: =IF($E24=0,"",RANK(BK24,BK$8:BK$24,0)+COUNTIF(BK$8:BK24,BK24)-1) ->  | BP24: 0
B27: =SUM(B8:B24) -> 17 | F27: =C1 -> Average: <none> | G27: =RANK(H27,H8:H27) -> 10 | H27: =AVERAGE(H8:H24) -> 57.04705882 | R27: =RANK(S27,S8:S27) -> 10 | S27: =AVERAGE(S8:S24) -> 51.76470588 | AC27: =RANK(AD27,AD8:AD27) -> 11 | AD27: =AVERAGE(AD8:AD24) -> 60.37058824 | AN27: =RANK(AO27,AO8:AO27) -> 12 | AO27: =AVERAGE(AO8:AO24) -> 59.2 | AY27: =RANK(AZ27,AZ8:AZ27) -> 8 | AZ27: =AVERAGE(AZ8:AZ24) -> 56.85882353 | BJ27: =RANK(BK27,BK8:BK27) ->  | BK27: =AVERAGE(BK8:BK24) -> 
G28: =G27-1&" < x < "&G27 -> 9 < x < 10 | H28: =COUNT(H8:H24) -> 17 | R28: =R27-1&" < x < "&R27 -> 9 < x < 10 | S28: =COUNT(S8:S24) -> 17 | AC28: =AC27-1&" < x < "&AC27 -> 10 < x < 11 | AN28: =AN27-1&" < x < "&AN27 -> 11 < x < 12 | AY28: =AY27-1&" < x < "&AY27 -> 7 < x < 8 | BJ28: =BJ27-1&" < x < "&BJ27 -> 

Sheet Summary (hidden)
E3: Normalised scores 0-100, where 100 = most favourable conditions
E4: = before the rank indicates a tie in rank with another geography
D8: =iSummary!N6 -> OVERALL SCORE | K8: =iSummary!Y6 -> 1) INTELLECTUAL PROPERTY | R8: =iSummary!AJ6 -> 2) TRANSPARENCY AND TRADE | Y8: =iSummary!AU6 -> 3) CUSTOMS ENVIRONMENT | AF8: =iSummary!BF6 -> 4) SUPPLY AND DEMAND
B9: =iSummary!M8 -> 1 | C9: =IF(G9<=30,0,IF(G9<=50,1,IF(G9<=70,2,3))) -> 3 | E9: =iSummary!N8 -> 1 | F9: =iSummary!O8 -> Australia | G9: =iSummary!P8 -> 85.2 | I9: =iSummary!X8 -> 1 | J9: =IF(N9<=30,0,IF(N9<=50,1,IF(N9<=70,2,3))) -> 3 | L9: =iSummary!Y8 -> =1 | M9: =iSummary!Z8 -> Australia | N9: =iSummary!AA8 -> 100 | P9: =iSummary!AI8 -> 1 | Q9: =IF(U9<=30,0,IF(U9<=50,1,IF(U9<=70,2,3))) -> 3 | S9: =iSummary!AJ8 -> 1 | T9: =iSummary!AK8 -> South Korea | U9: =iSummary!AL8 -> 93.5 | W9: =iSummary!AT8 -> 1 | X9: =IF(AB9<=30,0,IF(AB9<=50,1,IF(AB9<=70,2,3))) -> 3 | Z9: =iSummary!AU8 -> 1 | AA9: =iSummary!AV8 -> Singapore | AB9: =iSummary!AW8 -> 89.9 | AD9: =iSummary!BE8 -> 1 | AE9: =IF(AI9<=30,0,IF(AI9<=50,1,IF(AI9<=70,2,3))) -> 3 | AG9: =iSummary!BF8 -> 1 | AH9: =iSummary!BG8 -> Hong Kong | AI9: =iSummary!BH8 -> 92.6
B10: =iSummary!M9 -> 1 | C10: =IF(G10<=30,0,IF(G10<=50,1,IF(G10<=70,2,3))) -> 3 | E10: =iSummary!N9 -> 2 | F10: =iSummary!O9 -> New Zealand | G10: =iSummary!P9 -> 81.8 | I10: =iSummary!X9 -> 1 | J10: =IF(N10<=30,0,IF(N10<=50,1,IF(N10<=70,2,3))) -> 3 | L10: =iSummary!Y9 -> =1 | M10: =iSummary!Z9 -> New Zealand | N10: =iSummary!AA9 -> 100 | P10: =iSummary!AI9 -> 1 | Q10: =IF(U10<=30,0,IF(U10<=50,1,IF(U10<=70,2,3))) -> 3 | S10: =iSummary!AJ9 -> 2 | T10: =iSummary!AK9 -> Malaysia | U10: =iSummary!AL9 -> 93 | W10: =iSummary!AT9 -> 1 | X10: =IF(AB10<=30,0,IF(AB10<=50,1,IF(AB10<=70,2,3))) -> 3 | Z10: =iSummary!AU9 -> 2 | AA10: =iSummary!AV9 -> Australia | AB10: =iSummary!AW9 -> 88 | AD10: =iSummary!BE9 -> 1 | AE10: =IF(AI10<=30,0,IF(AI10<=50,1,IF(AI10<=70,2,3))) -> 3 | AG10: =iSummary!BF9 -> 2 | AH10: =iSummary!BG9 -> New Zealand | AI10: =iSummary!BH9 -> 91.7
B11: =iSummary!M10 -> 1 | C11: 3 | E11: =iSummary!N10 -> 3 | F11: =iSummary!O10 -> Hong Kong | G11: =iSummary!P10 -> 81.4 | I11: =iSummary!X10 -> 1 | J11: 3 | L11: =iSummary!Y10 -> =3 | M11: =iSummary!Z10 -> Hong Kong | N11: =iSummary!AA10 -> 80 | P11: =iSummary!AI10 -> 1 | Q11: 3 | S11: =iSummary!AJ10 -> 3 | T11: =iSummary!AK10 -> Japan | U11: =iSummary!AL10 -> 88.8 | W11: =iSummary!AT10 -> 1 | X11: 3 | Z11: =iSummary!AU10 -> 3 | AA11: =iSummary!AV10 -> New Zealand | AB11: =iSummary!AW10 -> 87.8 | AD11: =iSummary!BE10 -> 1 | AE11: 3 | AG11: =iSummary!BF10 -> 3 | AH11: =iSummary!BG10 -> Singapore | AI11: =iSummary!BH10 -> 83.3
B12: =iSummary!M11 -> 1 | C12: 3 | E12: =iSummary!N11 -> 4 | F12: =iSummary!O11 -> Japan | G12: =iSummary!P11 -> 75.9 | I12: =iSummary!X11 -> 1 | J12: 3 | L12: =iSummary!Y11 -> =3 | M12: =iSummary!Z11 -> Japan | N12: =iSummary!AA11 -> 80 | P12: =iSummary!AI11 -> 1 | Q12: 3 | S12: =iSummary!AJ11 -> 4 | T12: =iSummary!AK11 -> Australia | U12: =iSummary!AL11 -> 81.5 | W12: =iSummary!AT11 -> 1 | X12: 3 | Z12: =iSummary!AU11 -> 4 | AA12: =iSummary!AV11 -> Hong Kong | AB12: =iSummary!AW11 -> 83.5 | AD12: =iSummary!BE11 -> 1 | AE12: 3 | AG12: =iSummary!BF11 -> 4 | AH12: =iSummary!BG11 -> Taiwan | AI12: =iSummary!BH11 -> 72.2
B13: =iSummary!M12 -> 1 | C13: 3 | E13: =iSummary!N12 -> =5 | F13: =iSummary!O12 -> Malaysia | G13: =iSummary!P12 -> 71.8 | I13: =iSummary!X12 -> 1 | J13: 3 | L13: =iSummary!Y12 -> =3 | M13: =iSummary!Z12 -> Singapore | N13: =iSummary!AA12 -> 80 | P13: =iSummary!AI12 -> 1 | Q13: 3 | S13: =iSummary!AJ12 -> 5 | T13: =iSummary!AK12 -> China | U13: =iSummary!AL12 -> 80 | W13: =iSummary!AT12 -> 1 | X13: 3 | Z13: =iSummary!AU12 -> 5 | AA13: =iSummary!AV12 -> Taiwan | AB13: =iSummary!AW12 -> 83 | AD13: =iSummary!BE12 -> 1 | AE13: 3 | AG13: =iSummary!BF12 -> 5 | AH13: =iSummary!BG12 -> Australia | AI13: =iSummary!BH12 -> 71.3
B14: =iSummary!M13 -> 1 | C14: 3 | E14: =iSummary!N13 -> =5 | F14: =iSummary!O13 -> South Korea | G14: =iSummary!P13 -> 71.8 | I14: =iSummary!X13 -> 1 | J14: 3 | L14: =iSummary!Y13 -> =3 | M14: =iSummary!Z13 -> Taiwan | N14: =iSummary!AA13 -> 80 | P14: =iSummary!AI13 -> 1 | Q14: 3 | S14: =iSummary!AJ13 -> 6 | T14: =iSummary!AK13 -> Indonesia | U14: =iSummary!AL13 -> 78 | W14: =iSummary!AT13 -> 1 | X14: 3 | Z14: =iSummary!AU13 -> 6 | AA14: =iSummary!AV13 -> South Korea | AB14: =iSummary!AW13 -> 78.3 | AD14: =iSummary!BE13 -> 1 | AE14: 2 | AG14: =iSummary!BF13 -> =6 | AH14: =iSummary!BG13 -> Japan | AI14: =iSummary!BH13 -> 63.9
B15: =iSummary!M14 -> 1 | C15: 2 | E15: =iSummary!N14 -> =7 | F15: =iSummary!O14 -> Singapore | G15: =iSummary!P14 -> 69.8 | I15: =iSummary!X14 -> 1 | J15: 2 | L15: =iSummary!Y14 -> =7 | M15: =iSummary!Z14 -> China | N15: =iSummary!AA14 -> 60 | P15: =iSummary!AI14 -> 1 | Q15: 3 | S15: =iSummary!AJ14 -> 7 | T15: =iSummary!AK14 -> Philippines | U15: =iSummary!AL14 -> 77.5 | W15: =iSummary!AT14 -> 1 | X15: 3 | Z15: =iSummary!AU14 -> 7 | AA15: =iSummary!AV14 -> Japan | AB15: =iSummary!AW14 -> 70.8 | AD15: =iSummary!BE14 -> 1 | AE15: 2 | AG15: =iSummary!BF14 -> =6 | AH15: =iSummary!BG14 -> Malaysia | AI15: =iSummary!BH14 -> 63.9
B16: =iSummary!M15 -> 1 | C16: 2 | E16: =iSummary!N15 -> =7 | F16: =iSummary!O15 -> Taiwan | G16: =iSummary!P15 -> 69.8 | I16: =iSummary!X15 -> 1 | J16: 2 | L16: =iSummary!Y15 -> =7 | M16: =iSummary!Z15 -> Malaysia | N16: =iSummary!AA15 -> 60 | P16: =iSummary!AI15 -> 1 | Q16: 3 | S16: =iSummary!AJ15 -> 8 | T16: =iSummary!AK15 -> India | U16: =iSummary!AL15 -> 71.8 | W16: =iSummary!AT15 -> 1 | X16: 3 | Z16: =iSummary!AU15 -> 8 | AA16: =iSummary!AV15 -> Malaysia | AB16: =iSummary!AW15 -> 70.3 | AD16: =iSummary!BE15 -> 1 | AE16: 2 | AG16: =iSummary!BF15 -> 8 | AH16: =iSummary!BG15 -> Thailand | AI16: =iSummary!BH15 -> 56.5
B17: =iSummary!M16 -> 1 | C17: 2 | E17: =iSummary!N16 -> 9 | F17: =iSummary!O16 -> China | G17: =iSummary!P16 -> 61.6 | I17: =iSummary!X16 -> 1 | J17: 2 | L17: =iSummary!Y16 -> =7 | M17: =iSummary!Z16 -> South Korea | N17: =iSummary!AA16 -> 60 | P17: =iSummary!AI16 -> 1 | Q17: 2 | S17: =iSummary!AJ16 -> 9 | T17: =iSummary!AK16 -> Hong Kong | U17: =iSummary!AL16 -> 69.5 | W17: =iSummary!AT16 -> 1 | X17: 2 | Z17: =iSummary!AU16 -> 9 | AA17: =iSummary!AV16 -> Thailand | AB17: =iSummary!AW16 -> 68.4 | AD17: =iSummary!BE16 -> 1 | AE17: 2 | AG17: =iSummary!BF16 -> 9 | AH17: =iSummary!BG16 -> South Korea | AI17: =iSummary!BH16 -> 55.6
B18: =iSummary!M17 -> 1 | C18: 2 | E18: =iSummary!N17 -> 10 | F18: =iSummary!O17 -> India | G18: =iSummary!P17 -> 54.1 | I18: =iSummary!X17 -> 1 | J18: 1 | L18: =iSummary!Y17 -> =10 | M18: =iSummary!Z17 -> India | N18: =iSummary!AA17 -> 40 | P18: =iSummary!AI17 -> 1 | Q18: 2 | S18: =iSummary!AJ17 -> 10 | T18: =iSummary!AK17 -> Thailand | U18: =iSummary!AL17 -> 67.5 | W18: =iSummary!AT17 -> 1 | X18: 2 | Z18: =iSummary!AU17 -> 10 | AA18: =iSummary!AV17 -> India | AB18: =iSummary!AW17 -> 65 | AD18: =iSummary!BE17 -> 1 | AE18: 2 | AG18: =iSummary!BF17 -> 10 | AH18: =iSummary!BG17 -> Philippines | AI18: =iSummary!BH17 -> 52.8
B19: =iSummary!M18 -> 1 | C19: 2 | E19: =iSummary!N18 -> 11 | F19: =iSummary!O18 -> Thailand | G19: =iSummary!P18 -> 53.1 | I19: =iSummary!X18 -> 1 | J19: 1 | L19: =iSummary!Y18 -> =10 | M19: =iSummary!Z18 -> Philippines | N19: =iSummary!AA18 -> 40 | P19: =iSummary!AI18 -> 1 | Q19: 2 | S19: =iSummary!AJ18 -> 11 | T19: =iSummary!AK18 -> Vietnam | U19: =iSummary!AL18 -> 59.8 | W19: =iSummary!AT18 -> 1 | X19: 2 | Z19: =iSummary!AU18 -> 11 | AA19: =iSummary!AV18 -> China | AB19: =iSummary!AW18 -> 61.9 | AD19: =iSummary!BE18 -> 1 | AE19: 1 | AG19: =iSummary!BF18 -> =11 | AH19: =iSummary!BG18 -> China | AI19: =iSummary!BH18 -> 44.4
B20: =iSummary!M19 -> 1 | C20: 2 | E20: =iSummary!N19 -> 12 | F20: =iSummary!O19 -> Philippines | G20: =iSummary!P19 -> 50.4 | I20: =iSummary!X19 -> 1 | J20: 1 | L20: =iSummary!Y19 -> =10 | M20: =iSummary!Z19 -> Vietnam | N20: =iSummary!AA19 -> 40 | P20: =iSummary!AI19 -> 1 | Q20: 1 | S20: =iSummary!AJ19 -> 12 | T20: =iSummary!AK19 -> New Zealand | U20: =iSummary!AL19 -> 47.8 | W20: =iSummary!AT19 -> 1 | X20: 2 | Z20: =iSummary!AU19 -> 12 | AA20: =iSummary!AV19 -> Vietnam | AB20: =iSummary!AW19 -> 53.2 | AD20: =iSummary!BE19 -> 1 | AE20: 1 | AG20: =iSummary!BF19 -> =11 | AH20: =iSummary!BG19 -> Indonesia | AI20: =iSummary!BH19 -> 44.4
B21: =iSummary!M20 -> 1 | C21: 1 | E21: =iSummary!N20 -> 13 | F21: =iSummary!O20 -> Vietnam | G21: =iSummary!P20 -> 49.4 | I21: =iSummary!X20 -> 1 | J21: 0 | L21: =iSummary!Y20 -> =13 | M21: =iSummary!Z20 -> Cambodia | N21: =iSummary!AA20 -> 20 | P21: =iSummary!AI20 -> 1 | Q21: 1 | S21: =iSummary!AJ20 -> 13 | T21: =iSummary!AK20 -> Taiwan | U21: =iSummary!AL20 -> 44 | W21: =iSummary!AT20 -> 1 | X21: 1 | Z21: =iSummary!AU20 -> 13 | AA21: =iSummary!AV20 -> Indonesia | AB21: =iSummary!AW20 -> 41.8 | AD21: =iSummary!BE20 -> 1 | AE21: 1 | AG21: =iSummary!BF20 -> =11 | AH21: =iSummary!BG20 -> Vietnam | AI21: =iSummary!BH20 -> 44.4
B22: =iSummary!M21 -> 1 | C22: 1 | E22: =iSummary!N21 -> 14 | F22: =iSummary!O21 -> Indonesia | G22: =iSummary!P21 -> 46.1 | I22: =iSummary!X21 -> 1 | J22: 0 | L22: =iSummary!Y21 -> =13 | M22: =iSummary!Z21 -> Indonesia | N22: =iSummary!AA21 -> 20 | P22: =iSummary!AI21 -> 1 | Q22: 0 | S22: =iSummary!AJ21 -> 14 | T22: =iSummary!AK21 -> Singapore | U22: =iSummary!AL21 -> 25.8 | W22: =iSummary!AT21 -> 1 | X22: 1 | Z22: =iSummary!AU21 -> 14 | AA22: =iSummary!AV21 -> Philippines | AB22: =iSummary!AW21 -> 31.4 | AD22: =iSummary!BE21 -> 1 | AE22: 1 | AG22: =iSummary!BF21 -> 14 | AH22: =iSummary!BG21 -> Laos | AI22: =iSummary!BH21 -> 40.7
B23: =iSummary!M22 -> 1 | C23: 0 | E23: =iSummary!N22 -> 15 | F23: =iSummary!O22 -> Cambodia | G23: =iSummary!P22 -> 23.9 | I23: =iSummary!X22 -> 1 | J23: 0 | L23: =iSummary!Y22 -> =13 | M23: =iSummary!Z22 -> Thailand | N23: =iSummary!AA22 -> 20 | P23: =iSummary!AI22 -> 1 | Q23: 0 | S23: =iSummary!AJ22 -> 15 | T23: =iSummary!AK22 -> Cambodia | U23: =iSummary!AL22 -> 25 | W23: =iSummary!AT22 -> 1 | X23: 0 | Z23: =iSummary!AU22 -> 15 | AA23: =iSummary!AV22 -> Cambodia | AB23: =iSummary!AW22 -> 22 | AD23: =iSummary!BE22 -> 1 | AE23: 1 | AG23: =iSummary!BF22 -> 15 | AH23: =iSummary!BG22 -> India | AI23: =iSummary!BH22 -> 39.8
B24: =iSummary!M23 -> 1 | C24: 0 | E24: =iSummary!N23 -> 16 | F24: =iSummary!O23 -> Laos | G24: =iSummary!P23 -> 12.9 | I24: =iSummary!X23 -> 1 | J24: 0 | L24: =iSummary!Y23 -> =16 | M24: =iSummary!Z23 -> Laos | N24: =iSummary!AA23 -> 0 | P24: =iSummary!AI23 -> 1 | Q24: 0 | S24: =iSummary!AJ23 -> 16 | T24: =iSummary!AK23 -> Myanmar | U24: =iSummary!AL23 -> 11.8 | W24: =iSummary!AT23 -> 1 | X24: 0 | Z24: =iSummary!AU23 -> 16 | AA24: =iSummary!AV23 -> Myanmar | AB24: =iSummary!AW23 -> 11.1 | AD24: =iSummary!BE23 -> 1 | AE24: 0 | AG24: =iSummary!BF23 -> 16 | AH24: =iSummary!BG23 -> Cambodia | AI24: =iSummary!BH23 -> 28.7
B25: =iSummary!M24 -> 1 | C25: 0 | E25: =iSummary!N24 -> 17 | F25: =iSummary!O24 -> Myanmar | G25: =iSummary!P24 -> 10.8 | I25: =iSummary!X24 -> 1 | J25: 0 | L25: =iSummary!Y24 -> =16 | M25: =iSummary!Z24 -> Myanmar | N25: =iSummary!AA24 -> 0 | P25: =iSummary!AI24 -> 1 | Q25: 0 | S25: =iSummary!AJ24 -> 17 | T25: =iSummary!AK24 -> Laos | U25: =iSummary!AL24 -> 11 | W25: =iSummary!AT24 -> 1 | X25: 0 | Z25: =iSummary!AU24 -> 17 | AA25: =iSummary!AV24 -> Laos | AB25: =iSummary!AW24 -> 0 | AD25: =iSummary!BE24 -> 1 | AE25: 0 | AG25: =iSummary!BF24 -> 17 | AH25: =iSummary!BG24 -> Myanmar | AI25: =iSummary!BH24 -> 20.4
AD26: =iSummary!BE25 -> 0
B27: 1 | E27: =rScores!T1 -> Average: All Incomes | G27: =rScores!T2 -> 57.04705882 | I27: 1 | L27: =$E$27 -> Average: All Incomes | N27: =rScores!T3 -> 51.76470588 | P27: 1 | S27: =$E$27 -> Average: All Incomes | U27: =rScores!T6 -> 60.37058824 | W27: 1 | Z27: =$E$27 -> Average: All Incomes | AB27: =rScores!T11 -> 59.2 | AD27: =iSummary!BE26 -> 0 | AG27: =$E$27 -> Average: All Incomes | AI27: =rScores!T17 -> 56.85882353
B28: 1 | E28: ="Average of the "&iSummary!H28&" Countries Above - 'x'" -> Average of the 17 Countries Above - 'x' | G28: =iSummary!H27 -> 57.04705882 | I28: 1 | L28: =$E$28 -> Average of the 17 Countries Above - 'x' | N28: =iSummary!S27 -> 51.76470588 | P28: 1 | S28: =$E$28 -> Average of the 17 Countries Above - 'x' | U28: =iSummary!AD27 -> 60.37058824 | W28: 1 | Z28: =$E$28 -> Average of the 17 Countries Above - 'x' | AB28: =iSummary!AO27 -> 59.2 | AD28: =iSummary!BE27 -> 0 | AG28: =$E$28 -> Average of the 17 Countries Above - 'x' | AI28: =iSummary!AZ27 -> 56.85882353
B29: 1 | E29: Rank | F29: =iSummary!G28 -> 9 < x < 10 | I29: 1 | L29: =$E$29 -> Rank | M29: =iSummary!R28 -> 9 < x < 10 | P29: 1 | S29: =$E$29 -> Rank | T29: =iSummary!AC28 -> 10 < x < 11 | W29: 1 | Z29: =$E$29 -> Rank | AA29: =iSummary!AN28 -> 11 < x < 12 | AD29: =iSummary!BE28 -> 0 | AG29: =$E$29 -> Rank | AH29: =iSummary!AY28 -> 7 < x < 8

Sheet iIndiRank (hidden)
C1: =uxb_works!C13 -> IS_BG | D1: =uxb_works!D13 -> Spare1 | E1: =uxb_works!E13 -> INDI_CODE | F1: =uxb_works!F13 -> PARENT_CODE | G1: =uxb_works!G13 -> DEPTH | H1: =uxb_works!H13 -> REF | I1: =uxb_works!I13 -> NDICATOR_SHORT | J1: =uxb_works!J13 -> DESCRITION | K1: =uxb_works!K13 -> INDICATOR_MULTI | L1: =uxb_works!L13 -> INDICATOR_UNIT | M1: =uxb_works!M13 -> Scoring Criteria (0-100 or 0-4 etc) | N1: =uxb_works!N13 -> Year | O1: =uxb_works!O13 -> Geography | P1: =uxb_works!P13 -> HIGH=Good | Q1: =uxb_works!Q13 -> Format | R1: =uxb_works!R13 -> MAIN_SOURCE | S1: =uxb_works!S13 -> SOURCE_WS_ID | T1: =uxb_works!T13 -> HIGH_IS | U1: =uxb_works!U13 -> NORM_ID (1=sumproduct, 2=min max set by data values, 3=min max set by user here) | V1: =uxb_works!V13 -> Set Min | W1: =uxb_works!W13 -> Set Max | X1: =uxb_works!X13 -> WEIGHT_NOM | Y1: =uxb_works!Y13 -> WEIGHT_PERC | Z1: =uxb_works!Z13 -> REF_INDI | AA1: =uxb_works!AA13 -> PARENT | AB1: =uxb_works!AB13 -> Weight_row
A2: =uxb_works!A14 -> INDI_ID | B2: =uxb_works!B14 -> 1 | C2: =uxb_works!C14 -> 0 | D2: =uxb_works!D14 ->  | E2: =uxb_works!E14 -> TOTAL | F2: =uxb_works!F14 -> OVERALL SCORE | G2: =uxb_works!G14 -> 0 | H2: =uxb_works!H14 ->  | I2: =uxb_works!I14 -> OVERALL SCORE | J2: =uxb_works!J14 -> The overall score is the weighted sum of the following categories scores: 1) Intellectual property 2) Transparency and trade 3) Customs environment 4) Supply and demand | K2: =uxb_works!K14 -> Index score/number | L2: =uxb_works!L14 ->  | M2: =uxb_works!M14 -> Index score/number | N2: =uxb_works!N14 -> Index score/number | O2: =uxb_works!O14 ->  | P2: =uxb_works!P14 ->  | Q2: =uxb_works!Q14 -> 0.0 | R2: =uxb_works!R14 -> EIU Calculation | S2: =uxb_works!S14 ->  | T2: =uxb_works!T14 ->  | U2: =uxb_works!U14 -> 1 | V2: =uxb_works!V14 ->  | W2: =uxb_works!W14 ->  | X2: =uxb_works!X14 -> 0 | Y2: =uxb_works!Y14 ->  | Z2: =IF(OR(B2=1,G2=1),"",uxb_works!Z14) ->  | AA2: =IF(B2=1,F2,IF(G2=1,uxb_works!Z14,uxb_works!AA14)) -> OVERALL SCORE | AB2: =uxb_works!AB14 -> 
A3: INDI_IS_NATIONAL | B3: =D2 -> 
A4: SHOW_DATA | B4: =IF(U2=1,FALSE,TRUE) -> FALSE | D4: =uxb_works!A6 -> CITY_HIGHLIGHT_DD | E4: =uxb_works!B6 -> 1 | F4: =uxb_works!C6 -> <none> | I4: All Tiers | J4: =uxb_works!B8 -> 1 | S4: ALL UNFILTERED DATA POINTS | X4: REGION HIGHLIGHT DATAPOINTS | AA4: City HIGHLIGHT | AD4: All Tiers
D5: IsRegion | E5: Status | F5: ActiveStatus | G5: Score (unrounded) | H5: Rank unrounded | I5: LU | J5: yScatter | K5: RankRounded | O5: Score | P5: =IF($B$4,"Data","") ->  | Q5: Score Display | S5: X | T5: Y | V5: HAS_SUB_INDICATORS | AH5: Tier Filter
A6: =tblTerritories!A3 -> 1 | B6: =tblTerritories!B3 -> AUS | C6: =tblTerritories!E3 -> Australia | D6: =tblTerritories!D3 -> 0 | E6: =IF(AND(OR(tblTerritories!$K$5=4,tblTerritories!$K$5=5),$G$2=3),0,IF(AND(OR(tblTerritories!$K$5=2,tblTerritories!$K$5=3),$G$2=3),tblTerritories!G3,IF(AND($G$2=3,tblTerritories!$K$5=1),W6,tblTerritories!G3))) -> 1 | F6: =tblTerritories!G3 -> 1 | G6: =IF(F6=0,"",ROUND(INDEX(aScores,$B$2,$A6),5)) -> 85.20354 | H6: =IF(F6=0,"",RANK(G6,G$6:G$22,0)+COUNTIF(G$6:G6,G6)-1) -> 1 | I6: =IF(ISERROR(MATCH($A6,H$6:H$22,0)),"",MATCH($A6,H$6:H$22,0)) -> 1 | J6: =IF(I6="","",1) -> 1 | K6: =IF(I6="","",RANK(O6,O$6:O$22,0)) -> 1 | L6: =IF(I6="",0,INDEX($F$6:$F$22,I6)) -> 1 | M6: =IF(I6="","",IF(OR(K6=K5,K6=K7),CONCATENATE("=",K6),K6)) -> 1 | N6: =IF(I6="","",INDEX($C$6:$C$22,I6)) -> Australia | O6: =IF(I6="","",INDEX(aRoundedScores,$B$2,I6)) -> 85.2 | P6: =IF(I6="","",IF($B$4=FALSE,"",INDEX(aData,$B$2,I6))) ->  | Q6: =IF(L6=0,"",IF($C$2=1,"-",O6)) -> 85.2 | S6: =IF(ISNUMBER(O6),O6,NA()) -> 85.2 | T6: =1 -> 1 | V6: 0 | W6: =IF(V6=1,tblTerritories!G3,0) -> 0 | X6: =IF(L6=2,S6,NA()) ->  | Y6: =IF(L6=2,1,NA()) ->  | AA6: =IF(L6=3,S6,NA()) ->  | AB6: =IF(L6=3,1,NA()) ->  | AD6: =VLOOKUP(C6,tblTerritories!$F$3:$L$20,7,FALSE)+10 -> 11 | AE6: =tblTerritories!L3 -> 1 | AF6: =IF($G$2=3,IF(OR(AE6=3,AE6=4),0,1),1) -> 1 | AH6: =CHOOSE(uxb_works!$B$10,tblTerritories!R3,tblTerritories!S3,tblTerritories!T3,tblTerritories!U3,tblTerritories!V3,tblTerritories!#REF!) -> 1
A7: =tblTerritories!A4 -> 2 | B7: =tblTerritories!B4 -> KHM | C7: =tblTerritories!E4 -> Cambodia | D7: =tblTerritories!D4 -> 0 | E7: =IF(AND(OR(tblTerritories!$K$5=4,tblTerritories!$K$5=5),$G$2=3),0,IF(AND(OR(tblTerritories!$K$5=2,tblTerritories!$K$5=3),$G$2=3),tblTerritories!G4,IF(AND($G$2=3,tblTerritories!$K$5=1),W7,tblTerritories!G4))) -> 1 | F7: =tblTerritories!G4 -> 1 | G7: 23.92174 | H7: =IF(F7=0,"",RANK(G7,G$6:G$22,0)+COUNTIF(G$6:G7,G7)-1) -> 15 | I7: =IF(ISERROR(MATCH($A7,H$6:H$22,0)),"",MATCH($A7,H$6:H$22,0)) -> 11 | J7: =IF(I7="","",1) -> 1 | K7: =IF(I7="","",RANK(O7,O$6:O$22,0)) -> 2 | L7: =IF(I7="",0,INDEX($F$6:$F$22,I7)) -> 1 | M7: =IF(I7="","",IF(OR(K7=K6,K7=K8),CONCATENATE("=",K7),K7)) -> 2 | N7: =IF(I7="","",INDEX($C$6:$C$22,I7)) -> New Zealand | O7: =IF(I7="","",INDEX(aRoundedScores,$B$2,I7)) -> 81.8 | P7: =IF(I7="","",IF($B$4=FALSE,"",INDEX(aData,$B$2,I7))) ->  | Q7: =IF(L7=0,"",IF($C$2=1,"-",O7)) -> 81.8 | S7: =IF(ISNUMBER(O7),O7,NA()) -> 81.8 | T7: =1 -> 1 | V7: 0 | W7: =IF(V7=1,tblTerritories!G4,0) -> 0 | X7: =IF(L7=2,S7,NA()) ->  | Y7: =IF(L7=2,1,NA()) ->  | AA7: =IF(L7=3,S7,NA()) ->  | AB7: =IF(L7=3,1,NA()) ->  | AD7: =VLOOKUP(C7,tblTerritories!$F$3:$L$20,7,FALSE)+10 -> 14 | AE7: =tblTerritories!L4 -> 4 | AF7: =IF($G$2=3,IF(OR(AE7=3,AE7=4),0,1),1) -> 1 | AH7: =CHOOSE(uxb_works!$B$10,tblTerritories!R4,tblTerritories!S4,tblTerritories!T4,tblTerritories!U4,tblTerritories!V4,tblTerritories!#REF!) -> 1
A8: =tblTerritories!A5 -> 3 | B8: =tblTerritories!B5 -> CHN | C8: =tblTerritories!E5 -> China | D8: =tblTerritories!D5 -> 0 | E8: =IF(AND(OR(tblTerritories!$K$5=4,tblTerritories!$K$5=5),$G$2=3),0,IF(AND(OR(tblTerritories!$K$5=2,tblTerritories!$K$5=3),$G$2=3),tblTerritories!G5,IF(AND($G$2=3,tblTerritories!$K$5=1),W8,tblTerritories!G5))) -> 1 | F8: =tblTerritories!G5 -> 1 | G8: 61.57655 | H8: =IF(F8=0,"",RANK(G8,G$6:G$22,0)+COUNTIF(G$6:G8,G8)-1) -> 9 | I8: 4 | J8: 1 | K8: 3 | L8: 1 | M8: 3 | N8: Hong Kong | O8: 81.4 | Q8: 81.4 | S8: 81.4 | T8: =1 -> 1 | V8: 0 | W8: =IF(V8=1,tblTerritories!G5,0) -> 0 | AD8: =VLOOKUP(C8,tblTerritories!$F$3:$L$20,7,FALSE)+10 -> 12 | AE8: =tblTerritories!L5 -> 2 | AF8: 1 | AH8: =CHOOSE(uxb_works!$B$10,tblTerritories!R5,tblTerritories!S5,tblTerritories!T5,tblTerritories!U5,tblTerritories!V5,tblTerritories!#REF!) -> 1
A9: =tblTerritories!A6 -> 4 | B9: =tblTerritories!B6 -> HKG | C9: =tblTerritories!E6 -> Hong Kong | D9: =tblTerritories!D6 -> 0 | E9: =IF(AND(OR(tblTerritories!$K$5=4,tblTerritories!$K$5=5),$G$2=3),0,IF(AND(OR(tblTerritories!$K$5=2,tblTerritories!$K$5=3),$G$2=3),tblTerritories!G6,IF(AND($G$2=3,tblTerritories!$K$5=1),W9,tblTerritories!G6))) -> 1 | F9: =tblTerritories!G6 -> 1 | G9: 81.40889 | H9: =IF(F9=0,"",RANK(G9,G$6:G$22,0)+COUNTIF(G$6:G9,G9)-1) -> 3 | I9: 7 | J9: 1 | K9: 4 | L9: 1 | M9: 4 | N9: Japan | O9: 75.9 | Q9: 75.9 | S9: 75.9 | T9: =1 -> 1 | V9: 0 | W9: =IF(V9=1,tblTerritories!G6,0) -> 0 | AD9: =VLOOKUP(C9,tblTerritories!$F$3:$L$20,7,FALSE)+10 -> 11 | AE9: =tblTerritories!L6 -> 1 | AF9: 1 | AH9: =CHOOSE(uxb_works!$B$10,tblTerritories!R6,tblTerritories!S6,tblTerritories!T6,tblTerritories!U6,tblTerritories!V6,tblTerritories!#REF!) -> 1
A10: =tblTerritories!A7 -> 5 | B10: =tblTerritories!B7 -> IND | C10: =tblTerritories!E7 -> India | D10: =tblTerritories!D7 -> 0 | E10: =IF(AND(OR(tblTerritories!$K$5=4,tblTerritories!$K$5=5),$G$2=3),0,IF(AND(OR(tblTerritories!$K$5=2,tblTerritories!$K$5=3),$G$2=3),tblTerritories!G7,IF(AND($G$2=3,tblTerritories!$K$5=1),W10,tblTerritories!G7))) -> 1 | F10: =tblTerritories!G7 -> 1 | G10: 54.14281 | H10: =IF(F10=0,"",RANK(G10,G$6:G$22,0)+COUNTIF(G$6:G10,G10)-1) -> 10 | I10: 14 | J10: 1 | K10: 5 | L10: 1 | M10: =5 | N10: South Korea | O10: 71.8 | Q10: 71.8 | S10: 71.8 | T10: =1 -> 1 | V10: 0 | W10: =IF(V10=1,tblTerritories!G7,0) -> 0 | AD10: =VLOOKUP(C10,tblTerritories!$F$3:$L$20,7,FALSE)+10 -> 12 | AE10: =tblTerritories!L7 -> 2 | AF10: 1 | AH10: =CHOOSE(uxb_works!$B$10,tblTerritories!R7,tblTerritories!S7,tblTerritories!T7,tblTerritories!U7,tblTerritories!V7,tblTerritories!#REF!) -> 1
A11: =tblTerritories!A8 -> 6 | B11: =tblTerritories!B8 -> IDN | C11: =tblTerritories!E8 -> Indonesia | D11: =tblTerritories!D8 -> 0 | E11: =IF(AND(OR(tblTerritories!$K$5=4,tblTerritories!$K$5=5),$G$2=3),0,IF(AND(OR(tblTerritories!$K$5=2,tblTerritories!$K$5=3),$G$2=3),tblTerritories!G8,IF(AND($G$2=3,tblTerritories!$K$5=1),W11,tblTerritories!G8))) -> 1 | F11: =tblTerritories!G8 -> 1 | G11: 46.06624 | H11: =IF(F11=0,"",RANK(G11,G$6:G$22,0)+COUNTIF(G$6:G11,G11)-1) -> 14 | I11: 9 | J11: 1 | K11: 5 | L11: 1 | M11: =5 | N11: Malaysia | O11: 71.8 | Q11: 71.8 | S11: 71.8 | T11: =1 -> 1 | V11: 0 | W11: =IF(V11=1,tblTerritories!G8,0) -> 0 | AD11: =VLOOKUP(C11,tblTerritories!$F$3:$L$20,7,FALSE)+10 -> 13 | AE11: =tblTerritories!L8 -> 3 | AF11: 1 | AH11: =CHOOSE(uxb_works!$B$10,tblTerritories!R8,tblTerritories!S8,tblTerritories!T8,tblTerritories!U8,tblTerritories!V8,tblTerritories!#REF!) -> 1
A12: =tblTerritories!A9 -> 7 | B12: =tblTerritories!B9 -> JPN | C12: =tblTerritories!E9 -> Japan | D12: =tblTerritories!D9 -> 0 | E12: =IF(AND(OR(tblTerritories!$K$5=4,tblTerritories!$K$5=5),$G$2=3),0,IF(AND(OR(tblTerritories!$K$5=2,tblTerritories!$K$5=3),$G$2=3),tblTerritories!G9,IF(AND($G$2=3,tblTerritories!$K$5=1),W12,tblTerritories!G9))) -> 1 | F12: =tblTerritories!G9 -> 1 | G12: 75.85877 | H12: =IF(F12=0,"",RANK(G12,G$6:G$22,0)+COUNTIF(G$6:G12,G12)-1) -> 4 | I12: 15 | J12: 1 | K12: 7 | L12: 1 | M12: =7 | N12: Taiwan | O12: 69.8 | Q12: 69.8 | S12: 69.8 | T12: =1 -> 1 | V12: 0 | W12: =IF(V12=1,tblTerritories!G9,0) -> 0 | AD12: =VLOOKUP(C12,tblTerritories!$F$3:$L$20,7,FALSE)+10 -> 11 | AE12: =tblTerritories!L9 -> 1 | AF12: 1 | AH12: =CHOOSE(uxb_works!$B$10,tblTerritories!R9,tblTerritories!S9,tblTerritories!T9,tblTerritories!U9,tblTerritories!V9,tblTerritories!#REF!) -> 1
A13: =tblTerritories!A10 -> 8 | B13: =tblTerritories!B10 -> LAO | C13: =tblTerritories!E10 -> Laos | D13: =tblTerritories!D10 -> 0 | E13: =IF(AND(OR(tblTerritories!$K$5=4,tblTerritories!$K$5=5),$G$2=3),0,IF(AND(OR(tblTerritories!$K$5=2,tblTerritories!$K$5=3),$G$2=3),tblTerritories!G10,IF(AND($G$2=3,tblTerritories!$K$5=1),W13,tblTerritories!G10))) -> 1 | F13: =tblTerritories!G10 -> 1 | G13: 12.93519 | H13: =IF(F13=0,"",RANK(G13,G$6:G$22,0)+COUNTIF(G$6:G13,G13)-1) -> 16 | I13: 13 | J13: 1 | K13: 7 | L13: 1 | M13: =7 | N13: Singapore | O13: 69.8 | Q13: 69.8 | S13: 69.8 | T13: =1 -> 1 | V13: 0 | W13: =IF(V13=1,tblTerritories!G10,0) -> 0 | AD13: =VLOOKUP(C13,tblTerritories!$F$3:$L$20,7,FALSE)+10 -> 14 | AE13: =tblTerritories!L10 -> 4 | AF13: 1 | AH13: =CHOOSE(uxb_works!$B$10,tblTerritories!R10,tblTerritories!S10,tblTerritories!T10,tblTerritories!U10,tblTerritories!V10,tblTerritories!#REF!) -> 1
A14: =tblTerritories!A11 -> 9 | B14: =tblTerritories!B11 -> MYS | C14: =tblTerritories!E11 -> Malaysia | D14: =tblTerritories!D11 -> 0 | E14: =IF(AND(OR(tblTerritories!$K$5=4,tblTerritories!$K$5=5),$G$2=3),0,IF(AND(OR(tblTerritories!$K$5=2,tblTerritories!$K$5=3),$G$2=3),tblTerritories!G11,IF(AND($G$2=3,tblTerritories!$K$5=1),W14,tblTerritories!G11))) -> 1 | F14: =tblTerritories!G11 -> 1 | G14: 71.80016 | H14: =IF(F14=0,"",RANK(G14,G$6:G$22,0)+COUNTIF(G$6:G14,G14)-1) -> 6 | I14: 3 | J14: 1 | K14: 9 | L14: 1 | M14: 9 | N14: China | O14: 61.6 | Q14: 61.6 | S14: 61.6 | T14: =1 -> 1 | V14: 0 | W14: =IF(V14=1,tblTerritories!G11,0) -> 0 | AD14: =VLOOKUP(C14,tblTerritories!$F$3:$L$20,7,FALSE)+10 -> 12 | AE14: =tblTerritories!L11 -> 2 | AF14: 1 | AH14: =CHOOSE(uxb_works!$B$10,tblTerritories!R11,tblTerritories!S11,tblTerritories!T11,tblTerritories!U11,tblTerritories!V11,tblTerritories!#REF!) -> 1
A15: =tblTerritories!A12 -> 10 | B15: =tblTerritories!B12 -> MMR | C15: =tblTerritories!E12 -> Myanmar | D15: =tblTerritories!D12 -> 0 | E15: =IF(AND(OR(tblTerritories!$K$5=4,tblTerritories!$K$5=5),$G$2=3),0,IF(AND(OR(tblTerritories!$K$5=2,tblTerritories!$K$5=3),$G$2=3),tblTerritories!G12,IF(AND($G$2=3,tblTerritories!$K$5=1),W15,tblTerritories!G12))) -> 1 | F15: =tblTerritories!G12 -> 1 | G15: 10.82037 | H15: =IF(F15=0,"",RANK(G15,G$6:G$22,0)+COUNTIF(G$6:G15,G15)-1) -> 17 | I15: 5 | J15: 1 | K15: 10 | L15: 1 | M15: 10 | N15: India | O15: 54.1 | Q15: 54.1 | S15: 54.1 | T15: =1 -> 1 | V15: 0 | W15: =IF(V15=1,tblTerritories!G12,0) -> 0 | AD15: =VLOOKUP(C15,tblTerritories!$F$3:$L$20,7,FALSE)+10 -> 14 | AE15: =tblTerritories!L12 -> 4 | AF15: 1 | AH15: =CHOOSE(uxb_works!$B$10,tblTerritories!R12,tblTerritories!S12,tblTerritories!T12,tblTerritories!U12,tblTerritories!V12,tblTerritories!#REF!) -> 1
A16: =tblTerritories!A13 -> 11 | B16: =tblTerritories!B13 -> NZL | C16: =tblTerritories!E13 -> New Zealand | D16: =tblTerritories!D13 -> 0 | E16: =IF(AND(OR(tblTerritories!$K$5=4,tblTerritories!$K$5=5),$G$2=3),0,IF(AND(OR(tblTerritories!$K$5=2,tblTerritories!$K$5=3),$G$2=3),tblTerritories!G13,IF(AND($G$2=3,tblTerritories!$K$5=1),W16,tblTerritories!G13))) -> 1 | F16: =tblTerritories!G13 -> 1 | G16: 81.80622 | H16: =IF(F16=0,"",RANK(G16,G$6:G$22,0)+COUNTIF(G$6:G16,G16)-1) -> 2 | I16: 16 | J16: 1 | K16: 11 | L16: 1 | M16: 11 | N16: Thailand | O16: 53.1 | Q16: 53.1 | S16: 53.1 | T16: =1 -> 1 | V16: 0 | W16: =IF(V16=1,tblTerritories!G13,0) -> 0 | AD16: =VLOOKUP(C16,tblTerritories!$F$3:$L$20,7,FALSE)+10 -> 11 | AE16: =tblTerritories!L13 -> 1 | AF16: 1 | AH16: =CHOOSE(uxb_works!$B$10,tblTerritories!R13,tblTerritories!S13,tblTerritories!T13,tblTerritories!U13,tblTerritories!V13,tblTerritories!#REF!) -> 1
A17: =tblTerritories!A14 -> 12 | B17: =tblTerritories!B14 -> PHL | C17: =tblTerritories!E14 -> Philippines | D17: =tblTerritories!D14 -> 0 | E17: =IF(AND(OR(tblTerritories!$K$5=4,tblTerritories!$K$5=5),$G$2=3),0,IF(AND(OR(tblTerritories!$K$5=2,tblTerritories!$K$5=3),$G$2=3),tblTerritories!G14,IF(AND($G$2=3,tblTerritories!$K$5=1),W17,tblTerritories!G14))) -> 1 | F17: =tblTerritories!G14 -> 1 | G17: 50.41136 | H17: =IF(F17=0,"",RANK(G17,G$6:G$22,0)+COUNTIF(G$6:G17,G17)-1) -> 12 | I17: 12 | J17: 1 | K17: 12 | L17: 1 | M17: 12 | N17: Philippines | O17: 50.4 | Q17: 50.4 | S17: 50.4 | T17: =1 -> 1 | V17: 0 | W17: =IF(V17=1,tblTerritories!G14,0) -> 0 | AD17: =VLOOKUP(C17,tblTerritories!$F$3:$L$20,7,FALSE)+10 -> 13 | AE17: =tblTerritories!L14 -> 3 | AF17: 1 | AH17: =CHOOSE(uxb_works!$B$10,tblTerritories!R14,tblTerritories!S14,tblTerritories!T14,tblTerritories!U14,tblTerritories!V14,tblTerritories!#REF!) -> 1
A18: =tblTerritories!A15 -> 13 | B18: =tblTerritories!B15 -> SGP | C18: =tblTerritories!E15 -> Singapore | D18: =tblTerritories!D15 -> 0 | E18: =IF(AND(OR(tblTerritories!$K$5=4,tblTerritories!$K$5=5),$G$2=3),0,IF(AND(OR(tblTerritories!$K$5=2,tblTerritories!$K$5=3),$G$2=3),tblTerritories!G15,IF(AND($G$2=3,tblTerritories!$K$5=1),W18,tblTerritories!G15))) -> 1 | F18: =tblTerritories!G15 -> 1 | G18: 69.75511 | H18: =IF(F18=0,"",RANK(G18,G$6:G$22,0)+COUNTIF(G$6:G18,G18)-1) -> 8 | I18: 17 | J18: 1 | K18: 13 | L18: 1 | M18: 13 | N18: Vietnam | O18: 49.4 | Q18: 49.4 | S18: 49.4 | T18: =1 -> 1 | V18: 0 | W18: =IF(V18=1,tblTerritories!G15,0) -> 0 | AD18: =VLOOKUP(C18,tblTerritories!$F$3:$L$20,7,FALSE)+10 -> 11 | AE18: =tblTerritories!L15 -> 1 | AF18: 1 | AH18: =CHOOSE(uxb_works!$B$10,tblTerritories!R15,tblTerritories!S15,tblTerritories!T15,tblTerritories!U15,tblTerritories!V15,tblTerritories!#REF!) -> 1
A19: =tblTerritories!A16 -> 14 | B19: =tblTerritories!B16 -> KOR | C19: =tblTerritories!E16 -> South Korea | D19: =tblTerritories!D16 -> 0 | E19: =IF(AND(OR(tblTerritories!$K$5=4,tblTerritories!$K$5=5),$G$2=3),0,IF(AND(OR(tblTerritories!$K$5=2,tblTerritories!$K$5=3),$G$2=3),tblTerritories!G16,IF(AND($G$2=3,tblTerritories!$K$5=1),W19,tblTerritories!G16))) -> 1 | F19: =tblTerritories!G16 -> 1 | G19: 71.82736 | H19: =IF(F19=0,"",RANK(G19,G$6:G$22,0)+COUNTIF(G$6:G19,G19)-1) -> 5 | I19: 6 | J19: 1 | K19: 14 | L19: 1 | M19: 14 | N19: Indonesia | O19: 46.1 | Q19: 46.1 | S19: 46.1 | T19: =1 -> 1 | V19: 0 | W19: =IF(V19=1,tblTerritories!G16,0) -> 0 | AD19: =VLOOKUP(C19,tblTerritories!$F$3:$L$20,7,FALSE)+10 -> 11 | AE19: =tblTerritories!L16 -> 1 | AF19: 1 | AH19: =CHOOSE(uxb_works!$B$10,tblTerritories!R16,tblTerritories!S16,tblTerritories!T16,tblTerritories!U16,tblTerritories!V16,tblTerritories!#REF!) -> 1
A20: =tblTerritories!A17 -> 15 | B20: =tblTerritories!B17 -> TWN | C20: =tblTerritories!E17 -> Taiwan | D20: =tblTerritories!D17 -> 0 | E20: =IF(AND(OR(tblTerritories!$K$5=4,tblTerritories!$K$5=5),$G$2=3),0,IF(AND(OR(tblTerritories!$K$5=2,tblTerritories!$K$5=3),$G$2=3),tblTerritories!G17,IF(AND($G$2=3,tblTerritories!$K$5=1),W20,tblTerritories!G17))) -> 1 | F20: =tblTerritories!G17 -> 1 | G20: 69.8145 | H20: =IF(F20=0,"",RANK(G20,G$6:G$22,0)+COUNTIF(G$6:G20,G20)-1) -> 7 | I20: 2 | J20: 1 | K20: 15 | L20: 1 | M20: 15 | N20: Cambodia | O20: 23.9 | Q20: 23.9 | S20: 23.9 | T20: =1 -> 1 | V20: 0 | W20: =IF(V20=1,tblTerritories!G17,0) -> 0 | AD20: =VLOOKUP(C20,tblTerritories!$F$3:$L$20,7,FALSE)+10 -> 11 | AE20: =tblTerritories!L17 -> 1 | AF20: 1 | AH20: =CHOOSE(uxb_works!$B$10,tblTerritories!R17,tblTerritories!S17,tblTerritories!T17,tblTerritories!U17,tblTerritories!V17,tblTerritories!#REF!) -> 1
A21: =tblTerritories!A18 -> 16 | B21: =tblTerritories!B18 -> THA | C21: =tblTerritories!E18 -> Thailand | D21: =tblTerritories!D18 -> 0 | E21: =IF(AND(OR(tblTerritories!$K$5=4,tblTerritories!$K$5=5),$G$2=3),0,IF(AND(OR(tblTerritories!$K$5=2,tblTerritories!$K$5=3),$G$2=3),tblTerritories!G18,IF(AND($G$2=3,tblTerritories!$K$5=1),W21,tblTerritories!G18))) -> 1 | F21: =tblTerritories!G18 -> 1 | G21: 53.10302 | H21: =IF(F21=0,"",RANK(G21,G$6:G$22,0)+COUNTIF(G$6:G21,G21)-1) -> 11 | I21: 8 | J21: 1 | K21: 16 | L21: 1 | M21: 16 | N21: Laos | O21: 12.9 | Q21: 12.9 | S21: 12.9 | T21: =1 -> 1 | V21: 0 | W21: =IF(V21=1,tblTerritories!G18,0) -> 0 | AD21: =VLOOKUP(C21,tblTerritories!$F$3:$L$20,7,FALSE)+10 -> 13 | AE21: =tblTerritories!L18 -> 3 | AF21: 1 | AH21: =CHOOSE(uxb_works!$B$10,tblTerritories!R18,tblTerritories!S18,tblTerritories!T18,tblTerritories!U18,tblTerritories!V18,tblTerritories!#REF!) -> 1
A22: =tblTerritories!A19 -> 17 | B22: =tblTerritories!B19 -> VNM | C22: =tblTerritories!E19 -> Vietnam | D22: =tblTerritories!D19 -> 0 | E22: =IF(AND(OR(tblTerritories!$K$5=4,tblTerritories!$K$5=5),$G$2=3),0,IF(AND(OR(tblTerritories!$K$5=2,tblTerritories!$K$5=3),$G$2=3),tblTerritories!G19,IF(AND($G$2=3,tblTerritories!$K$5=1),W22,tblTerritories!G19))) -> 1 | F22: =tblTerritories!G19 -> 1 | G22: 49.35506 | H22: =IF(F22=0,"",RANK(G22,G$6:G$22,0)+COUNTIF(G$6:G22,G22)-1) -> 13 | I22: 10 | J22: 1 | K22: 17 | L22: 1 | M22: 17 | N22: Myanmar | O22: 10.8 | Q22: 10.8 | S22: 10.8 | T22: =1 -> 1 | V22: 0 | W22: =IF(V22=1,tblTerritories!G19,0) -> 0 | AD22: =VLOOKUP(C22,tblTerritories!$F$3:$L$20,7,FALSE)+10 -> 14 | AE22: =tblTerritories!L19 -> 4 | AF22: 1 | AH22: =CHOOSE(uxb_works!$B$10,tblTerritories!R19,tblTerritories!S19,tblTerritories!T19,tblTerritories!U19,tblTerritories!V19,tblTerritories!#REF!) -> 1
A24: Region | B24: =INDEX(tblTerritories!O4:O8,uxb_works!B8) -> All Incomes
A25: Average | B25: =INDEX(rScores!$T$2:$T$20,B2) -> 57.04705882
J26: 1 | O26: =IF(uxb_works!B6>1,INDEX(G5:G22,uxb_works!B6),NA()) -> 
AA28: Less Than

Sheet Indicator_Ranking (hidden)
D3: =iIndiRank!AA2 -> OVERALL SCORE
D4: =iIndiRank!Z2 -> 
D7: DISTRIBUTION
L8: ="Regional Average: "&iIndiRank!B24 -> Regional Average: All Incomes
L9: =iIndiRank!B25 -> 57.04705882
L10: Source
L11: =iIndiRank!R2 -> EIU Calculation
L12: Unit
L13: =iIndiRank!N2 -> Index score/number
D14: Rank | E14: City | F14: Score / 100 | G14: Score / 100 | H14: Score Visualisation | I14: =iIndiRank!P5 ->  | L14: Description
C15: =iIndiRank!L6 -> 1 | D15: =iIndiRank!M6 -> 1 | E15: =iIndiRank!N6 -> Australia | F15: =iIndiRank!O6 -> 85.2 | G15: =iIndiRank!Q6 -> 85.2 | H15: =IF(ISNUMBER(F15),REPT("|",F15/3),"") -> |||||||||||||||||||||||||||| | I15: =TEXT(iIndiRank!P6,iIndiRank!$Q$2) ->  | L15: =iIndiRank!J2 -> The overall score is the weighted sum of the following categories scores: 1) Intellectual property 2) Transparency and trade 3) Customs environment 4) Supply and demand
C16: =iIndiRank!L7 -> 1 | D16: =iIndiRank!M7 -> 2 | E16: =iIndiRank!N7 -> New Zealand | F16: =iIndiRank!O7 -> 81.8 | G16: =iIndiRank!Q7 -> 81.8 | H16: =IF(ISNUMBER(F16),REPT("|",F16/3),"") -> ||||||||||||||||||||||||||| | I16: =TEXT(iIndiRank!P7,iIndiRank!$Q$2) -> 
C17: =iIndiRank!L8 -> 1 | D17: =iIndiRank!M8 -> 3 | E17: =iIndiRank!N8 -> Hong Kong | F17: =iIndiRank!O8 -> 81.4 | G17: =iIndiRank!Q8 -> 81.4 | H17: ||||||||||||||||||||||||||| | I17: =TEXT(iIndiRank!P8,iIndiRank!$Q$2) -> 
C18: =iIndiRank!L9 -> 1 | D18: =iIndiRank!M9 -> 4 | E18: =iIndiRank!N9 -> Japan | F18: =iIndiRank!O9 -> 75.9 | G18: =iIndiRank!Q9 -> 75.9 | H18: ||||||||||||||||||||||||| | I18: =TEXT(iIndiRank!P9,iIndiRank!$Q$2) -> 
C19: =iIndiRank!L10 -> 1 | D19: =iIndiRank!M10 -> =5 | E19: =iIndiRank!N10 -> South Korea | F19: =iIndiRank!O10 -> 71.8 | G19: =iIndiRank!Q10 -> 71.8 | H19: ||||||||||||||||||||||| | I19: =TEXT(iIndiRank!P10,iIndiRank!$Q$2) -> 
C20: =iIndiRank!L11 -> 1 | D20: =iIndiRank!M11 -> =5 | E20: =iIndiRank!N11 -> Malaysia | F20: =iIndiRank!O11 -> 71.8 | G20: =iIndiRank!Q11 -> 71.8 | H20: ||||||||||||||||||||||| | I20: =TEXT(iIndiRank!P11,iIndiRank!$Q$2) -> 
C21: =iIndiRank!L12 -> 1 | D21: =iIndiRank!M12 -> =7 | E21: =iIndiRank!N12 -> Taiwan | F21: =iIndiRank!O12 -> 69.8 | G21: =iIndiRank!Q12 -> 69.8 | H21: ||||||||||||||||||||||| | I21: =TEXT(iIndiRank!P12,iIndiRank!$Q$2) -> 
C22: =iIndiRank!L13 -> 1 | D22: =iIndiRank!M13 -> =7 | E22: =iIndiRank!N13 -> Singapore | F22: =iIndiRank!O13 -> 69.8 | G22: =iIndiRank!Q13 -> 69.8 | H22: ||||||||||||||||||||||| | I22: =TEXT(iIndiRank!P13,iIndiRank!$Q$2) -> 
C23: =iIndiRank!L14 -> 1 | D23: =iIndiRank!M14 -> 9 | E23: =iIndiRank!N14 -> China | F23: =iIndiRank!O14 -> 61.6 | G23: =iIndiRank!Q14 -> 61.6 | H23: |||||||||||||||||||| | I23: =TEXT(iIndiRank!P14,iIndiRank!$Q$2) -> 
C24: =iIndiRank!L15 -> 1 | D24: =iIndiRank!M15 -> 10 | E24: =iIndiRank!N15 -> India | F24: =iIndiRank!O15 -> 54.1 | G24: =iIndiRank!Q15 -> 54.1 | H24: |||||||||||||||||| | I24: =TEXT(iIndiRank!P15,iIndiRank!$Q$2) -> 
C25: =iIndiRank!L16 -> 1 | D25: =iIndiRank!M16 -> 11 | E25: =iIndiRank!N16 -> Thailand | F25: =iIndiRank!O16 -> 53.1 | G25: =iIndiRank!Q16 -> 53.1 | H25: ||||||||||||||||| | I25: =TEXT(iIndiRank!P16,iIndiRank!$Q$2) -> 
C26: =iIndiRank!L17 -> 1 | D26: =iIndiRank!M17 -> 12 | E26: =iIndiRank!N17 -> Philippines | F26: =iIndiRank!O17 -> 50.4 | G26: =iIndiRank!Q17 -> 50.4 | H26: |||||||||||||||| | I26: =TEXT(iIndiRank!P17,iIndiRank!$Q$2) -> 
C27: =iIndiRank!L18 -> 1 | D27: =iIndiRank!M18 -> 13 | E27: =iIndiRank!N18 -> Vietnam | F27: =iIndiRank!O18 -> 49.4 | G27: =iIndiRank!Q18 -> 49.4 | H27: |||||||||||||||| | I27: =TEXT(iIndiRank!P18,iIndiRank!$Q$2) -> 
C28: =iIndiRank!L19 -> 1 | D28: =iIndiRank!M19 -> 14 | E28: =iIndiRank!N19 -> Indonesia | F28: =iIndiRank!O19 -> 46.1 | G28: =iIndiRank!Q19 -> 46.1 | H28: ||||||||||||||| | I28: =TEXT(iIndiRank!P19,iIndiRank!$Q$2) -> 
C29: =iIndiRank!L20 -> 1 | D29: =iIndiRank!M20 -> 15 | E29: =iIndiRank!N20 -> Cambodia | F29: =iIndiRank!O20 -> 23.9 | G29: =iIndiRank!Q20 -> 23.9 | H29: ||||||| | I29: =TEXT(iIndiRank!P20,iIndiRank!$Q$2) -> 
C30: =iIndiRank!L21 -> 1 | D30: =iIndiRank!M21 -> 16 | E30: =iIndiRank!N21 -> Laos | F30: =iIndiRank!O21 -> 12.9 | G30: =iIndiRank!Q21 -> 12.9 | H30: |||| | I30: =TEXT(iIndiRank!P21,iIndiRank!$Q$2) -> 
C31: =iIndiRank!L22 -> 1 | D31: =iIndiRank!M22 -> 17 | E31: =iIndiRank!N22 -> Myanmar | F31: =iIndiRank!O22 -> 10.8 | G31: =iIndiRank!Q22 -> 10.8 | H31: ||| | I31: =TEXT(iIndiRank!P22,iIndiRank!$Q$2) -> 

Sheet iScatter (hidden)
A1: INDI_X | B1: =uxb_works!B24 -> 1 | E1: =uxb_works!E24 -> 0 | F1: =uxb_works!I24 -> Index score/number | G1: =uxb_works!G24 -> OVERALL SCORE
A2: INDI_Y | B2: =uxb_works!B25 -> 1 | E2: =uxb_works!E25 -> 0 | F2: =uxb_works!I25 -> Index score/number | G2: =uxb_works!G25 -> OVERALL SCORE
A3: Country_HIGHLIGHT_ID | B3: =uxb_works!B7 -> 0
A4: SHOW_LABELS | B4: =uxb_works!B27 -> FALSE
A5: SHOW_OUTLIERS | B5: =uxb_works!B28 -> FALSE
A8: TITLE
A9: X-LABEL | B9: =G1 -> OVERALL SCORE
A10: Y-LABEL | B10: =G2 -> OVERALL SCORE
A12: SLOPE | B12: =SLOPE(H19:H35,G19:G35) -> 1
A13: INTERCEPT | B13: =INTERCEPT(H19:H35,G19:G35) -> 0
A14: CORREL | B14: =CORREL(G19:G35,H19:H35) -> 1
A15: ERROR CORREL | B15: =IF(ISERROR(B14),FALSE,TRUE) -> TRUE
D17: Raw data | F17: Allowable? | G17: Don't allow blanks or errors | J17: Anticipated | M17: CountryHighlight | S17: Labels | W17: Base (unhighlighted) | Z17: Highlighted
A18: Country_ID | B18: Country | C18: STATUS | D18: X | E18: Y | G18: X | H18: Y | J18: Y | K18: Diff | N18: CountryID | O18: Label | P18: X | Q18: Y | S18: Include? | T18: X | U18: Y | W18: X | X18: Y | Z18: X | AA18: Y
A19: 1 | B19: =tblTerritories!F3 -> Australia | C19: =tblTerritories!G3 -> 1 | D19: =IF($C19=0,NA(),INDEX(aScores,$B$1,$A19)) -> 85.20353745 | E19: =IF($C19=0,NA(),INDEX(aScores,$B$2,$A19)) -> 85.20353745 | F19: =AND(ISNUMBER(D19),ISNUMBER(E19)) -> TRUE | G19: =IF($F19,D19,"") -> 85.20353745 | H19: =IF($F19,E19,"") -> 85.20353745 | J19: =IF(G19="","",(G19*$B$12)+$B$13) -> 85.20353745 | K19: =IF(J19="","",H19-J19) -> 0 | N19: =B3 -> 0 | O19: =IF($B$3=0,"<none>",INDEX(luCities,$B$3)) -> <none> | P19: =IF($B$3=0,NA(),INDEX(G19:G35,$B$3)) ->  | Q19: =IF($B$3=0,NA(),INDEX(H19:H35,$B$3)) ->  | S19: =IF(NOT($B$4),0,IF(OR(A19=$N$19,A19=$N$23,A19=$N$27),0,IF(AND(C19<3,F19),1,0))) -> 0 | T19: =IF($S19=0,NA(),G19) ->  | W19: =IF(AND($C19>0,$F19),G19,NA()) -> 85.20353745 | X19: 85.20353745 | Z19: =IF(AND($C19=2,$F19),G19,NA()) -> 
A20: 2 | B20: =tblTerritories!F4 -> Cambodia | C20: =tblTerritories!G4 -> 1 | D20: 23.92174432 | E20: 23.92174432 | F20: =AND(ISNUMBER(D20),ISNUMBER(E20)) -> TRUE | G20: =IF($F20,D20,"") -> 23.92174432 | H20: =IF($F20,E20,"") -> 23.92174432 | J20: =IF(G20="","",(G20*$B$12)+$B$13) -> 23.92174432 | K20: =IF(J20="","",H20-J20) -> 0 | S20: =IF(NOT($B$4),0,IF(OR(A20=$N$19,A20=$N$23,A20=$N$27),0,IF(AND(C20<3,F20),1,0))) -> 0 | T20: =IF($S20=0,NA(),G20) ->  | U20: =IF($S20=0,NA(),H20) ->  | W20: =IF(AND($C20>0,$F20),G20,NA()) -> 23.92174432 | X20: =IF(AND($C20>0,$F20),H20,NA()) -> 23.92174432 | Z20: =IF(AND($C20=2,$F20),G20,NA()) ->  | AA20: =IF(AND($C20=2,$F20),H20,NA()) -> 
A21: 3 | B21: =tblTerritories!F5 -> China | C21: =tblTerritories!G5 -> 1 | D21: 61.57655373 | E21: 61.57655373 | F21: TRUE | G21: 61.57655373 | H21: 61.57655373 | J21: 61.57655373 | K21: 0 | M21: Max Outlier | S21: 0 | W21: 61.57655373 | X21: 61.57655373
A22: 4 | B22: =tblTerritories!F6 -> Hong Kong | C22: =tblTerritories!G6 -> 1 | D22: 81.40889238 | E22: 81.40889238 | F22: TRUE | G22: 81.40889238 | H22: 81.40889238 | J22: 81.40889238 | K22: 0 | M22: Target | N22: CountryID | O22: Label | P22: X | Q22: Y | S22: 0 | W22: 81.40889238 | X22: 81.40889238
A23: 5 | B23: =tblTerritories!F7 -> India | C23: =tblTerritories!G7 -> 1 | D23: 54.14280984 | E23: 54.14280984 | F23: TRUE | G23: 54.14280984 | H23: 54.14280984 | J23: 54.14280984 | K23: 0 | M23: =MAX(K19:K35) -> 0 | N23: =IF(B15,IF($B$5,MATCH(M23,K19:K35,0),0),0) -> 0 | O23: =IF(AND($B$15,$B$5,N23<>N19),INDEX(B19:B35,$N23),NA()) ->  | P23: =IF(AND($B$15,$B$5,N23<>N19),INDEX(G19:G35,$N23),NA()) ->  | Q23: =IF(AND($B$15,$B$5,N23<>N19),INDEX(H19:H35,$N23),NA()) ->  | S23: 0 | W23: 54.14280984 | X23: 54.14280984
A24: 6 | B24: =tblTerritories!F8 -> Indonesia | C24: =tblTerritories!G8 -> 1 | D24: 46.06624062 | E24: 46.06624062 | F24: TRUE | G24: 46.06624062 | H24: 46.06624062 | J24: 46.06624062 | K24: 0 | S24: 0 | W24: 46.06624062 | X24: 46.06624062
A25: 7 | B25: =tblTerritories!F9 -> Japan | C25: =tblTerritories!G9 -> 1 | D25: 75.85877094 | E25: 75.85877094 | F25: TRUE | G25: 75.85877094 | H25: 75.85877094 | J25: 75.85877094 | K25: 0 | M25: Min Outlier | S25: 0 | W25: 75.85877094 | X25: 75.85877094
A26: 8 | B26: =tblTerritories!F10 -> Laos | C26: =tblTerritories!G10 -> 1 | D26: 12.93518519 | E26: 12.93518519 | F26: TRUE | G26: 12.93518519 | H26: 12.93518519 | J26: 12.93518519 | K26: 0 | M26: Target | N26: CountryID | O26: Label | P26: X | Q26: Y | S26: 0 | W26: 12.93518519 | X26: 12.93518519
A27: 9 | B27: =tblTerritories!F11 -> Malaysia | C27: =tblTerritories!G11 -> 1 | D27: 71.8001623 | E27: 71.8001623 | F27: TRUE | G27: 71.8001623 | H27: 71.8001623 | J27: 71.8001623 | K27: 0 | M27: =MIN(K19:K35) -> 0 | N27: =IF(B15,IF($B$5,MATCH(M27,K19:K35,0),0),0) -> 0 | O27: =IF(AND($B$15,$B$5,N27<>N19),INDEX(B19:B35,$N27),NA()) ->  | P27: =IF(AND($B$5,$B$15,N27<>N19),INDEX(G19:G35,$N27),NA()) ->  | Q27: =IF(AND($B$5,$B$15,N27<>N19),INDEX(H19:H35,$N27),NA()) ->  | S27: 0 | W27: 71.8001623 | X27: 71.8001623
A28: 10 | B28: =tblTerritories!F12 -> Myanmar | C28: =tblTerritories!G12 -> 1 | D28: 10.82037037 | E28: 10.82037037 | F28: TRUE | G28: 10.82037037 | H28: 10.82037037 | J28: 10.82037037 | K28: 0 | S28: 0 | W28: 10.82037037 | X28: 10.82037037
A29: 11 | B29: =tblTerritories!F13 -> New Zealand | C29: =tblTerritories!G13 -> 1 | D29: 81.80621915 | E29: 81.80621915 | F29: TRUE | G29: 81.80621915 | H29: 81.80621915 | J29: 81.80621915 | K29: 0 | S29: 0 | W29: 81.80621915 | X29: 81.80621915
A30: 12 | B30: =tblTerritories!F14 -> Philippines | C30: =tblTerritories!G14 -> 1 | D30: 50.41135513 | E30: 50.41135513 | F30: TRUE | G30: 50.41135513 | H30: 50.41135513 | J30: 50.41135513 | K30: 0 | S30: 0 | W30: 50.41135513 | X30: 50.41135513
A31: 13 | B31: =tblTerritories!F15 -> Singapore | C31: =tblTerritories!G15 -> 1 | D31: 69.75511006 | E31: 69.75511006 | F31: TRUE | G31: 69.75511006 | H31: 69.75511006 | J31: 69.75511006 | K31: 0 | S31: 0 | W31: 69.75511006 | X31: 69.75511006
A32: 14 | B32: =tblTerritories!F16 -> South Korea | C32: =tblTerritories!G16 -> 1 | D32: 71.8273568 | E32: 71.8273568 | F32: TRUE | G32: 71.8273568 | H32: 71.8273568 | J32: 71.8273568 | K32: 0 | S32: 0 | W32: 71.8273568 | X32: 71.8273568
A33: 15 | B33: =tblTerritories!F17 -> Taiwan | C33: =tblTerritories!G17 -> 1 | D33: 69.81449922 | E33: 69.81449922 | F33: TRUE | G33: 69.81449922 | H33: 69.81449922 | J33: 69.81449922 | K33: 0 | S33: 0 | W33: 69.81449922 | X33: 69.81449922
A34: 16 | B34: =tblTerritories!F18 -> Thailand | C34: =tblTerritories!G18 -> 1 | D34: 53.10302123 | E34: 53.10302123 | F34: TRUE | G34: 53.10302123 | H34: 53.10302123 | J34: 53.10302123 | K34: 0 | S34: 0 | W34: 53.10302123 | X34: 53.10302123
A35: 17 | B35: =tblTerritories!F19 -> Vietnam | C35: =tblTerritories!G19 -> 1 | D35: 49.35506272 | E35: 49.35506272 | F35: TRUE | G35: 49.35506272 | H35: 49.35506272 | J35: 49.35506272 | K35: 0 | S35: 0 | W35: 49.35506272 | X35: 49.35506272

Sheet Scatter (hidden)
B4: =iScatter!G1 -> OVERALL SCORE | U4: =iScatter!$G$2 -> OVERALL SCORE
B5: =iScatter!F1 -> Index score/number | U5: =iScatter!F2 -> Index score/number
B7: CORRELATION(X,Y) | C7: =IF(ISERROR(iScatter!B14),"n/a",iScatter!B14) -> 1

Sheet iCountryP (hidden)
A1: Country_COUNT | B1: =uxb_works!B1 -> 17
A2: =uxb_works!A19 -> CITY1_ID | B2: =uxb_works!B19 -> 1 | C2: =uxb_works!C19 -> Australia
H6: =CONCATENATE("Rank / ",B1) -> Rank / 17 | I6: Score / 100 | J6: Rank | K6: Rank Equality | L6: Average | AH6: =$C$2 -> Australia | AI6: Average | AJ6: Highest | AK6: Lowest | AM6: =$C$2 -> Australia
A8: =tblIndiSets!A5 -> TOTAL | B8: =tblIndiSets!B5 -> 1 | E8: =tblIndiSets!C5 -> OVERALL SCORE | H8: =IF(K8>1,CONCATENATE("=",J8),J8) -> 1 | I8: =INDEX(aRoundedScores,B8,$B$2) -> 85.2 | J8: =RANK(I8,OFFSET(aRoundedScores,B8-1,0,1,$B$1)) -> 1 | K8: =COUNTIF(OFFSET(aRoundedScores,B8-1,0,1,$B$1),I8) -> 1 | L8: =AVERAGE(OFFSET(aRoundedScores,B8-1,0,1,$B$1)) -> 57.04705882 | P8: =U15 -> Higher Band (scores >=66) | Q8: =Y15 -> Modest Band (scores >33-65) | R8: =AC15 -> Lower Band (scores <=33) | AH8: =INDEX(aScores,$B8,$B$2) -> 85.20353745 | AI8: =(AVERAGE(OFFSET(aScores,$B8-1,0,1,$B$1))) -> 57.0474642 | AJ8: =(MAX(OFFSET(aScores,$B8-1,0,1,$B$1))) -> 85.20353745 | AK8: =(MIN(OFFSET(aScores,$B8-1,0,1,$B$1))) -> 10.82037037 | AM8: =INDEX(aScores,$B8,$B$2) -> 85.20353745
A9: =tblIndiSets!A6 -> IP | B9: =tblIndiSets!B6 -> 2 | E9: =tblIndiSets!C6 -> 1) INTELLECTUAL PROPERTY | H9: =IF(K9>1,CONCATENATE("=",J9),J9) -> =1 | I9: 100 | J9: 1 | K9: 2 | L9: 51.76470588 | P9: =COUNT(P17:P35) -> 11 | Q9: =COUNT(Q17:Q35) -> 2 | R9: =COUNT(R17:R35) -> 1 | AH9: 100 | AI9: 51.76470588 | AJ9: 100 | AK9: 0 | AM9: 100
A10: =tblIndiSets!A7 -> TT | B10: =tblIndiSets!B7 -> 5 | E10: =tblIndiSets!C7 -> 2) TRANSPARENCY AND TRADE | H10: 4 | I10: 81.5 | J10: 4 | K10: 1 | L10: 60.37058824 | AH10: 81.5 | AI10: 60.35588235 | AJ10: 93.5 | AK10: 11 | AM10: 81.5
A11: =tblIndiSets!A8 -> CE | B11: =tblIndiSets!B8 -> 10 | E11: =tblIndiSets!C8 -> 3) CUSTOMS ENVIRONMENT | H11: 2 | I11: 88 | J11: 2 | K11: 1 | L11: 59.2 | AH11: 88.01785352 | AI11: 59.20652348 | AJ11: 89.93710692 | AK11: 0 | AM11: 88.01785352
A12: =tblIndiSets!A9 -> SD | B12: =tblIndiSets!B9 -> 16 | E12: =tblIndiSets!C9 -> 4) SUPPLY AND DEMAND | H12: 5 | I12: 71.3 | J12: 5 | K12: 1 | L12: 56.85882353 | AH12: 71.2962963 | AI12: 56.8627451 | AJ12: 92.59259259 | AK12: 20.37037037 | AM12: 71.2962963
P14: 0 | Q14: =2*R14 -> 66.66666667 | R14: =100/3 -> 33.33333333
M15: =uxb_works!A16 -> INDI_OR_SUB_INDI | N15: =uxb_works!B16 -> FALSE | P15: 3 | Q15: 2 | R15: 1 | U15: Higher Band (scores >=66) | Y15: Modest Band (scores >33-65) | AC15: Lower Band (scores <=33)
D16: Date | G16: Rank | H16: Rank equal | I16: =CONCATENATE("Rank / ",$B$1) -> Rank / 17 | J16: Score / 100 | M16: Data | N16: Band | P16: 0 | Q16: 0 | R16: 0
A17: =tblIndicators!D2 -> TOTAL | B17: =tblIndicators!A2 -> 1 | C17: =IF(B17="",0,INDEX(tblIndicators!$F$2:$F$20,$B17)) -> 0 | D17: =tblIndicators!P2 -> Index score/number | E17: =IF(B17="","",IF(C17>=2,TRIM(INDEX(tblIndicators!$AB$2:$AB$20,iCountryP!$B17)),UPPER(INDEX(tblIndicators!$AB$2:$AB$20,iCountryP!$B17)))) -> OVERALL SCORE | F17: =IF(B17="","",INDEX(tblIndicators!$P$2:$P20,iCountryP!$B17)) -> Index score/number | G17: =IF(B17="","",RANK(J17,OFFSET(aScores,B17-1,0,1,$B$1))) -> 1 | H17: =IF(B17="","",COUNTIF(OFFSET(aScores,B17-1,0,1,$B$1),J17)) -> 1 | I17: =H8 -> 1 | J17: =IF(B17="","",INDEX(aScores,B17,$B$2)) -> 85.20353745 | K17: =IF(B17="","",REPT("|",J17/3)) -> |||||||||||||||||||||||||||| | M17: =IF(B17="","",IF(C17<2,"",INDEX(aData,B17,$B$2))) ->  | N17: =IF(B17="","",IF($N$15,IF(C17<3,0,IF(J17>=Q$14,3,IF(J17>=R$14,2,1))),IF(C17<>2,0,IF(J17>=Q$14,3,IF(J17>=R$14,2,1))))) -> 0 | O17: =tblIndicators!S2 -> 0.0 | P17: =P16+MATCH(P$15,OFFSET($N$17:$N$35,P16,0),0) -> 3 | Q17: =Q16+MATCH(Q$15,OFFSET($N$17:$N$35,Q16,0),0) -> 9 | R17: =R16+MATCH(R$15,OFFSET($N$17:$N$35,R16,0),0) -> 11 | T17: =IF(ISNUMBER(V17),1,0) -> 1 | U17: =IF(ISNUMBER(P17),INDEX($E$17:$E$35,P17),"") -> 1.1) Protection of IP rights | V17: =IF(ISNUMBER(P17),INDEX($J$17:$J$35,P17),"") -> 100 | X17: =IF(ISNUMBER(Z17),1,0) -> 1 | Y17: =IF(ISNUMBER(Q17),INDEX($E$17:$E$35,Q17),"") -> 2.4) FTZ governance | Z17: =IF(ISNUMBER(Q17),INDEX($J$17:$J$35,Q17),"") -> 50 | AB17: =IF(ISNUMBER(AD17),1,0) -> 1 | AC17: =IF(ISNUMBER(R17),INDEX($E$17:$E$35,R17),"") -> 3.1) Percentage of shipments physically inspected | AD17: =IF(ISNUMBER(R17),INDEX($J$17:$J$35,R17),"") -> 3.773584906
A18: =tblIndicators!D3 -> IP | B18: =tblIndicators!A3 -> 2 | C18: =IF(B18="",0,INDEX(tblIndicators!$F$2:$F$20,$B18)) -> 1 | D18: =tblIndicators!P3 -> Index score/number | E18: =IF(B18="","",IF(C18>=2,TRIM(INDEX(tblIndicators!$AB$2:$AB$20,iCountryP!$B18)),UPPER(INDEX(tblIndicators!$AB$2:$AB$20,iCountryP!$B18)))) -> 1) INTELLECTUAL PROPERTY | F18: =IF(B18="","",INDEX(tblIndicators!$P$2:$P21,iCountryP!$B18)) -> Index score/number | G18: =IF(B18="","",RANK(J18,OFFSET(aScores,B18-1,0,1,$B$1))) -> 1 | H18: =IF(B18="","",COUNTIF(OFFSET(aScores,B18-1,0,1,$B$1),J18)) -> 2 | I18: =IF(B18="","",IF(H18>1,CONCATENATE("=",G18),G18)) -> =1 | J18: =IF(B18="","",INDEX(aScores,B18,$B$2)) -> 100 | K18: =IF(B18="","",REPT("|",J18/3)) -> ||||||||||||||||||||||||||||||||| | N18: 0 | O18: =tblIndicators!S3 -> #0.0 | P18: 4 | Q18: 19 | T18: =IF(ISNUMBER(V18),1,0) -> 1 | U18: 1.2) Customs recordal system | V18: 100 | X18: =IF(ISNUMBER(Z18),1,0) -> 1 | Y18: 4.3) Labour market regulations | Z18: 50 | AB18: =IF(ISNUMBER(AD18),1,0) -> 0
A19: =tblIndicators!D4 -> IP_11 | B19: =tblIndicators!A4 -> 3 | C19: =IF(B19="",0,INDEX(tblIndicators!$F$2:$F$20,$B19)) -> 2 | D19: =tblIndicators!P4 -> Rating | E19: =IF(B19="","",IF(C19>=2,TRIM(INDEX(tblIndicators!$AB$2:$AB$20,iCountryP!$B19)),UPPER(INDEX(tblIndicators!$AB$2:$AB$20,iCountryP!$B19)))) -> 1.1) Protection of IP rights | F19: =IF(B19="","",INDEX(tblIndicators!$P$2:$P22,iCountryP!$B19)) -> Rating | G19: =IF(B19="","",RANK(J19,OFFSET(aScores,B19-1,0,1,$B$1))) -> 1 | H19: =IF(B19="","",COUNTIF(OFFSET(aScores,B19-1,0,1,$B$1),J19)) -> 3 | I19: =IF(B19="","",IF(H19>1,CONCATENATE("=",G19),G19)) -> =1 | J19: =IF(B19="","",INDEX(aScores,B19,$B$2)) -> 100 | K19: =IF(B19="","",REPT("|",J19/3)) -> ||||||||||||||||||||||||||||||||| | M19: =IF(B19="","",IF(C19<2,"",INDEX(aData,B19,$B$2))) -> 0 | N19: =IF(B19="","",IF($N$15,IF(C19<3,0,IF(J19>=Q$14,3,IF(J19>=R$14,2,1))),IF(C19<>2,0,IF(J19>=Q$14,3,IF(J19>=R$14,2,1))))) -> 3 | O19: =tblIndicators!S4 -> #0 | P19: 6 | T19: =IF(ISNUMBER(V19),1,0) -> 1 | U19: 2.1) Track and trace services | V19: 76 | X19: =IF(ISNUMBER(Z19),1,0) -> 0 | AB19: =IF(ISNUMBER(AD19),1,0) -> 0
A20: =tblIndicators!D5 -> IP_13 | B20: =tblIndicators!A5 -> 4 | C20: =IF(B20="",0,INDEX(tblIndicators!$F$2:$F$20,$B20)) -> 2 | D20: =tblIndicators!P5 -> Yes/no | E20: =IF(B20="","",IF(C20>=2,TRIM(INDEX(tblIndicators!$AB$2:$AB$20,iCountryP!$B20)),UPPER(INDEX(tblIndicators!$AB$2:$AB$20,iCountryP!$B20)))) -> 1.2) Customs recordal system | F20: =IF(B20="","",INDEX(tblIndicators!$P$2:$P23,iCountryP!$B20)) -> Yes/no | G20: =IF(B20="","",RANK(J20,OFFSET(aScores,B20-1,0,1,$B$1))) -> 1 | H20: =IF(B20="","",COUNTIF(OFFSET(aScores,B20-1,0,1,$B$1),J20)) -> 9 | I20: =IF(B20="","",IF(H20>1,CONCATENATE("=",G20),G20)) -> =1 | J20: =IF(B20="","",INDEX(aScores,B20,$B$2)) -> 100 | K20: =IF(B20="","",REPT("|",J20/3)) -> ||||||||||||||||||||||||||||||||| | M20: =IF(B20="","",IF(C20<2,"",INDEX(aData,B20,$B$2))) -> 1 | N20: =IF(B20="","",IF($N$15,IF(C20<3,0,IF(J20>=Q$14,3,IF(J20>=R$14,2,1))),IF(C20<>2,0,IF(J20>=Q$14,3,IF(J20>=R$14,2,1))))) -> 3 | O20: =tblIndicators!S5 -> #0 | P20: 7 | T20: =IF(ISNUMBER(V20),1,0) -> 1 | U20: 2.2) Adoption of Annex D of Revised Kyoto Convention | V20: 100 | X20: =IF(ISNUMBER(Z20),1,0) -> 0 | AB20: =IF(ISNUMBER(AD20),1,0) -> 0
A21: =tblIndicators!D6 -> TT | B21: =tblIndicators!A6 -> 5 | C21: =IF(B21="",0,INDEX(tblIndicators!$F$2:$F$20,$B21)) -> 1 | D21: =tblIndicators!P6 -> Index score/number | E21: =IF(B21="","",IF(C21>=2,TRIM(INDEX(tblIndicators!$AB$2:$AB$20,iCountryP!$B21)),UPPER(INDEX(tblIndicators!$AB$2:$AB$20,iCountryP!$B21)))) -> 2) TRANSPARENCY AND TRADE | F21: =IF(B21="","",INDEX(tblIndicators!$P$2:$P24,iCountryP!$B21)) -> Index score/number | G21: 4 | H21: 1 | I21: 4 | J21: 81.5 | K21: ||||||||||||||||||||||||||| | N21: 0 | O21: =tblIndicators!S6 -> #0.0 | P21: 8 | T21: 1 | U21: 2.3) Government cooperation | V21: 100 | X21: 0 | AB21: 0
A22: =tblIndicators!D7 -> TT_21 | B22: =tblIndicators!A7 -> 6 | C22: =IF(B22="",0,INDEX(tblIndicators!$F$2:$F$20,$B22)) -> 2 | D22: =tblIndicators!P7 -> Rating | E22: =IF(B22="","",IF(C22>=2,TRIM(INDEX(tblIndicators!$AB$2:$AB$20,iCountryP!$B22)),UPPER(INDEX(tblIndicators!$AB$2:$AB$20,iCountryP!$B22)))) -> 2.1) Track and trace services | F22: =IF(B22="","",INDEX(tblIndicators!$P$2:$P25,iCountryP!$B22)) -> Rating | G22: 4 | H22: 2 | I22: =4 | J22: 76 | K22: ||||||||||||||||||||||||| | M22: 3.8 | N22: 3 | O22: =tblIndicators!S7 -> #0 | P22: 12 | T22: 1 | U22: 3.2) Customs clearance and inspection | V22: 100 | X22: 0 | AB22: 0
A23: =tblIndicators!D8 -> TT_22 | B23: =tblIndicators!A8 -> 7 | C23: =IF(B23="",0,INDEX(tblIndicators!$F$2:$F$20,$B23)) -> 2 | D23: =tblIndicators!P8 -> Yes/no | E23: =IF(B23="","",IF(C23>=2,TRIM(INDEX(tblIndicators!$AB$2:$AB$20,iCountryP!$B23)),UPPER(INDEX(tblIndicators!$AB$2:$AB$20,iCountryP!$B23)))) -> 2.2) Adoption of Annex D of Revised Kyoto Convention | F23: =IF(B23="","",INDEX(tblIndicators!$P$2:$P26,iCountryP!$B23)) -> Yes/no | G23: 1 | H23: 12 | I23: =1 | J23: 100 | K23: ||||||||||||||||||||||||||||||||| | M23: 1 | N23: 3 | O23: =tblIndicators!S8 -> #0 | P23: 13 | T23: 1 | U23: 3.3) Automation | V23: 94.19354839 | X23: 0 | AB23: 0
A24: =tblIndicators!D9 -> TT_23 | B24: =tblIndicators!A9 -> 8 | C24: =IF(B24="",0,INDEX(tblIndicators!$F$2:$F$20,$B24)) -> 2 | D24: =tblIndicators!P9 -> Yes/no | E24: =IF(B24="","",IF(C24>=2,TRIM(INDEX(tblIndicators!$AB$2:$AB$20,iCountryP!$B24)),UPPER(INDEX(tblIndicators!$AB$2:$AB$20,iCountryP!$B24)))) -> 2.3) Government cooperation | F24: =IF(B24="","",INDEX(tblIndicators!$P$2:$P27,iCountryP!$B24)) -> Yes/no | G24: 1 | H24: 9 | I24: =1 | J24: 100 | K24: ||||||||||||||||||||||||||||||||| | M24: 2 | N24: 3 | O24: =tblIndicators!S9 -> #0 | P24: 14 | T24: 1 | U24: 3.4) Corruption | V24: 100 | X24: 0 | AB24: 0
A25: =tblIndicators!D10 -> TT_24 | B25: =tblIndicators!A10 -> 9 | C25: =IF(B25="",0,INDEX(tblIndicators!$F$2:$F$20,$B25)) -> 2 | D25: =tblIndicators!P10 -> Rating | E25: =IF(B25="","",IF(C25>=2,TRIM(INDEX(tblIndicators!$AB$2:$AB$20,iCountryP!$B25)),UPPER(INDEX(tblIndicators!$AB$2:$AB$20,iCountryP!$B25)))) -> 2.4) FTZ governance | F25: =IF(B25="","",INDEX(tblIndicators!$P$2:$P28,iCountryP!$B25)) -> Rating | G25: 8 | H25: 4 | I25: =8 | J25: 50 | K25: |||||||||||||||| | M25: 2 | N25: 2 | O25: =tblIndicators!S10 -> #0 | P25: 15 | T25: 1 | U25: 3.5) Accredited Economic Operator programme | V25: 100 | X25: 0 | AB25: 0
A26: =tblIndicators!D11 -> CE | B26: =tblIndicators!A11 -> 10 | C26: =IF(B26="",0,INDEX(tblIndicators!$F$2:$F$20,$B26)) -> 1 | D26: =tblIndicators!P11 -> Index score/number | E26: =IF(B26="","",IF(C26>=2,TRIM(INDEX(tblIndicators!$AB$2:$AB$20,iCountryP!$B26)),UPPER(INDEX(tblIndicators!$AB$2:$AB$20,iCountryP!$B26)))) -> 3) CUSTOMS ENVIRONMENT | F26: =IF(B26="","",INDEX(tblIndicators!$P$2:$P29,iCountryP!$B26)) -> Index score/number | G26: 2 | H26: 1 | I26: 2 | J26: 88.01785352 | K26: ||||||||||||||||||||||||||||| | N26: 0 | O26: =tblIndicators!S11 -> #0.0 | P26: 17 | T26: 1 | U26: 4.1) Tax and social security burdens | V26: 75 | X26: 0 | AB26: 0
A27: =tblIndicators!D12 -> CE_31 | B27: =tblIndicators!A12 -> 11 | C27: =IF(B27="",0,INDEX(tblIndicators!$F$2:$F$20,$B27)) -> 2 | D27: =tblIndicators!P12 -> % | E27: =IF(B27="","",IF(C27>=2,TRIM(INDEX(tblIndicators!$AB$2:$AB$20,iCountryP!$B27)),UPPER(INDEX(tblIndicators!$AB$2:$AB$20,iCountryP!$B27)))) -> 3.1) Percentage of shipments physically inspected | F27: =IF(B27="","",INDEX(tblIndicators!$P$2:$P30,iCountryP!$B27)) -> % | G27: 10 | H27: 3 | I27: =10 | J27: 3.773584906 | K27: | | M27: 2 | N27: 1 | O27: =tblIndicators!S12 -> #0 | P27: 18 | T27: 1 | U27: 4.2) Quality of state institutions | V27: 88.88888889 | X27: 0 | AB27: 0
A28: =tblIndicators!D13 -> CE_32 | B28: =tblIndicators!A13 -> 12 | C28: =IF(B28="",0,INDEX(tblIndicators!$F$2:$F$20,$B28)) -> 2 | D28: =tblIndicators!P13 -> # of days | E28: =IF(B28="","",IF(C28>=2,TRIM(INDEX(tblIndicators!$AB$2:$AB$20,iCountryP!$B28)),UPPER(INDEX(tblIndicators!$AB$2:$AB$20,iCountryP!$B28)))) -> 3.2) Customs clearance and inspection | F28: =IF(B28="","",INDEX(tblIndicators!$P$2:$P31,iCountryP!$B28)) -> # of days | G28: 1 | H28: 7 | I28: =1 | J28: 100 | K28: ||||||||||||||||||||||||||||||||| | M28: 1 | N28: 3 | O28: =tblIndicators!S13 -> #0 | T28: 0 | X28: 0 | AB28: 0
A29: =tblIndicators!D14 -> CE_33 | B29: =tblIndicators!A14 -> 13 | C29: =IF(B29="",0,INDEX(tblIndicators!$F$2:$F$20,$B29)) -> 2 | D29: =tblIndicators!P14 -> Rating | E29: =IF(B29="","",IF(C29>=2,TRIM(INDEX(tblIndicators!$AB$2:$AB$20,iCountryP!$B29)),UPPER(INDEX(tblIndicators!$AB$2:$AB$20,iCountryP!$B29)))) -> 3.3) Automation | F29: =IF(B29="","",INDEX(tblIndicators!$P$2:$P32,iCountryP!$B29)) -> Rating | G29: 7 | H29: 2 | I29: =7 | J29: 94.19354839 | K29: ||||||||||||||||||||||||||||||| | M29: 1.71 | N29: 3 | O29: =tblIndicators!S14 -> #0.00 | T29: 0 | X29: 0 | AB29: 0
A30: =tblIndicators!D15 -> CE_34 | B30: =tblIndicators!A15 -> 14 | C30: =IF(B30="",0,INDEX(tblIndicators!$F$2:$F$20,$B30)) -> 2 | D30: =tblIndicators!P15 -> EIU rating | E30: =IF(B30="","",IF(C30>=2,TRIM(INDEX(tblIndicators!$AB$2:$AB$20,iCountryP!$B30)),UPPER(INDEX(tblIndicators!$AB$2:$AB$20,iCountryP!$B30)))) -> 3.4) Corruption | F30: =IF(B30="","",INDEX(tblIndicators!$P$2:$P33,iCountryP!$B30)) -> EIU rating | G30: 1 | H30: 3 | I30: =1 | J30: 100 | K30: ||||||||||||||||||||||||||||||||| | M30: 0 | N30: 3 | O30: =tblIndicators!S15 -> #0 | T30: 0 | X30: 0 | AB30: 0
A31: =tblIndicators!D16 -> CE_35 | B31: =tblIndicators!A16 -> 15 | C31: =IF(B31="",0,INDEX(tblIndicators!$F$2:$F$20,$B31)) -> 2 | D31: =tblIndicators!P16 -> Rating | E31: =IF(B31="","",IF(C31>=2,TRIM(INDEX(tblIndicators!$AB$2:$AB$20,iCountryP!$B31)),UPPER(INDEX(tblIndicators!$AB$2:$AB$20,iCountryP!$B31)))) -> 3.5) Accredited Economic Operator programme | F31: =IF(B31="","",INDEX(tblIndicators!$P$2:$P34,iCountryP!$B31)) -> Rating | G31: 1 | H31: 11 | I31: =1 | J31: 100 | K31: ||||||||||||||||||||||||||||||||| | M31: 3 | N31: 3 | O31: =tblIndicators!S16 -> #0 | T31: 0 | X31: 0 | AB31: 0
A32: =tblIndicators!D17 -> SD | B32: =tblIndicators!A17 -> 16 | C32: =IF(B32="",0,INDEX(tblIndicators!$F$2:$F$20,$B32)) -> 1 | D32: =tblIndicators!P17 -> Index score/number | E32: =IF(B32="","",IF(C32>=2,TRIM(INDEX(tblIndicators!$AB$2:$AB$20,iCountryP!$B32)),UPPER(INDEX(tblIndicators!$AB$2:$AB$20,iCountryP!$B32)))) -> 4) SUPPLY AND DEMAND | F32: =IF(B32="","",INDEX(tblIndicators!$P$2:$P35,iCountryP!$B32)) -> Index score/number | G32: 5 | H32: 1 | I32: 5 | J32: 71.2962963 | K32: ||||||||||||||||||||||| | N32: 0 | O32: =tblIndicators!S17 -> #0.0 | T32: 0 | X32: 0 | AB32: 0
A33: =tblIndicators!D18 -> SD_41 | B33: =tblIndicators!A18 -> 17 | C33: =IF(B33="",0,INDEX(tblIndicators!$F$2:$F$20,$B33)) -> 2 | D33: =tblIndicators!P18 -> EIU rating | E33: =IF(B33="","",IF(C33>=2,TRIM(INDEX(tblIndicators!$AB$2:$AB$20,iCountryP!$B33)),UPPER(INDEX(tblIndicators!$AB$2:$AB$20,iCountryP!$B33)))) -> 4.1) Tax and social security burdens | F33: =IF(B33="","",INDEX(tblIndicators!$P$2:$P36,iCountryP!$B33)) -> EIU rating | G33: 3 | H33: 5 | I33: =3 | J33: 75 | K33: ||||||||||||||||||||||||| | M33: 4 | N33: 3 | O33: =tblIndicators!S18 -> #0 | T33: 0 | X33: 0 | AB33: 0
A34: =tblIndicators!D19 -> SD_42 | B34: =tblIndicators!A19 -> 18 | C34: =IF(B34="",0,INDEX(tblIndicators!$F$2:$F$20,$B34)) -> 2 | D34: =tblIndicators!P19 -> EIU rating | E34: =IF(B34="","",IF(C34>=2,TRIM(INDEX(tblIndicators!$AB$2:$AB$20,iCountryP!$B34)),UPPER(INDEX(tblIndicators!$AB$2:$AB$20,iCountryP!$B34)))) -> 4.2) Quality of state institutions | F34: =IF(B34="","",INDEX(tblIndicators!$P$2:$P37,iCountryP!$B34)) -> EIU rating | G34: 3 | H34: 1 | I34: 3 | J34: 88.88888889 | K34: ||||||||||||||||||||||||||||| | M34: 9 | N34: 3 | O34: =tblIndicators!S19 -> #0 | T34: 0 | X34: 0 | AB34: 0
A35: =tblIndicators!D20 -> SD_43 | B35: =tblIndicators!A20 -> 19 | C35: =IF(B35="",0,INDEX(tblIndicators!$F$2:$F$20,$B35)) -> 2 | D35: =tblIndicators!P20 -> EIU rating | E35: =IF(B35="","",IF(C35>=2,TRIM(INDEX(tblIndicators!$AB$2:$AB$20,iCountryP!$B35)),UPPER(INDEX(tblIndicators!$AB$2:$AB$20,iCountryP!$B35)))) -> 4.3) Labour market regulations | F35: =IF(B35="","",INDEX(tblIndicators!$P$2:$P38,iCountryP!$B35)) -> EIU rating | G35: 7 | H35: 8 | I35: =7 | J35: 50 | K35: |||||||||||||||| | M35: 3 | N35: 2 | O35: =tblIndicators!S20 -> #0 | T35: 0 | X35: 0 | AB35: 0

Sheet CountryProfile (hidden)
C3: =UPPER(uxb_works!C19) -> AUSTRALIA
D4: =iCountryP!H6 -> Rank / 17 | E4: =iCountryP!I6 -> Score / 100
C5: =iCountryP!E8 -> OVERALL SCORE | D5: =iCountryP!H8 -> 1 | E5: =iCountryP!I8 -> 85.2
C6: =iCountryP!E9 -> 1) INTELLECTUAL PROPERTY | D6: =iCountryP!H9 -> =1 | E6: =iCountryP!I9 -> 100 | PI6: =Q6 -> 0
C7: =iCountryP!E10 -> 2) TRANSPARENCY AND TRADE | D7: =iCountryP!H10 -> 4 | E7: =iCountryP!I10 -> 81.5 | PI7: =Q7 -> 0
C8: =iCountryP!E11 -> 3) CUSTOMS ENVIRONMENT | D8: =iCountryP!H11 -> 2 | E8: =iCountryP!I11 -> 88 | PI8: 0
C9: =iCountryP!E12 -> 4) SUPPLY AND DEMAND | D9: =iCountryP!H12 -> 5 | E9: =iCountryP!I12 -> 71.3 | PI9: 0
PI10: 0
PI11: 0
AA12: =C12 -> 0
AA13: =C13 -> 0
AA14: 0
AA15: 0
AA16: 0
AA17: 0
AA18: 0
AA19: =H1 -> 0
C22: =IF(uxb_works!C21,"Indicator scores table","Bucketed Scores") -> Indicator scores table
C23: Higher scores = favorable | D23: “=” denotes tied score
C24: Indicators | D24: =iCountryP!I16 -> Rank / 17 | E24: =iCountryP!J16 -> Score / 100 | H24: Score Visualisation | I24: Data | M24: Unit
C25: =iCountryP!E17 -> OVERALL SCORE | D25: =iCountryP!I17 -> 1 | E25: =iCountryP!J17 -> 85.20353745 | H25: =iCountryP!K17 -> |||||||||||||||||||||||||||| | M25: =iCountryP!F17 -> Index score/number
B26: =iCountryP!C18 -> 1 | C26: =iCountryP!E18 -> 1) INTELLECTUAL PROPERTY | D26: =iCountryP!I18 -> =1 | E26: =iCountryP!J18 -> 100 | H26: =iCountryP!K18 -> ||||||||||||||||||||||||||||||||| | I26: =TEXT(iCountryP!M18,iCountryP!O18) ->  | M26: =iCountryP!F18 -> Index score/number
B27: =iCountryP!C19 -> 2 | C27: =iCountryP!E19 -> 1.1) Protection of IP rights | D27: =iCountryP!I19 -> =1 | E27: =iCountryP!J19 -> 100 | H27: =iCountryP!K19 -> ||||||||||||||||||||||||||||||||| | I27: =TEXT(iCountryP!M19,iCountryP!O19) -> 0 | M27: =iCountryP!F19 -> Rating
B28: =iCountryP!C20 -> 2 | C28: =iCountryP!E20 -> 1.2) Customs recordal system | D28: =iCountryP!I20 -> =1 | E28: =iCountryP!J20 -> 100 | H28: =iCountryP!K20 -> ||||||||||||||||||||||||||||||||| | I28: =TEXT(iCountryP!M20,iCountryP!O20) -> 1 | M28: =iCountryP!F20 -> Yes/no
B29: =iCountryP!C21 -> 1 | C29: =iCountryP!E21 -> 2) TRANSPARENCY AND TRADE | D29: =iCountryP!I21 -> 4 | E29: =iCountryP!J21 -> 81.5 | H29: =iCountryP!K21 -> ||||||||||||||||||||||||||| | I29: =TEXT(iCountryP!M21,iCountryP!O21) ->  | M29: =iCountryP!F21 -> Index score/number
B30: =iCountryP!C22 -> 2 | C30: =iCountryP!E22 -> 2.1) Track and trace services | D30: =iCountryP!I22 -> =4 | E30: =iCountryP!J22 -> 76 | H30: =iCountryP!K22 -> ||||||||||||||||||||||||| | I30: =TEXT(iCountryP!M22,iCountryP!O22) -> 4 | M30: =iCountryP!F22 -> Rating
B31: =iCountryP!C23 -> 2 | C31: =iCountryP!E23 -> 2.2) Adoption of Annex D of Revised Kyoto Convention | D31: =iCountryP!I23 -> =1 | E31: =iCountryP!J23 -> 100 | H31: =iCountryP!K23 -> ||||||||||||||||||||||||||||||||| | I31: =TEXT(iCountryP!M23,iCountryP!O23) -> 1 | M31: =iCountryP!F23 -> Yes/no
B32: =iCountryP!C24 -> 2 | C32: =iCountryP!E24 -> 2.3) Government cooperation | D32: =iCountryP!I24 -> =1 | E32: =iCountryP!J24 -> 100 | H32: =iCountryP!K24 -> ||||||||||||||||||||||||||||||||| | I32: =TEXT(iCountryP!M24,iCountryP!O24) -> 2 | M32: =iCountryP!F24 -> Yes/no
B33: =iCountryP!C25 -> 2 | C33: =iCountryP!E25 -> 2.4) FTZ governance | D33: =iCountryP!I25 -> =8 | E33: =iCountryP!J25 -> 50 | H33: =iCountryP!K25 -> |||||||||||||||| | I33: =TEXT(iCountryP!M25,iCountryP!O25) -> 2 | M33: =iCountryP!F25 -> Rating
B34: =iCountryP!C26 -> 1 | C34: =iCountryP!E26 -> 3) CUSTOMS ENVIRONMENT | D34: =iCountryP!I26 -> 2 | E34: =iCountryP!J26 -> 88.01785352 | H34: =iCountryP!K26 -> ||||||||||||||||||||||||||||| | I34: =TEXT(iCountryP!M26,iCountryP!O26) ->  | M34: =iCountryP!F26 -> Index score/number
B35: =iCountryP!C27 -> 2 | C35: =iCountryP!E27 -> 3.1) Percentage of shipments physically inspected | D35: =iCountryP!I27 -> =10 | E35: =iCountryP!J27 -> 3.773584906 | H35: =iCountryP!K27 -> | | I35: =TEXT(iCountryP!M27,iCountryP!O27) -> 2 | M35: =iCountryP!F27 -> %
B36: =iCountryP!C28 -> 2 | C36: =iCountryP!E28 -> 3.2) Customs clearance and inspection | D36: =iCountryP!I28 -> =1 | E36: =iCountryP!J28 -> 100 | H36: =iCountryP!K28 -> ||||||||||||||||||||||||||||||||| | I36: =TEXT(iCountryP!M28,iCountryP!O28) -> 1 | M36: =iCountryP!F28 -> # of days
B37: =iCountryP!C29 -> 2 | C37: =iCountryP!E29 -> 3.3) Automation | D37: =iCountryP!I29 -> =7 | E37: =iCountryP!J29 -> 94.19354839 | H37: =iCountryP!K29 -> ||||||||||||||||||||||||||||||| | I37: =TEXT(iCountryP!M29,iCountryP!O29) -> 1.71 | M37: =iCountryP!F29 -> Rating
B38: =iCountryP!C30 -> 2 | C38: =iCountryP!E30 -> 3.4) Corruption | D38: =iCountryP!I30 -> =1 | E38: =iCountryP!J30 -> 100 | H38: =iCountryP!K30 -> ||||||||||||||||||||||||||||||||| | I38: =TEXT(iCountryP!M30,iCountryP!O30) -> 0 | M38: =iCountryP!F30 -> EIU rating
B39: =iCountryP!C31 -> 2 | C39: =iCountryP!E31 -> 3.5) Accredited Economic Operator programme | D39: =iCountryP!I31 -> =1 | E39: =iCountryP!J31 -> 100 | H39: =iCountryP!K31 -> ||||||||||||||||||||||||||||||||| | I39: =TEXT(iCountryP!M31,iCountryP!O31) -> 3 | M39: =iCountryP!F31 -> Rating
B40: =iCountryP!C32 -> 1 | C40: =iCountryP!E32 -> 4) SUPPLY AND DEMAND | D40: =iCountryP!I32 -> 5 | E40: =iCountryP!J32 -> 71.2962963 | H40: =iCountryP!K32 -> ||||||||||||||||||||||| | I40: =TEXT(iCountryP!M32,iCountryP!O32) ->  | M40: =iCountryP!F32 -> Index score/number
B41: =iCountryP!C33 -> 2 | C41: =iCountryP!E33 -> 4.1) Tax and social security burdens | D41: =iCountryP!I33 -> =3 | E41: =iCountryP!J33 -> 75 | H41: =iCountryP!K33 -> ||||||||||||||||||||||||| | I41: =TEXT(iCountryP!M33,iCountryP!O33) -> 4 | M41: =iCountryP!F33 -> EIU rating
B42: =iCountryP!C34 -> 2 | C42: =iCountryP!E34 -> 4.2) Quality of state institutions | D42: =iCountryP!I34 -> 3 | E42: =iCountryP!J34 -> 88.88888889 | H42: =iCountryP!K34 -> ||||||||||||||||||||||||||||| | I42: =TEXT(iCountryP!M34,iCountryP!O34) -> 9 | M42: =iCountryP!F34 -> EIU rating
B43: =iCountryP!C35 -> 2 | C43: =iCountryP!E35 -> 4.3) Labour market regulations | D43: =iCountryP!I35 -> =7 | E43: =iCountryP!J35 -> 50 | H43: =iCountryP!K35 -> |||||||||||||||| | I43: =TEXT(iCountryP!M35,iCountryP!O35) -> 3 | M43: =iCountryP!F35 -> EIU rating
C53: =iCountryP!U15 -> Higher Band (scores >=66) | H53: =iCountryP!Y15 -> Modest Band (scores >33-65) | M53: =iCountryP!AC15 -> Lower Band (scores <=33)
B55: =iCountryP!T17 -> 1 | C55: =iCountryP!U17 -> 1.1) Protection of IP rights | D55: =iCountryP!V17 -> 100 | G55: =iCountryP!X17 -> 1 | H55: =iCountryP!Y17 -> 2.4) FTZ governance | I55: =iCountryP!Z17 -> 50 | L55: =iCountryP!AB17 -> 1 | M55: =iCountryP!AC17 -> 3.1) Percentage of shipments physically inspected | N55: =iCountryP!AD17 -> 3.773584906
B56: =iCountryP!T18 -> 1 | C56: =iCountryP!U18 -> 1.2) Customs recordal system | D56: =iCountryP!V18 -> 100 | G56: =iCountryP!X18 -> 1 | H56: =iCountryP!Y18 -> 4.3) Labour market regulations | I56: =iCountryP!Z18 -> 50 | L56: =iCountryP!AB18 -> 0 | M56: =iCountryP!AC18 ->  | N56: =iCountryP!AD18 -> 
B57: =iCountryP!T19 -> 1 | C57: =iCountryP!U19 -> 2.1) Track and trace services | D57: =iCountryP!V19 -> 76 | G57: =iCountryP!X19 -> 0 | H57: =iCountryP!Y19 ->  | I57: =iCountryP!Z19 ->  | L57: =iCountryP!AB19 -> 0 | M57: =iCountryP!AC19 ->  | N57: =iCountryP!AD19 -> 
B58: =iCountryP!T20 -> 1 | C58: =iCountryP!U20 -> 2.2) Adoption of Annex D of Revised Kyoto Convention | D58: =iCountryP!V20 -> 100 | G58: =iCountryP!X20 -> 0 | H58: =iCountryP!Y20 ->  | I58: =iCountryP!Z20 ->  | L58: =iCountryP!AB20 -> 0 | M58: =iCountryP!AC20 ->  | N58: =iCountryP!AD20 -> 
B59: =iCountryP!T21 -> 1 | C59: =iCountryP!U21 -> 2.3) Government cooperation | D59: =iCountryP!V21 -> 100 | G59: =iCountryP!X21 -> 0 | H59: =iCountryP!Y21 ->  | I59: =iCountryP!Z21 ->  | L59: =iCountryP!AB21 -> 0 | M59: =iCountryP!AC21 ->  | N59: =iCountryP!AD21 -> 
B60: =iCountryP!T22 -> 1 | C60: =iCountryP!U22 -> 3.2) Customs clearance and inspection | D60: =iCountryP!V22 -> 100 | G60: =iCountryP!X22 -> 0 | H60: =iCountryP!Y22 ->  | I60: =iCountryP!Z22 ->  | L60: =iCountryP!AB22 -> 0 | M60: =iCountryP!AC22 ->  | N60: =iCountryP!AD22 -> 
B61: =iCountryP!T23 -> 1 | C61: =iCountryP!U23 -> 3.3) Automation | D61: =iCountryP!V23 -> 94.19354839 | G61: =iCountryP!X23 -> 0 | H61: =iCountryP!Y23 ->  | I61: =iCountryP!Z23 ->  | L61: =iCountryP!AB23 -> 0 | M61: =iCountryP!AC23 ->  | N61: =iCountryP!AD23 -> 
B62: =iCountryP!T24 -> 1 | C62: =iCountryP!U24 -> 3.4) Corruption | D62: =iCountryP!V24 -> 100 | G62: =iCountryP!X24 -> 0 | H62: =iCountryP!Y24 ->  | I62: =iCountryP!Z24 ->  | L62: =iCountryP!AB24 -> 0 | M62: =iCountryP!AC24 ->  | N62: =iCountryP!AD24 -> 
B63: =iCountryP!T25 -> 1 | C63: =iCountryP!U25 -> 3.5) Accredited Economic Operator programme | D63: =iCountryP!V25 -> 100 | G63: =iCountryP!X25 -> 0 | H63: =iCountryP!Y25 ->  | I63: =iCountryP!Z25 ->  | L63: =iCountryP!AB25 -> 0 | M63: =iCountryP!AC25 ->  | N63: =iCountryP!AD25 -> 
B64: =iCountryP!T26 -> 1 | C64: =iCountryP!U26 -> 4.1) Tax and social security burdens | D64: =iCountryP!V26 -> 75 | G64: =iCountryP!X26 -> 0 | H64: =iCountryP!Y26 ->  | I64: =iCountryP!Z26 ->  | L64: =iCountryP!AB26 -> 0 | M64: =iCountryP!AC26 ->  | N64: =iCountryP!AD26 -> 
B65: =iCountryP!T27 -> 1 | C65: =iCountryP!U27 -> 4.2) Quality of state institutions | D65: =iCountryP!V27 -> 88.88888889 | G65: =iCountryP!X27 -> 0 | H65: =iCountryP!Y27 ->  | I65: =iCountryP!Z27 ->  | L65: =iCountryP!AB27 -> 0 | M65: =iCountryP!AC27 ->  | N65: =iCountryP!AD27 -> 
B66: =iCountryP!T28 -> 0 | C66: =iCountryP!U28 ->  | D66: =iCountryP!V28 ->  | G66: =iCountryP!X28 -> 0 | H66: =iCountryP!Y28 ->  | I66: =iCountryP!Z28 ->  | L66: =iCountryP!AB28 -> 0 | M66: =iCountryP!AC28 ->  | N66: =iCountryP!AD28 -> 
B67: =iCountryP!T29 -> 0 | C67: =iCountryP!U29 ->  | D67: =iCountryP!V29 ->  | G67: =iCountryP!X29 -> 0 | H67: =iCountryP!Y29 ->  | I67: =iCountryP!Z29 ->  | L67: =iCountryP!AB29 -> 0 | M67: =iCountryP!AC29 ->  | N67: =iCountryP!AD29 -> 
B68: =iCountryP!T30 -> 0 | C68: =iCountryP!U30 ->  | D68: =iCountryP!V30 ->  | G68: =iCountryP!X30 -> 0 | H68: =iCountryP!Y30 ->  | I68: =iCountryP!Z30 ->  | L68: =iCountryP!AB30 -> 0 | M68: =iCountryP!AC30 ->  | N68: =iCountryP!AD30 -> 
B69: =iCountryP!T31 -> 0 | C69: =iCountryP!U31 ->  | D69: =iCountryP!V31 ->  | G69: =iCountryP!X31 -> 0 | H69: =iCountryP!Y31 ->  | I69: =iCountryP!Z31 ->  | L69: =iCountryP!AB31 -> 0 | M69: =iCountryP!AC31 ->  | N69: =iCountryP!AD31 -> 
B70: =iCountryP!T32 -> 0 | C70: =iCountryP!U32 ->  | D70: =iCountryP!V32 ->  | G70: =iCountryP!X32 -> 0 | H70: =iCountryP!Y32 ->  | I70: =iCountryP!Z32 ->  | L70: =iCountryP!AB32 -> 0 | M70: =iCountryP!AC32 ->  | N70: =iCountryP!AD32 -> 
B71: =iCountryP!T33 -> 0 | C71: =iCountryP!U33 ->  | D71: =iCountryP!V33 ->  | G71: =iCountryP!X33 -> 0 | H71: =iCountryP!Y33 ->  | I71: =iCountryP!Z33 ->  | L71: =iCountryP!AB33 -> 0 | M71: =iCountryP!AC33 ->  | N71: =iCountryP!AD33 -> 
B72: =iCountryP!T34 -> 0 | C72: =iCountryP!U34 ->  | D72: =iCountryP!V34 ->  | G72: =iCountryP!X34 -> 0 | H72: =iCountryP!Y34 ->  | I72: =iCountryP!Z34 ->  | L72: =iCountryP!AB34 -> 0 | M72: =iCountryP!AC34 ->  | N72: =iCountryP!AD34 -> 

Sheet iCityCompare (hidden)
A1: Overall Score | D1: Score | E1: Rank
A2: =uxb_works!A19 -> CITY1_ID | B2: =uxb_works!B19 -> 1 | C2: =CONCATENATE("Description: ",uxb_works!C19) -> Description: Australia | D2: =E6 -> 85.20353745 | E2: =INDEX(iIndiRank!$H$6:$H$22,$B$2) -> 1 | F2: =IF(E2<E3,"*","") -> * | G2: =IF(COUNTIF(rScores!$B$25:$R$25,E2)>1,"=","") ->  | H2: =G2&E2 -> 1
A3: =uxb_works!A20 -> CITY2_ID | B3: =uxb_works!B20 -> 4 | C3: =CONCATENATE("Description: ",uxb_works!C20) -> Description: Hong Kong | D3: =G6 -> 81.40889238 | E3: =INDEX(iIndiRank!$H$6:$H$22,$B$3) -> 3 | F3: =IF(E3<E2,"*","") ->  | G3: =IF(COUNTIF(rScores!$B$25:$R$25,E3)>1,"=","") ->  | H3: =G3&E3 -> 3
E5: Score | F5: rank | G5: Score | H5: Rank | U5: Total
E6: =INDEX(aScores,1,$B$2) -> 85.20353745 | F6: =G2&INDEX(aRank,1,$B$2) -> 1 | G6: =INDEX(aScores,1,$B$3) -> 81.40889238 | H6: =G3&INDEX(aRank,1,$B$3) -> 3 | N6: 1
E7: City 1 | G7: City 2 | N7: =INDEX(tblIndiSets!$B$5:$B$11,N6) -> 1 | U7: 1 | V7: 1 | W7: 2 | X7: 3 | Y7: 4 | Z7: City 1 | AA7: City 2 | AI7: 1 | AJ7: 8
C8: ActiveStatus | E8: Score | F8: Data | G8: Score | H8: Data | N8: Score | O8: Rank | P8: LU | Q8: Rank | U8: Name | V8: Score | W8: Data | X8: Score | Y8: Data | Z8: Rank` | AA8: Rank` | AB8: = or not | AC8: = or not | AF8: units | AG8: Star | AH8: Star | AI8: 2 | AJ8: Depth | AK8: units
A9: =tblCategories!A3 -> 1 | B9: =tblCategories!D3 -> 1) INTELLECTUAL PROPERTY | C9: =tblCategories!F3 -> 1 | D9: 1 | E9: =INDEX(aScores,$A9+1,$B$2) -> 100 | F9: =IF(INDEX(aData,$A9+1,$B$2)="","",INDEX(aData,$A9+1,$B$2)) ->  | G9: =INDEX(aScores,$A9+1,$B$3) -> 80 | H9: =IF(INDEX(aData,$A9+1,$B$3)="","",INDEX(aData,$A9+1,$B$3)) ->  | I9: =tblIndicators!F3 -> 1 | N9: =IF($C9=0,"",(INDEX($D$9:$H$26,$A9,N$7))) -> 1 | O9: =IF($C9=0,"",RANK(N9,N$9:N$26,1)+COUNTIF(N$9:N9,N9)-1) -> 1 | P9: =IF(ISERROR(MATCH($A9,O$9:O$26,0)),"",MATCH($A9,O$9:O$26,0)) -> 1 | Q9: =IF(P9="","",RANK(V9,V$9:V$26,0)) -> 1 | R9: =IF(P9="","",COUNTIF(V$9:V$26,V9)) -> 8 | S9: =IF(P9="",0,INDEX($D$9:$D$26,P9)) -> 1 | T9: =IF(P9="","",IF(R9>1,CONCATENATE("=",Q9),Q9)) -> =1 | U9: =IF($P9="","",REPT(" ",AJ9)&INDEX($B$9:$I$26,$P9,U$7)) -> 1) INTELLECTUAL PROPERTY | V9: =IF($P9="","",INDEX($E$9:$L$26,$P9,V$7)) -> 100 | X9: =IF($P9="","",INDEX($E$9:$H$26,$P9,X$7)) -> 80 | Y9: =IF($P9="","",INDEX($E$9:$L$26,$P9,Y$7)) ->  | Z9: =IF(P9="","",IF(ISERROR(INDEX(aRank,$P9+1,uxb_works!$B$19)),"",INDEX(aRank,$P9+1,uxb_works!$B$19))) -> =1 | AA9: =IF(Q9="","",IF(ISERROR(INDEX(aRank,$P9+1,uxb_works!$B$20)),"",INDEX(aRank,$P9+1,uxb_works!$B$20))) -> =3 | AB9: =COUNTIF(rScores!$B26:$R26,Z9) -> 0 | AC9: =COUNTIF(rScores!$B26:$R26,AA9) -> 0 | AD9: =IF(AB9>1,"=","")&Z9 -> =1 | AE9: =IF(AC9>1,"=","")&AA9 -> =3 | AF9: =IF(P9="","",INDEX(tblIndicators!$H$3:$H$78,iCityCompare!P9)) -> Intellectual property | AG9: =IF(Z9<AA9,"*","") -> * | AH9: =IF(AA9<Z9,"*","") ->  | AI9: 3 | AJ9: =IF($P9="","",INDEX($B$9:$I$26,$P9,AJ$7)) -> 1 | AK9: =IF(P9="","",INDEX(tblIndicators!$S$3:$S$20,iCityCompare!P9)) -> #0.0
A10: =tblCategories!A4 -> 2 | B10: =tblCategories!D4 -> 1.1) Protection of IP rights | C10: =tblCategories!F4 -> 1 | D10: 1 | E10: 100 | F10: 0 | G10: 75 | H10: 1 | I10: =tblIndicators!F4 -> 2 | N10: 1 | O10: =IF($C10=0,"",RANK(N10,N$9:N$26,1)+COUNTIF(N$9:N10,N10)-1) -> 2 | P10: 2 | Q10: 1 | R10: 8 | S10: 1 | T10: =IF(P10="","",IF(R10>1,CONCATENATE("=",Q10),Q10)) -> =1 | U10: 1.1) Protection of IP rights | V10: 100 | W10: 0 | X10: 75 | Y10: 1 | Z10: =IF(P10="","",IF(ISERROR(INDEX(aRank,$P10+1,uxb_works!$B$19)),"",INDEX(aRank,$P10+1,uxb_works!$B$19))) -> =1 | AA10: =IF(Q10="","",IF(ISERROR(INDEX(aRank,$P10+1,uxb_works!$B$20)),"",INDEX(aRank,$P10+1,uxb_works!$B$20))) -> =4 | AB10: =COUNTIF(rScores!$B27:$R27,Z10) -> 0 | AC10: =COUNTIF(rScores!$B27:$R27,AA10) -> 0 | AD10: =IF(AB10>1,"=","")&Z10 -> =1 | AE10: =IF(AC10>1,"=","")&AA10 -> =4 | AF10: =IF(P10="","",INDEX(tblIndicators!$H$3:$H$78,iCityCompare!P10)) -> Protection of IP rights | AG10: =IF(Z10<AA10,"*","") -> * | AH10: =IF(AA10<Z10,"*","") ->  | AI10: 3 | AJ10: 2 | AK10: =IF(P10="","",INDEX(tblIndicators!$S$3:$S$20,iCityCompare!P10)) -> #0
A11: =tblCategories!A5 -> 3 | B11: =tblCategories!D5 -> 1.2) Customs recordal system | C11: =tblCategories!F5 -> 1 | D11: 1 | E11: 100 | F11: 1 | G11: 100 | H11: 1 | I11: =tblIndicators!F5 -> 2 | N11: 1 | O11: =IF($C11=0,"",RANK(N11,N$9:N$26,1)+COUNTIF(N$9:N11,N11)-1) -> 3 | P11: 3 | Q11: 1 | R11: 8 | S11: 1 | T11: =1 | U11: 1.2) Customs recordal system | V11: 100 | W11: 1 | X11: 100 | Y11: 1 | Z11: =IF(P11="","",IF(ISERROR(INDEX(aRank,$P11+1,uxb_works!$B$19)),"",INDEX(aRank,$P11+1,uxb_works!$B$19))) -> =1 | AA11: =IF(Q11="","",IF(ISERROR(INDEX(aRank,$P11+1,uxb_works!$B$20)),"",INDEX(aRank,$P11+1,uxb_works!$B$20))) -> =1 | AB11: =COUNTIF(rScores!$B28:$R28,Z11) -> 0 | AC11: =COUNTIF(rScores!$B28:$R28,AA11) -> 0 | AD11: =1 | AE11: =1 | AF11: =IF(P11="","",INDEX(tblIndicators!$H$3:$H$78,iCityCompare!P11)) -> Customs recordal system | AI11: 3 | AJ11: 2 | AK11: =IF(P11="","",INDEX(tblIndicators!$S$3:$S$20,iCityCompare!P11)) -> #0
A12: =tblCategories!A6 -> 4 | B12: =tblCategories!D6 -> 2) TRANSPARENCY AND TRADE | C12: =tblCategories!F6 -> 1 | D12: 1 | E12: 81.5 | G12: 69.5 | I12: =tblIndicators!F6 -> 1 | N12: 1 | O12: =IF($C12=0,"",RANK(N12,N$9:N$26,1)+COUNTIF(N$9:N12,N12)-1) -> 4 | P12: 4 | Q12: 12 | R12: 1 | S12: 1 | T12: 12 | U12: 2) TRANSPARENCY AND TRADE | V12: 81.5 | X12: 69.5 | Z12: =IF(P12="","",IF(ISERROR(INDEX(aRank,$P12+1,uxb_works!$B$19)),"",INDEX(aRank,$P12+1,uxb_works!$B$19))) -> 4 | AA12: =IF(Q12="","",IF(ISERROR(INDEX(aRank,$P12+1,uxb_works!$B$20)),"",INDEX(aRank,$P12+1,uxb_works!$B$20))) -> 9 | AB12: =COUNTIF(rScores!$B29:$R29,Z12) -> 1 | AC12: =COUNTIF(rScores!$B29:$R29,AA12) -> 1 | AD12: 4 | AE12: 9 | AF12: =IF(P12="","",INDEX(tblIndicators!$H$3:$H$78,iCityCompare!P12)) -> Transparency and trade | AG12: * | AI12: 3 | AJ12: 1 | AK12: =IF(P12="","",INDEX(tblIndicators!$S$3:$S$20,iCityCompare!P12)) -> #0.0
A13: =tblCategories!A7 -> 5 | B13: =tblCategories!D7 -> 2.1) Track and trace services | C13: =tblCategories!F7 -> 1 | D13: 1 | E13: 76 | F13: 3.8 | G13: 78 | H13: 3.9 | I13: =tblIndicators!F7 -> 2 | N13: 1 | O13: =IF($C13=0,"",RANK(N13,N$9:N$26,1)+COUNTIF(N$9:N13,N13)-1) -> 5 | P13: 5 | Q13: 13 | R13: 1 | S13: 1 | T13: 13 | U13: 2.1) Track and trace services | V13: 76 | W13: 3.8 | X13: 78 | Y13: 3.9 | Z13: =IF(P13="","",IF(ISERROR(INDEX(aRank,$P13+1,uxb_works!$B$19)),"",INDEX(aRank,$P13+1,uxb_works!$B$19))) -> =4 | AA13: =IF(Q13="","",IF(ISERROR(INDEX(aRank,$P13+1,uxb_works!$B$20)),"",INDEX(aRank,$P13+1,uxb_works!$B$20))) -> =2 | AB13: =COUNTIF(rScores!$B30:$R30,Z13) -> 0 | AC13: =COUNTIF(rScores!$B30:$R30,AA13) -> 0 | AD13: =4 | AE13: =2 | AF13: =IF(P13="","",INDEX(tblIndicators!$H$3:$H$78,iCityCompare!P13)) -> Track and trace services | AH13: * | AI13: 3 | AJ13: 2 | AK13: =IF(P13="","",INDEX(tblIndicators!$S$3:$S$20,iCityCompare!P13)) -> #0
A14: =tblCategories!A8 -> 6 | B14: =tblCategories!D8 -> 2.2) Adoption of Annex D of Revised Kyoto Convention | C14: =tblCategories!F8 -> 1 | D14: 1 | E14: 100 | F14: 1 | G14: 0 | H14: 0 | I14: =tblIndicators!F8 -> 2 | N14: 1 | O14: =IF($C14=0,"",RANK(N14,N$9:N$26,1)+COUNTIF(N$9:N14,N14)-1) -> 6 | P14: 6 | Q14: 1 | R14: 8 | S14: 1 | T14: =1 | U14: 2.2) Adoption of Annex D of Revised Kyoto Convention | V14: 100 | W14: 1 | X14: 0 | Y14: 0 | Z14: =IF(P14="","",IF(ISERROR(INDEX(aRank,$P14+1,uxb_works!$B$19)),"",INDEX(aRank,$P14+1,uxb_works!$B$19))) -> =1 | AA14: =IF(Q14="","",IF(ISERROR(INDEX(aRank,$P14+1,uxb_works!$B$20)),"",INDEX(aRank,$P14+1,uxb_works!$B$20))) -> =13 | AB14: =COUNTIF(rScores!$B31:$R31,Z14) -> 0 | AC14: =COUNTIF(rScores!$B31:$R31,AA14) -> 0 | AD14: =1 | AE14: =13 | AF14: =IF(P14="","",INDEX(tblIndicators!$H$3:$H$78,iCityCompare!P14)) -> Adoption of Annex D of Revised Kyoto Convention | AG14: * | AI14: 3 | AJ14: 2 | AK14: =IF(P14="","",INDEX(tblIndicators!$S$3:$S$20,iCityCompare!P14)) -> #0
A15: =tblCategories!A9 -> 7 | B15: =tblCategories!D9 -> 2.3) Government cooperation | C15: =tblCategories!F9 -> 1 | D15: 1 | E15: 100 | F15: 2 | G15: 100 | H15: 2 | I15: =tblIndicators!F9 -> 2 | N15: 1 | O15: =IF($C15=0,"",RANK(N15,N$9:N$26,1)+COUNTIF(N$9:N15,N15)-1) -> 7 | P15: 7 | Q15: 1 | R15: 8 | S15: 1 | T15: =1 | U15: 2.3) Government cooperation | V15: 100 | W15: 2 | X15: 100 | Y15: 2 | Z15: =IF(P15="","",IF(ISERROR(INDEX(aRank,$P15+1,uxb_works!$B$19)),"",INDEX(aRank,$P15+1,uxb_works!$B$19))) -> =1 | AA15: =IF(Q15="","",IF(ISERROR(INDEX(aRank,$P15+1,uxb_works!$B$20)),"",INDEX(aRank,$P15+1,uxb_works!$B$20))) -> =1 | AB15: =COUNTIF(rScores!$B32:$R32,Z15) -> 0 | AC15: =COUNTIF(rScores!$B32:$R32,AA15) -> 0 | AD15: =1 | AE15: =1 | AF15: =IF(P15="","",INDEX(tblIndicators!$H$3:$H$78,iCityCompare!P15)) -> Government cooperation | AI15: 3 | AJ15: 2 | AK15: =IF(P15="","",INDEX(tblIndicators!$S$3:$S$20,iCityCompare!P15)) -> #0
A16: =tblCategories!A10 -> 8 | B16: =tblCategories!D10 -> 2.4) FTZ governance | C16: =tblCategories!F10 -> 1 | D16: 1 | E16: 50 | F16: 2 | G16: 100 | H16: 4 | I16: =tblIndicators!F10 -> 2 | N16: 1 | O16: =IF($C16=0,"",RANK(N16,N$9:N$26,1)+COUNTIF(N$9:N16,N16)-1) -> 8 | P16: 8 | Q16: 16 | R16: 2 | S16: 1 | T16: =16 | U16: 2.4) FTZ governance | V16: 50 | W16: 2 | X16: 100 | Y16: 4 | Z16: =IF(P16="","",IF(ISERROR(INDEX(aRank,$P16+1,uxb_works!$B$19)),"",INDEX(aRank,$P16+1,uxb_works!$B$19))) -> =8 | AA16: =IF(Q16="","",IF(ISERROR(INDEX(aRank,$P16+1,uxb_works!$B$20)),"",INDEX(aRank,$P16+1,uxb_works!$B$20))) -> =1 | AB16: =COUNTIF(rScores!$B33:$R33,Z16) -> 0 | AC16: =COUNTIF(rScores!$B33:$R33,AA16) -> 0 | AD16: =8 | AE16: =1 | AF16: =IF(P16="","",INDEX(tblIndicators!$H$3:$H$78,iCityCompare!P16)) -> FTZ governance | AH16: * | AI16: 3 | AJ16: 2 | AK16: =IF(P16="","",INDEX(tblIndicators!$S$3:$S$20,iCityCompare!P16)) -> #0
A17: =tblCategories!A11 -> 9 | B17: =tblCategories!D11 -> 3) CUSTOMS ENVIRONMENT | C17: =tblCategories!F11 -> 1 | D17: 1 | E17: 88.01785352 | G17: 83.54297694 | I17: =tblIndicators!F11 -> 1 | N17: 1 | O17: =IF($C17=0,"",RANK(N17,N$9:N$26,1)+COUNTIF(N$9:N17,N17)-1) -> 9 | P17: 9 | Q17: 11 | R17: 1 | S17: 1 | T17: 11 | U17: 3) CUSTOMS ENVIRONMENT | V17: 88.01785352 | X17: 83.54297694 | Z17: =IF(P17="","",IF(ISERROR(INDEX(aRank,$P17+1,uxb_works!$B$19)),"",INDEX(aRank,$P17+1,uxb_works!$B$19))) -> 2 | AA17: =IF(Q17="","",IF(ISERROR(INDEX(aRank,$P17+1,uxb_works!$B$20)),"",INDEX(aRank,$P17+1,uxb_works!$B$20))) -> 4 | AB17: =COUNTIF(rScores!$B34:$R34,Z17) -> 1 | AC17: =COUNTIF(rScores!$B34:$R34,AA17) -> 1 | AD17: 2 | AE17: 4 | AF17: =IF(P17="","",INDEX(tblIndicators!$H$3:$H$78,iCityCompare!P17)) -> Customs environment | AG17: * | AI17: 3 | AJ17: 1 | AK17: =IF(P17="","",INDEX(tblIndicators!$S$3:$S$20,iCityCompare!P17)) -> #0.0
A18: =tblCategories!A12 -> 10 | B18: =tblCategories!D12 -> 3.1) Percentage of shipments physically inspected | C18: =tblCategories!F12 -> 1 | D18: 1 | E18: 3.773584906 | F18: 2 | G18: 1.886792453 | H18: 1 | I18: =tblIndicators!F12 -> 2 | N18: 1 | O18: =IF($C18=0,"",RANK(N18,N$9:N$26,1)+COUNTIF(N$9:N18,N18)-1) -> 10 | P18: 10 | Q18: 18 | R18: 1 | S18: 1 | T18: 18 | U18: 3.1) Percentage of shipments physically inspected | V18: 3.773584906 | W18: 2 | X18: 1.886792453 | Y18: 1 | Z18: =IF(P18="","",IF(ISERROR(INDEX(aRank,$P18+1,uxb_works!$B$19)),"",INDEX(aRank,$P18+1,uxb_works!$B$19))) -> =10 | AA18: =IF(Q18="","",IF(ISERROR(INDEX(aRank,$P18+1,uxb_works!$B$20)),"",INDEX(aRank,$P18+1,uxb_works!$B$20))) -> =13 | AB18: =COUNTIF(rScores!$B35:$R35,Z18) -> 0 | AC18: =COUNTIF(rScores!$B35:$R35,AA18) -> 0 | AD18: =10 | AE18: =13 | AF18: =IF(P18="","",INDEX(tblIndicators!$H$3:$H$78,iCityCompare!P18)) -> Percentage of shipments physically inspected | AG18: * | AI18: 3 | AJ18: 2 | AK18: =IF(P18="","",INDEX(tblIndicators!$S$3:$S$20,iCityCompare!P18)) -> #0
A19: =tblCategories!A13 -> 11 | B19: =tblCategories!D13 -> 3.2) Customs clearance and inspection | C19: =tblCategories!F13 -> 1 | D19: 1 | E19: 100 | F19: 1 | G19: 100 | H19: 1 | I19: =tblIndicators!F13 -> 2 | N19: 1 | O19: =IF($C19=0,"",RANK(N19,N$9:N$26,1)+COUNTIF(N$9:N19,N19)-1) -> 11 | P19: 11 | Q19: 1 | R19: 8 | S19: 1 | T19: =1 | U19: 3.2) Customs clearance and inspection | V19: 100 | W19: 1 | X19: 100 | Y19: 1 | Z19: =IF(P19="","",IF(ISERROR(INDEX(aRank,$P19+1,uxb_works!$B$19)),"",INDEX(aRank,$P19+1,uxb_works!$B$19))) -> =1 | AA19: =IF(Q19="","",IF(ISERROR(INDEX(aRank,$P19+1,uxb_works!$B$20)),"",INDEX(aRank,$P19+1,uxb_works!$B$20))) -> =1 | AB19: =COUNTIF(rScores!$B36:$R36,Z19) -> 0 | AC19: =COUNTIF(rScores!$B36:$R36,AA19) -> 0 | AD19: =1 | AE19: =1 | AF19: =IF(P19="","",INDEX(tblIndicators!$H$3:$H$78,iCityCompare!P19)) -> Customs clearance and inspection | AI19: 3 | AJ19: 2 | AK19: =IF(P19="","",INDEX(tblIndicators!$S$3:$S$20,iCityCompare!P19)) -> #0
A20: =tblCategories!A14 -> 12 | B20: =tblCategories!D14 -> 3.3) Automation | C20: =tblCategories!F14 -> 1 | D20: 1 | E20: 94.19354839 | F20: 1.71 | G20: 100 | H20: 1.8 | I20: =tblIndicators!F14 -> 2 | N20: 1 | O20: =IF($C20=0,"",RANK(N20,N$9:N$26,1)+COUNTIF(N$9:N20,N20)-1) -> 12 | P20: 12 | Q20: 9 | R20: 1 | S20: 1 | T20: 9 | U20: 3.3) Automation | V20: 94.19354839 | W20: 1.71 | X20: 100 | Y20: 1.8 | Z20: =IF(P20="","",IF(ISERROR(INDEX(aRank,$P20+1,uxb_works!$B$19)),"",INDEX(aRank,$P20+1,uxb_works!$B$19))) -> =7 | AA20: =IF(Q20="","",IF(ISERROR(INDEX(aRank,$P20+1,uxb_works!$B$20)),"",INDEX(aRank,$P20+1,uxb_works!$B$20))) -> =1 | AB20: =COUNTIF(rScores!$B37:$R37,Z20) -> 0 | AC20: =COUNTIF(rScores!$B37:$R37,AA20) -> 0 | AD20: =7 | AE20: =1 | AF20: =IF(P20="","",INDEX(tblIndicators!$H$3:$H$78,iCityCompare!P20)) -> Automation | AH20: * | AI20: 3 | AJ20: 2 | AK20: =IF(P20="","",INDEX(tblIndicators!$S$3:$S$20,iCityCompare!P20)) -> #0.00
A21: =tblCategories!A15 -> 13 | B21: =tblCategories!D15 -> 3.4) Corruption | C21: =tblCategories!F15 -> 1 | D21: 1 | E21: 100 | F21: 0 | G21: 75 | H21: 1 | I21: =tblIndicators!F15 -> 2 | N21: 1 | O21: =IF($C21=0,"",RANK(N21,N$9:N$26,1)+COUNTIF(N$9:N21,N21)-1) -> 13 | P21: 13 | Q21: 1 | R21: 8 | S21: 1 | T21: =1 | U21: 3.4) Corruption | V21: 100 | W21: 0 | X21: 75 | Y21: 1 | Z21: =IF(P21="","",IF(ISERROR(INDEX(aRank,$P21+1,uxb_works!$B$19)),"",INDEX(aRank,$P21+1,uxb_works!$B$19))) -> =1 | AA21: =IF(Q21="","",IF(ISERROR(INDEX(aRank,$P21+1,uxb_works!$B$20)),"",INDEX(aRank,$P21+1,uxb_works!$B$20))) -> =4 | AB21: =COUNTIF(rScores!$B38:$R38,Z21) -> 0 | AC21: =COUNTIF(rScores!$B38:$R38,AA21) -> 0 | AD21: =1 | AE21: =4 | AF21: =IF(P21="","",INDEX(tblIndicators!$H$3:$H$78,iCityCompare!P21)) -> Corruption | AG21: * | AI21: 3 | AJ21: 2 | AK21: =IF(P21="","",INDEX(tblIndicators!$S$3:$S$20,iCityCompare!P21)) -> #0
A22: =tblCategories!A16 -> 14 | B22: =tblCategories!D16 -> 3.5) Accredited Economic Operator programme | C22: =tblCategories!F16 -> 1 | D22: 1 | E22: 100 | F22: 3 | G22: 100 | H22: 3 | I22: =tblIndicators!F16 -> 2 | N22: 1 | O22: =IF($C22=0,"",RANK(N22,N$9:N$26,1)+COUNTIF(N$9:N22,N22)-1) -> 14 | P22: 14 | Q22: 1 | R22: 8 | S22: 1 | T22: =1 | U22: 3.5) Accredited Economic Operator programme | V22: 100 | W22: 3 | X22: 100 | Y22: 3 | Z22: =IF(P22="","",IF(ISERROR(INDEX(aRank,$P22+1,uxb_works!$B$19)),"",INDEX(aRank,$P22+1,uxb_works!$B$19))) -> =1 | AA22: =IF(Q22="","",IF(ISERROR(INDEX(aRank,$P22+1,uxb_works!$B$20)),"",INDEX(aRank,$P22+1,uxb_works!$B$20))) -> =1 | AB22: =COUNTIF(rScores!$B39:$R39,Z22) -> 0 | AC22: =COUNTIF(rScores!$B39:$R39,AA22) -> 0 | AD22: =1 | AE22: =1 | AF22: =IF(P22="","",INDEX(tblIndicators!$H$3:$H$78,iCityCompare!P22)) -> Accredited Economic Operator programme | AI22: 3 | AJ22: 2 | AK22: =IF(P22="","",INDEX(tblIndicators!$S$3:$S$20,iCityCompare!P22)) -> #0
A23: =tblCategories!A17 -> 15 | B23: =tblCategories!D17 -> 4) SUPPLY AND DEMAND | C23: =tblCategories!F17 -> 1 | D23: 1 | E23: 71.2962963 | G23: 92.59259259 | I23: =tblIndicators!F17 -> 1 | N23: 1 | O23: =IF($C23=0,"",RANK(N23,N$9:N$26,1)+COUNTIF(N$9:N23,N23)-1) -> 15 | P23: 15 | Q23: 15 | R23: 1 | S23: 1 | T23: 15 | U23: 4) SUPPLY AND DEMAND | V23: 71.2962963 | X23: 92.59259259 | Z23: =IF(P23="","",IF(ISERROR(INDEX(aRank,$P23+1,uxb_works!$B$19)),"",INDEX(aRank,$P23+1,uxb_works!$B$19))) -> 5 | AA23: =IF(Q23="","",IF(ISERROR(INDEX(aRank,$P23+1,uxb_works!$B$20)),"",INDEX(aRank,$P23+1,uxb_works!$B$20))) -> 1 | AB23: =COUNTIF(rScores!$B40:$R40,Z23) -> 1 | AC23: =COUNTIF(rScores!$B40:$R40,AA23) -> 1 | AD23: 5 | AE23: 1 | AF23: =IF(P23="","",INDEX(tblIndicators!$H$3:$H$78,iCityCompare!P23)) -> Supply and demand | AH23: * | AI23: 3 | AJ23: 1 | AK23: =IF(P23="","",INDEX(tblIndicators!$S$3:$S$20,iCityCompare!P23)) -> #0.0
A24: =tblCategories!A18 -> 16 | B24: =tblCategories!D18 -> 4.1) Tax and social security burdens | C24: =tblCategories!F18 -> 1 | D24: 1 | E24: 75 | F24: 4 | G24: 100 | H24: 5 | I24: =tblIndicators!F18 -> 2 | N24: 1 | O24: =IF($C24=0,"",RANK(N24,N$9:N$26,1)+COUNTIF(N$9:N24,N24)-1) -> 16 | P24: 16 | Q24: 14 | R24: 1 | S24: 1 | T24: 14 | U24: 4.1) Tax and social security burdens | V24: 75 | W24: 4 | X24: 100 | Y24: 5 | Z24: =IF(P24="","",IF(ISERROR(INDEX(aRank,$P24+1,uxb_works!$B$19)),"",INDEX(aRank,$P24+1,uxb_works!$B$19))) -> =3 | AA24: =IF(Q24="","",IF(ISERROR(INDEX(aRank,$P24+1,uxb_works!$B$20)),"",INDEX(aRank,$P24+1,uxb_works!$B$20))) -> =1 | AB24: =COUNTIF(rScores!$B41:$R41,Z24) -> 0 | AC24: =COUNTIF(rScores!$B41:$R41,AA24) -> 0 | AD24: =3 | AE24: =1 | AF24: =IF(P24="","",INDEX(tblIndicators!$H$3:$H$78,iCityCompare!P24)) -> Tax and social security burdens | AH24: * | AI24: 3 | AJ24: 2 | AK24: =IF(P24="","",INDEX(tblIndicators!$S$3:$S$20,iCityCompare!P24)) -> #0
A25: =tblCategories!A19 -> 17 | B25: =tblCategories!D19 -> 4.2) Quality of state institutions | C25: =tblCategories!F19 -> 1 | D25: 1 | E25: 88.88888889 | F25: 9 | G25: 77.77777778 | H25: 8 | I25: =tblIndicators!F19 -> 2 | N25: 1 | O25: =IF($C25=0,"",RANK(N25,N$9:N$26,1)+COUNTIF(N$9:N25,N25)-1) -> 17 | P25: 17 | Q25: 10 | R25: 1 | S25: 1 | T25: 10 | U25: 4.2) Quality of state institutions | V25: 88.88888889 | W25: 9 | X25: 77.77777778 | Y25: 8 | Z25: =IF(P25="","",IF(ISERROR(INDEX(aRank,$P25+1,uxb_works!$B$19)),"",INDEX(aRank,$P25+1,uxb_works!$B$19))) -> 3 | AA25: =IF(Q25="","",IF(ISERROR(INDEX(aRank,$P25+1,uxb_works!$B$20)),"",INDEX(aRank,$P25+1,uxb_works!$B$20))) -> 4 | AB25: =COUNTIF(rScores!$B42:$R42,Z25) -> 1 | AC25: =COUNTIF(rScores!$B42:$R42,AA25) -> 1 | AD25: 3 | AE25: 4 | AF25: =IF(P25="","",INDEX(tblIndicators!$H$3:$H$78,iCityCompare!P25)) -> Quality of state institutions | AG25: * | AI25: 3 | AJ25: 2 | AK25: =IF(P25="","",INDEX(tblIndicators!$S$3:$S$20,iCityCompare!P25)) -> #0
A26: =tblCategories!A20 -> 18 | B26: =tblCategories!D20 -> 4.3) Labour market regulations | C26: =tblCategories!F20 -> 1 | D26: 1 | E26: 50 | F26: 3 | G26: 100 | H26: 5 | I26: =tblIndicators!F20 -> 2 | N26: 1 | O26: =IF($C26=0,"",RANK(N26,N$9:N$26,1)+COUNTIF(N$9:N26,N26)-1) -> 18 | P26: 18 | Q26: 16 | R26: 2 | S26: 1 | T26: =16 | U26: 4.3) Labour market regulations | V26: 50 | W26: 3 | X26: 100 | Y26: 5 | Z26: =IF(P26="","",IF(ISERROR(INDEX(aRank,$P26+1,uxb_works!$B$19)),"",INDEX(aRank,$P26+1,uxb_works!$B$19))) -> =7 | AA26: =IF(Q26="","",IF(ISERROR(INDEX(aRank,$P26+1,uxb_works!$B$20)),"",INDEX(aRank,$P26+1,uxb_works!$B$20))) -> 1 | AB26: =COUNTIF(rScores!$B43:$R43,Z26) -> 0 | AC26: =COUNTIF(rScores!$B43:$R43,AA26) -> 1 | AD26: =7 | AE26: 1 | AF26: =IF(P26="","",INDEX(tblIndicators!$H$3:$H$78,iCityCompare!P26)) -> Labour market regulations | AG26: * | AI26: 3 | AJ26: 2 | AK26: =IF(P26="","",INDEX(tblIndicators!$S$3:$S$20,iCityCompare!P26)) -> #0

Sheet Country_Compare (hidden)
E3: Select indicator range | O3: ** International cities are not included in the rankings
H6: =iCC_Overview!C2 -> Australia | L6: =iCC_Overview!C3 -> Hong Kong
H7: Score | I7: Data | J7: Rank* | L7: Score | M7: Data | N7: Rank*
C8: =IF(D8="","0","1") -> 1 | D8: =iCountryP!C20 -> 2 | E8: OVERALL SCORE | H8: =iCityCompare!D2 -> 85.20353745 | J8: =iCityCompare!F6 -> 1 | K8: =iCityCompare!F2 -> * | L8: =iCityCompare!D3 -> 81.40889238 | N8: =iCityCompare!H6 -> 3 | O8: =iCityCompare!F3 ->  | AC8: =E8 -> OVERALL SCORE
C9: =IF(D9="","0","1") -> 1 | D9: =iCityCompare!P9 -> 1 | E9: =iCityCompare!U9 -> 1) INTELLECTUAL PROPERTY | F9: =IF($I9>$M9,1,IF($I9<$M9,2,0)) -> 2 | G9: =IF($I9<$M9,1,IF($I9>$M9,2,0)) -> 1 | H9: =iCityCompare!V9 -> 100 | I9: =iCityCompare!Z9 -> =1 | J9: =iCityCompare!AD9 -> =1 | K9: =iCityCompare!AG9 -> * | L9: =iCityCompare!X9 -> 80 | M9: =iCityCompare!AA9 -> =3 | N9: =iCityCompare!AE9 -> =3 | O9: =iCityCompare!AH9 ->  | AC9: =E9 -> 1) INTELLECTUAL PROPERTY
C10: =IF(D10="","0","1") -> 1 | D10: =iCityCompare!P10 -> 2 | E10: =iCityCompare!U10 -> 1.1) Protection of IP rights | F10: =IF($I10>$M10,1,IF($I10<$M10,2,0)) -> 2 | G10: =IF($I10<$M10,1,IF($I10>$M10,2,0)) -> 1 | H10: =iCityCompare!V10 -> 100 | I10: =iCityCompare!Z10 -> =1 | J10: =iCityCompare!AD10 -> =1 | K10: =iCityCompare!AG10 -> * | L10: =iCityCompare!X10 -> 75 | M10: =iCityCompare!AA10 -> =4 | N10: =iCityCompare!AE10 -> =4 | O10: =iCityCompare!AH10 ->  | AC10: 1.1) Protection of IP rights
C11: 1 | D11: =iCityCompare!P11 -> 3 | E11: =iCityCompare!U11 -> 1.2) Customs recordal system | F11: 0 | G11: 0 | H11: =iCityCompare!V11 -> 100 | I11: =iCityCompare!Z11 -> =1 | J11: =iCityCompare!AD11 -> =1 | K11: =iCityCompare!AG11 ->  | L11: =iCityCompare!X11 -> 100 | M11: =iCityCompare!AA11 -> =1 | N11: =iCityCompare!AE11 -> =1 | O11: =iCityCompare!AH11 ->  | AC11: 1.2) Customs recordal system
C12: 1 | D12: =iCityCompare!P12 -> 4 | E12: =iCityCompare!U12 -> 2) TRANSPARENCY AND TRADE | F12: 2 | G12: 1 | H12: =iCityCompare!V12 -> 81.5 | I12: =iCityCompare!Z12 -> 4 | J12: =iCityCompare!AD12 -> 4 | K12: =iCityCompare!AG12 -> * | L12: =iCityCompare!X12 -> 69.5 | M12: =iCityCompare!AA12 -> 9 | N12: =iCityCompare!AE12 -> 9 | O12: =iCityCompare!AH12 ->  | AC12: 2) TRANSPARENCY AND TRADE
C13: 1 | D13: =iCityCompare!P13 -> 5 | E13: =iCityCompare!U13 -> 2.1) Track and trace services | F13: 1 | G13: 2 | H13: =iCityCompare!V13 -> 76 | I13: =iCityCompare!Z13 -> =4 | J13: =iCityCompare!AD13 -> =4 | K13: =iCityCompare!AG13 ->  | L13: =iCityCompare!X13 -> 78 | M13: =iCityCompare!AA13 -> =2 | N13: =iCityCompare!AE13 -> =2 | O13: =iCityCompare!AH13 -> * | AC13: 2.1) Track and trace services
C14: 1 | D14: =iCityCompare!P14 -> 6 | E14: =iCityCompare!U14 -> 2.2) Adoption of Annex D of Revised Kyoto Convention | F14: 2 | G14: 1 | H14: =iCityCompare!V14 -> 100 | I14: =iCityCompare!Z14 -> =1 | J14: =iCityCompare!AD14 -> =1 | K14: =iCityCompare!AG14 -> * | L14: =iCityCompare!X14 -> 0 | M14: =iCityCompare!AA14 -> =13 | N14: =iCityCompare!AE14 -> =13 | O14: =iCityCompare!AH14 ->  | AC14: 2.2) Adoption of Annex D of Revised Kyoto Convention
C15: 1 | D15: =iCityCompare!P15 -> 7 | E15: =iCityCompare!U15 -> 2.3) Government cooperation | F15: 0 | G15: 0 | H15: =iCityCompare!V15 -> 100 | I15: =iCityCompare!Z15 -> =1 | J15: =iCityCompare!AD15 -> =1 | K15: =iCityCompare!AG15 ->  | L15: =iCityCompare!X15 -> 100 | M15: =iCityCompare!AA15 -> =1 | N15: =iCityCompare!AE15 -> =1 | O15: =iCityCompare!AH15 ->  | AC15: 2.3) Government cooperation
C16: 1 | D16: =iCityCompare!P16 -> 8 | E16: =iCityCompare!U16 -> 2.4) FTZ governance | F16: 1 | G16: 2 | H16: =iCityCompare!V16 -> 50 | I16: =iCityCompare!Z16 -> =8 | J16: =iCityCompare!AD16 -> =8 | K16: =iCityCompare!AG16 ->  | L16: =iCityCompare!X16 -> 100 | M16: =iCityCompare!AA16 -> =1 | N16: =iCityCompare!AE16 -> =1 | O16: =iCityCompare!AH16 -> * | AC16: 2.4) FTZ governance
C17: 1 | D17: =iCityCompare!P17 -> 9 | E17: =iCityCompare!U17 -> 3) CUSTOMS ENVIRONMENT | F17: 2 | G17: 1 | H17: =iCityCompare!V17 -> 88.01785352 | I17: =iCityCompare!Z17 -> 2 | J17: =iCityCompare!AD17 -> 2 | K17: =iCityCompare!AG17 -> * | L17: =iCityCompare!X17 -> 83.54297694 | M17: =iCityCompare!AA17 -> 4 | N17: =iCityCompare!AE17 -> 4 | O17: =iCityCompare!AH17 ->  | AC17: 3) CUSTOMS ENVIRONMENT
C18: 1 | D18: =iCityCompare!P18 -> 10 | E18: =iCityCompare!U18 -> 3.1) Percentage of shipments physically inspected | F18: 2 | G18: 1 | H18: =iCityCompare!V18 -> 3.773584906 | I18: =iCityCompare!Z18 -> =10 | J18: =iCityCompare!AD18 -> =10 | K18: =iCityCompare!AG18 -> * | L18: =iCityCompare!X18 -> 1.886792453 | M18: =iCityCompare!AA18 -> =13 | N18: =iCityCompare!AE18 -> =13 | O18: =iCityCompare!AH18 ->  | AC18: 3.1) Percentage of shipments physically inspected
C19: 1 | D19: =iCityCompare!P19 -> 11 | E19: =iCityCompare!U19 -> 3.2) Customs clearance and inspection | F19: 0 | G19: 0 | H19: =iCityCompare!V19 -> 100 | I19: =iCityCompare!Z19 -> =1 | J19: =iCityCompare!AD19 -> =1 | K19: =iCityCompare!AG19 ->  | L19: =iCityCompare!X19 -> 100 | M19: =iCityCompare!AA19 -> =1 | N19: =iCityCompare!AE19 -> =1 | O19: =iCityCompare!AH19 ->  | AC19: 3.2) Customs clearance and inspection
C20: 1 | D20: =iCityCompare!P20 -> 12 | E20: =iCityCompare!U20 -> 3.3) Automation | F20: 1 | G20: 2 | H20: =iCityCompare!V20 -> 94.19354839 | I20: =iCityCompare!Z20 -> =7 | J20: =iCityCompare!AD20 -> =7 | K20: =iCityCompare!AG20 ->  | L20: =iCityCompare!X20 -> 100 | M20: =iCityCompare!AA20 -> =1 | N20: =iCityCompare!AE20 -> =1 | O20: =iCityCompare!AH20 -> * | AC20: 3.3) Automation
C21: 1 | D21: =iCityCompare!P21 -> 13 | E21: =iCityCompare!U21 -> 3.4) Corruption | F21: 2 | G21: 1 | H21: =iCityCompare!V21 -> 100 | I21: =iCityCompare!Z21 -> =1 | J21: =iCityCompare!AD21 -> =1 | K21: =iCityCompare!AG21 -> * | L21: =iCityCompare!X21 -> 75 | M21: =iCityCompare!AA21 -> =4 | N21: =iCityCompare!AE21 -> =4 | O21: =iCityCompare!AH21 ->  | AC21: 3.4) Corruption
C22: 1 | D22: =iCityCompare!P22 -> 14 | E22: =iCityCompare!U22 -> 3.5) Accredited Economic Operator programme | F22: 0 | G22: 0 | H22: =iCityCompare!V22 -> 100 | I22: =iCityCompare!Z22 -> =1 | J22: =iCityCompare!AD22 -> =1 | K22: =iCityCompare!AG22 ->  | L22: =iCityCompare!X22 -> 100 | M22: =iCityCompare!AA22 -> =1 | N22: =iCityCompare!AE22 -> =1 | O22: =iCityCompare!AH22 -> 
C23: 1 | D23: =iCityCompare!P23 -> 15 | E23: =iCityCompare!U23 -> 4) SUPPLY AND DEMAND | F23: 1 | G23: 2 | H23: =iCityCompare!V23 -> 71.2962963 | I23: =iCityCompare!Z23 -> 5 | J23: =iCityCompare!AD23 -> 5 | K23: =iCityCompare!AG23 ->  | L23: =iCityCompare!X23 -> 92.59259259 | M23: =iCityCompare!AA23 -> 1 | N23: =iCityCompare!AE23 -> 1 | O23: =iCityCompare!AH23 -> *
C24: 1 | D24: =iCityCompare!P24 -> 16 | E24: =iCityCompare!U24 -> 4.1) Tax and social security burdens | F24: 1 | G24: 2 | H24: =iCityCompare!V24 -> 75 | I24: =iCityCompare!Z24 -> =3 | J24: =iCityCompare!AD24 -> =3 | K24: =iCityCompare!AG24 ->  | L24: =iCityCompare!X24 -> 100 | M24: =iCityCompare!AA24 -> =1 | N24: =iCityCompare!AE24 -> =1 | O24: =iCityCompare!AH24 -> *
C25: 1 | D25: =iCityCompare!P25 -> 17 | E25: =iCityCompare!U25 -> 4.2) Quality of state institutions | F25: 2 | G25: 1 | H25: =iCityCompare!V25 -> 88.88888889 | I25: =iCityCompare!Z25 -> 3 | J25: =iCityCompare!AD25 -> 3 | K25: =iCityCompare!AG25 -> * | L25: =iCityCompare!X25 -> 77.77777778 | M25: =iCityCompare!AA25 -> 4 | N25: =iCityCompare!AE25 -> 4 | O25: =iCityCompare!AH25 -> 
C26: 1 | D26: =iCityCompare!P26 -> 18 | E26: =iCityCompare!U26 -> 4.3) Labour market regulations | F26: 2 | G26: 1 | H26: =iCityCompare!V26 -> 50 | I26: =iCityCompare!Z26 -> =7 | J26: =iCityCompare!AD26 -> =7 | K26: =iCityCompare!AG26 -> * | L26: =iCityCompare!X26 -> 100 | M26: =iCityCompare!AA26 -> 1 | N26: =iCityCompare!AE26 -> 1 | O26: =iCityCompare!AH26 -> 

Sheet Scores (hidden)
P3: =Data!J3 -> 3 | Q3: =Data!K3 -> 4 | R3: =Data!L3 -> 5 | S3: =Data!M3 -> 6 | T3: =Data!N3 -> 7 | U3: =Data!O3 -> 8 | V3: =Data!P3 -> 9 | W3: =Data!Q3 -> 10 | X3: =Data!R3 -> 11 | Y3: =Data!S3 -> 12 | Z3: =Data!T3 -> 13 | AA3: =Data!U3 -> 14 | AB3: =Data!V3 -> 15 | AC3: =Data!W3 -> 16 | AD3: =Data!X3 -> 17 | AE3: =Data!Y3 -> 18 | AF3: =Data!Z3 -> 19
B4: =tblIndicators!A1 -> ID | C4: =tblIndicators!B1 -> IS_BG | D4: =tblIndicators!D1 -> INDI_CODE | E4: =tblIndicators!E1 -> PARENT_CODE | F4: =tblIndicators!F1 -> DEPTH | G4: =tblIndicators!V1 -> HIGH_IS | H4: =tblIndicators!W1 -> NORM_ID (1=sumproduct, 2=min max set by data values, 3=min max set by user here) | I4: =tblIndicators!X1 -> Set Min | J4: =tblIndicators!Y1 -> Set Max | K4: MIN | L4: MAX | M4: RANGE | N4: Indicators | O4: Weight | P4: =Data!J4 -> Australia | Q4: =Data!K4 -> Cambodia | R4: =Data!L4 -> China | S4: =Data!M4 -> Hong Kong | T4: =Data!N4 -> India | U4: =Data!O4 -> Indonesia | V4: =Data!P4 -> Japan | W4: =Data!Q4 -> Laos | X4: =Data!R4 -> Malaysia | Y4: =Data!S4 -> Myanmar | Z4: =Data!T4 -> New Zealand | AA4: =Data!U4 -> Philippines | AB4: =Data!V4 -> Singapore | AC4: =Data!W4 -> South Korea | AD4: =Data!X4 -> Taiwan | AE4: =Data!Y4 -> Thailand | AF4: =Data!Z4 -> Vietnam
B5: =tblIndicators!A2 -> 1 | C5: =tblIndicators!B2 -> 0 | D5: =tblIndicators!D2 -> TOTAL | E5: =tblIndicators!E2 -> OVERALL SCORE | F5: =tblIndicators!F2 -> 0 | G5: =tblIndicators!V2 ->  | H5: =tblIndicators!W2 -> 1 | I5: =tblIndicators!X2 -> 0 | J5: =tblIndicators!Y2 -> 0 | K5: =CHOOSE(H5,"-",MIN(Data!J5:Z5),I5) -> - | L5: =CHOOSE(H5,"-",MAX(Data!J5:Z5),J5) -> - | M5: =CHOOSE(H5,"-",L5-K5,L5-K5) -> - | N5: =tblIndicators!AB2 -> OVERALL SCORE | O5: =tblIndicators!AA2 ->  | P5: =IF($H5=0,0,CHOOSE($H5,SUMPRODUCT($O6:$O$23*P6:P$23*($E6:$E$23=$D5)),IF(ISNUMBER(Data!J5),100*ABS($G5-(Data!J5-$K5)/$M5),0),IF(ISNUMBER(Data!J5),100*ABS($G5-(Data!J5-$K5)/$M5),0))) -> 85.20353745 | Q5: =IF($H5=0,0,CHOOSE($H5,SUMPRODUCT($O6:$O$23*Q6:Q$23*($E6:$E$23=$D5)),IF(ISNUMBER(Data!K5),100*ABS($G5-(Data!K5-$K5)/$M5),0),IF(ISNUMBER(Data!K5),100*ABS($G5-(Data!K5-$K5)/$M5),0))) -> 23.92174432 | R5: =IF($H5=0,0,CHOOSE($H5,SUMPRODUCT($O6:$O$23*R6:R$23*($E6:$E$23=$D5)),IF(ISNUMBER(Data!L5),100*ABS($G5-(Data!L5-$K5)/$M5),0),IF(ISNUMBER(Data!L5),100*ABS($G5-(Data!L5-$K5)/$M5),0))) -> 61.57655373 | S5: =IF($H5=0,0,CHOOSE($H5,SUMPRODUCT($O6:$O$23*S6:S$23*($E6:$E$23=$D5)),IF(ISNUMBER(Data!M5),100*ABS($G5-(Data!M5-$K5)/$M5),0),IF(ISNUMBER(Data!M5),100*ABS($G5-(Data!M5-$K5)/$M5),0))) -> 81.40889238 | T5: =IF($H5=0,0,CHOOSE($H5,SUMPRODUCT($O6:$O$23*T6:T$23*($E6:$E$23=$D5)),IF(ISNUMBER(Data!N5),100*ABS($G5-(Data!N5-$K5)/$M5),0),IF(ISNUMBER(Data!N5),100*ABS($G5-(Data!N5-$K5)/$M5),0))) -> 54.14280984 | U5: =IF($H5=0,0,CHOOSE($H5,SUMPRODUCT($O6:$O$23*U6:U$23*($E6:$E$23=$D5)),IF(ISNUMBER(Data!O5),100*ABS($G5-(Data!O5-$K5)/$M5),0),IF(ISNUMBER(Data!O5),100*ABS($G5-(Data!O5-$K5)/$M5),0))) -> 46.06624062 | V5: =IF($H5=0,0,CHOOSE($H5,SUMPRODUCT($O6:$O$23*V6:V$23*($E6:$E$23=$D5)),IF(ISNUMBER(Data!P5),100*ABS($G5-(Data!P5-$K5)/$M5),0),IF(ISNUMBER(Data!P5),100*ABS($G5-(Data!P5-$K5)/$M5),0))) -> 75.85877094 | W5: =IF($H5=0,0,CHOOSE($H5,SUMPRODUCT($O6:$O$23*W6:W$23*($E6:$E$23=$D5)),IF(ISNUMBER(Data!Q5),100*ABS($G5-(Data!Q5-$K5)/$M5),0),IF(ISNUMBER(Data!Q5),100*ABS($G5-(Data!Q5-$K5)/$M5),0))) -> 12.93518519 | X5: =IF($H5=0,0,CHOOSE($H5,SUMPRODUCT($O6:$O$23*X6:X$23*($E6:$E$23=$D5)),IF(ISNUMBER(Data!R5),100*ABS($G5-(Data!R5-$K5)/$M5),0),IF(ISNUMBER(Data!R5),100*ABS($G5-(Data!R5-$K5)/$M5),0))) -> 71.8001623 | Y5: =IF($H5=0,0,CHOOSE($H5,SUMPRODUCT($O6:$O$23*Y6:Y$23*($E6:$E$23=$D5)),IF(ISNUMBER(Data!S5),100*ABS($G5-(Data!S5-$K5)/$M5),0),IF(ISNUMBER(Data!S5),100*ABS($G5-(Data!S5-$K5)/$M5),0))) -> 10.82037037 | Z5: =IF($H5=0,0,CHOOSE($H5,SUMPRODUCT($O6:$O$23*Z6:Z$23*($E6:$E$23=$D5)),IF(ISNUMBER(Data!T5),100*ABS($G5-(Data!T5-$K5)/$M5),0),IF(ISNUMBER(Data!T5),100*ABS($G5-(Data!T5-$K5)/$M5),0))) -> 81.80621915 | AA5: =IF($H5=0,0,CHOOSE($H5,SUMPRODUCT($O6:$O$23*AA6:AA$23*($E6:$E$23=$D5)),IF(ISNUMBER(Data!U5),100*ABS($G5-(Data!U5-$K5)/$M5),0),IF(ISNUMBER(Data!U5),100*ABS($G5-(Data!U5-$K5)/$M5),0))) -> 50.41135513 | AB5: =IF($H5=0,0,CHOOSE($H5,SUMPRODUCT($O6:$O$23*AB6:AB$23*($E6:$E$23=$D5)),IF(ISNUMBER(Data!V5),100*ABS($G5-(Data!V5-$K5)/$M5),0),IF(ISNUMBER(Data!V5),100*ABS($G5-(Data!V5-$K5)/$M5),0))) -> 69.75511006 | AC5: =IF($H5=0,0,CHOOSE($H5,SUMPRODUCT($O6:$O$23*AC6:AC$23*($E6:$E$23=$D5)),IF(ISNUMBER(Data!W5),100*ABS($G5-(Data!W5-$K5)/$M5),0),IF(ISNUMBER(Data!W5),100*ABS($G5-(Data!W5-$K5)/$M5),0))) -> 71.8273568 | AD5: =IF($H5=0,0,CHOOSE($H5,SUMPRODUCT($O6:$O$23*AD6:AD$23*($E6:$E$23=$D5)),IF(ISNUMBER(Data!X5),100*ABS($G5-(Data!X5-$K5)/$M5),0),IF(ISNUMBER(Data!X5),100*ABS($G5-(Data!X5-$K5)/$M5),0))) -> 69.81449922 | AE5: =IF($H5=0,0,CHOOSE($H5,SUMPRODUCT($O6:$O$23*AE6:AE$23*($E6:$E$23=$D5)),IF(ISNUMBER(Data!Y5),100*ABS($G5-(Data!Y5-$K5)/$M5),0),IF(ISNUMBER(Data!Y5),100*ABS($G5-(Data!Y5-$K5)/$M5),0))) -> 53.10302123 | AF5: =IF($H5=0,0,CHOOSE($H5,SUMPRODUCT($O6:$O$23*AF6:AF$23*($E6:$E$23=$D5)),IF(ISNUMBER(Data!Z5),100*ABS($G5-(Data!Z5-$K5)/$M5),0),IF(ISNUMBER(Data!Z5),100*ABS($G5-(Data!Z5-$K5)/$M5),0))) -> 49.35506272
B6: =tblIndicators!A3 -> 2 | C6: =tblIndicators!B3 -> 0 | D6: =tblIndicators!D3 -> IP | E6: =tblIndicators!E3 -> TOTAL | F6: =tblIndicators!F3 -> 1 | G6: =tblIndicators!V3 ->  | H6: =tblIndicators!W3 -> 1 | I6: =tblIndicators!X3 -> 0 | J6: =tblIndicators!Y3 -> 0 | K6: =CHOOSE(H6,"-",MIN(Data!J6:Z6),I6) -> - | L6: =CHOOSE(H6,"-",MAX(Data!J6:Z6),J6) -> - | M6: =CHOOSE(H6,"-",L6-K6,L6-K6) -> - | N6: =tblIndicators!AB3 -> 1) INTELLECTUAL PROPERTY | O6: =tblIndicators!AA3 -> 0.25 | P6: =IF($H6=0,0,CHOOSE($H6,SUMPRODUCT($O7:$O$23*P7:P$23*($E7:$E$23=$D6)),IF(ISNUMBER(Data!J6),100*ABS($G6-(Data!J6-$K6)/$M6),0),IF(ISNUMBER(Data!J6),100*ABS($G6-(Data!J6-$K6)/$M6),0))) -> 100 | Q6: =IF($H6=0,0,CHOOSE($H6,SUMPRODUCT($O7:$O$23*Q7:Q$23*($E7:$E$23=$D6)),IF(ISNUMBER(Data!K6),100*ABS($G6-(Data!K6-$K6)/$M6),0),IF(ISNUMBER(Data!K6),100*ABS($G6-(Data!K6-$K6)/$M6),0))) -> 20 | R6: =IF($H6=0,0,CHOOSE($H6,SUMPRODUCT($O7:$O$23*R7:R$23*($E7:$E$23=$D6)),IF(ISNUMBER(Data!L6),100*ABS($G6-(Data!L6-$K6)/$M6),0),IF(ISNUMBER(Data!L6),100*ABS($G6-(Data!L6-$K6)/$M6),0))) -> 60 | S6: =IF($H6=0,0,CHOOSE($H6,SUMPRODUCT($O7:$O$23*S7:S$23*($E7:$E$23=$D6)),IF(ISNUMBER(Data!M6),100*ABS($G6-(Data!M6-$K6)/$M6),0),IF(ISNUMBER(Data!M6),100*ABS($G6-(Data!M6-$K6)/$M6),0))) -> 80 | T6: =IF($H6=0,0,CHOOSE($H6,SUMPRODUCT($O7:$O$23*T7:T$23*($E7:$E$23=$D6)),IF(ISNUMBER(Data!N6),100*ABS($G6-(Data!N6-$K6)/$M6),0),IF(ISNUMBER(Data!N6),100*ABS($G6-(Data!N6-$K6)/$M6),0))) -> 40 | U6: =IF($H6=0,0,CHOOSE($H6,SUMPRODUCT($O7:$O$23*U7:U$23*($E7:$E$23=$D6)),IF(ISNUMBER(Data!O6),100*ABS($G6-(Data!O6-$K6)/$M6),0),IF(ISNUMBER(Data!O6),100*ABS($G6-(Data!O6-$K6)/$M6),0))) -> 20 | V6: =IF($H6=0,0,CHOOSE($H6,SUMPRODUCT($O7:$O$23*V7:V$23*($E7:$E$23=$D6)),IF(ISNUMBER(Data!P6),100*ABS($G6-(Data!P6-$K6)/$M6),0),IF(ISNUMBER(Data!P6),100*ABS($G6-(Data!P6-$K6)/$M6),0))) -> 80 | W6: =IF($H6=0,0,CHOOSE($H6,SUMPRODUCT($O7:$O$23*W7:W$23*($E7:$E$23=$D6)),IF(ISNUMBER(Data!Q6),100*ABS($G6-(Data!Q6-$K6)/$M6),0),IF(ISNUMBER(Data!Q6),100*ABS($G6-(Data!Q6-$K6)/$M6),0))) -> 0 | X6: =IF($H6=0,0,CHOOSE($H6,SUMPRODUCT($O7:$O$23*X7:X$23*($E7:$E$23=$D6)),IF(ISNUMBER(Data!R6),100*ABS($G6-(Data!R6-$K6)/$M6),0),IF(ISNUMBER(Data!R6),100*ABS($G6-(Data!R6-$K6)/$M6),0))) -> 60 | Y6: =IF($H6=0,0,CHOOSE($H6,SUMPRODUCT($O7:$O$23*Y7:Y$23*($E7:$E$23=$D6)),IF(ISNUMBER(Data!S6),100*ABS($G6-(Data!S6-$K6)/$M6),0),IF(ISNUMBER(Data!S6),100*ABS($G6-(Data!S6-$K6)/$M6),0))) -> 0 | Z6: =IF($H6=0,0,CHOOSE($H6,SUMPRODUCT($O7:$O$23*Z7:Z$23*($E7:$E$23=$D6)),IF(ISNUMBER(Data!T6),100*ABS($G6-(Data!T6-$K6)/$M6),0),IF(ISNUMBER(Data!T6),100*ABS($G6-(Data!T6-$K6)/$M6),0))) -> 100 | AA6: =IF($H6=0,0,CHOOSE($H6,SUMPRODUCT($O7:$O$23*AA7:AA$23*($E7:$E$23=$D6)),IF(ISNUMBER(Data!U6),100*ABS($G6-(Data!U6-$K6)/$M6),0),IF(ISNUMBER(Data!U6),100*ABS($G6-(Data!U6-$K6)/$M6),0))) -> 40 | AB6: =IF($H6=0,0,CHOOSE($H6,SUMPRODUCT($O7:$O$23*AB7:AB$23*($E7:$E$23=$D6)),IF(ISNUMBER(Data!V6),100*ABS($G6-(Data!V6-$K6)/$M6),0),IF(ISNUMBER(Data!V6),100*ABS($G6-(Data!V6-$K6)/$M6),0))) -> 80 | AC6: =IF($H6=0,0,CHOOSE($H6,SUMPRODUCT($O7:$O$23*AC7:AC$23*($E7:$E$23=$D6)),IF(ISNUMBER(Data!W6),100*ABS($G6-(Data!W6-$K6)/$M6),0),IF(ISNUMBER(Data!W6),100*ABS($G6-(Data!W6-$K6)/$M6),0))) -> 60 | AD6: =IF($H6=0,0,CHOOSE($H6,SUMPRODUCT($O7:$O$23*AD7:AD$23*($E7:$E$23=$D6)),IF(ISNUMBER(Data!X6),100*ABS($G6-(Data!X6-$K6)/$M6),0),IF(ISNUMBER(Data!X6),100*ABS($G6-(Data!X6-$K6)/$M6),0))) -> 80 | AE6: =IF($H6=0,0,CHOOSE($H6,SUMPRODUCT($O7:$O$23*AE7:AE$23*($E7:$E$23=$D6)),IF(ISNUMBER(Data!Y6),100*ABS($G6-(Data!Y6-$K6)/$M6),0),IF(ISNUMBER(Data!Y6),100*ABS($G6-(Data!Y6-$K6)/$M6),0))) -> 20 | AF6: =IF($H6=0,0,CHOOSE($H6,SUMPRODUCT($O7:$O$23*AF7:AF$23*($E7:$E$23=$D6)),IF(ISNUMBER(Data!Z6),100*ABS($G6-(Data!Z6-$K6)/$M6),0),IF(ISNUMBER(Data!Z6),100*ABS($G6-(Data!Z6-$K6)/$M6),0))) -> 40
B7: =tblIndicators!A4 -> 3 | C7: =tblIndicators!B4 -> 0 | D7: =tblIndicators!D4 -> IP_11 | E7: =tblIndicators!E4 -> IP | F7: =tblIndicators!F4 -> 2 | G7: =tblIndicators!V4 -> 1 | H7: =tblIndicators!W4 -> 3 | I7: =tblIndicators!X4 -> 0 | J7: =tblIndicators!Y4 -> 4 | K7: =CHOOSE(H7,"-",MIN(Data!J7:Z7),I7) -> 0 | L7: =CHOOSE(H7,"-",MAX(Data!J7:Z7),J7) -> 4 | M7: =CHOOSE(H7,"-",L7-K7,L7-K7) -> 4 | N7: =tblIndicators!AB4 -> 1.1) Protection of IP rights | O7: =tblIndicators!AA4 -> 0.8 | P7: =IF($H7=0,0,CHOOSE($H7,SUMPRODUCT($O8:$O$23*P8:P$23*($E8:$E$23=$D7)),IF(ISNUMBER(Data!J7),100*ABS($G7-(Data!J7-$K7)/$M7),0),IF(ISNUMBER(Data!J7),100*ABS($G7-(Data!J7-$K7)/$M7),0))) -> 100 | Q7: =IF($H7=0,0,CHOOSE($H7,SUMPRODUCT($O8:$O$23*Q8:Q$23*($E8:$E$23=$D7)),IF(ISNUMBER(Data!K7),100*ABS($G7-(Data!K7-$K7)/$M7),0),IF(ISNUMBER(Data!K7),100*ABS($G7-(Data!K7-$K7)/$M7),0))) -> 25 | R7: =IF($H7=0,0,CHOOSE($H7,SUMPRODUCT($O8:$O$23*R8:R$23*($E8:$E$23=$D7)),IF(ISNUMBER(Data!L7),100*ABS($G7-(Data!L7-$K7)/$M7),0),IF(ISNUMBER(Data!L7),100*ABS($G7-(Data!L7-$K7)/$M7),0))) -> 50 | S7: =IF($H7=0,0,CHOOSE($H7,SUMPRODUCT($O8:$O$23*S8:S$23*($E8:$E$23=$D7)),IF(ISNUMBER(Data!M7),100*ABS($G7-(Data!M7-$K7)/$M7),0),IF(ISNUMBER(Data!M7),100*ABS($G7-(Data!M7-$K7)/$M7),0))) -> 75 | T7: =IF($H7=0,0,CHOOSE($H7,SUMPRODUCT($O8:$O$23*T8:T$23*($E8:$E$23=$D7)),IF(ISNUMBER(Data!N7),100*ABS($G7-(Data!N7-$K7)/$M7),0),IF(ISNUMBER(Data!N7),100*ABS($G7-(Data!N7-$K7)/$M7),0))) -> 50 | U7: =IF($H7=0,0,CHOOSE($H7,SUMPRODUCT($O8:$O$23*U8:U$23*($E8:$E$23=$D7)),IF(ISNUMBER(Data!O7),100*ABS($G7-(Data!O7-$K7)/$M7),0),IF(ISNUMBER(Data!O7),100*ABS($G7-(Data!O7-$K7)/$M7),0))) -> 25 | V7: =IF($H7=0,0,CHOOSE($H7,SUMPRODUCT($O8:$O$23*V8:V$23*($E8:$E$23=$D7)),IF(ISNUMBER(Data!P7),100*ABS($G7-(Data!P7-$K7)/$M7),0),IF(ISNUMBER(Data!P7),100*ABS($G7-(Data!P7-$K7)/$M7),0))) -> 75 | W7: =IF($H7=0,0,CHOOSE($H7,SUMPRODUCT($O8:$O$23*W8:W$23*($E8:$E$23=$D7)),IF(ISNUMBER(Data!Q7),100*ABS($G7-(Data!Q7-$K7)/$M7),0),IF(ISNUMBER(Data!Q7),100*ABS($G7-(Data!Q7-$K7)/$M7),0))) -> 0 | X7: =IF($H7=0,0,CHOOSE($H7,SUMPRODUCT($O8:$O$23*X8:X$23*($E8:$E$23=$D7)),IF(ISNUMBER(Data!R7),100*ABS($G7-(Data!R7-$K7)/$M7),0),IF(ISNUMBER(Data!R7),100*ABS($G7-(Data!R7-$K7)/$M7),0))) -> 75 | Y7: =IF($H7=0,0,CHOOSE($H7,SUMPRODUCT($O8:$O$23*Y8:Y$23*($E8:$E$23=$D7)),IF(ISNUMBER(Data!S7),100*ABS($G7-(Data!S7-$K7)/$M7),0),IF(ISNUMBER(Data!S7),100*ABS($G7-(Data!S7-$K7)/$M7),0))) -> 0 | Z7: =IF($H7=0,0,CHOOSE($H7,SUMPRODUCT($O8:$O$23*Z8:Z$23*($E8:$E$23=$D7)),IF(ISNUMBER(Data!T7),100*ABS($G7-(Data!T7-$K7)/$M7),0),IF(ISNUMBER(Data!T7),100*ABS($G7-(Data!T7-$K7)/$M7),0))) -> 100 | AA7: =IF($H7=0,0,CHOOSE($H7,SUMPRODUCT($O8:$O$23*AA8:AA$23*($E8:$E$23=$D7)),IF(ISNUMBER(Data!U7),100*ABS($G7-(Data!U7-$K7)/$M7),0),IF(ISNUMBER(Data!U7),100*ABS($G7-(Data!U7-$K7)/$M7),0))) -> 25 | AB7: =IF($H7=0,0,CHOOSE($H7,SUMPRODUCT($O8:$O$23*AB8:AB$23*($E8:$E$23=$D7)),IF(ISNUMBER(Data!V7),100*ABS($G7-(Data!V7-$K7)/$M7),0),IF(ISNUMBER(Data!V7),100*ABS($G7-(Data!V7-$K7)/$M7),0))) -> 100 | AC7: =IF($H7=0,0,CHOOSE($H7,SUMPRODUCT($O8:$O$23*AC8:AC$23*($E8:$E$23=$D7)),IF(ISNUMBER(Data!W7),100*ABS($G7-(Data!W7-$K7)/$M7),0),IF(ISNUMBER(Data!W7),100*ABS($G7-(Data!W7-$K7)/$M7),0))) -> 50 | AD7: =IF($H7=0,0,CHOOSE($H7,SUMPRODUCT($O8:$O$23*AD8:AD$23*($E8:$E$23=$D7)),IF(ISNUMBER(Data!X7),100*ABS($G7-(Data!X7-$K7)/$M7),0),IF(ISNUMBER(Data!X7),100*ABS($G7-(Data!X7-$K7)/$M7),0))) -> 75 | AE7: =IF($H7=0,0,CHOOSE($H7,SUMPRODUCT($O8:$O$23*AE8:AE$23*($E8:$E$23=$D7)),IF(ISNUMBER(Data!Y7),100*ABS($G7-(Data!Y7-$K7)/$M7),0),IF(ISNUMBER(Data!Y7),100*ABS($G7-(Data!Y7-$K7)/$M7),0))) -> 25 | AF7: =IF($H7=0,0,CHOOSE($H7,SUMPRODUCT($O8:$O$23*AF8:AF$23*($E8:$E$23=$D7)),IF(ISNUMBER(Data!Z7),100*ABS($G7-(Data!Z7-$K7)/$M7),0),IF(ISNUMBER(Data!Z7),100*ABS($G7-(Data!Z7-$K7)/$M7),0))) -> 25
B8: =tblIndicators!A5 -> 4 | C8: =tblIndicators!B5 -> 0 | D8: =tblIndicators!D5 -> IP_13 | E8: =tblIndicators!E5 -> IP | F8: =tblIndicators!F5 -> 2 | G8: =tblIndicators!V5 -> 0 | H8: =tblIndicators!W5 -> 3 | I8: =tblIndicators!X5 -> 0 | J8: =tblIndicators!Y5 -> 1 | K8: =CHOOSE(H8,"-",MIN(Data!J8:Z8),I8) -> 0 | L8: =CHOOSE(H8,"-",MAX(Data!J8:Z8),J8) -> 1 | M8: =CHOOSE(H8,"-",L8-K8,L8-K8) -> 1 | N8: =tblIndicators!AB5 -> 1.2) Customs recordal system | O8: =tblIndicators!AA5 -> 0.2 | P8: =IF($H8=0,0,CHOOSE($H8,SUMPRODUCT($O9:$O$23*P9:P$23*($E9:$E$23=$D8)),IF(ISNUMBER(Data!J8),100*ABS($G8-(Data!J8-$K8)/$M8),0),IF(ISNUMBER(Data!J8),100*ABS($G8-(Data!J8-$K8)/$M8),0))) -> 100 | Q8: =IF($H8=0,0,CHOOSE($H8,SUMPRODUCT($O9:$O$23*Q9:Q$23*($E9:$E$23=$D8)),IF(ISNUMBER(Data!K8),100*ABS($G8-(Data!K8-$K8)/$M8),0),IF(ISNUMBER(Data!K8),100*ABS($G8-(Data!K8-$K8)/$M8),0))) -> 0 | R8: =IF($H8=0,0,CHOOSE($H8,SUMPRODUCT($O9:$O$23*R9:R$23*($E9:$E$23=$D8)),IF(ISNUMBER(Data!L8),100*ABS($G8-(Data!L8-$K8)/$M8),0),IF(ISNUMBER(Data!L8),100*ABS($G8-(Data!L8-$K8)/$M8),0))) -> 100 | S8: =IF($H8=0,0,CHOOSE($H8,SUMPRODUCT($O9:$O$23*S9:S$23*($E9:$E$23=$D8)),IF(ISNUMBER(Data!M8),100*ABS($G8-(Data!M8-$K8)/$M8),0),IF(ISNUMBER(Data!M8),100*ABS($G8-(Data!M8-$K8)/$M8),0))) -> 100 | T8: =IF($H8=0,0,CHOOSE($H8,SUMPRODUCT($O9:$O$23*T9:T$23*($E9:$E$23=$D8)),IF(ISNUMBER(Data!N8),100*ABS($G8-(Data!N8-$K8)/$M8),0),IF(ISNUMBER(Data!N8),100*ABS($G8-(Data!N8-$K8)/$M8),0))) -> 0 | U8: =IF($H8=0,0,CHOOSE($H8,SUMPRODUCT($O9:$O$23*U9:U$23*($E9:$E$23=$D8)),IF(ISNUMBER(Data!O8),100*ABS($G8-(Data!O8-$K8)/$M8),0),IF(ISNUMBER(Data!O8),100*ABS($G8-(Data!O8-$K8)/$M8),0))) -> 0 | V8: =IF($H8=0,0,CHOOSE($H8,SUMPRODUCT($O9:$O$23*V9:V$23*($E9:$E$23=$D8)),IF(ISNUMBER(Data!P8),100*ABS($G8-(Data!P8-$K8)/$M8),0),IF(ISNUMBER(Data!P8),100*ABS($G8-(Data!P8-$K8)/$M8),0))) -> 100 | W8: =IF($H8=0,0,CHOOSE($H8,SUMPRODUCT($O9:$O$23*W9:W$23*($E9:$E$23=$D8)),IF(ISNUMBER(Data!Q8),100*ABS($G8-(Data!Q8-$K8)/$M8),0),IF(ISNUMBER(Data!Q8),100*ABS($G8-(Data!Q8-$K8)/$M8),0))) -> 0 | X8: =IF($H8=0,0,CHOOSE($H8,SUMPRODUCT($O9:$O$23*X9:X$23*($E9:$E$23=$D8)),IF(ISNUMBER(Data!R8),100*ABS($G8-(Data!R8-$K8)/$M8),0),IF(ISNUMBER(Data!R8),100*ABS($G8-(Data!R8-$K8)/$M8),0))) -> 0 | Y8: =IF($H8=0,0,CHOOSE($H8,SUMPRODUCT($O9:$O$23*Y9:Y$23*($E9:$E$23=$D8)),IF(ISNUMBER(Data!S8),100*ABS($G8-(Data!S8-$K8)/$M8),0),IF(ISNUMBER(Data!S8),100*ABS($G8-(Data!S8-$K8)/$M8),0))) -> 0 | Z8: =IF($H8=0,0,CHOOSE($H8,SUMPRODUCT($O9:$O$23*Z9:Z$23*($E9:$E$23=$D8)),IF(ISNUMBER(Data!T8),100*ABS($G8-(Data!T8-$K8)/$M8),0),IF(ISNUMBER(Data!T8),100*ABS($G8-(Data!T8-$K8)/$M8),0))) -> 100 | AA8: =IF($H8=0,0,CHOOSE($H8,SUMPRODUCT($O9:$O$23*AA9:AA$23*($E9:$E$23=$D8)),IF(ISNUMBER(Data!U8),100*ABS($G8-(Data!U8-$K8)/$M8),0),IF(ISNUMBER(Data!U8),100*ABS($G8-(Data!U8-$K8)/$M8),0))) -> 100 | AB8: =IF($H8=0,0,CHOOSE($H8,SUMPRODUCT($O9:$O$23*AB9:AB$23*($E9:$E$23=$D8)),IF(ISNUMBER(Data!V8),100*ABS($G8-(Data!V8-$K8)/$M8),0),IF(ISNUMBER(Data!V8),100*ABS($G8-(Data!V8-$K8)/$M8),0))) -> 0 | AC8: =IF($H8=0,0,CHOOSE($H8,SUMPRODUCT($O9:$O$23*AC9:AC$23*($E9:$E$23=$D8)),IF(ISNUMBER(Data!W8),100*ABS($G8-(Data!W8-$K8)/$M8),0),IF(ISNUMBER(Data!W8),100*ABS($G8-(Data!W8-$K8)/$M8),0))) -> 100 | AD8: =IF($H8=0,0,CHOOSE($H8,SUMPRODUCT($O9:$O$23*AD9:AD$23*($E9:$E$23=$D8)),IF(ISNUMBER(Data!X8),100*ABS($G8-(Data!X8-$K8)/$M8),0),IF(ISNUMBER(Data!X8),100*ABS($G8-(Data!X8-$K8)/$M8),0))) -> 100 | AE8: =IF($H8=0,0,CHOOSE($H8,SUMPRODUCT($O9:$O$23*AE9:AE$23*($E9:$E$23=$D8)),IF(ISNUMBER(Data!Y8),100*ABS($G8-(Data!Y8-$K8)/$M8),0),IF(ISNUMBER(Data!Y8),100*ABS($G8-(Data!Y8-$K8)/$M8),0))) -> 0 | AF8: =IF($H8=0,0,CHOOSE($H8,SUMPRODUCT($O9:$O$23*AF9:AF$23*($E9:$E$23=$D8)),IF(ISNUMBER(Data!Z8),100*ABS($G8-(Data!Z8-$K8)/$M8),0),IF(ISNUMBER(Data!Z8),100*ABS($G8-(Data!Z8-$K8)/$M8),0))) -> 100
B9: =tblIndicators!A6 -> 5 | C9: =tblIndicators!B6 -> 0 | D9: =tblIndicators!D6 -> TT | E9: =tblIndicators!E6 -> TOTAL | F9: =tblIndicators!F6 -> 1 | G9: =tblIndicators!V6 ->  | H9: =tblIndicators!W6 -> 1 | I9: =tblIndicators!X6 -> 0 | J9: =tblIndicators!Y6 -> 0 | K9: =CHOOSE(H9,"-",MIN(Data!J9:Z9),I9) -> - | L9: =CHOOSE(H9,"-",MAX(Data!J9:Z9),J9) -> - | M9: - | N9: =tblIndicators!AB6 -> 2) TRANSPARENCY AND TRADE | O9: =tblIndicators!AA6 -> 0.25 | P9: =IF($H9=0,0,CHOOSE($H9,SUMPRODUCT($O10:$O$23*P10:P$23*($E10:$E$23=$D9)),IF(ISNUMBER(Data!J9),100*ABS($G9-(Data!J9-$K9)/$M9),0),IF(ISNUMBER(Data!J9),100*ABS($G9-(Data!J9-$K9)/$M9),0))) -> 81.5 | Q9: =IF($H9=0,0,CHOOSE($H9,SUMPRODUCT($O10:$O$23*Q10:Q$23*($E10:$E$23=$D9)),IF(ISNUMBER(Data!K9),100*ABS($G9-(Data!K9-$K9)/$M9),0),IF(ISNUMBER(Data!K9),100*ABS($G9-(Data!K9-$K9)/$M9),0))) -> 25 | R9: =IF($H9=0,0,CHOOSE($H9,SUMPRODUCT($O10:$O$23*R10:R$23*($E10:$E$23=$D9)),IF(ISNUMBER(Data!L9),100*ABS($G9-(Data!L9-$K9)/$M9),0),IF(ISNUMBER(Data!L9),100*ABS($G9-(Data!L9-$K9)/$M9),0))) -> 80 | S9: =IF($H9=0,0,CHOOSE($H9,SUMPRODUCT($O10:$O$23*S10:S$23*($E10:$E$23=$D9)),IF(ISNUMBER(Data!M9),100*ABS($G9-(Data!M9-$K9)/$M9),0),IF(ISNUMBER(Data!M9),100*ABS($G9-(Data!M9-$K9)/$M9),0))) -> 69.5 | T9: =IF($H9=0,0,CHOOSE($H9,SUMPRODUCT($O10:$O$23*T10:T$23*($E10:$E$23=$D9)),IF(ISNUMBER(Data!N9),100*ABS($G9-(Data!N9-$K9)/$M9),0),IF(ISNUMBER(Data!N9),100*ABS($G9-(Data!N9-$K9)/$M9),0))) -> 71.75 | U9: =IF($H9=0,0,CHOOSE($H9,SUMPRODUCT($O10:$O$23*U10:U$23*($E10:$E$23=$D9)),IF(ISNUMBER(Data!O9),100*ABS($G9-(Data!O9-$K9)/$M9),0),IF(ISNUMBER(Data!O9),100*ABS($G9-(Data!O9-$K9)/$M9),0))) -> 78 | V9: =IF($H9=0,0,CHOOSE($H9,SUMPRODUCT($O10:$O$23*V10:V$23*($E10:$E$23=$D9)),IF(ISNUMBER(Data!P9),100*ABS($G9-(Data!P9-$K9)/$M9),0),IF(ISNUMBER(Data!P9),100*ABS($G9-(Data!P9-$K9)/$M9),0))) -> 88.75 | W9: =IF($H9=0,0,CHOOSE($H9,SUMPRODUCT($O10:$O$23*W10:W$23*($E10:$E$23=$D9)),IF(ISNUMBER(Data!Q9),100*ABS($G9-(Data!Q9-$K9)/$M9),0),IF(ISNUMBER(Data!Q9),100*ABS($G9-(Data!Q9-$K9)/$M9),0))) -> 11 | X9: =IF($H9=0,0,CHOOSE($H9,SUMPRODUCT($O10:$O$23*X10:X$23*($E10:$E$23=$D9)),IF(ISNUMBER(Data!R9),100*ABS($G9-(Data!R9-$K9)/$M9),0),IF(ISNUMBER(Data!R9),100*ABS($G9-(Data!R9-$K9)/$M9),0))) -> 93 | Y9: =IF($H9=0,0,CHOOSE($H9,SUMPRODUCT($O10:$O$23*Y10:Y$23*($E10:$E$23=$D9)),IF(ISNUMBER(Data!S9),100*ABS($G9-(Data!S9-$K9)/$M9),0),IF(ISNUMBER(Data!S9),100*ABS($G9-(Data!S9-$K9)/$M9),0))) -> 11.8 | Z9: =IF($H9=0,0,CHOOSE($H9,SUMPRODUCT($O10:$O$23*Z10:Z$23*($E10:$E$23=$D9)),IF(ISNUMBER(Data!T9),100*ABS($G9-(Data!T9-$K9)/$M9),0),IF(ISNUMBER(Data!T9),100*ABS($G9-(Data!T9-$K9)/$M9),0))) -> 47.75 | AA9: =IF($H9=0,0,CHOOSE($H9,SUMPRODUCT($O10:$O$23*AA10:AA$23*($E10:$E$23=$D9)),IF(ISNUMBER(Data!U9),100*ABS($G9-(Data!U9-$K9)/$M9),0),IF(ISNUMBER(Data!U9),100*ABS($G9-(Data!U9-$K9)/$M9),0))) -> 77.5 | AB9: =IF($H9=0,0,CHOOSE($H9,SUMPRODUCT($O10:$O$23*AB10:AB$23*($E10:$E$23=$D9)),IF(ISNUMBER(Data!V9),100*ABS($G9-(Data!V9-$K9)/$M9),0),IF(ISNUMBER(Data!V9),100*ABS($G9-(Data!V9-$K9)/$M9),0))) -> 25.75 | AC9: =IF($H9=0,0,CHOOSE($H9,SUMPRODUCT($O10:$O$23*AC10:AC$23*($E10:$E$23=$D9)),IF(ISNUMBER(Data!W9),100*ABS($G9-(Data!W9-$K9)/$M9),0),IF(ISNUMBER(Data!W9),100*ABS($G9-(Data!W9-$K9)/$M9),0))) -> 93.5 | AD9: =IF($H9=0,0,CHOOSE($H9,SUMPRODUCT($O10:$O$23*AD10:AD$23*($E10:$E$23=$D9)),IF(ISNUMBER(Data!X9),100*ABS($G9-(Data!X9-$K9)/$M9),0),IF(ISNUMBER(Data!X9),100*ABS($G9-(Data!X9-$K9)/$M9),0))) -> 44 | AE9: =IF($H9=0,0,CHOOSE($H9,SUMPRODUCT($O10:$O$23*AE10:AE$23*($E10:$E$23=$D9)),IF(ISNUMBER(Data!Y9),100*ABS($G9-(Data!Y9-$K9)/$M9),0),IF(ISNUMBER(Data!Y9),100*ABS($G9-(Data!Y9-$K9)/$M9),0))) -> 67.5 | AF9: =IF($H9=0,0,CHOOSE($H9,SUMPRODUCT($O10:$O$23*AF10:AF$23*($E10:$E$23=$D9)),IF(ISNUMBER(Data!Z9),100*ABS($G9-(Data!Z9-$K9)/$M9),0),IF(ISNUMBER(Data!Z9),100*ABS($G9-(Data!Z9-$K9)/$M9),0))) -> 59.75
B10: =tblIndicators!A7 -> 6 | C10: =tblIndicators!B7 -> 0 | D10: =tblIndicators!D7 -> TT_21 | E10: =tblIndicators!E7 -> TT | F10: =tblIndicators!F7 -> 2 | G10: =tblIndicators!V7 -> 0 | H10: =tblIndicators!W7 -> 3 | I10: =tblIndicators!X7 -> 0 | J10: =tblIndicators!Y7 -> 5 | K10: =CHOOSE(H10,"-",MIN(Data!J10:Z10),I10) -> 0 | L10: =CHOOSE(H10,"-",MAX(Data!J10:Z10),J10) -> 5 | M10: 5 | N10: =tblIndicators!AB7 -> 2.1) Track and trace services | O10: =tblIndicators!AA7 -> 0.25 | P10: =IF($H10=0,0,CHOOSE($H10,SUMPRODUCT($O11:$O$23*P11:P$23*($E11:$E$23=$D10)),IF(ISNUMBER(Data!J10),100*ABS($G10-(Data!J10-$K10)/$M10),0),IF(ISNUMBER(Data!J10),100*ABS($G10-(Data!J10-$K10)/$M10),0))) -> 76 | Q10: =IF($H10=0,0,CHOOSE($H10,SUMPRODUCT($O11:$O$23*Q11:Q$23*($E11:$E$23=$D10)),IF(ISNUMBER(Data!K10),100*ABS($G10-(Data!K10-$K10)/$M10),0),IF(ISNUMBER(Data!K10),100*ABS($G10-(Data!K10-$K10)/$M10),0))) -> 0 | R10: =IF($H10=0,0,CHOOSE($H10,SUMPRODUCT($O11:$O$23*R11:R$23*($E11:$E$23=$D10)),IF(ISNUMBER(Data!L10),100*ABS($G10-(Data!L10-$K10)/$M10),0),IF(ISNUMBER(Data!L10),100*ABS($G10-(Data!L10-$K10)/$M10),0))) -> 70 | S10: =IF($H10=0,0,CHOOSE($H10,SUMPRODUCT($O11:$O$23*S11:S$23*($E11:$E$23=$D10)),IF(ISNUMBER(Data!M10),100*ABS($G10-(Data!M10-$K10)/$M10),0),IF(ISNUMBER(Data!M10),100*ABS($G10-(Data!M10-$K10)/$M10),0))) -> 78 | T10: =IF($H10=0,0,CHOOSE($H10,SUMPRODUCT($O11:$O$23*T11:T$23*($E11:$E$23=$D10)),IF(ISNUMBER(Data!N10),100*ABS($G10-(Data!N10-$K10)/$M10),0),IF(ISNUMBER(Data!N10),100*ABS($G10-(Data!N10-$K10)/$M10),0))) -> 62 | U10: =IF($H10=0,0,CHOOSE($H10,SUMPRODUCT($O11:$O$23*U11:U$23*($E11:$E$23=$D10)),IF(ISNUMBER(Data!O10),100*ABS($G10-(Data!O10-$K10)/$M10),0),IF(ISNUMBER(Data!O10),100*ABS($G10-(Data!O10-$K10)/$M10),0))) -> 62 | V10: =IF($H10=0,0,CHOOSE($H10,SUMPRODUCT($O11:$O$23*V11:V$23*($E11:$E$23=$D10)),IF(ISNUMBER(Data!P10),100*ABS($G10-(Data!P10-$K10)/$M10),0),IF(ISNUMBER(Data!P10),100*ABS($G10-(Data!P10-$K10)/$M10),0))) -> 80 | W10: =IF($H10=0,0,CHOOSE($H10,SUMPRODUCT($O11:$O$23*W11:W$23*($E11:$E$23=$D10)),IF(ISNUMBER(Data!Q10),100*ABS($G10-(Data!Q10-$K10)/$M10),0),IF(ISNUMBER(Data!Q10),100*ABS($G10-(Data!Q10-$K10)/$M10),0))) -> 44 | X10: =IF($H10=0,0,CHOOSE($H10,SUMPRODUCT($O11:$O$23*X11:X$23*($E11:$E$23=$D10)),IF(ISNUMBER(Data!R10),100*ABS($G10-(Data!R10-$K10)/$M10),0),IF(ISNUMBER(Data!R10),100*ABS($G10-(Data!R10-$K10)/$M10),0))) -> 72 | Y10: =IF($H10=0,0,CHOOSE($H10,SUMPRODUCT($O11:$O$23*Y11:Y$23*($E11:$E$23=$D10)),IF(ISNUMBER(Data!S10),100*ABS($G10-(Data!S10-$K10)/$M10),0),IF(ISNUMBER(Data!S10),100*ABS($G10-(Data!S10-$K10)/$M10),0))) -> 47.2 | Z10: =IF($H10=0,0,CHOOSE($H10,SUMPRODUCT($O11:$O$23*Z11:Z$23*($E11:$E$23=$D10)),IF(ISNUMBER(Data!T10),100*ABS($G10-(Data!T10-$K10)/$M10),0),IF(ISNUMBER(Data!T10),100*ABS($G10-(Data!T10-$K10)/$M10),0))) -> 66 | AA10: =IF($H10=0,0,CHOOSE($H10,SUMPRODUCT($O11:$O$23*AA11:AA$23*($E11:$E$23=$D10)),IF(ISNUMBER(Data!U10),100*ABS($G10-(Data!U10-$K10)/$M10),0),IF(ISNUMBER(Data!U10),100*ABS($G10-(Data!U10-$K10)/$M10),0))) -> 60 | AB10: =IF($H10=0,0,CHOOSE($H10,SUMPRODUCT($O11:$O$23*AB11:AB$23*($E11:$E$23=$D10)),IF(ISNUMBER(Data!V10),100*ABS($G10-(Data!V10-$K10)/$M10),0),IF(ISNUMBER(Data!V10),100*ABS($G10-(Data!V10-$K10)/$M10),0))) -> 78 | AC10: =IF($H10=0,0,CHOOSE($H10,SUMPRODUCT($O11:$O$23*AC11:AC$23*($E11:$E$23=$D10)),IF(ISNUMBER(Data!W10),100*ABS($G10-(Data!W10-$K10)/$M10),0),IF(ISNUMBER(Data!W10),100*ABS($G10-(Data!W10-$K10)/$M10),0))) -> 74 | AD10: =IF($H10=0,0,CHOOSE($H10,SUMPRODUCT($O11:$O$23*AD11:AD$23*($E11:$E$23=$D10)),IF(ISNUMBER(Data!X10),100*ABS($G10-(Data!X10-$K10)/$M10),0),IF(ISNUMBER(Data!X10),100*ABS($G10-(Data!X10-$K10)/$M10),0))) -> 76 | AE10: =IF($H10=0,0,CHOOSE($H10,SUMPRODUCT($O11:$O$23*AE11:AE$23*($E11:$E$23=$D10)),IF(ISNUMBER(Data!Y10),100*ABS($G10-(Data!Y10-$K10)/$M10),0),IF(ISNUMBER(Data!Y10),100*ABS($G10-(Data!Y10-$K10)/$M10),0))) -> 70 | AF10: =IF($H10=0,0,CHOOSE($H10,SUMPRODUCT($O11:$O$23*AF11:AF$23*($E11:$E$23=$D10)),IF(ISNUMBER(Data!Z10),100*ABS($G10-(Data!Z10-$K10)/$M10),0),IF(ISNUMBER(Data!Z10),100*ABS($G10-(Data!Z10-$K10)/$M10),0))) -> 64
B11: =tblIndicators!A8 -> 7 | C11: =tblIndicators!B8 -> 0 | D11: =tblIndicators!D8 -> TT_22 | E11: =tblIndicators!E8 -> TT | F11: =tblIndicators!F8 -> 2 | G11: =tblIndicators!V8 -> 0 | H11: =tblIndicators!W8 -> 3 | I11: =tblIndicators!X8 -> 0 | J11: =tblIndicators!Y8 -> 1 | K11: =CHOOSE(H11,"-",MIN(Data!J11:Z11),I11) -> 0 | L11: =CHOOSE(H11,"-",MAX(Data!J11:Z11),J11) -> 1 | M11: 1 | N11: =tblIndicators!AB8 -> 2.2) Adoption of Annex D of Revised Kyoto Convention | O11: =tblIndicators!AA8 -> 0.25 | P11: =IF($H11=0,0,CHOOSE($H11,SUMPRODUCT($O12:$O$23*P12:P$23*($E12:$E$23=$D11)),IF(ISNUMBER(Data!J11),100*ABS($G11-(Data!J11-$K11)/$M11),0),IF(ISNUMBER(Data!J11),100*ABS($G11-(Data!J11-$K11)/$M11),0))) -> 100 | Q11: =IF($H11=0,0,CHOOSE($H11,SUMPRODUCT($O12:$O$23*Q12:Q$23*($E12:$E$23=$D11)),IF(ISNUMBER(Data!K11),100*ABS($G11-(Data!K11-$K11)/$M11),0),IF(ISNUMBER(Data!K11),100*ABS($G11-(Data!K11-$K11)/$M11),0))) -> 100 | R11: =IF($H11=0,0,CHOOSE($H11,SUMPRODUCT($O12:$O$23*R12:R$23*($E12:$E$23=$D11)),IF(ISNUMBER(Data!L11),100*ABS($G11-(Data!L11-$K11)/$M11),0),IF(ISNUMBER(Data!L11),100*ABS($G11-(Data!L11-$K11)/$M11),0))) -> 100 | S11: =IF($H11=0,0,CHOOSE($H11,SUMPRODUCT($O12:$O$23*S12:S$23*($E12:$E$23=$D11)),IF(ISNUMBER(Data!M11),100*ABS($G11-(Data!M11-$K11)/$M11),0),IF(ISNUMBER(Data!M11),100*ABS($G11-(Data!M11-$K11)/$M11),0))) -> 0 | T11: =IF($H11=0,0,CHOOSE($H11,SUMPRODUCT($O12:$O$23*T12:T$23*($E12:$E$23=$D11)),IF(ISNUMBER(Data!N11),100*ABS($G11-(Data!N11-$K11)/$M11),0),IF(ISNUMBER(Data!N11),100*ABS($G11-(Data!N11-$K11)/$M11),0))) -> 100 | U11: =IF($H11=0,0,CHOOSE($H11,SUMPRODUCT($O12:$O$23*U12:U$23*($E12:$E$23=$D11)),IF(ISNUMBER(Data!O11),100*ABS($G11-(Data!O11-$K11)/$M11),0),IF(ISNUMBER(Data!O11),100*ABS($G11-(Data!O11-$K11)/$M11),0))) -> 100 | V11: =IF($H11=0,0,CHOOSE($H11,SUMPRODUCT($O12:$O$23*V12:V$23*($E12:$E$23=$D11)),IF(ISNUMBER(Data!P11),100*ABS($G11-(Data!P11-$K11)/$M11),0),IF(ISNUMBER(Data!P11),100*ABS($G11-(Data!P11-$K11)/$M11),0))) -> 100 | W11: =IF($H11=0,0,CHOOSE($H11,SUMPRODUCT($O12:$O$23*W12:W$23*($E12:$E$23=$D11)),IF(ISNUMBER(Data!Q11),100*ABS($G11-(Data!Q11-$K11)/$M11),0),IF(ISNUMBER(Data!Q11),100*ABS($G11-(Data!Q11-$K11)/$M11),0))) -> 0 | X11: =IF($H11=0,0,CHOOSE($H11,SUMPRODUCT($O12:$O$23*X12:X$23*($E12:$E$23=$D11)),IF(ISNUMBER(Data!R11),100*ABS($G11-(Data!R11-$K11)/$M11),0),IF(ISNUMBER(Data!R11),100*ABS($G11-(Data!R11-$K11)/$M11),0))) -> 100 | Y11: =IF($H11=0,0,CHOOSE($H11,SUMPRODUCT($O12:$O$23*Y12:Y$23*($E12:$E$23=$D11)),IF(ISNUMBER(Data!S11),100*ABS($G11-(Data!S11-$K11)/$M11),0),IF(ISNUMBER(Data!S11),100*ABS($G11-(Data!S11-$K11)/$M11),0))) -> 0 | Z11: =IF($H11=0,0,CHOOSE($H11,SUMPRODUCT($O12:$O$23*Z12:Z$23*($E12:$E$23=$D11)),IF(ISNUMBER(Data!T11),100*ABS($G11-(Data!T11-$K11)/$M11),0),IF(ISNUMBER(Data!T11),100*ABS($G11-(Data!T11-$K11)/$M11),0))) -> 100 | AA11: =IF($H11=0,0,CHOOSE($H11,SUMPRODUCT($O12:$O$23*AA12:AA$23*($E12:$E$23=$D11)),IF(ISNUMBER(Data!U11),100*ABS($G11-(Data!U11-$K11)/$M11),0),IF(ISNUMBER(Data!U11),100*ABS($G11-(Data!U11-$K11)/$M11),0))) -> 100 | AB11: =IF($H11=0,0,CHOOSE($H11,SUMPRODUCT($O12:$O$23*AB12:AB$23*($E12:$E$23=$D11)),IF(ISNUMBER(Data!V11),100*ABS($G11-(Data!V11-$K11)/$M11),0),IF(ISNUMBER(Data!V11),100*ABS($G11-(Data!V11-$K11)/$M11),0))) -> 0 | AC11: =IF($H11=0,0,CHOOSE($H11,SUMPRODUCT($O12:$O$23*AC12:AC$23*($E12:$E$23=$D11)),IF(ISNUMBER(Data!W11),100*ABS($G11-(Data!W11-$K11)/$M11),0),IF(ISNUMBER(Data!W11),100*ABS($G11-(Data!W11-$K11)/$M11),0))) -> 100 | AD11: =IF($H11=0,0,CHOOSE($H11,SUMPRODUCT($O12:$O$23*AD12:AD$23*($E12:$E$23=$D11)),IF(ISNUMBER(Data!X11),100*ABS($G11-(Data!X11-$K11)/$M11),0),IF(ISNUMBER(Data!X11),100*ABS($G11-(Data!X11-$K11)/$M11),0))) -> 0 | AE11: =IF($H11=0,0,CHOOSE($H11,SUMPRODUCT($O12:$O$23*AE12:AE$23*($E12:$E$23=$D11)),IF(ISNUMBER(Data!Y11),100*ABS($G11-(Data!Y11-$K11)/$M11),0),IF(ISNUMBER(Data!Y11),100*ABS($G11-(Data!Y11-$K11)/$M11),0))) -> 100 | AF11: =IF($H11=0,0,CHOOSE($H11,SUMPRODUCT($O12:$O$23*AF12:AF$23*($E12:$E$23=$D11)),IF(ISNUMBER(Data!Z11),100*ABS($G11-(Data!Z11-$K11)/$M11),0),IF(ISNUMBER(Data!Z11),100*ABS($G11-(Data!Z11-$K11)/$M11),0))) -> 100
B12: =tblIndicators!A9 -> 8 | C12: =tblIndicators!B9 -> 0 | D12: =tblIndicators!D9 -> TT_23 | E12: =tblIndicators!E9 -> TT | F12: =tblIndicators!F9 -> 2 | G12: =tblIndicators!V9 -> 0 | H12: =tblIndicators!W9 -> 3 | I12: =tblIndicators!X9 -> 1 | J12: =tblIndicators!Y9 -> 2 | K12: =CHOOSE(H12,"-",MIN(Data!J12:Z12),I12) -> 1 | L12: =CHOOSE(H12,"-",MAX(Data!J12:Z12),J12) -> 2 | M12: 1 | N12: =tblIndicators!AB9 -> 2.3) Government cooperation | O12: =tblIndicators!AA9 -> 0.25 | P12: =IF($H12=0,0,CHOOSE($H12,SUMPRODUCT($O13:$O$23*P13:P$23*($E13:$E$23=$D12)),IF(ISNUMBER(Data!J12),100*ABS($G12-(Data!J12-$K12)/$M12),0),IF(ISNUMBER(Data!J12),100*ABS($G12-(Data!J12-$K12)/$M12),0))) -> 100 | Q12: =IF($H12=0,0,CHOOSE($H12,SUMPRODUCT($O13:$O$23*Q13:Q$23*($E13:$E$23=$D12)),IF(ISNUMBER(Data!K12),100*ABS($G12-(Data!K12-$K12)/$M12),0),IF(ISNUMBER(Data!K12),100*ABS($G12-(Data!K12-$K12)/$M12),0))) -> 0 | R12: =IF($H12=0,0,CHOOSE($H12,SUMPRODUCT($O13:$O$23*R13:R$23*($E13:$E$23=$D12)),IF(ISNUMBER(Data!L12),100*ABS($G12-(Data!L12-$K12)/$M12),0),IF(ISNUMBER(Data!L12),100*ABS($G12-(Data!L12-$K12)/$M12),0))) -> 100 | S12: =IF($H12=0,0,CHOOSE($H12,SUMPRODUCT($O13:$O$23*S13:S$23*($E13:$E$23=$D12)),IF(ISNUMBER(Data!M12),100*ABS($G12-(Data!M12-$K12)/$M12),0),IF(ISNUMBER(Data!M12),100*ABS($G12-(Data!M12-$K12)/$M12),0))) -> 100 | T12: =IF($H12=0,0,CHOOSE($H12,SUMPRODUCT($O13:$O$23*T13:T$23*($E13:$E$23=$D12)),IF(ISNUMBER(Data!N12),100*ABS($G12-(Data!N12-$K12)/$M12),0),IF(ISNUMBER(Data!N12),100*ABS($G12-(Data!N12-$K12)/$M12),0))) -> 100 | U12: =IF($H12=0,0,CHOOSE($H12,SUMPRODUCT($O13:$O$23*U13:U$23*($E13:$E$23=$D12)),IF(ISNUMBER(Data!O12),100*ABS($G12-(Data!O12-$K12)/$M12),0),IF(ISNUMBER(Data!O12),100*ABS($G12-(Data!O12-$K12)/$M12),0))) -> 100 | V12: =IF($H12=0,0,CHOOSE($H12,SUMPRODUCT($O13:$O$23*V13:V$23*($E13:$E$23=$D12)),IF(ISNUMBER(Data!P12),100*ABS($G12-(Data!P12-$K12)/$M12),0),IF(ISNUMBER(Data!P12),100*ABS($G12-(Data!P12-$K12)/$M12),0))) -> 100 | W12: =IF($H12=0,0,CHOOSE($H12,SUMPRODUCT($O13:$O$23*W13:W$23*($E13:$E$23=$D12)),IF(ISNUMBER(Data!Q12),100*ABS($G12-(Data!Q12-$K12)/$M12),0),IF(ISNUMBER(Data!Q12),100*ABS($G12-(Data!Q12-$K12)/$M12),0))) -> 0 | X12: =IF($H12=0,0,CHOOSE($H12,SUMPRODUCT($O13:$O$23*X13:X$23*($E13:$E$23=$D12)),IF(ISNUMBER(Data!R12),100*ABS($G12-(Data!R12-$K12)/$M12),0),IF(ISNUMBER(Data!R12),100*ABS($G12-(Data!R12-$K12)/$M12),0))) -> 100 | Y12: =IF($H12=0,0,CHOOSE($H12,SUMPRODUCT($O13:$O$23*Y13:Y$23*($E13:$E$23=$D12)),IF(ISNUMBER(Data!S12),100*ABS($G12-(Data!S12-$K12)/$M12),0),IF(ISNUMBER(Data!S12),100*ABS($G12-(Data!S12-$K12)/$M12),0))) -> 0 | Z12: =IF($H12=0,0,CHOOSE($H12,SUMPRODUCT($O13:$O$23*Z13:Z$23*($E13:$E$23=$D12)),IF(ISNUMBER(Data!T12),100*ABS($G12-(Data!T12-$K12)/$M12),0),IF(ISNUMBER(Data!T12),100*ABS($G12-(Data!T12-$K12)/$M12),0))) -> 0 | AA12: =IF($H12=0,0,CHOOSE($H12,SUMPRODUCT($O13:$O$23*AA13:AA$23*($E13:$E$23=$D12)),IF(ISNUMBER(Data!U12),100*ABS($G12-(Data!U12-$K12)/$M12),0),IF(ISNUMBER(Data!U12),100*ABS($G12-(Data!U12-$K12)/$M12),0))) -> 100 | AB12: =IF($H12=0,0,CHOOSE($H12,SUMPRODUCT($O13:$O$23*AB13:AB$23*($E13:$E$23=$D12)),IF(ISNUMBER(Data!V12),100*ABS($G12-(Data!V12-$K12)/$M12),0),IF(ISNUMBER(Data!V12),100*ABS($G12-(Data!V12-$K12)/$M12),0))) -> 0 | AC12: =IF($H12=0,0,CHOOSE($H12,SUMPRODUCT($O13:$O$23*AC13:AC$23*($E13:$E$23=$D12)),IF(ISNUMBER(Data!W12),100*ABS($G12-(Data!W12-$K12)/$M12),0),IF(ISNUMBER(Data!W12),100*ABS($G12-(Data!W12-$K12)/$M12),0))) -> 100 | AD12: =IF($H12=0,0,CHOOSE($H12,SUMPRODUCT($O13:$O$23*AD13:AD$23*($E13:$E$23=$D12)),IF(ISNUMBER(Data!X12),100*ABS($G12-(Data!X12-$K12)/$M12),0),IF(ISNUMBER(Data!X12),100*ABS($G12-(Data!X12-$K12)/$M12),0))) -> 0 | AE12: =IF($H12=0,0,CHOOSE($H12,SUMPRODUCT($O13:$O$23*AE13:AE$23*($E13:$E$23=$D12)),IF(ISNUMBER(Data!Y12),100*ABS($G12-(Data!Y12-$K12)/$M12),0),IF(ISNUMBER(Data!Y12),100*ABS($G12-(Data!Y12-$K12)/$M12),0))) -> 0 | AF12: =IF($H12=0,0,CHOOSE($H12,SUMPRODUCT($O13:$O$23*AF13:AF$23*($E13:$E$23=$D12)),IF(ISNUMBER(Data!Z12),100*ABS($G12-(Data!Z12-$K12)/$M12),0),IF(ISNUMBER(Data!Z12),100*ABS($G12-(Data!Z12-$K12)/$M12),0))) -> 0
B13: =tblIndicators!A10 -> 9 | C13: =tblIndicators!B10 -> 0 | D13: =tblIndicators!D10 -> TT_24 | E13: =tblIndicators!E10 -> TT | F13: =tblIndicators!F10 -> 2 | G13: =tblIndicators!V10 -> 0 | H13: =tblIndicators!W10 -> 3 | I13: =tblIndicators!X10 -> 0 | J13: =tblIndicators!Y10 -> 4 | K13: =CHOOSE(H13,"-",MIN(Data!J13:Z13),I13) -> 0 | L13: =CHOOSE(H13,"-",MAX(Data!J13:Z13),J13) -> 4 | M13: 4 | N13: =tblIndicators!AB10 -> 2.4) FTZ governance | O13: =tblIndicators!AA10 -> 0.25 | P13: =IF($H13=0,0,CHOOSE($H13,SUMPRODUCT($O14:$O$23*P14:P$23*($E14:$E$23=$D13)),IF(ISNUMBER(Data!J13),100*ABS($G13-(Data!J13-$K13)/$M13),0),IF(ISNUMBER(Data!J13),100*ABS($G13-(Data!J13-$K13)/$M13),0))) -> 50 | Q13: =IF($H13=0,0,CHOOSE($H13,SUMPRODUCT($O14:$O$23*Q14:Q$23*($E14:$E$23=$D13)),IF(ISNUMBER(Data!K13),100*ABS($G13-(Data!K13-$K13)/$M13),0),IF(ISNUMBER(Data!K13),100*ABS($G13-(Data!K13-$K13)/$M13),0))) -> 0 | R13: =IF($H13=0,0,CHOOSE($H13,SUMPRODUCT($O14:$O$23*R14:R$23*($E14:$E$23=$D13)),IF(ISNUMBER(Data!L13),100*ABS($G13-(Data!L13-$K13)/$M13),0),IF(ISNUMBER(Data!L13),100*ABS($G13-(Data!L13-$K13)/$M13),0))) -> 50 | S13: =IF($H13=0,0,CHOOSE($H13,SUMPRODUCT($O14:$O$23*S14:S$23*($E14:$E$23=$D13)),IF(ISNUMBER(Data!M13),100*ABS($G13-(Data!M13-$K13)/$M13),0),IF(ISNUMBER(Data!M13),100*ABS($G13-(Data!M13-$K13)/$M13),0))) -> 100 | T13: =IF($H13=0,0,CHOOSE($H13,SUMPRODUCT($O14:$O$23*T14:T$23*($E14:$E$23=$D13)),IF(ISNUMBER(Data!N13),100*ABS($G13-(Data!N13-$K13)/$M13),0),IF(ISNUMBER(Data!N13),100*ABS($G13-(Data!N13-$K13)/$M13),0))) -> 25 | U13: =IF($H13=0,0,CHOOSE($H13,SUMPRODUCT($O14:$O$23*U14:U$23*($E14:$E$23=$D13)),IF(ISNUMBER(Data!O13),100*ABS($G13-(Data!O13-$K13)/$M13),0),IF(ISNUMBER(Data!O13),100*ABS($G13-(Data!O13-$K13)/$M13),0))) -> 50 | V13: =IF($H13=0,0,CHOOSE($H13,SUMPRODUCT($O14:$O$23*V14:V$23*($E14:$E$23=$D13)),IF(ISNUMBER(Data!P13),100*ABS($G13-(Data!P13-$K13)/$M13),0),IF(ISNUMBER(Data!P13),100*ABS($G13-(Data!P13-$K13)/$M13),0))) -> 75 | W13: =IF($H13=0,0,CHOOSE($H13,SUMPRODUCT($O14:$O$23*W14:W$23*($E14:$E$23=$D13)),IF(ISNUMBER(Data!Q13),100*ABS($G13-(Data!Q13-$K13)/$M13),0),IF(ISNUMBER(Data!Q13),100*ABS($G13-(Data!Q13-$K13)/$M13),0))) -> 0 | X13: =IF($H13=0,0,CHOOSE($H13,SUMPRODUCT($O14:$O$23*X14:X$23*($E14:$E$23=$D13)),IF(ISNUMBER(Data!R13),100*ABS($G13-(Data!R13-$K13)/$M13),0),IF(ISNUMBER(Data!R13),100*ABS($G13-(Data!R13-$K13)/$M13),0))) -> 100 | Y13: =IF($H13=0,0,CHOOSE($H13,SUMPRODUCT($O14:$O$23*Y14:Y$23*($E14:$E$23=$D13)),IF(ISNUMBER(Data!S13),100*ABS($G13-(Data!S13-$K13)/$M13),0),IF(ISNUMBER(Data!S13),100*ABS($G13-(Data!S13-$K13)/$M13),0))) -> 0 | Z13: =IF($H13=0,0,CHOOSE($H13,SUMPRODUCT($O14:$O$23*Z14:Z$23*($E14:$E$23=$D13)),IF(ISNUMBER(Data!T13),100*ABS($G13-(Data!T13-$K13)/$M13),0),IF(ISNUMBER(Data!T13),100*ABS($G13-(Data!T13-$K13)/$M13),0))) -> 25 | AA13: =IF($H13=0,0,CHOOSE($H13,SUMPRODUCT($O14:$O$23*AA14:AA$23*($E14:$E$23=$D13)),IF(ISNUMBER(Data!U13),100*ABS($G13-(Data!U13-$K13)/$M13),0),IF(ISNUMBER(Data!U13),100*ABS($G13-(Data!U13-$K13)/$M13),0))) -> 50 | AB13: =IF($H13=0,0,CHOOSE($H13,SUMPRODUCT($O14:$O$23*AB14:AB$23*($E14:$E$23=$D13)),IF(ISNUMBER(Data!V13),100*ABS($G13-(Data!V13-$K13)/$M13),0),IF(ISNUMBER(Data!V13),100*ABS($G13-(Data!V13-$K13)/$M13),0))) -> 25 | AC13: =IF($H13=0,0,CHOOSE($H13,SUMPRODUCT($O14:$O$23*AC14:AC$23*($E14:$E$23=$D13)),IF(ISNUMBER(Data!W13),100*ABS($G13-(Data!W13-$K13)/$M13),0),IF(ISNUMBER(Data!W13),100*ABS($G13-(Data!W13-$K13)/$M13),0))) -> 100 | AD13: =IF($H13=0,0,CHOOSE($H13,SUMPRODUCT($O14:$O$23*AD14:AD$23*($E14:$E$23=$D13)),IF(ISNUMBER(Data!X13),100*ABS($G13-(Data!X13-$K13)/$M13),0),IF(ISNUMBER(Data!X13),100*ABS($G13-(Data!X13-$K13)/$M13),0))) -> 100 | AE13: =IF($H13=0,0,CHOOSE($H13,SUMPRODUCT($O14:$O$23*AE14:AE$23*($E14:$E$23=$D13)),IF(ISNUMBER(Data!Y13),100*ABS($G13-(Data!Y13-$K13)/$M13),0),IF(ISNUMBER(Data!Y13),100*ABS($G13-(Data!Y13-$K13)/$M13),0))) -> 100 | AF13: =IF($H13=0,0,CHOOSE($H13,SUMPRODUCT($O14:$O$23*AF14:AF$23*($E14:$E$23=$D13)),IF(ISNUMBER(Data!Z13),100*ABS($G13-(Data!Z13-$K13)/$M13),0),IF(ISNUMBER(Data!Z13),100*ABS($G13-(Data!Z13-$K13)/$M13),0))) -> 75
